Workbook

Sheet はじめに
B1: 220412版
B2: 大学ファクトブック2022 【大学個別シート検索】（国立大学）について
B4: 文部科学省が実施した「令和2年度大学等における産学連携等実施状況について」を基に作成された
B5: 大学ファクトブック2022に掲載している大学名から、大学個別シートを検索・取得する機能を提供しています。
B7: 検索の手順
B8: 1.「検索画面」シートのドロップダウンリストから大学名を選択し、検索ボタンを押してください
B9: 2.選択した大学個別シートが「検索画面」シートの右隣に表示されます。シートの選択で「検索画面」シートに戻り、再度検索することが可能です。
B11: 留意事項
B12: ・本ツールは企業や大学の産学連携担当者による利用を想定しています。
B13: ・本ツールの検索結果が残った状態でファイルを閉じる/終了する際、「上書き保存」を選択すると、その検索結果が残った状態で保存されますのでご注意ください。
B14: ・検索で個別シートを非公開にしている大学を選択すると、「個別シートはありません」というポップアップが表示されます。OKボタンを押して他の大学を選択してください。
B15: ・検索で表示される個別シートは、お使いのPC環境によっては印刷がずれる場合があります。印刷の「ページ設定」で横2×縦1に設定し直してください。
B17: お問い合わせ先
B18: 掲載情報等に係るご相談は、下記メールにてご連絡ください。
B19: メールアドレス：sangakurenkei&&meti.go.jp (&&を＠に変換) 必ず以下の項目・内容をご記載ください。 【件名】大学ファクトブック2022 【大学個別シート検索】お問い合わせ ①お名前 ②ご連絡先（メールアドレス・電話番号） ③機関・部署・役職 ④お問い合わせ内容（下記よりお選びください） ・本ツールに関するお問い合わせ ・掲載情報に関するお問い合わせ ・本ツールへのリンク等に関する問い合わせ ・その他

Sheet シートの見方

Sheet 検索画面
A1: 【大学個別シート検索】（国立大学） | Y1: 大学名 | Z1: 研究者数 | AA1: 大型共同研究数 | AB1: 特許保有数 | AC1: ベンチャー数 | AD1: インキュベーション施設 | AE1: クロアポ | AF1: 税
A2: 大学ファクトブック2022の大学個別シートが検索・取得できます。
Y3: -----【国立】----- | Z3: 1,000人以上 | AA3: 100件以上 | AB3: 1,000件以上 | AC3: 50社以上 | AD3: ある | AE3: 50社以上 | AF3: ある
X4: =PHONETIC(Y4) -> アイチキョウイクダイガク | Y4: 愛知教育大学 | Z4: 500人以上1,000人未満 | AA4: 50件以上100件未満 | AB4: 500件以上1,000件未満 | AC4: 10社以上50社未満 | AD4: ない | AE4: 10社以上50社未満 | AF4: ない
A5: 大学名から探す（あ～て） | D5: 大学名をプルダウンから選択して検索します。 | X5: アキタダイガク | Y5: 秋田大学 | Z5: 100人以上500人未満 | AA5: 10件以上50件未満 | AB5: 100件以上500件未満 | AC5: 5社以上10社未満 | AE5: 5社以上10社未満
X6: アサヒカワイカダイガク | Y6: 旭川医科大学 | Z6: 100人未満 | AA6: 10件未満 | AB6: 100件未満 | AC6: 5社未満 | AE6: 5社未満
B7: 愛知教育大学 | X7: イバラキダイガク | Y7: 茨城大学
X8: イワテダイガク | Y8: 岩手大学
X9: ウツノミヤダイガク | Y9: 宇都宮大学
X10: エヒメダイガク | Y10: 愛媛大学
X11: オオイタダイガク | Y11: 大分大学
X12: オオサカキョウイクダイガク | Y12: 大阪教育大学
X13: オオサカダイガク | Y13: 大阪大学
X14: オカヤマダイガク | Y14: 岡山大学
X15: オタルショウカダイガク | Y15: 小樽商科大学
X16: オチャノミズジョシダイガク | Y16: お茶の水女子大学
X17: オビヒロチクサンダイガク | Y17: 帯広畜産大学
X18: カガワダイガク | Y18: 香川大学
X19: カゴシマダイガク | Y19: 鹿児島大学
X20: カナザワダイガク | Y20: 金沢大学
X21: カノヤタイイクダイガク | Y21: 鹿屋体育大学
X22: キタミコウギョウダイガク | Y22: 北見工業大学
X23: ギフダイガク | Y23: 岐阜大学
X24: キュウシュウコウギョウダイガク | Y24: 九州工業大学
X25: キュウシュウダイガク | Y25: 九州大学
X26: キョウトキョウイクダイガク | Y26: 京都教育大学
X27: キョウトコウゲイセンイダイガク | Y27: 京都工芸繊維大学
X28: キョウトダイガク | Y28: 京都大学
X29: クマモトダイガク | Y29: 熊本大学
X30: グンマダイガク | Y30: 群馬大学
X31: コウチダイガク | Y31: 高知大学
X32: コウベダイガク | Y32: 神戸大学
X33: サイタマダイガク | Y33: 埼玉大学
X34: サガダイガク | Y34: 佐賀大学
X35: シガイカダイガク | Y35: 滋賀医科大学
X36: シガダイガク | Y36: 滋賀大学
X37: シズオカダイガク | Y37: 静岡大学
X38: シマネダイガク | Y38: 島根大学
X39: ジョウエツキョウイクダイガク | Y39: 上越教育大学
X40: シンシュウダイガク | Y40: 信州大学
X41: セイサクケンキュウダイガクインダイガク | Y41: 政策研究大学院大学
X42: ソウゴウケンキュウダイガクインダイガク | Y42: 総合研究大学院大学
X43: チバダイガク | Y43: 千葉大学
X44: ツクバギジュツダイガク | Y44: 筑波技術大学
X45: ツクバダイガク | Y45: 筑波大学
X46: デンキツウシンダイガク | Y46: 電気通信大学
X47: トウキョウイカシカダイガク | Y47: 東京医科歯科大学
X48: トウキョウガイコクゴダイガク | Y48: 東京外国語大学
X49: トウキョウカイヨウダイガク | Y49: 東京海洋大学
X50: トウキョウガクゲイダイガク | Y50: 東京学芸大学
X51: トウキョウゲイジュツダイガク | Y51: 東京芸術大学
X52: トウキョウコウギョウダイガク | Y52: 東京工業大学
X53: トウキョウダイガク | Y53: 東京大学
X54: トウキョウノウコウダイガク | Y54: 東京農工大学
X55: トウホクダイガク | Y55: 東北大学
X56: トクシマダイガク | Y56: 徳島大学
X57: トットリダイガク | Y57: 鳥取大学
X58: トヤマダイガク | Y58: 富山大学
X59: トヨハシギジュツカガクダイガク | Y59: 豊橋技術科学大学
X60: ナガオカギジュツカガクダイガク | Y60: 長岡技術科学大学
X61: ナガサキダイガク | Y61: 長崎大学
X62: ナゴヤコウギョウダイガク | Y62: 名古屋工業大学
X63: ナゴヤダイガク | Y63: 名古屋大学
X64: ナラキョウイクダイガク | Y64: 奈良教育大学
X65: ナラジョシダイガク | Y65: 奈良女子大学
X66: ナラセンタンカガクギジュツダイガクインダイガク | Y66: 奈良先端科学技術大学院大学
X67: ナルトキョウイクダイガク | Y67: 鳴門教育大学
X68: =PHONETIC(Y68) -> ニイガタダイガク | Y68: 新潟大学
X69: ハママツイカダイガク | Y69: 浜松医科大学
X70: ヒトツバシダイガク | Y70: 一橋大学
X71: ヒョウゴキョウイクダイガク | Y71: 兵庫教育大学
X72: ヒロサキダイガク | Y72: 弘前大学
X73: ヒロシマダイガク | Y73: 広島大学
X74: フクイダイガク | Y74: 福井大学
X75: フクオカキョウイクダイガク | Y75: 福岡教育大学
X76: フクシマダイガク | Y76: 福島大学
X77: ホクリクセンタンカガクギジュツダイガクインダイガク | Y77: 北陸先端科学技術大学院大学
X78: ホッカイドウキョウイクダイガク | Y78: 北海道教育大学
X79: ホッカイドウダイガク | Y79: 北海道大学
X80: ミエダイガク | Y80: 三重大学
X81: ミヤギキョウイクダイガク | Y81: 宮城教育大学
X82: ミヤザキダイガク | Y82: 宮崎大学
X83: ムロランコウギョウダイガク | Y83: 室蘭工業大学
X84: ヤマガタダイガク | Y84: 山形大学
X85: ヤマグチダイガク | Y85: 山口大学
X86: ヤマナシダイガク | Y86: 山梨大学
X87: ヨコハマコクリツダイガク | Y87: 横浜国立大学
X88: リュウキュウダイガク | Y88: 琉球大学
X89: ワカヤマダイガク | Y89: 和歌山大学
Y90: -----【公立】-----
X91: =PHONETIC(Y91) -> アイチケンリツゲイジュツダイガク | Y91: 愛知県立芸術大学
X92: =PHONETIC(Y92) -> アイチケンリツダイガク | Y92: 愛知県立大学
X93: アイヅダイガク | Y93: 会津大学
X94: アオモリケンリツホケンダイガク | Y94: 青森県立保健大学
X95: アオモリコウリツダイガク | Y95: 青森公立大学
X96: アキタケンリツダイガク | Y96: 秋田県立大学
X97: アキタコウリツビジュツダイガク | Y97: 秋田公立美術大学
X98: イシカワケンリツカンゴダイガク | Y98: 石川県立看護大学
X99: イシカワケンリツダイガク | Y99: 石川県立大学
X100: イバラキケンリツイリョウダイガク | Y100: 茨城県立医療大学
X101: イワテケンリツダイガク | Y101: 岩手県立大学
X102: エヒメケンリツイリョウギジュツダイガク | Y102: 愛媛県立医療技術大学
X103: オオイタケンリツカンゴカガクダイガク | Y103: 大分県立看護科学大学
X104: オオサカシリツダイガク | Y104: 大阪市立大学
X105: オオサカフリツダイガク | Y105: 大阪府立大学
X106: オカヤマケンリツダイガク | Y106: 岡山県立大学
X107: オキナワケンリツカンゴダイガク | Y107: 沖縄県立看護大学
X108: オキナワケンリツゲイジュツダイガク | Y108: 沖縄県立芸術大学
X109: オノミチシリツダイガク | Y109: 尾道市立大学
X110: カガワケンリツホケンイリョウダイガク | Y110: 香川県立保健医療大学
X111: カナガワケンリツホケンフクシダイガク | Y111: 神奈川県立保健福祉大学
X112: カナザワビジュツコウゲイダイガク | Y112: 金沢美術工芸大学
X113: キタキュウシュウシリツダイガク | Y113: 北九州市立大学
X114: ギフケンリツカンゴダイガク | Y114: 岐阜県立看護大学
X115: ギフヤッカダイガク | Y115: 岐阜薬科大学
X116: キュウシュウシカダイガク | Y116: 九州歯科大学
X117: キョウトシリツゲイジュツダイガク | Y117: 京都市立芸術大学
X118: キョウトフリツイカダイガク | Y118: 京都府立医科大学
X119: キョウトフリツダイガク | Y119: 京都府立大学
X120: クシロコウリツダイガク | Y120: 釧路公立大学
X121: クマモトケンリツダイガク | Y121: 熊本県立大学
X122: グンマケンリツケンミンケンコウカガクダイガク | Y122: 群馬県立県民健康科学大学
X123: グンマケンリツジョシダイガク | Y123: 群馬県立女子大学
X124: ケンリツヒロシマダイガク | Y124: 県立広島大学
X125: コウチケンリツダイガク | Y125: 高知県立大学
X126: コウチコウカダイガク | Y126: 高知工科大学
X127: コウベシガイコクゴダイガク | Y127: 神戸市外国語大学
X128: コウベシカンゴダイガク | Y128: 神戸市看護大学
X129: コウリツコマツダイガク | Y129: 公立小松大学
X130: コウリツスワトウキョウリカダイガク | Y130: 公立諏訪東京理科大学
X131: コウリツチトセカガクギジュツダイガク | Y131: 公立千歳科学技術大学
X132: コウリツトットリカンキョウダイガク | Y132: 公立鳥取環境大学
X133: コウリツハコダテミライダイガク | Y133: 公立はこだて未来大学
X134: コクサイキョウヨウダイガク | Y134: 国際教養大学
X135: サイタマケンリツダイガク | Y135: 埼玉県立大学
X136: サッポロイカダイガク | Y136: 札幌医科大学
X137: サッポロシリツダイガク | Y137: 札幌市立大学
X138: サンヨウオノダシリツヤマグチトウキョウリカダイガク | Y138: 山陽小野田市立山口東京理科大学
X139: シガケンリツダイガク | Y139: 滋賀県立大学
X140: シズオカケンリツダイガク | Y140: 静岡県立大学
X141: シズオカケンリツノウリンカンキョウセンモンショクダイガク | Y141: 静岡県立農林環境専門職大学
X142: シズオカブンカゲイジュツダイガク | Y142: 静岡文化芸術大学
X143: シマネケンリツダイガク | Y143: 島根県立大学
X144: シモノセキシリツダイガク | Y144: 下関市立大学
X145: ジョウホウカガクゲイジュツダイガクインダイガク | Y145: 情報科学芸術大学院大学
X146: タカサキケイザイダイガク | Y146: 高崎経済大学
X147: チバケンリツホケンイリョウダイガク | Y147: 千葉県立保健医療大学
X148: ツルガシリツカンゴダイガク | Y148: 敦賀市立看護大学
X149: ツルブンカダイガク | Y149: 都留文科大学
X150: トウキョウトリツサンギョウギジュツダイガクインダイガク | Y150: 東京都立産業技術大学院大学
X151: トウキョウトリツダイガク | Y151: 東京都立大学
X152: トヤマケンリツダイガク | Y152: 富山県立大学
X153: ナガオカゾウケイダイガク | Y153: 長岡造形大学
X154: ナガサキケンリツダイガク | Y154: 長崎県立大学
X155: ナガノケンカンゴダイガク | Y155: 長野県看護大学
X156: =PHONETIC(Y156) -> ナガノケンリツダイガク | Y156: 長野県立大学
X157: ナガノダイガク | Y157: 長野大学
X158: ナゴヤイチリツダイガク | Y158: 名古屋市立大学
X159: ナヨロシリツダイガク | Y159: 名寄市立大学
X160: ナラケンリツイカダイガク | Y160: 奈良県立医科大学
X161: ナラケンリツダイガク | Y161: 奈良県立大学
X162: ニイガタケンリツカンゴダイガク | Y162: 新潟県立看護大学
X163: ニイガタケンリツダイガク | Y163: 新潟県立大学
X164: ニイミコウリツダイガク | Y164: 新見公立大学
X165: ヒョウゴケンリツダイガク | Y165: 兵庫県立大学
X166: ヒロシマシリツダイガク | Y166: 広島市立大学
X167: フクイケンリツダイガク | Y167: 福井県立大学
X168: フクオカケンリツダイガク | Y168: 福岡県立大学
X169: フクオカジョシダイガク | Y169: 福岡女子大学
X170: フクシマケンリツイカダイガク | Y170: 福島県立医科大学
X171: フクチヤマコウリツダイガク | Y171: 福知山公立大学
X172: フクヤマシリツダイガク | Y172: 福山市立大学
X173: マエバシコウカダイガク | Y173: 前橋工科大学
X174: ミエケンリツカンゴダイガク | Y174: 三重県立看護大学
X175: ミヤギダイガク | Y175: 宮城大学
X176: ミヤザキケンリツカンゴダイガク | Y176: 宮崎県立看護大学
X177: ミヤザキコウリツダイガク | Y177: 宮崎公立大学
X178: メイオウダイガク | Y178: 名桜大学
X179: ヤマガタケンリツホケンイリョウダイガク | Y179: 山形県立保健医療大学
X180: ヤマガタケンリツヨネザワエイヨウダイガク | Y180: 山形県立米沢栄養大学
X181: ヤマグチケンリツダイガク | Y181: 山口県立大学
X182: ヤマナシケンリツダイガク | Y182: 山梨県立大学
X183: ヨコハマシリツダイガク | Y183: 横浜市立大学
X184: ワカヤマケンリツイカダイガク | Y184: 和歌山県立医科大学
Y185: -----【私立】-----
X186: =PHONETIC(Y186) -> アイコクガクエンダイガク | Y186: 愛国学園大学
X187: アイチイカダイガク | Y187: 愛知医科大学
X188: アイチガクインダイガク | Y188: 愛知学院大学
X189: アイチガクセンダイガク | Y189: 愛知学泉大学
X190: アイチコウカダイガク | Y190: 愛知工科大学
X191: アイチコウギョウダイガク | Y191: 愛知工業大学
X192: アイチサンギョウダイガク | Y192: 愛知産業大学
X193: アイチシュクトクダイガク | Y193: 愛知淑徳大学
X194: アイチダイガク | Y194: 愛知大学
X195: アイチトウホウダイガク | Y195: 愛知東邦大学
X196: アイチブンキョウダイガク | Y196: 愛知文教大学
X197: アイチミズホダイガク | Y197: 愛知みずほ大学
X198: アイノダイガク | Y198: 藍野大学
X199: アオモリダイガク | Y199: 青森大学
X200: アオモリチュウオウガクインダイガク | Y200: 青森中央学院大学
... 580 more rows

Sheet 小樽商科大学 (hidden)
A1: 国立 | C1: 小樽商科大学 | X1: 大学全体の経営理念における産学官連携活動の取組方針 | CY1: 103 | CZ1: 104 | DA1: 105 | DB1: 106 | DC1: 107 | DD1: 108 | DE1: 109 | DF1: 110 | DG1: 111 | DH1: 112 | DI1: 113 | DJ1: 114 | DK1: 115 | DL1: 116 | DM1: 117 | DN1: 118 | DO1: 119 | DP1: 120 | DQ1: 121 | DR1: 122 | DS1: 123 | DT1: 124 | DU1: 125 | DV1: 126 | DW1: 127 | DX1: 128 | DY1: 129
X2: 全国唯一の国立商科系の単科大学として，自由な学風を尊び，優れた教育と研究並びにそれらの成果を活用した社会貢献を使命とし，地域社会および国際社会の付託に幅広く応える「知の創造」に努め，人類社会の福祉と発展に寄与する。産学官連携は，大学の知の成果を社会へ還元する重要な活動であり，本学は高い透明性と公平性をもって積極的に取り組む。
BB3: ＵＲＡ | BO3: URA当たり研究者数 | CA3: 戦略的産学連携経費
BC4: 実務担当者数 | BN4: 名 | BO4: =IF(OR(I25="",BI4=""),"",(IFERROR(I25/BI4,""))) ->  | CB4: 戦略的産学連携経費の設定 | CP4: 有 | CT4: 無 | CZ4: ある | DA4: インキュベーション施設
CB5: 戦略的産学連携経費の費目 | CZ5: ある | DA5: 相談窓口
A6: 基 礎 情 報 | BB6: 各種規程類の整備状況 | CB6: 戦略的産学連携経費の直接経費に対する割合 | CZ6: ない | DA6: 設立ポリシー | DI6: ◎ | DJ6: 産学連携ポリシー
BB7: 産学連携ポリシー | BM7: 職務発明規程（教職員のみ対象） | CZ7: ない | DA7: 支援ファンド | DI7: ◎ | DJ7: 知的財産ポリシー
B8: 大学の得意分野とその具体例 | BB8: 知的財産ポリシー | BM8: 職務発明規程（教職員、学生対象） | CA8: 人件費の企業負担 | DI8: ◎ | DJ8: 共同研究取扱規程
B9: 企業や起業志望者等に対し、本学ビジネススクール出身者を中心とする提携コンサルタントと連携したビジネスサポートを実施しているほか、地域と連携した人材育成・研究、理工系大学との文理融合型共同研究、食・医療・観光の各分野における専門人材育成を行っている。 | AA9: 科研費 （千円） | AL9: その他政府系研究費 (千円) | AS9: その他補助・助成金等 (千円) | BB9: 共同研究取扱規程 | BM9: 発明補償関係規程（教職員のみ対象） | CB9: 教員人件費の企業負担に関する規程や制度 | CP9: 有 | CT9: 無 | DI9: ◎ | DJ9: 受託研究取扱規程
BB10: 受託研究取扱規程 | BM10: 発明補償関係規程（教職員、学生対象） | CB10: 教員人件費の企業負担の費目 | CP10: 間接経費 | DI10: ◎ | DJ10: 研究成果有体物取扱規程
AA11: 62215 | BB11: 研究成果有体物取扱規程 | BM11: 守秘義務に係る規程（教職員のみ対象） | CB11: 学生人件費の企業負担に関する規程や制度 | CP11: 有 | CT11: 無 | DI11: × | DJ11: 営業秘密管理に関する規程
BB12: 営業秘密管理に関する規程 | BM12: 守秘義務に係る規程（教職員、学生対象） | CB12: 学生人件費の企業負担の費目 | DI12: △ | DJ12: 株式の取扱等規程、ポリシー
AA13: 間接経費割合 | AN13: 株式の保有 | AT13: 新株予約権の保有 | BB13: 株式の取扱等規程、ポリシー | DB13: 株式 | DI13: ◎ | DJ13: 職務発明規程（教職員のみ対象）
AA14: 10％以上15％未満 | AN14: 有 | AQ14: 無 | AT14: 有 | AW14: 無 | BD14: ※各種規定類を整備している場合は、赤色で表示されます。 | CA14: 特別試験研究費税額控除制度 | DB14: 新株予約権 | DI14: × | DJ14: 職務発明規程（教職員、学生対象）
CB15: 特別試験研究費税額控除制度の活用 | CP15: 有 | CT15: 無 | DI15: ◎ | DJ15: 発明補償関係規程（教職員のみ対象）
B16: 産学官連携活動において今後重点化したい事項 | AA16: ■共同研究 | AG16: 2019年度 | AO16: 2020年度 | AW16: 順位※ | BB16: クロスアポイントメントの実績（人） | BK16: 大学等 | BN16: 公的機関 | BQ16: 民間企業 | BU16: その他機関 | DI16: × | DJ16: 発明補償関係規程（教職員、学生対象）
B17: 北海道の産業競争力を強化するため、産学官の連携や、北海道内の理工系大学との大学間連携事業を推進する。また、地域の産業界や他大学、行政機関とより緊密な連携活動を行うための人的ネットワークとしてビジネス開発プラットフォームの形成に取り組み、これらを活かした地域経済の活性化や地域人材の育成を進める。 | AG17: 受入額（千円） | AL17: 件数 | AO17: 受入額（千円） | AT17: 件数 | BH17: 受入 | BK17: 0 | BN17: 0 | BQ17: 2 | BU17: 0 | DB17: 順位 | DI17: ◎ | DJ17: 守秘義務に係る規程（教職員のみ対象）
AA18: 全体 | AG18: 7352 | AL18: 7 | AO18: 7955 | AT18: 8 | AW18: =IF(DB18<50,DB18,"") ->  | AY18: 位 | BH18: 派遣 | BK18: 0 | BN18: 0 | BQ18: 0 | BU18: 0 | DB18: 260 | DI18: × | DJ18: 守秘義務に係る規程（教職員、学生対象）
AB19: 民間企業 のみ | AG19: 6852 | AL19: 6 | AO19: 4901 | AT19: 4 | AW19: =IF(DB19<50,DB19,"") ->  | AY19: 位 | DB19: 277
AC20: 大企業 | AG20: 0 | AO20: 0 | AT20: 0 | AW20: =IF(DB20<50,DB20,"") ->  | AY20: 位 | BB20: ■組織的産学連携活動の取組事例 | DB20: 380 | DI20: ない | DJ20: 戦略的産学連携経費の設定
AC21: 中小企業 | AG21: 6852 | AL21: 6 | AO21: 4901 | AT21: 4 | AW21: =IF(DB21<50,DB21,"") ->  | AY21: 位 | DB21: 183 | DI21: ある | DJ21: 教員人件費の企業負担に関する規程や制度
AL22: ※順位は2020年度の受入額を比較したもの | DI22: ない | DJ22: 学生人件費の企業負担に関する規程や制度
DB23: 0 | DC23: 2 | DI23: ない | DJ23: 特別試験研究費税額控除制度の活用
DB24: ～100万 | DC24: 1
B25: 研究者数 | I25: 129 | P25: 名 | DB25: ～300万 | DC25: 0
DB26: ～500万 | DC26: 1
DB27: ～1000万 | DC27: 0
DB28: ～5000万 | DC28: 0
DB29: ～1億 | DC29: 0 | DJ29: 共同研究等の企画・提案
B30: 産学連携担当部署 | O30: 実務者当たり研究者数 | DB30: 1億以上 | DC30: 0 | DJ30: 契約書での成果目標、達成時の明記
C31: 実務担当者数 | I31: 9 | N31: 名 | O31: =IF(OR(I25="",I31=""),"",IFERROR($I$25/I31,"")) -> 14.33333333 | DJ31: 共同研究契約の締結/判断（契約権限の集中）
C32: 専門家の配置 | I32: 弁護士 | L32: 弁理士 | O32: 税理士 | R32: 公認会計士 | V32: その他 | DJ32: 共同研究の進捗管理とフィードバック
I33: ※専門家を配置している場合は、赤色で表示されます。 | DJ33: 企業ニーズに適応した技術移転・事業化提案
AA34: ■受託研究 | AG34: 2019年度 | AO34: 2020年度 | AW34: 順位※ | DJ34: 共同研究等の企画・提案
AG35: 受入額（千円） | AL35: 件数 | AO35: 受入額（千円） | AT35: 件数 | DB35: 順位 | DJ35: 契約書での成果目標、達成時の明記
AA36: 全体 | AG36: 7096 | AL36: 2 | AO36: 343 | AT36: 1 | AW36: =IF(DB36<50,DB36,"") ->  | AY36: 位 | DB36: 523 | DJ36: 共同研究契約の締結/判断（契約権限の集中）
AB37: 民間企業 のみ | AG37: 0 | AL37: 0 | AO37: 0 | AT37: 0 | AW37: =IF(DB37<50,DB37,"") ->  | AY37: 位 | DB37: 401 | DJ37: 共同研究の進捗管理とフィードバック
C38: 産学連携本部が関与した共同研究 | P38: 0 | T38: 件 | AC38: 大企業 | AG38: 0 | AO38: 0 | AW38: =IF(DB38<50,DB38,"") ->  | AY38: 位 | DB38: 308 | DJ38: 企業ニーズに適応した技術移転・事業化提案
D39: 内、マッチングを行い、契約締結した件数 | P39: 0 | T39: 件 | AC39: 中小企業 | AG39: 0 | AO39: 0 | AW39: =IF(DB39<50,DB39,"") ->  | AY39: 位 | BB39: ■産学連携活動の主な実用化事例 | DB39: 316 | DJ39: 共同研究等の企画・提案
I40: ※1,000万円以上の共同研究 | AL40: ※順位は2020年度の受入額を比較したもの | DB40: 弁護士 | DG40: 0 | DJ40: 契約書での成果目標、達成時の明記
DB41: 弁理士 | DG41: ～100万 | DJ41: 共同研究契約の締結/判断（契約権限の集中）
C42: 組織対組織による包括連携契約の締結数 | P42: 0 | T42: 件 | DB42: 税理士 | DG42: ～300万 | DJ42: 共同研究の進捗管理とフィードバック
D43: 内、1,000万円以上の実績がある相手方数 | P43: 0 | T43: 件 | DB43: 公認会計士 | DG43: ～500万 | DJ43: 企業ニーズに適応した技術移転・事業化提案
DB44: その他 | DG44: ～1000万
C45: 寄附講座・寄附研究部門の受入件数 | V45: 件 | DG45: ～5000万
C46: 寄附講座・寄附研究部門の受入金額（千円） | DG46: ～1億
C47: 共同研究講座・共同研究部門の受入件数 | V47: 件 | DG47: 1億以上
C48: 共同研究講座・共同研究部門の受入金額（千円）
C52: 職務発明の帰属 | I52: 大学 | M52: 発明者 | Q52: 未設定 | CZ52: 大学 | DA52: 職務発明
AD53: 特許権実施等件数 | AL53: 0 | AS53: 実施等件数 あたり | DA53: 不実施
M54: 研究者あたり | AD54: 特許権実施等収入（千円） | AL54: 0 | AS54: =IF(OR(AL53="",AL54=""),"",IFERROR(AL54/AL53,"")) ->  | CZ54: 0 | DA54: 特許等収入
C55: 特許出願件数 | M55: =IF(OR(I25="",I55=""),"",IFERROR(I55/I25,"")) -> 
C56: 特許保有件数 | M56: =IF(OR(I25="",I56=""),"",IFERROR(I56/I25,"")) -> 
C61: 大学発ベンチャー数 | J61: 16 | O61: 社
C62: Exit件数（IPO） | O62: 社 | P62: Exit件数（M&A） | Z62: 社
C63: 相談窓口 | K63: 支援ファンド | S63: インキュベーション施設
C64: 有 | G64: 無 | K64: 有 | O64: 無 | S64: 有 | W64: 無
C65: 知的財産戦略方針 | K65: 支援総額（千円） | S65: 部屋数 | W65: 3 | Z65: 件
C66: 有 | G66: 無 | S66: 利用件数 | W66: 0 | Z66: 件
A69: 1 | B69: 2 | C69: 3 | D69: 4 | E69: 5 | F69: 6 | G69: 7 | H69: 8 | I69: 9 | J69: 10 | K69: 11 | L69: 12 | M69: 13 | N69: 14 | O69: 15 | P69: 16 | Q69: 17 | R69: 18 | S69: 19 | T69: 20 | U69: 21 | V69: 22 | W69: 23 | X69: 24 | Y69: 25 | Z69: 26 | AA69: 27 | AB69: 28 | AC69: 29 | AD69: 30 | AE69: 31 | AF69: 32 | AG69: 33 | AH69: 34 | AI69: 35 | AJ69: 36 | AK69: 37 | AL69: 38 | AM69: 39 | AN69: 40 | AO69: 41 | AP69: 42 | AQ69: 43 | AR69: 44 | AS69: 45 | AT69: 46 | AU69: 47 | AV69: 48 | AW69: 49 | AX69: 50 | AY69: 51 | AZ69: 52 | BA69: 53 | BB69: 54 | BC69: 55 | BD69: 56 | BE69: 57 | BF69: 58 | BG69: 59 | BH69: 60 | BI69: 61 | BJ69: 62 | BK69: 63 | BL69: 64 | BM69: 65 | BN69: 66 | BO69: 67 | BP69: 68 | BQ69: 69 | BR69: 70 | BS69: 71 | BT69: 72 | BU69: 73 | BV69: 74 | BW69: 75 | BX69: 76 | BY69: 77 | BZ69: 78 | CA69: 79 | CB69: 80 | CC69: 81 | CD69: 82 | CE69: 83 | CF69: 84 | CG69: 85 | CH69: 86 | CI69: 87 | CJ69: 88 | CK69: 89 | CL69: 90 | CM69: 91 | CN69: 92 | CO69: 93 | CP69: 94 | CQ69: 95 | CR69: 96 | CS69: 97 | CT69: 98 | CU69: 99 | CV69: 100 | CW69: 101 | CX69: 102 | CY69: 103 | CZ69: 104 | DA69: 105 | DB69: 106 | DC69: 107 | DD69: 108 | DE69: 109 | DF69: 110 | DG69: 111 | DH69: 112 | DI69: 113 | DJ69: 114 | DK69: 115 | DL69: 116 | DM69: 117 | DN69: 118 | DO69: 119 | DP69: 120 | DQ69: 121 | DR69: 122 | DS69: 123 | DT69: 124 | DU69: 125
D70: 特許権収入
B71: 東京大学 | C71: 4495 | D71: 261744000
B72: 東北大学 | C72: 3533 | D72: 157139000
B73: 京都大学 | C73: 3044 | D73: 698373000
B74: 大阪大学 | C74: 2854 | D74: 509758000
B75: 東京工業大学 | C75: 1979 | D75: 57301000
B76: 九州大学 | C76: 1530 | D76: 601936000
B77: 名古屋大学 | C77: 1346 | D77: 72156000
B78: 北海道大学 | C78: 1167 | D78: 86700000
B79: 信州大学 | C79: 952 | D79: 29305000
B80: 広島大学 | C80: 921 | D80: 41265000
B81: 筑波大学 | C81: 850 | D81: 42694000
B82: 慶應義塾大学 | C82: 798 | D82: 67998000
B83: 千葉大学 | C83: 769 | D83: 17609000
B84: 岡山大学 | C84: 749 | D84: 8886000
B85: 山口大学 | C85: 700 | D85: 29167000
B86: 早稲田大学 | C86: 698 | D86: 21143000
B87: 名古屋工業大学 | C87: 638 | D87: 12139000
B88: 東京農工大学 | C88: 632 | D88: 44098000
B89: 九州工業大学 | C89: 611 | D89: 10288000
B90: 大阪府立大学 | C90: 573 | D90: 9177000
B91: 東京理科大学 | C91: 528 | D91: 15523000
B92: 神戸大学 | C92: 525 | D92: 78768000
B93: 静岡大学 | C93: 509 | D93: 8145000
B94: 群馬大学 | C94: 483 | D94: 5316000
B95: 熊本大学 | C95: 475 | D95: 29359000
B96: 近畿大学 | C96: 453 | D96: 82359000
B97: 長岡技術科学大学 | C97: 441 | D97: 3921000
B98: 横浜国立大学 | C98: 439 | D98: 5839000
B99: 奈良先端科学技術大学院大学 | C99: 427 | D99: 3542000
B100: 三重大学 | C100: 417 | D100: 10844000
B101: 鹿児島大学 | C101: 416 | D101: 14284000
B102: 大阪市立大学 | C102: 403 | D102: 2791000
B103: 東京都立大学 | C103: 398 | D103: 574000
B104: 山梨大学 | C104: 395 | D104: 5041000
B105: 香川大学 | C105: 389 | D105: 17113000
B106: 東京医科歯科大学 | C106: 377 | D106: 24076000
B107: 豊橋技術科学大学 | C107: 374 | D107: 5526000
B108: 徳島大学 | C108: 362 | D108: 131417000
B109: 電気通信大学 | C109: 355 | D109: 7847000
B110: 関西大学 | C110: 350 | D110: 5154000
B111: 鳥取大学 | C111: 340 | D111: 4814000
B112: 同志社大学 | C112: 337 | D112: 17850000
B113: 金沢大学 | C113: 337 | D113: 13893000
B114: 日本大学 | C114: 333 | D114: 38328000
B115: 山形大学 | C115: 323 | D115: 752000
B116: 北里大学 | C116: 315 | D116: 45190000
B117: 埼玉大学 | C117: 309 | D117: 2765000
B118: 富山大学 | C118: 305 | D118: 35859000
B119: 新潟大学 | C119: 301 | D119: 8943000
B120: 高知大学 | C120: 281 | D120: 26209000
B121: 立命館大学 | C121: 268 | D121: 2098000
B122: 秋田大学 | C122: 264 | D122: 1773000
B123: 神奈川大学 | C123: 263 | D123: 4940000
B124: 岐阜大学 | C124: 246 | D124: 7958000
B125: 弘前大学 | C125: 239 | D125: 10190000
B126: 宮崎大学 | C126: 236 | D126: 2168000
B127: 名城大学 | C127: 232 | D127: 2341000
B128: 兵庫県立大学 | C128: 232 | D128: 1142000
B129: 佐賀大学 | C129: 224 | D129: 4180000
B130: 福井大学 | C130: 221 | D130: 3913000
B131: 札幌医科大学 | C131: 218 | D131: 105462000
B132: 東海大学 | C132: 211 | D132: 5395000
B133: 京都工芸繊維大学 | C133: 201 | D133: 4782000
B134: 岩手大学 | C134: 198 | D134: 2552000
B135: 長崎大学 | C135: 194 | D135: 25364000
B136: 東京女子医科大学 | C136: 186 | D136: 2706000
B137: 横浜市立大学 | C137: 184 | D137: 50242000
B138: 北陸先端科学技術大学院大学 | C138: 175 | D138: 8323000
B139: 東京海洋大学 | C139: 175 | D139: 3222000
B140: 愛媛大学 | C140: 174 | D140: 35291000
B141: 宇都宮大学 | C141: 171 | D141: 2463000
B142: 高知工科大学 | C142: 165 | D142: 326000
B143: 千葉工業大学 | C143: 160 | D143: 0
B144: 茨城大学 | C144: 157 | D144: 2754000
B145: 福岡大学 | C145: 154 | D145: 874000
B146: 沖縄科学技術大学院大学 | C146: 152 | D146: 1100000
B147: 大分大学 | C147: 151 | D147: 1915000
B148: 金沢工業大学 | C148: 150 | D148: 2760000
B149: 中央大学 | C149: 144 | D149: 989000
B150: 浜松医科大学 | C150: 143 | D150: 3875000
B151: 島根大学 | C151: 137 | D151: 1166000
B152: 滋賀医科大学 | C152: 132 | D152: 2306000
B153: 関西学院大学 | C153: 128 | D153: 23880000
B154: 自治医科大学 | C154: 127 | D154: 6757000
B155: 久留米大学 | C155: 127 | D155: 1462000
B156: 上智大学 | C156: 126 | D156: 0
B157: 順天堂大学 | C157: 122 | D157: 3072000
B158: 中部大学 | C158: 118 | D158: 220000
B159: 東京電機大学 | C159: 102 | D159: 1180000
B160: 芝浦工業大学 | C160: 98 | D160: 1615000
B161: 埼玉医科大学 | C161: 96 | D161: 27468000
B162: 豊田工業大学 | C162: 96 | D162: 0
B163: 名古屋市立大学 | C163: 94 | D163: 17822000
B164: 京都府立医科大学 | C164: 94 | D164: 2128000
B165: 北見工業大学 | C165: 92 | D165: 995000
B166: 和歌山大学 | C166: 89 | D166: 4131000
B167: 富山県立大学 | C167: 87 | D167: 1375000
B168: 関東学院大学 | C168: 84 | D168: 14540000
B169: 明治大学 | C169: 81 | D169: 4886000
B170: 琉球大学 | C170: 77 | D170: 1146000
B171: 静岡県立大学 | C171: 72 | D171: 915000
B172: 福島大学 | C172: 67 | D172: 897000
B173: 藤田医科大学 | C173: 62 | D173: 0
B174: 帝京大学 | C174: 60 | D174: 2351000
B175: 兵庫医科大学 | C175: 60 | D175: 332000
B176: 旭川医科大学 | C176: 59 | D176: 1987000
B177: 日本医科大学 | C177: 55 | D177: 58243000
B178: 帯広畜産大学 | C178: 54 | D178: 2966000
B179: 東洋大学 | C179: 54 | D179: 633000
B180: 秋田県立大学 | C180: 52 | D180: 892000
B181: 奈良県立医科大学 | C181: 52 | D181: 743000
B182: 福岡工業大学 | C182: 52 | D182: 0
B183: 立教大学 | C183: 51 | D183: 231000
B184: 室蘭工業大学 | C184: 50 | D184: 0
B185: 昭和大学 | C185: 48 | D185: 4513000
B186: 聖マリアンナ医科大学 | C186: 46 | D186: 3204000
B187: 関西医科大学 | C187: 46 | D187: 781000
B188: 神奈川工科大学 | C188: 46 | D188: 289000
B189: 岡山理科大学 | C189: 45 | D189: 916000
B190: お茶の水女子大学 | C190: 45 | D190: 5000
B191: 広島市立大学 | C191: 44 | D191: 0
B192: 会津大学 | C192: 43 | D192: 33000
B193: 龍谷大学 | C193: 42 | D193: 1289000
B194: 玉川大学 | C194: 41 | D194: 119000
B195: 産業医科大学 | C195: 41 | D195: 7000
B196: 大阪工業大学 | C196: 39 | D196: 0
B197: 東京農業大学 | C197: 36 | D197: 748000
B198: 法政大学 | C198: 36 | D198: 550000
B199: 工学院大学 | C199: 35 | D199: 3516000
B200: 青山学院大学 | C200: 34 | D200: 0
B201: 北九州市立大学 | C201: 32 | D201: 2647000
B202: 東邦大学 | C202: 32 | D202: 23000
B203: 甲南大学 | C203: 31 | D203: 613000
B204: 石川県立大学 | C204: 31 | D204: 531000
B205: 東京都市大学 | C205: 30 | D205: 2371000
B206: 麻布大学 | C206: 28 | D206: 1505000
B207: 長崎県立大学 | C207: 28 | D207: 1001000
B208: 金沢医科大学 | C208: 27 | D208: 933000
B209: 滋賀県立大学 | C209: 27 | D209: 0
... 636 more rows

Sheet 帯広畜産大学 (hidden)
A1: 国立 | C1: 帯広畜産大学 | X1: 大学全体の経営理念における産学官連携活動の取組方針 | CY1: 103 | CZ1: 104 | DA1: 105 | DB1: 106 | DC1: 107 | DD1: 108 | DE1: 109 | DF1: 110 | DG1: 111 | DH1: 112 | DI1: 113 | DJ1: 114 | DK1: 115 | DL1: 116 | DM1: 117 | DN1: 118 | DO1: 119 | DP1: 120 | DQ1: 121 | DR1: 122 | DS1: 123 | DT1: 124 | DU1: 125 | DV1: 126 | DW1: 127 | DX1: 128 | DY1: 129
X2: 教育・研究成果を地域及び国際社会に還元するため、産学官連携活動により「知」の創造サイクルを充実させ、「知的財産の創出及び社会還元」と「地域及び国際社会の産業振興に貢献する人材育成」を目標としている。
BB3: ＵＲＡ | BO3: URA当たり研究者数 | CA3: 戦略的産学連携経費
BC4: 実務担当者数 | BI4: 5 | BN4: 名 | BO4: =IF(OR(I25="",BI4=""),"",(IFERROR(I25/BI4,""))) -> 68 | CB4: 戦略的産学連携経費の設定 | CP4: 有 | CT4: 無 | CZ4: ある | DA4: インキュベーション施設
CB5: 戦略的産学連携経費の費目 | CP5: 間接経費 | CZ5: ある | DA5: 相談窓口
A6: 基 礎 情 報 | BB6: 各種規程類の整備状況 | CB6: 戦略的産学連携経費の直接経費に対する割合 | CP6: 10％以上15％未満 | CZ6: ある | DA6: 設立ポリシー | DI6: ◎ | DJ6: 産学連携ポリシー
BB7: 産学連携ポリシー | BM7: 職務発明規程（教職員のみ対象） | CZ7: ない | DA7: 支援ファンド | DI7: ◎ | DJ7: 知的財産ポリシー
B8: 大学の得意分野とその具体例 | BB8: 知的財産ポリシー | BM8: 職務発明規程（教職員、学生対象） | CA8: 人件費の企業負担 | DI8: ◎ | DJ8: 共同研究取扱規程
B9: 日本の食料基地である北海道十勝地域において、「Farm to Table」の幅広い領域で獣医・農畜産に関する教育研究活動を行っている。 | AA9: 科研費 （千円） | AL9: その他政府系研究費 (千円) | AS9: その他補助・助成金等 (千円) | BB9: 共同研究取扱規程 | BM9: 発明補償関係規程（教職員のみ対象） | CB9: 教員人件費の企業負担に関する規程や制度 | CP9: 有 | CT9: 無 | DI9: ◎ | DJ9: 受託研究取扱規程
BB10: 受託研究取扱規程 | BM10: 発明補償関係規程（教職員、学生対象） | CB10: 教員人件費の企業負担の費目 | DI10: ◎ | DJ10: 研究成果有体物取扱規程
AA11: 166820 | AL11: 19697 | AS11: 2800 | BB11: 研究成果有体物取扱規程 | BM11: 守秘義務に係る規程（教職員のみ対象） | CB11: 学生人件費の企業負担に関する規程や制度 | CP11: 有 | CT11: 無 | DI11: × | DJ11: 営業秘密管理に関する規程
BB12: 営業秘密管理に関する規程 | BM12: 守秘義務に係る規程（教職員、学生対象） | CB12: 学生人件費の企業負担の費目 | DI12: × | DJ12: 株式の取扱等規程、ポリシー
AA13: 間接経費割合 | AN13: 株式の保有 | AT13: 新株予約権の保有 | BB13: 株式の取扱等規程、ポリシー | DA13: × | DB13: 株式 | DI13: ◎ | DJ13: 職務発明規程（教職員のみ対象）
AA14: 10％以上15％未満 | AN14: 有 | AQ14: 無 | AT14: 有 | AW14: 無 | BD14: ※各種規定類を整備している場合は、赤色で表示されます。 | CA14: 特別試験研究費税額控除制度 | DA14: × | DB14: 新株予約権 | DI14: × | DJ14: 職務発明規程（教職員、学生対象）
CB15: 特別試験研究費税額控除制度の活用 | CP15: 有 | CT15: 無 | DI15: ◎ | DJ15: 発明補償関係規程（教職員のみ対象）
B16: 産学官連携活動において今後重点化したい事項 | AA16: ■共同研究 | AG16: 2019年度 | AO16: 2020年度 | AW16: 順位※ | BB16: クロスアポイントメントの実績（人） | BK16: 大学等 | BN16: 公的機関 | BQ16: 民間企業 | BU16: その他機関 | DI16: × | DJ16: 発明補償関係規程（教職員、学生対象）
B17: 商農工の分野融合型研究による持続可能な社会の実現、「組織」対「組織」による連携、地域のステークホルダーとの関係構築、知的財産の有効活用 | AG17: 受入額（千円） | AL17: 件数 | AO17: 受入額（千円） | AT17: 件数 | BH17: 受入 | BK17: 0 | BN17: 0 | BQ17: 0 | BU17: 0 | DB17: 順位 | DI17: × | DJ17: 守秘義務に係る規程（教職員のみ対象）
AA18: 全体 | AG18: 90996 | AL18: 135 | AO18: 138247 | AT18: 133 | AW18: =IF(DB18<50,DB18,"") ->  | AY18: 位 | BH18: 派遣 | BK18: 0 | BN18: 0 | BQ18: 0 | BU18: 0 | DB18: 88 | DI18: × | DJ18: 守秘義務に係る規程（教職員、学生対象）
AB19: 民間企業 のみ | AG19: 60591 | AL19: 98 | AO19: 94874 | AT19: 89 | AW19: =IF(DB19<50,DB19,"") ->  | AY19: 位 | DB19: 99
AC20: 大企業 | AG20: 30945 | AL20: 41 | AO20: 51842 | AT20: 37 | AW20: =IF(DB20<50,DB20,"") ->  | AY20: 位 | BB20: ■組織的産学連携活動の取組事例 | DB20: 110 | DI20: ある | DJ20: 戦略的産学連携経費の設定
AC21: 中小企業 | AG21: 29646 | AL21: 57 | AO21: 43032 | AT21: 52 | AW21: =IF(DB21<50,DB21,"") ->  | AY21: 位 | DB21: 65 | DI21: ない | DJ21: 教員人件費の企業負担に関する規程や制度
AL22: ※順位は2020年度の受入額を比較したもの | DI22: ない | DJ22: 学生人件費の企業負担に関する規程や制度
DB23: 0 | DC23: 14 | DI23: ない | DJ23: 特別試験研究費税額控除制度の活用
DB24: ～100万 | DC24: 40
B25: 研究者数 | I25: 340 | P25: 名 | DB25: ～300万 | DC25: 29
DB26: ～500万 | DC26: 4
DB27: ～1000万 | DC27: 1
DB28: ～5000万 | DC28: 1
DB29: ～1億 | DJ29: 共同研究等の企画・提案
B30: 産学連携担当部署 | O30: 実務者当たり研究者数 | DB30: 1億以上 | DJ30: 契約書での成果目標、達成時の明記
C31: 実務担当者数 | I31: 7 | N31: 名 | O31: =IF(OR(I25="",I31=""),"",IFERROR($I$25/I31,"")) -> 48.57142857 | DJ31: 共同研究契約の締結/判断（契約権限の集中）
C32: 専門家の配置 | I32: 弁護士 | L32: 弁理士 | O32: 税理士 | R32: 公認会計士 | V32: その他 | DJ32: 共同研究の進捗管理とフィードバック
I33: ※専門家を配置している場合は、赤色で表示されます。 | DJ33: 企業ニーズに適応した技術移転・事業化提案
AA34: ■受託研究 | AG34: 2019年度 | AO34: 2020年度 | AW34: 順位※ | DJ34: 共同研究等の企画・提案
AG35: 受入額（千円） | AL35: 件数 | AO35: 受入額（千円） | AT35: 件数 | DB35: 順位 | DJ35: 契約書での成果目標、達成時の明記
AA36: 全体 | AG36: 58887 | AL36: 32 | AO36: 56424 | AT36: 32 | AW36: =IF(DB36<50,DB36,"") ->  | AY36: 位 | DB36: 174 | DJ36: 共同研究契約の締結/判断（契約権限の集中）
AB37: 民間企業 のみ | AG37: 2928 | AL37: 3 | AO37: 7073 | AT37: 4 | AW37: =IF(DB37<50,DB37,"") ->  | AY37: 位 | DB37: 180 | DJ37: 共同研究の進捗管理とフィードバック
C38: 産学連携本部が関与した共同研究 | P38: 0 | T38: 件 | AC38: 大企業 | AG38: 130 | AL38: 1 | AO38: 4470 | AT38: 3 | AW38: =IF(DB38<50,DB38,"") ->  | AY38: 位 | DB38: 171 | DJ38: 企業ニーズに適応した技術移転・事業化提案
D39: 内、マッチングを行い、契約締結した件数 | P39: 0 | T39: 件 | AC39: 中小企業 | AG39: 2798 | AL39: 2 | AO39: 2603 | AT39: 1 | AW39: =IF(DB39<50,DB39,"") ->  | AY39: 位 | BB39: ■産学連携活動の主な実用化事例 | DB39: 147 | DJ39: 共同研究等の企画・提案
I40: ※1,000万円以上の共同研究 | AL40: ※順位は2020年度の受入額を比較したもの | DB40: 弁護士 | DG40: 0 | DJ40: 契約書での成果目標、達成時の明記
DB41: 弁理士 | DG41: ～100万 | DH41: 1 | DJ41: 共同研究契約の締結/判断（契約権限の集中）
C42: 組織対組織による包括連携契約の締結数 | P42: 4 | T42: 件 | DB42: 税理士 | DG42: ～300万 | DH42: 3 | DJ42: 共同研究の進捗管理とフィードバック
D43: 内、1,000万円以上の実績がある相手方数 | P43: 0 | T43: 件 | DB43: 公認会計士 | DG43: ～500万 | DJ43: 企業ニーズに適応した技術移転・事業化提案
DA44: ○ | DB44: その他 | DG44: ～1000万
C45: 寄附講座・寄附研究部門の受入件数 | P45: 2 | V45: 件 | DG45: ～5000万
C46: 寄附講座・寄附研究部門の受入金額（千円） | P46: 35400 | DG46: ～1億
C47: 共同研究講座・共同研究部門の受入件数 | P47: 1 | V47: 件 | DG47: 1億以上
C48: 共同研究講座・共同研究部門の受入金額（千円） | P48: 2200
C52: 職務発明の帰属 | I52: 大学 | M52: 発明者 | Q52: 未設定 | CZ52: 大学 | DA52: 職務発明
AD53: 特許権実施等件数 | AL53: 22 | AS53: 実施等件数 あたり | DA53: 不実施
M54: 研究者あたり | AD54: 特許権実施等収入（千円） | AL54: 2966 | AS54: =IF(OR(AL53="",AL54=""),"",IFERROR(AL54/AL53,"")) -> 134.8181818 | CZ54: 2966000 | DA54: 特許等収入
C55: 特許出願件数 | I55: 10 | M55: =IF(OR(I25="",I55=""),"",IFERROR(I55/I25,"")) -> 0.02941176471
C56: 特許保有件数 | I56: 54 | M56: =IF(OR(I25="",I56=""),"",IFERROR(I56/I25,"")) -> 0.1588235294
C61: 大学発ベンチャー数 | J61: 1 | O61: 社
C62: Exit件数（IPO） | J62: 0 | O62: 社 | P62: Exit件数（M&A） | W62: 0 | Z62: 社
C63: 相談窓口 | K63: 支援ファンド | S63: インキュベーション施設
C64: 有 | G64: 無 | K64: 有 | O64: 無 | S64: 有 | W64: 無
C65: 知的財産戦略方針 | K65: 支援総額（千円） | S65: 部屋数 | W65: 1 | Z65: 件
C66: 有 | G66: 無 | S66: 利用件数 | W66: 1 | Z66: 件
A69: 1 | B69: 2 | C69: 3 | D69: 4 | E69: 5 | F69: 6 | G69: 7 | H69: 8 | I69: 9 | J69: 10 | K69: 11 | L69: 12 | M69: 13 | N69: 14 | O69: 15 | P69: 16 | Q69: 17 | R69: 18 | S69: 19 | T69: 20 | U69: 21 | V69: 22 | W69: 23 | X69: 24 | Y69: 25 | Z69: 26 | AA69: 27 | AB69: 28 | AC69: 29 | AD69: 30 | AE69: 31 | AF69: 32 | AG69: 33 | AH69: 34 | AI69: 35 | AJ69: 36 | AK69: 37 | AL69: 38 | AM69: 39 | AN69: 40 | AO69: 41 | AP69: 42 | AQ69: 43 | AR69: 44 | AS69: 45 | AT69: 46 | AU69: 47 | AV69: 48 | AW69: 49 | AX69: 50 | AY69: 51 | AZ69: 52 | BA69: 53 | BB69: 54 | BC69: 55 | BD69: 56 | BE69: 57 | BF69: 58 | BG69: 59 | BH69: 60 | BI69: 61 | BJ69: 62 | BK69: 63 | BL69: 64 | BM69: 65 | BN69: 66 | BO69: 67 | BP69: 68 | BQ69: 69 | BR69: 70 | BS69: 71 | BT69: 72 | BU69: 73 | BV69: 74 | BW69: 75 | BX69: 76 | BY69: 77 | BZ69: 78 | CA69: 79 | CB69: 80 | CC69: 81 | CD69: 82 | CE69: 83 | CF69: 84 | CG69: 85 | CH69: 86 | CI69: 87 | CJ69: 88 | CK69: 89 | CL69: 90 | CM69: 91 | CN69: 92 | CO69: 93 | CP69: 94 | CQ69: 95 | CR69: 96 | CS69: 97 | CT69: 98 | CU69: 99 | CV69: 100 | CW69: 101 | CX69: 102 | CY69: 103 | CZ69: 104 | DA69: 105 | DB69: 106 | DC69: 107 | DD69: 108 | DE69: 109 | DF69: 110 | DG69: 111 | DH69: 112 | DI69: 113 | DJ69: 114 | DK69: 115 | DL69: 116 | DM69: 117 | DN69: 118 | DO69: 119 | DP69: 120 | DQ69: 121 | DR69: 122 | DS69: 123 | DT69: 124 | DU69: 125
D70: 特許権収入
B71: 東京大学 | C71: 4495 | D71: 261744000
B72: 東北大学 | C72: 3533 | D72: 157139000
B73: 京都大学 | C73: 3044 | D73: 698373000
B74: 大阪大学 | C74: 2854 | D74: 509758000
B75: 東京工業大学 | C75: 1979 | D75: 57301000
B76: 九州大学 | C76: 1530 | D76: 601936000
B77: 名古屋大学 | C77: 1346 | D77: 72156000
B78: 北海道大学 | C78: 1167 | D78: 86700000
B79: 信州大学 | C79: 952 | D79: 29305000
B80: 広島大学 | C80: 921 | D80: 41265000
B81: 筑波大学 | C81: 850 | D81: 42694000
B82: 慶應義塾大学 | C82: 798 | D82: 67998000
B83: 千葉大学 | C83: 769 | D83: 17609000
B84: 岡山大学 | C84: 749 | D84: 8886000
B85: 山口大学 | C85: 700 | D85: 29167000
B86: 早稲田大学 | C86: 698 | D86: 21143000
B87: 名古屋工業大学 | C87: 638 | D87: 12139000
B88: 東京農工大学 | C88: 632 | D88: 44098000
B89: 九州工業大学 | C89: 611 | D89: 10288000
B90: 大阪府立大学 | C90: 573 | D90: 9177000
B91: 東京理科大学 | C91: 528 | D91: 15523000
B92: 神戸大学 | C92: 525 | D92: 78768000
B93: 静岡大学 | C93: 509 | D93: 8145000
B94: 群馬大学 | C94: 483 | D94: 5316000
B95: 熊本大学 | C95: 475 | D95: 29359000
B96: 近畿大学 | C96: 453 | D96: 82359000
B97: 長岡技術科学大学 | C97: 441 | D97: 3921000
B98: 横浜国立大学 | C98: 439 | D98: 5839000
B99: 奈良先端科学技術大学院大学 | C99: 427 | D99: 3542000
B100: 三重大学 | C100: 417 | D100: 10844000
B101: 鹿児島大学 | C101: 416 | D101: 14284000
B102: 大阪市立大学 | C102: 403 | D102: 2791000
B103: 東京都立大学 | C103: 398 | D103: 574000
B104: 山梨大学 | C104: 395 | D104: 5041000
B105: 香川大学 | C105: 389 | D105: 17113000
B106: 東京医科歯科大学 | C106: 377 | D106: 24076000
B107: 豊橋技術科学大学 | C107: 374 | D107: 5526000
B108: 徳島大学 | C108: 362 | D108: 131417000
B109: 電気通信大学 | C109: 355 | D109: 7847000
B110: 関西大学 | C110: 350 | D110: 5154000
B111: 鳥取大学 | C111: 340 | D111: 4814000
B112: 同志社大学 | C112: 337 | D112: 17850000
B113: 金沢大学 | C113: 337 | D113: 13893000
B114: 日本大学 | C114: 333 | D114: 38328000
B115: 山形大学 | C115: 323 | D115: 752000
B116: 北里大学 | C116: 315 | D116: 45190000
B117: 埼玉大学 | C117: 309 | D117: 2765000
B118: 富山大学 | C118: 305 | D118: 35859000
B119: 新潟大学 | C119: 301 | D119: 8943000
B120: 高知大学 | C120: 281 | D120: 26209000
B121: 立命館大学 | C121: 268 | D121: 2098000
B122: 秋田大学 | C122: 264 | D122: 1773000
B123: 神奈川大学 | C123: 263 | D123: 4940000
B124: 岐阜大学 | C124: 246 | D124: 7958000
B125: 弘前大学 | C125: 239 | D125: 10190000
B126: 宮崎大学 | C126: 236 | D126: 2168000
B127: 名城大学 | C127: 232 | D127: 2341000
B128: 兵庫県立大学 | C128: 232 | D128: 1142000
B129: 佐賀大学 | C129: 224 | D129: 4180000
B130: 福井大学 | C130: 221 | D130: 3913000
B131: 札幌医科大学 | C131: 218 | D131: 105462000
B132: 東海大学 | C132: 211 | D132: 5395000
B133: 京都工芸繊維大学 | C133: 201 | D133: 4782000
B134: 岩手大学 | C134: 198 | D134: 2552000
B135: 長崎大学 | C135: 194 | D135: 25364000
B136: 東京女子医科大学 | C136: 186 | D136: 2706000
B137: 横浜市立大学 | C137: 184 | D137: 50242000
B138: 北陸先端科学技術大学院大学 | C138: 175 | D138: 8323000
B139: 東京海洋大学 | C139: 175 | D139: 3222000
B140: 愛媛大学 | C140: 174 | D140: 35291000
B141: 宇都宮大学 | C141: 171 | D141: 2463000
B142: 高知工科大学 | C142: 165 | D142: 326000
B143: 千葉工業大学 | C143: 160 | D143: 0
B144: 茨城大学 | C144: 157 | D144: 2754000
B145: 福岡大学 | C145: 154 | D145: 874000
B146: 沖縄科学技術大学院大学 | C146: 152 | D146: 1100000
B147: 大分大学 | C147: 151 | D147: 1915000
B148: 金沢工業大学 | C148: 150 | D148: 2760000
B149: 中央大学 | C149: 144 | D149: 989000
B150: 浜松医科大学 | C150: 143 | D150: 3875000
B151: 島根大学 | C151: 137 | D151: 1166000
B152: 滋賀医科大学 | C152: 132 | D152: 2306000
B153: 関西学院大学 | C153: 128 | D153: 23880000
B154: 自治医科大学 | C154: 127 | D154: 6757000
B155: 久留米大学 | C155: 127 | D155: 1462000
B156: 上智大学 | C156: 126 | D156: 0
B157: 順天堂大学 | C157: 122 | D157: 3072000
B158: 中部大学 | C158: 118 | D158: 220000
B159: 東京電機大学 | C159: 102 | D159: 1180000
B160: 芝浦工業大学 | C160: 98 | D160: 1615000
B161: 埼玉医科大学 | C161: 96 | D161: 27468000
B162: 豊田工業大学 | C162: 96 | D162: 0
B163: 名古屋市立大学 | C163: 94 | D163: 17822000
B164: 京都府立医科大学 | C164: 94 | D164: 2128000
B165: 北見工業大学 | C165: 92 | D165: 995000
B166: 和歌山大学 | C166: 89 | D166: 4131000
B167: 富山県立大学 | C167: 87 | D167: 1375000
B168: 関東学院大学 | C168: 84 | D168: 14540000
B169: 明治大学 | C169: 81 | D169: 4886000
B170: 琉球大学 | C170: 77 | D170: 1146000
B171: 静岡県立大学 | C171: 72 | D171: 915000
B172: 福島大学 | C172: 67 | D172: 897000
B173: 藤田医科大学 | C173: 62 | D173: 0
B174: 帝京大学 | C174: 60 | D174: 2351000
B175: 兵庫医科大学 | C175: 60 | D175: 332000
B176: 旭川医科大学 | C176: 59 | D176: 1987000
B177: 日本医科大学 | C177: 55 | D177: 58243000
B178: 帯広畜産大学 | C178: 54 | D178: 2966000
B179: 東洋大学 | C179: 54 | D179: 633000
B180: 秋田県立大学 | C180: 52 | D180: 892000
B181: 奈良県立医科大学 | C181: 52 | D181: 743000
B182: 福岡工業大学 | C182: 52 | D182: 0
B183: 立教大学 | C183: 51 | D183: 231000
B184: 室蘭工業大学 | C184: 50 | D184: 0
B185: 昭和大学 | C185: 48 | D185: 4513000
B186: 聖マリアンナ医科大学 | C186: 46 | D186: 3204000
B187: 関西医科大学 | C187: 46 | D187: 781000
B188: 神奈川工科大学 | C188: 46 | D188: 289000
B189: 岡山理科大学 | C189: 45 | D189: 916000
B190: お茶の水女子大学 | C190: 45 | D190: 5000
B191: 広島市立大学 | C191: 44 | D191: 0
B192: 会津大学 | C192: 43 | D192: 33000
B193: 龍谷大学 | C193: 42 | D193: 1289000
B194: 玉川大学 | C194: 41 | D194: 119000
B195: 産業医科大学 | C195: 41 | D195: 7000
B196: 大阪工業大学 | C196: 39 | D196: 0
B197: 東京農業大学 | C197: 36 | D197: 748000
B198: 法政大学 | C198: 36 | D198: 550000
B199: 工学院大学 | C199: 35 | D199: 3516000
B200: 青山学院大学 | C200: 34 | D200: 0
B201: 北九州市立大学 | C201: 32 | D201: 2647000
B202: 東邦大学 | C202: 32 | D202: 23000
B203: 甲南大学 | C203: 31 | D203: 613000
B204: 石川県立大学 | C204: 31 | D204: 531000
B205: 東京都市大学 | C205: 30 | D205: 2371000
B206: 麻布大学 | C206: 28 | D206: 1505000
B207: 長崎県立大学 | C207: 28 | D207: 1001000
B208: 金沢医科大学 | C208: 27 | D208: 933000
B209: 滋賀県立大学 | C209: 27 | D209: 0
... 636 more rows

Sheet 北見工業大学 (hidden)
A1: 国立 | C1: 北見工業大学 | X1: 大学全体の経営理念における産学官連携活動の取組方針 | CY1: 103 | CZ1: 104 | DA1: 105 | DB1: 106 | DC1: 107 | DD1: 108 | DE1: 109 | DF1: 110 | DG1: 111 | DH1: 112 | DI1: 113 | DJ1: 114 | DK1: 115 | DL1: 116 | DM1: 117 | DN1: 118 | DO1: 119 | DP1: 120 | DQ1: 121 | DR1: 122 | DS1: 123 | DT1: 124 | DU1: 125 | DV1: 126 | DW1: 127 | DX1: 128 | DY1: 129
X2: 本学は、大学の使命である教育、研究および社会貢献に取り組み社会の発展に寄与します。また、産学官連携が社会との相互作用の原点であることを強く認識し、地域における知の拠点としての役割を果たします。
BB3: ＵＲＡ | BO3: URA当たり研究者数 | CA3: 戦略的産学連携経費
BC4: 実務担当者数 | BI4: 3 | BN4: 名 | BO4: =IF(OR(I25="",BI4=""),"",(IFERROR(I25/BI4,""))) -> 48 | CB4: 戦略的産学連携経費の設定 | CP4: 有 | CT4: 無 | CZ4: ある | DA4: インキュベーション施設
CB5: 戦略的産学連携経費の費目 | CZ5: ある | DA5: 相談窓口
A6: 基 礎 情 報 | BB6: 各種規程類の整備状況 | CB6: 戦略的産学連携経費の直接経費に対する割合 | CZ6: ある | DA6: 設立ポリシー | DI6: ◎ | DJ6: 産学連携ポリシー
BB7: 産学連携ポリシー | BM7: 職務発明規程（教職員のみ対象） | CZ7: ない | DA7: 支援ファンド | DI7: ◎ | DJ7: 知的財産ポリシー
B8: 大学の得意分野とその具体例 | BB8: 知的財産ポリシー | BM8: 職務発明規程（教職員、学生対象） | CA8: 人件費の企業負担 | DI8: ◎ | DJ8: 共同研究取扱規程
B9: ・環境・第一次産業や寒冷地関連の工学 ・地域の自治体・公組織との連携 | AA9: 科研費 （千円） | AL9: その他政府系研究費 (千円) | AS9: その他補助・助成金等 (千円) | BB9: 共同研究取扱規程 | BM9: 発明補償関係規程（教職員のみ対象） | CB9: 教員人件費の企業負担に関する規程や制度 | CP9: 有 | CT9: 無 | DI9: ◎ | DJ9: 受託研究取扱規程
BB10: 受託研究取扱規程 | BM10: 発明補償関係規程（教職員、学生対象） | CB10: 教員人件費の企業負担の費目 | DI10: ◎ | DJ10: 研究成果有体物取扱規程
AA11: 115500 | AL11: 0 | AS11: 0 | BB11: 研究成果有体物取扱規程 | BM11: 守秘義務に係る規程（教職員のみ対象） | CB11: 学生人件費の企業負担に関する規程や制度 | CP11: 有 | CT11: 無 | DI11: × | DJ11: 営業秘密管理に関する規程
BB12: 営業秘密管理に関する規程 | BM12: 守秘義務に係る規程（教職員、学生対象） | CB12: 学生人件費の企業負担の費目 | DI12: × | DJ12: 株式の取扱等規程、ポリシー
AA13: 間接経費割合 | AN13: 株式の保有 | AT13: 新株予約権の保有 | BB13: 株式の取扱等規程、ポリシー | DB13: 株式 | DI13: × | DJ13: 職務発明規程（教職員のみ対象）
AA14: 30％以上 | AN14: 有 | AQ14: 無 | AT14: 有 | AW14: 無 | BD14: ※各種規定類を整備している場合は、赤色で表示されます。 | CA14: 特別試験研究費税額控除制度 | DB14: 新株予約権 | DI14: ◎ | DJ14: 職務発明規程（教職員、学生対象）
CB15: 特別試験研究費税額控除制度の活用 | CP15: 有 | CT15: 無 | DI15: × | DJ15: 発明補償関係規程（教職員のみ対象）
B16: 産学官連携活動において今後重点化したい事項 | AA16: ■共同研究 | AG16: 2019年度 | AO16: 2020年度 | AW16: 順位※ | BB16: クロスアポイントメントの実績（人） | BK16: 大学等 | BN16: 公的機関 | BQ16: 民間企業 | BU16: その他機関 | DI16: ◎ | DJ16: 発明補償関係規程（教職員、学生対象）
B17: ・産業振興に向けたさらなる地域との連携 ・地域との連携による人材の育成と定着 | AG17: 受入額（千円） | AL17: 件数 | AO17: 受入額（千円） | AT17: 件数 | BH17: 受入 | BK17: 0 | BN17: 0 | BQ17: 1 | BU17: 1 | DB17: 順位 | DI17: × | DJ17: 守秘義務に係る規程（教職員のみ対象）
AA18: 全体 | AG18: 102499 | AL18: 95 | AO18: 105982 | AT18: 97 | AW18: =IF(DB18<50,DB18,"") ->  | AY18: 位 | BH18: 派遣 | BK18: 0 | BN18: 0 | BQ18: 0 | BU18: 0 | DB18: 104 | DI18: ◎ | DJ18: 守秘義務に係る規程（教職員、学生対象）
AB19: 民間企業 のみ | AG19: 50870 | AL19: 68 | AO19: 50585 | AT19: 65 | AW19: =IF(DB19<50,DB19,"") ->  | AY19: 位 | DB19: 124
AC20: 大企業 | AG20: 32180 | AL20: 37 | AO20: 34685 | AT20: 42 | AW20: =IF(DB20<50,DB20,"") ->  | AY20: 位 | BB20: ■組織的産学連携活動の取組事例 | DB20: 129 | DI20: ない | DJ20: 戦略的産学連携経費の設定
AC21: 中小企業 | AG21: 18690 | AL21: 31 | AO21: 8590 | AT21: 22 | AW21: =IF(DB21<50,DB21,"") ->  | AY21: 位 | DB21: 137 | DI21: ない | DJ21: 教員人件費の企業負担に関する規程や制度
AL22: ※順位は2020年度の受入額を比較したもの | DI22: ない | DJ22: 学生人件費の企業負担に関する規程や制度
DB23: 0 | DC23: 17 | DI23: ある | DJ23: 特別試験研究費税額控除制度の活用
DB24: ～100万 | DC24: 25
B25: 研究者数 | I25: 144 | P25: 名 | DB25: ～300万 | DC25: 21
DB26: ～500万 | DC26: 1
DB27: ～1000万 | DC27: 1
DB28: ～5000万 | DC28: 0
DB29: ～1億 | DC29: 0 | DJ29: 共同研究等の企画・提案
B30: 産学連携担当部署 | O30: 実務者当たり研究者数 | DB30: 1億以上 | DC30: 0 | DJ30: 契約書での成果目標、達成時の明記
C31: 実務担当者数 | I31: 3 | N31: 名 | O31: =IF(OR(I25="",I31=""),"",IFERROR($I$25/I31,"")) -> 48 | DJ31: 共同研究契約の締結/判断（契約権限の集中）
C32: 専門家の配置 | I32: 弁護士 | L32: 弁理士 | O32: 税理士 | R32: 公認会計士 | V32: その他 | DJ32: 共同研究の進捗管理とフィードバック
I33: ※専門家を配置している場合は、赤色で表示されます。 | DJ33: 企業ニーズに適応した技術移転・事業化提案
AA34: ■受託研究 | AG34: 2019年度 | AO34: 2020年度 | AW34: 順位※ | DJ34: 共同研究等の企画・提案
AG35: 受入額（千円） | AL35: 件数 | AO35: 受入額（千円） | AT35: 件数 | DB35: 順位 | DJ35: 契約書での成果目標、達成時の明記
AA36: 全体 | AG36: 49063 | AL36: 16 | AO36: 142399 | AT36: 17 | AW36: =IF(DB36<50,DB36,"") ->  | AY36: 位 | DB36: 132 | DJ36: 共同研究契約の締結/判断（契約権限の集中）
AB37: 民間企業 のみ | AG37: 2145 | AL37: 1 | AO37: 0 | AT37: 0 | AW37: =IF(DB37<50,DB37,"") ->  | AY37: 位 | DB37: 401 | DJ37: 共同研究の進捗管理とフィードバック
C38: 産学連携本部が関与した共同研究 | P38: 0 | T38: 件 | AC38: 大企業 | AG38: 0 | AL38: 0 | AO38: 0 | AT38: 0 | AW38: =IF(DB38<50,DB38,"") ->  | AY38: 位 | DB38: 308 | DJ38: 企業ニーズに適応した技術移転・事業化提案
D39: 内、マッチングを行い、契約締結した件数 | P39: 0 | T39: 件 | AC39: 中小企業 | AG39: 2145 | AL39: 1 | AO39: 0 | AT39: 0 | AW39: =IF(DB39<50,DB39,"") ->  | AY39: 位 | BB39: ■産学連携活動の主な実用化事例 | DB39: 316 | DJ39: 共同研究等の企画・提案
I40: ※1,000万円以上の共同研究 | AL40: ※順位は2020年度の受入額を比較したもの | DB40: 弁護士 | DG40: 0 | DH40: 0 | DJ40: 契約書での成果目標、達成時の明記
DB41: 弁理士 | DG41: ～100万 | DH41: 0 | DJ41: 共同研究契約の締結/判断（契約権限の集中）
C42: 組織対組織による包括連携契約の締結数 | P42: 1 | T42: 件 | DB42: 税理士 | DG42: ～300万 | DH42: 0 | DJ42: 共同研究の進捗管理とフィードバック
D43: 内、1,000万円以上の実績がある相手方数 | P43: 0 | T43: 件 | DB43: 公認会計士 | DG43: ～500万 | DH43: 0 | DJ43: 企業ニーズに適応した技術移転・事業化提案
DB44: その他 | DG44: ～1000万 | DH44: 0
C45: 寄附講座・寄附研究部門の受入件数 | P45: 0 | V45: 件 | DG45: ～5000万 | DH45: 0
C46: 寄附講座・寄附研究部門の受入金額（千円） | P46: 0 | DG46: ～1億 | DH46: 0
C47: 共同研究講座・共同研究部門の受入件数 | P47: 2 | V47: 件 | DG47: 1億以上 | DH47: 0
C48: 共同研究講座・共同研究部門の受入金額（千円） | P48: 4100
C52: 職務発明の帰属 | I52: 大学 | M52: 発明者 | Q52: 未設定 | CZ52: 大学 | DA52: 職務発明
AD53: 特許権実施等件数 | AL53: 9 | AS53: 実施等件数 あたり | DA53: 不実施
M54: 研究者あたり | AD54: 特許権実施等収入（千円） | AL54: 995 | AS54: =IF(OR(AL53="",AL54=""),"",IFERROR(AL54/AL53,"")) -> 110.5555556 | CZ54: 995000 | DA54: 特許等収入
C55: 特許出願件数 | I55: 11 | M55: =IF(OR(I25="",I55=""),"",IFERROR(I55/I25,"")) -> 0.07638888889
C56: 特許保有件数 | I56: 92 | M56: =IF(OR(I25="",I56=""),"",IFERROR(I56/I25,"")) -> 0.6388888889
C61: 大学発ベンチャー数 | J61: 5 | O61: 社
C62: Exit件数（IPO） | J62: 0 | O62: 社 | P62: Exit件数（M&A） | W62: 1 | Z62: 社
C63: 相談窓口 | K63: 支援ファンド | S63: インキュベーション施設
C64: 有 | G64: 無 | K64: 有 | O64: 無 | S64: 有 | W64: 無
C65: 知的財産戦略方針 | K65: 支援総額（千円） | S65: 部屋数 | W65: 13 | Z65: 件
C66: 有 | G66: 無 | S66: 利用件数 | W66: 2 | Z66: 件
A69: 1 | B69: 2 | C69: 3 | D69: 4 | E69: 5 | F69: 6 | G69: 7 | H69: 8 | I69: 9 | J69: 10 | K69: 11 | L69: 12 | M69: 13 | N69: 14 | O69: 15 | P69: 16 | Q69: 17 | R69: 18 | S69: 19 | T69: 20 | U69: 21 | V69: 22 | W69: 23 | X69: 24 | Y69: 25 | Z69: 26 | AA69: 27 | AB69: 28 | AC69: 29 | AD69: 30 | AE69: 31 | AF69: 32 | AG69: 33 | AH69: 34 | AI69: 35 | AJ69: 36 | AK69: 37 | AL69: 38 | AM69: 39 | AN69: 40 | AO69: 41 | AP69: 42 | AQ69: 43 | AR69: 44 | AS69: 45 | AT69: 46 | AU69: 47 | AV69: 48 | AW69: 49 | AX69: 50 | AY69: 51 | AZ69: 52 | BA69: 53 | BB69: 54 | BC69: 55 | BD69: 56 | BE69: 57 | BF69: 58 | BG69: 59 | BH69: 60 | BI69: 61 | BJ69: 62 | BK69: 63 | BL69: 64 | BM69: 65 | BN69: 66 | BO69: 67 | BP69: 68 | BQ69: 69 | BR69: 70 | BS69: 71 | BT69: 72 | BU69: 73 | BV69: 74 | BW69: 75 | BX69: 76 | BY69: 77 | BZ69: 78 | CA69: 79 | CB69: 80 | CC69: 81 | CD69: 82 | CE69: 83 | CF69: 84 | CG69: 85 | CH69: 86 | CI69: 87 | CJ69: 88 | CK69: 89 | CL69: 90 | CM69: 91 | CN69: 92 | CO69: 93 | CP69: 94 | CQ69: 95 | CR69: 96 | CS69: 97 | CT69: 98 | CU69: 99 | CV69: 100 | CW69: 101 | CX69: 102 | CY69: 103 | CZ69: 104 | DA69: 105 | DB69: 106 | DC69: 107 | DD69: 108 | DE69: 109 | DF69: 110 | DG69: 111 | DH69: 112 | DI69: 113 | DJ69: 114 | DK69: 115 | DL69: 116 | DM69: 117 | DN69: 118 | DO69: 119 | DP69: 120 | DQ69: 121 | DR69: 122 | DS69: 123 | DT69: 124 | DU69: 125
D70: 特許権収入
B71: 東京大学 | C71: 4495 | D71: 261744000
B72: 東北大学 | C72: 3533 | D72: 157139000
B73: 京都大学 | C73: 3044 | D73: 698373000
B74: 大阪大学 | C74: 2854 | D74: 509758000
B75: 東京工業大学 | C75: 1979 | D75: 57301000
B76: 九州大学 | C76: 1530 | D76: 601936000
B77: 名古屋大学 | C77: 1346 | D77: 72156000
B78: 北海道大学 | C78: 1167 | D78: 86700000
B79: 信州大学 | C79: 952 | D79: 29305000
B80: 広島大学 | C80: 921 | D80: 41265000
B81: 筑波大学 | C81: 850 | D81: 42694000
B82: 慶應義塾大学 | C82: 798 | D82: 67998000
B83: 千葉大学 | C83: 769 | D83: 17609000
B84: 岡山大学 | C84: 749 | D84: 8886000
B85: 山口大学 | C85: 700 | D85: 29167000
B86: 早稲田大学 | C86: 698 | D86: 21143000
B87: 名古屋工業大学 | C87: 638 | D87: 12139000
B88: 東京農工大学 | C88: 632 | D88: 44098000
B89: 九州工業大学 | C89: 611 | D89: 10288000
B90: 大阪府立大学 | C90: 573 | D90: 9177000
B91: 東京理科大学 | C91: 528 | D91: 15523000
B92: 神戸大学 | C92: 525 | D92: 78768000
B93: 静岡大学 | C93: 509 | D93: 8145000
B94: 群馬大学 | C94: 483 | D94: 5316000
B95: 熊本大学 | C95: 475 | D95: 29359000
B96: 近畿大学 | C96: 453 | D96: 82359000
B97: 長岡技術科学大学 | C97: 441 | D97: 3921000
B98: 横浜国立大学 | C98: 439 | D98: 5839000
B99: 奈良先端科学技術大学院大学 | C99: 427 | D99: 3542000
B100: 三重大学 | C100: 417 | D100: 10844000
B101: 鹿児島大学 | C101: 416 | D101: 14284000
B102: 大阪市立大学 | C102: 403 | D102: 2791000
B103: 東京都立大学 | C103: 398 | D103: 574000
B104: 山梨大学 | C104: 395 | D104: 5041000
B105: 香川大学 | C105: 389 | D105: 17113000
B106: 東京医科歯科大学 | C106: 377 | D106: 24076000
B107: 豊橋技術科学大学 | C107: 374 | D107: 5526000
B108: 徳島大学 | C108: 362 | D108: 131417000
B109: 電気通信大学 | C109: 355 | D109: 7847000
B110: 関西大学 | C110: 350 | D110: 5154000
B111: 鳥取大学 | C111: 340 | D111: 4814000
B112: 同志社大学 | C112: 337 | D112: 17850000
B113: 金沢大学 | C113: 337 | D113: 13893000
B114: 日本大学 | C114: 333 | D114: 38328000
B115: 山形大学 | C115: 323 | D115: 752000
B116: 北里大学 | C116: 315 | D116: 45190000
B117: 埼玉大学 | C117: 309 | D117: 2765000
B118: 富山大学 | C118: 305 | D118: 35859000
B119: 新潟大学 | C119: 301 | D119: 8943000
B120: 高知大学 | C120: 281 | D120: 26209000
B121: 立命館大学 | C121: 268 | D121: 2098000
B122: 秋田大学 | C122: 264 | D122: 1773000
B123: 神奈川大学 | C123: 263 | D123: 4940000
B124: 岐阜大学 | C124: 246 | D124: 7958000
B125: 弘前大学 | C125: 239 | D125: 10190000
B126: 宮崎大学 | C126: 236 | D126: 2168000
B127: 名城大学 | C127: 232 | D127: 2341000
B128: 兵庫県立大学 | C128: 232 | D128: 1142000
B129: 佐賀大学 | C129: 224 | D129: 4180000
B130: 福井大学 | C130: 221 | D130: 3913000
B131: 札幌医科大学 | C131: 218 | D131: 105462000
B132: 東海大学 | C132: 211 | D132: 5395000
B133: 京都工芸繊維大学 | C133: 201 | D133: 4782000
B134: 岩手大学 | C134: 198 | D134: 2552000
B135: 長崎大学 | C135: 194 | D135: 25364000
B136: 東京女子医科大学 | C136: 186 | D136: 2706000
B137: 横浜市立大学 | C137: 184 | D137: 50242000
B138: 北陸先端科学技術大学院大学 | C138: 175 | D138: 8323000
B139: 東京海洋大学 | C139: 175 | D139: 3222000
B140: 愛媛大学 | C140: 174 | D140: 35291000
B141: 宇都宮大学 | C141: 171 | D141: 2463000
B142: 高知工科大学 | C142: 165 | D142: 326000
B143: 千葉工業大学 | C143: 160 | D143: 0
B144: 茨城大学 | C144: 157 | D144: 2754000
B145: 福岡大学 | C145: 154 | D145: 874000
B146: 沖縄科学技術大学院大学 | C146: 152 | D146: 1100000
B147: 大分大学 | C147: 151 | D147: 1915000
B148: 金沢工業大学 | C148: 150 | D148: 2760000
B149: 中央大学 | C149: 144 | D149: 989000
B150: 浜松医科大学 | C150: 143 | D150: 3875000
B151: 島根大学 | C151: 137 | D151: 1166000
B152: 滋賀医科大学 | C152: 132 | D152: 2306000
B153: 関西学院大学 | C153: 128 | D153: 23880000
B154: 自治医科大学 | C154: 127 | D154: 6757000
B155: 久留米大学 | C155: 127 | D155: 1462000
B156: 上智大学 | C156: 126 | D156: 0
B157: 順天堂大学 | C157: 122 | D157: 3072000
B158: 中部大学 | C158: 118 | D158: 220000
B159: 東京電機大学 | C159: 102 | D159: 1180000
B160: 芝浦工業大学 | C160: 98 | D160: 1615000
B161: 埼玉医科大学 | C161: 96 | D161: 27468000
B162: 豊田工業大学 | C162: 96 | D162: 0
B163: 名古屋市立大学 | C163: 94 | D163: 17822000
B164: 京都府立医科大学 | C164: 94 | D164: 2128000
B165: 北見工業大学 | C165: 92 | D165: 995000
B166: 和歌山大学 | C166: 89 | D166: 4131000
B167: 富山県立大学 | C167: 87 | D167: 1375000
B168: 関東学院大学 | C168: 84 | D168: 14540000
B169: 明治大学 | C169: 81 | D169: 4886000
B170: 琉球大学 | C170: 77 | D170: 1146000
B171: 静岡県立大学 | C171: 72 | D171: 915000
B172: 福島大学 | C172: 67 | D172: 897000
B173: 藤田医科大学 | C173: 62 | D173: 0
B174: 帝京大学 | C174: 60 | D174: 2351000
B175: 兵庫医科大学 | C175: 60 | D175: 332000
B176: 旭川医科大学 | C176: 59 | D176: 1987000
B177: 日本医科大学 | C177: 55 | D177: 58243000
B178: 帯広畜産大学 | C178: 54 | D178: 2966000
B179: 東洋大学 | C179: 54 | D179: 633000
B180: 秋田県立大学 | C180: 52 | D180: 892000
B181: 奈良県立医科大学 | C181: 52 | D181: 743000
B182: 福岡工業大学 | C182: 52 | D182: 0
B183: 立教大学 | C183: 51 | D183: 231000
B184: 室蘭工業大学 | C184: 50 | D184: 0
B185: 昭和大学 | C185: 48 | D185: 4513000
B186: 聖マリアンナ医科大学 | C186: 46 | D186: 3204000
B187: 関西医科大学 | C187: 46 | D187: 781000
B188: 神奈川工科大学 | C188: 46 | D188: 289000
B189: 岡山理科大学 | C189: 45 | D189: 916000
B190: お茶の水女子大学 | C190: 45 | D190: 5000
B191: 広島市立大学 | C191: 44 | D191: 0
B192: 会津大学 | C192: 43 | D192: 33000
B193: 龍谷大学 | C193: 42 | D193: 1289000
B194: 玉川大学 | C194: 41 | D194: 119000
B195: 産業医科大学 | C195: 41 | D195: 7000
B196: 大阪工業大学 | C196: 39 | D196: 0
B197: 東京農業大学 | C197: 36 | D197: 748000
B198: 法政大学 | C198: 36 | D198: 550000
B199: 工学院大学 | C199: 35 | D199: 3516000
B200: 青山学院大学 | C200: 34 | D200: 0
B201: 北九州市立大学 | C201: 32 | D201: 2647000
B202: 東邦大学 | C202: 32 | D202: 23000
B203: 甲南大学 | C203: 31 | D203: 613000
B204: 石川県立大学 | C204: 31 | D204: 531000
B205: 東京都市大学 | C205: 30 | D205: 2371000
B206: 麻布大学 | C206: 28 | D206: 1505000
B207: 長崎県立大学 | C207: 28 | D207: 1001000
B208: 金沢医科大学 | C208: 27 | D208: 933000
B209: 滋賀県立大学 | C209: 27 | D209: 0
... 636 more rows

Sheet 旭川医科大学 (hidden)
A1: 国立 | C1: 旭川医科大学 | X1: 大学全体の経営理念における産学官連携活動の取組方針 | CY1: 103 | CZ1: 104 | DA1: 105 | DB1: 106 | DC1: 107 | DD1: 108 | DE1: 109 | DF1: 110 | DG1: 111 | DH1: 112 | DI1: 113 | DJ1: 114 | DK1: 115 | DL1: 116 | DM1: 117 | DN1: 118 | DO1: 119 | DP1: 120 | DQ1: 121 | DR1: 122 | DS1: 123 | DT1: 124 | DU1: 125 | DV1: 126 | DW1: 127 | DX1: 128 | DY1: 129
BB3: ＵＲＡ | BO3: URA当たり研究者数 | CA3: 戦略的産学連携経費
BC4: 実務担当者数 | BN4: 名 | BO4: =IF(OR(I25="",BI4=""),"",(IFERROR(I25/BI4,""))) ->  | CB4: 戦略的産学連携経費の設定 | CP4: 有 | CT4: 無 | CZ4: ない | DA4: インキュベーション施設
CB5: 戦略的産学連携経費の費目 | CZ5: ない | DA5: 相談窓口
A6: 基 礎 情 報 | BB6: 各種規程類の整備状況 | CB6: 戦略的産学連携経費の直接経費に対する割合 | CZ6: ある | DA6: 設立ポリシー | DI6: × | DJ6: 産学連携ポリシー
BB7: 産学連携ポリシー | BM7: 職務発明規程（教職員のみ対象） | CZ7: ない | DA7: 支援ファンド | DI7: ◎ | DJ7: 知的財産ポリシー
B8: 大学の得意分野とその具体例 | BB8: 知的財産ポリシー | BM8: 職務発明規程（教職員、学生対象） | CA8: 人件費の企業負担 | DI8: ◎ | DJ8: 共同研究取扱規程
AA9: 科研費 （千円） | AL9: その他政府系研究費 (千円) | AS9: その他補助・助成金等 (千円) | BB9: 共同研究取扱規程 | BM9: 発明補償関係規程（教職員のみ対象） | CB9: 教員人件費の企業負担に関する規程や制度 | CP9: 有 | CT9: 無 | DI9: ◎ | DJ9: 受託研究取扱規程
BB10: 受託研究取扱規程 | BM10: 発明補償関係規程（教職員、学生対象） | CB10: 教員人件費の企業負担の費目 | DI10: ◎ | DJ10: 研究成果有体物取扱規程
AA11: 243230 | AL11: 74072 | AS11: 50000 | BB11: 研究成果有体物取扱規程 | BM11: 守秘義務に係る規程（教職員のみ対象） | CB11: 学生人件費の企業負担に関する規程や制度 | CP11: 有 | CT11: 無 | DI11: × | DJ11: 営業秘密管理に関する規程
BB12: 営業秘密管理に関する規程 | BM12: 守秘義務に係る規程（教職員、学生対象） | CB12: 学生人件費の企業負担の費目 | DI12: × | DJ12: 株式の取扱等規程、ポリシー
AA13: 間接経費割合 | AN13: 株式の保有 | AT13: 新株予約権の保有 | BB13: 株式の取扱等規程、ポリシー | DA13: ○ | DB13: 株式 | DI13: ◎ | DJ13: 職務発明規程（教職員のみ対象）
AA14: 10％以上15％未満 | AN14: 有 | AQ14: 無 | AT14: 有 | AW14: 無 | BD14: ※各種規定類を整備している場合は、赤色で表示されます。 | CA14: 特別試験研究費税額控除制度 | DA14: × | DB14: 新株予約権 | DI14: × | DJ14: 職務発明規程（教職員、学生対象）
CB15: 特別試験研究費税額控除制度の活用 | CP15: 有 | CT15: 無 | DI15: ◎ | DJ15: 発明補償関係規程（教職員のみ対象）
B16: 産学官連携活動において今後重点化したい事項 | AA16: ■共同研究 | AG16: 2019年度 | AO16: 2020年度 | AW16: 順位※ | BB16: クロスアポイントメントの実績（人） | BK16: 大学等 | BN16: 公的機関 | BQ16: 民間企業 | BU16: その他機関 | DI16: × | DJ16: 発明補償関係規程（教職員、学生対象）
AG17: 受入額（千円） | AL17: 件数 | AO17: 受入額（千円） | AT17: 件数 | BH17: 受入 | BK17: 0 | BN17: 0 | BQ17: 0 | BU17: 0 | DB17: 順位 | DI17: ◎ | DJ17: 守秘義務に係る規程（教職員のみ対象）
AA18: 全体 | AG18: 124183 | AL18: 32 | AO18: 152781 | AT18: 30 | AW18: =IF(DB18<50,DB18,"") ->  | AY18: 位 | BH18: 派遣 | BK18: 0 | BN18: 0 | BQ18: 0 | BU18: 1 | DB18: 84 | DI18: × | DJ18: 守秘義務に係る規程（教職員、学生対象）
AB19: 民間企業 のみ | AG19: 123280 | AL19: 31 | AO19: 152151 | AT19: 29 | AW19: =IF(DB19<50,DB19,"") ->  | AY19: 位 | DB19: 76
AC20: 大企業 | AG20: 99098 | AL20: 20 | AO20: 29545 | AT20: 10 | AW20: =IF(DB20<50,DB20,"") ->  | AY20: 位 | BB20: ■組織的産学連携活動の取組事例 | DB20: 138 | DI20: ない | DJ20: 戦略的産学連携経費の設定
AC21: 中小企業 | AG21: 24182 | AL21: 11 | AO21: 21264 | AT21: 9 | AW21: =IF(DB21<50,DB21,"") ->  | AY21: 位 | DB21: 94 | DI21: ない | DJ21: 教員人件費の企業負担に関する規程や制度
AL22: ※順位は2020年度の受入額を比較したもの | DI22: ない | DJ22: 学生人件費の企業負担に関する規程や制度
DB23: 0 | DC23: 11 | DI23: ある | DJ23: 特別試験研究費税額控除制度の活用
DB24: ～100万 | DC24: 6
B25: 研究者数 | I25: 531 | P25: 名 | DB25: ～300万 | DC25: 5
DB26: ～500万 | DC26: 2
DB27: ～1000万 | DC27: 2
DB28: ～5000万 | DC28: 2
DB29: ～1億 | DC29: 1 | DJ29: 共同研究等の企画・提案
B30: 産学連携担当部署 | O30: 実務者当たり研究者数 | DB30: 1億以上 | DC30: 0 | DJ30: 契約書での成果目標、達成時の明記
C31: 実務担当者数 | I31: 1 | N31: 名 | O31: =IF(OR(I25="",I31=""),"",IFERROR($I$25/I31,"")) -> 531 | DJ31: 共同研究契約の締結/判断（契約権限の集中）
C32: 専門家の配置 | I32: 弁護士 | L32: 弁理士 | O32: 税理士 | R32: 公認会計士 | V32: その他 | DJ32: 共同研究の進捗管理とフィードバック
I33: ※専門家を配置している場合は、赤色で表示されます。 | DJ33: 企業ニーズに適応した技術移転・事業化提案
AA34: ■受託研究 | AG34: 2019年度 | AO34: 2020年度 | AW34: 順位※ | DJ34: 共同研究等の企画・提案
AG35: 受入額（千円） | AL35: 件数 | AO35: 受入額（千円） | AT35: 件数 | DB35: 順位 | DJ35: 契約書での成果目標、達成時の明記
AA36: 全体 | AG36: 29977 | AL36: 63 | AO36: 38153 | AT36: 69 | AW36: =IF(DB36<50,DB36,"") ->  | AY36: 位 | DB36: 197 | DJ36: 共同研究契約の締結/判断（契約権限の集中）
AB37: 民間企業 のみ | AG37: 10164 | AL37: 24 | AO37: 8859 | AT37: 26 | AW37: =IF(DB37<50,DB37,"") ->  | AY37: 位 | DB37: 164 | DJ37: 共同研究の進捗管理とフィードバック
C38: 産学連携本部が関与した共同研究 | P38: 1 | T38: 件 | AC38: 大企業 | AG38: 10077 | AL38: 17 | AO38: 4110 | AT38: 11 | AW38: =IF(DB38<50,DB38,"") ->  | AY38: 位 | DB38: 182 | DJ38: 企業ニーズに適応した技術移転・事業化提案
D39: 内、マッチングを行い、契約締結した件数 | P39: 1 | T39: 件 | AC39: 中小企業 | AG39: 87 | AL39: 7 | AO39: 337 | AT39: 10 | AW39: =IF(DB39<50,DB39,"") ->  | AY39: 位 | BB39: ■産学連携活動の主な実用化事例 | DB39: 269 | DJ39: 共同研究等の企画・提案
I40: ※1,000万円以上の共同研究 | AL40: ※順位は2020年度の受入額を比較したもの | DB40: 弁護士 | DG40: 0 | DH40: 15 | DJ40: 契約書での成果目標、達成時の明記
DB41: 弁理士 | DG41: ～100万 | DH41: 8 | DJ41: 共同研究契約の締結/判断（契約権限の集中）
C42: 組織対組織による包括連携契約の締結数 | P42: 0 | T42: 件 | DB42: 税理士 | DG42: ～300万 | DH42: 2 | DJ42: 共同研究の進捗管理とフィードバック
D43: 内、1,000万円以上の実績がある相手方数 | P43: 0 | T43: 件 | DB43: 公認会計士 | DG43: ～500万 | DH43: 1 | DJ43: 企業ニーズに適応した技術移転・事業化提案
DB44: その他 | DG44: ～1000万 | DH44: 0
C45: 寄附講座・寄附研究部門の受入件数 | P45: 7 | V45: 件 | DG45: ～5000万 | DH45: 0
C46: 寄附講座・寄附研究部門の受入金額（千円） | P46: 140600 | DG46: ～1億 | DH46: 0
C47: 共同研究講座・共同研究部門の受入件数 | P47: 2 | V47: 件 | DG47: 1億以上 | DH47: 0
C48: 共同研究講座・共同研究部門の受入金額（千円） | P48: 29850
C52: 職務発明の帰属 | I52: 大学 | M52: 発明者 | Q52: 未設定 | CZ52: 大学 | DA52: 職務発明
AD53: 特許権実施等件数 | AL53: 15 | AS53: 実施等件数 あたり | DA53: 不実施
M54: 研究者あたり | AD54: 特許権実施等収入（千円） | AL54: 1987 | AS54: =IF(OR(AL53="",AL54=""),"",IFERROR(AL54/AL53,"")) -> 132.4666667 | CZ54: 1987000 | DA54: 特許等収入
C55: 特許出願件数 | I55: 21 | M55: =IF(OR(I25="",I55=""),"",IFERROR(I55/I25,"")) -> 0.0395480226
C56: 特許保有件数 | I56: 59 | M56: =IF(OR(I25="",I56=""),"",IFERROR(I56/I25,"")) -> 0.1111111111
C61: 大学発ベンチャー数 | J61: 1 | O61: 社
C62: Exit件数（IPO） | O62: 社 | P62: Exit件数（M&A） | Z62: 社
C63: 相談窓口 | K63: 支援ファンド | S63: インキュベーション施設
C64: 有 | G64: 無 | K64: 有 | O64: 無 | S64: 有 | W64: 無
C65: 知的財産戦略方針 | K65: 支援総額（千円） | S65: 部屋数 | Z65: 件
C66: 有 | G66: 無 | S66: 利用件数 | Z66: 件
A69: 1 | B69: 2 | C69: 3 | D69: 4 | E69: 5 | F69: 6 | G69: 7 | H69: 8 | I69: 9 | J69: 10 | K69: 11 | L69: 12 | M69: 13 | N69: 14 | O69: 15 | P69: 16 | Q69: 17 | R69: 18 | S69: 19 | T69: 20 | U69: 21 | V69: 22 | W69: 23 | X69: 24 | Y69: 25 | Z69: 26 | AA69: 27 | AB69: 28 | AC69: 29 | AD69: 30 | AE69: 31 | AF69: 32 | AG69: 33 | AH69: 34 | AI69: 35 | AJ69: 36 | AK69: 37 | AL69: 38 | AM69: 39 | AN69: 40 | AO69: 41 | AP69: 42 | AQ69: 43 | AR69: 44 | AS69: 45 | AT69: 46 | AU69: 47 | AV69: 48 | AW69: 49 | AX69: 50 | AY69: 51 | AZ69: 52 | BA69: 53 | BB69: 54 | BC69: 55 | BD69: 56 | BE69: 57 | BF69: 58 | BG69: 59 | BH69: 60 | BI69: 61 | BJ69: 62 | BK69: 63 | BL69: 64 | BM69: 65 | BN69: 66 | BO69: 67 | BP69: 68 | BQ69: 69 | BR69: 70 | BS69: 71 | BT69: 72 | BU69: 73 | BV69: 74 | BW69: 75 | BX69: 76 | BY69: 77 | BZ69: 78 | CA69: 79 | CB69: 80 | CC69: 81 | CD69: 82 | CE69: 83 | CF69: 84 | CG69: 85 | CH69: 86 | CI69: 87 | CJ69: 88 | CK69: 89 | CL69: 90 | CM69: 91 | CN69: 92 | CO69: 93 | CP69: 94 | CQ69: 95 | CR69: 96 | CS69: 97 | CT69: 98 | CU69: 99 | CV69: 100 | CW69: 101 | CX69: 102 | CY69: 103 | CZ69: 104 | DA69: 105 | DB69: 106 | DC69: 107 | DD69: 108 | DE69: 109 | DF69: 110 | DG69: 111 | DH69: 112 | DI69: 113 | DJ69: 114 | DK69: 115 | DL69: 116 | DM69: 117 | DN69: 118 | DO69: 119 | DP69: 120 | DQ69: 121 | DR69: 122 | DS69: 123 | DT69: 124 | DU69: 125
D70: 特許権収入
B71: 東京大学 | C71: 4495 | D71: 261744000
B72: 東北大学 | C72: 3533 | D72: 157139000
B73: 京都大学 | C73: 3044 | D73: 698373000
B74: 大阪大学 | C74: 2854 | D74: 509758000
B75: 東京工業大学 | C75: 1979 | D75: 57301000
B76: 九州大学 | C76: 1530 | D76: 601936000
B77: 名古屋大学 | C77: 1346 | D77: 72156000
B78: 北海道大学 | C78: 1167 | D78: 86700000
B79: 信州大学 | C79: 952 | D79: 29305000
B80: 広島大学 | C80: 921 | D80: 41265000
B81: 筑波大学 | C81: 850 | D81: 42694000
B82: 慶應義塾大学 | C82: 798 | D82: 67998000
B83: 千葉大学 | C83: 769 | D83: 17609000
B84: 岡山大学 | C84: 749 | D84: 8886000
B85: 山口大学 | C85: 700 | D85: 29167000
B86: 早稲田大学 | C86: 698 | D86: 21143000
B87: 名古屋工業大学 | C87: 638 | D87: 12139000
B88: 東京農工大学 | C88: 632 | D88: 44098000
B89: 九州工業大学 | C89: 611 | D89: 10288000
B90: 大阪府立大学 | C90: 573 | D90: 9177000
B91: 東京理科大学 | C91: 528 | D91: 15523000
B92: 神戸大学 | C92: 525 | D92: 78768000
B93: 静岡大学 | C93: 509 | D93: 8145000
B94: 群馬大学 | C94: 483 | D94: 5316000
B95: 熊本大学 | C95: 475 | D95: 29359000
B96: 近畿大学 | C96: 453 | D96: 82359000
B97: 長岡技術科学大学 | C97: 441 | D97: 3921000
B98: 横浜国立大学 | C98: 439 | D98: 5839000
B99: 奈良先端科学技術大学院大学 | C99: 427 | D99: 3542000
B100: 三重大学 | C100: 417 | D100: 10844000
B101: 鹿児島大学 | C101: 416 | D101: 14284000
B102: 大阪市立大学 | C102: 403 | D102: 2791000
B103: 東京都立大学 | C103: 398 | D103: 574000
B104: 山梨大学 | C104: 395 | D104: 5041000
B105: 香川大学 | C105: 389 | D105: 17113000
B106: 東京医科歯科大学 | C106: 377 | D106: 24076000
B107: 豊橋技術科学大学 | C107: 374 | D107: 5526000
B108: 徳島大学 | C108: 362 | D108: 131417000
B109: 電気通信大学 | C109: 355 | D109: 7847000
B110: 関西大学 | C110: 350 | D110: 5154000
B111: 鳥取大学 | C111: 340 | D111: 4814000
B112: 同志社大学 | C112: 337 | D112: 17850000
B113: 金沢大学 | C113: 337 | D113: 13893000
B114: 日本大学 | C114: 333 | D114: 38328000
B115: 山形大学 | C115: 323 | D115: 752000
B116: 北里大学 | C116: 315 | D116: 45190000
B117: 埼玉大学 | C117: 309 | D117: 2765000
B118: 富山大学 | C118: 305 | D118: 35859000
B119: 新潟大学 | C119: 301 | D119: 8943000
B120: 高知大学 | C120: 281 | D120: 26209000
B121: 立命館大学 | C121: 268 | D121: 2098000
B122: 秋田大学 | C122: 264 | D122: 1773000
B123: 神奈川大学 | C123: 263 | D123: 4940000
B124: 岐阜大学 | C124: 246 | D124: 7958000
B125: 弘前大学 | C125: 239 | D125: 10190000
B126: 宮崎大学 | C126: 236 | D126: 2168000
B127: 名城大学 | C127: 232 | D127: 2341000
B128: 兵庫県立大学 | C128: 232 | D128: 1142000
B129: 佐賀大学 | C129: 224 | D129: 4180000
B130: 福井大学 | C130: 221 | D130: 3913000
B131: 札幌医科大学 | C131: 218 | D131: 105462000
B132: 東海大学 | C132: 211 | D132: 5395000
B133: 京都工芸繊維大学 | C133: 201 | D133: 4782000
B134: 岩手大学 | C134: 198 | D134: 2552000
B135: 長崎大学 | C135: 194 | D135: 25364000
B136: 東京女子医科大学 | C136: 186 | D136: 2706000
B137: 横浜市立大学 | C137: 184 | D137: 50242000
B138: 北陸先端科学技術大学院大学 | C138: 175 | D138: 8323000
B139: 東京海洋大学 | C139: 175 | D139: 3222000
B140: 愛媛大学 | C140: 174 | D140: 35291000
B141: 宇都宮大学 | C141: 171 | D141: 2463000
B142: 高知工科大学 | C142: 165 | D142: 326000
B143: 千葉工業大学 | C143: 160 | D143: 0
B144: 茨城大学 | C144: 157 | D144: 2754000
B145: 福岡大学 | C145: 154 | D145: 874000
B146: 沖縄科学技術大学院大学 | C146: 152 | D146: 1100000
B147: 大分大学 | C147: 151 | D147: 1915000
B148: 金沢工業大学 | C148: 150 | D148: 2760000
B149: 中央大学 | C149: 144 | D149: 989000
B150: 浜松医科大学 | C150: 143 | D150: 3875000
B151: 島根大学 | C151: 137 | D151: 1166000
B152: 滋賀医科大学 | C152: 132 | D152: 2306000
B153: 関西学院大学 | C153: 128 | D153: 23880000
B154: 自治医科大学 | C154: 127 | D154: 6757000
B155: 久留米大学 | C155: 127 | D155: 1462000
B156: 上智大学 | C156: 126 | D156: 0
B157: 順天堂大学 | C157: 122 | D157: 3072000
B158: 中部大学 | C158: 118 | D158: 220000
B159: 東京電機大学 | C159: 102 | D159: 1180000
B160: 芝浦工業大学 | C160: 98 | D160: 1615000
B161: 埼玉医科大学 | C161: 96 | D161: 27468000
B162: 豊田工業大学 | C162: 96 | D162: 0
B163: 名古屋市立大学 | C163: 94 | D163: 17822000
B164: 京都府立医科大学 | C164: 94 | D164: 2128000
B165: 北見工業大学 | C165: 92 | D165: 995000
B166: 和歌山大学 | C166: 89 | D166: 4131000
B167: 富山県立大学 | C167: 87 | D167: 1375000
B168: 関東学院大学 | C168: 84 | D168: 14540000
B169: 明治大学 | C169: 81 | D169: 4886000
B170: 琉球大学 | C170: 77 | D170: 1146000
B171: 静岡県立大学 | C171: 72 | D171: 915000
B172: 福島大学 | C172: 67 | D172: 897000
B173: 藤田医科大学 | C173: 62 | D173: 0
B174: 帝京大学 | C174: 60 | D174: 2351000
B175: 兵庫医科大学 | C175: 60 | D175: 332000
B176: 旭川医科大学 | C176: 59 | D176: 1987000
B177: 日本医科大学 | C177: 55 | D177: 58243000
B178: 帯広畜産大学 | C178: 54 | D178: 2966000
B179: 東洋大学 | C179: 54 | D179: 633000
B180: 秋田県立大学 | C180: 52 | D180: 892000
B181: 奈良県立医科大学 | C181: 52 | D181: 743000
B182: 福岡工業大学 | C182: 52 | D182: 0
B183: 立教大学 | C183: 51 | D183: 231000
B184: 室蘭工業大学 | C184: 50 | D184: 0
B185: 昭和大学 | C185: 48 | D185: 4513000
B186: 聖マリアンナ医科大学 | C186: 46 | D186: 3204000
B187: 関西医科大学 | C187: 46 | D187: 781000
B188: 神奈川工科大学 | C188: 46 | D188: 289000
B189: 岡山理科大学 | C189: 45 | D189: 916000
B190: お茶の水女子大学 | C190: 45 | D190: 5000
B191: 広島市立大学 | C191: 44 | D191: 0
B192: 会津大学 | C192: 43 | D192: 33000
B193: 龍谷大学 | C193: 42 | D193: 1289000
B194: 玉川大学 | C194: 41 | D194: 119000
B195: 産業医科大学 | C195: 41 | D195: 7000
B196: 大阪工業大学 | C196: 39 | D196: 0
B197: 東京農業大学 | C197: 36 | D197: 748000
B198: 法政大学 | C198: 36 | D198: 550000
B199: 工学院大学 | C199: 35 | D199: 3516000
B200: 青山学院大学 | C200: 34 | D200: 0
B201: 北九州市立大学 | C201: 32 | D201: 2647000
B202: 東邦大学 | C202: 32 | D202: 23000
B203: 甲南大学 | C203: 31 | D203: 613000
B204: 石川県立大学 | C204: 31 | D204: 531000
B205: 東京都市大学 | C205: 30 | D205: 2371000
B206: 麻布大学 | C206: 28 | D206: 1505000
B207: 長崎県立大学 | C207: 28 | D207: 1001000
B208: 金沢医科大学 | C208: 27 | D208: 933000
B209: 滋賀県立大学 | C209: 27 | D209: 0
B210: 愛知工業大学 | C210: 26 | D210: 0
... 635 more rows

Sheet 岩手大学 (hidden)
A1: 国立 | C1: 岩手大学 | X1: 大学全体の経営理念における産学官連携活動の取組方針 | CY1: 103 | CZ1: 104 | DA1: 105 | DB1: 106 | DC1: 107 | DD1: 108 | DE1: 109 | DF1: 110 | DG1: 111 | DH1: 112 | DI1: 113 | DJ1: 114 | DK1: 115 | DL1: 116 | DM1: 117 | DN1: 118 | DO1: 119 | DP1: 120 | DQ1: 121 | DR1: 122 | DS1: 123 | DT1: 124 | DU1: 125 | DV1: 126 | DW1: 127 | DX1: 128 | DY1: 129
X2: 地域社会に開かれた大学として、その教育研究の成果をもとに地域社会の文化の向上と国際社会の発展に貢献することを目指す。このため、地域社会との連携による新たな研究分野の創出を進める。
BB3: ＵＲＡ | BO3: URA当たり研究者数 | CA3: 戦略的産学連携経費
BC4: 実務担当者数 | BI4: 18 | BN4: 名 | BO4: =IF(OR(I25="",BI4=""),"",(IFERROR(I25/BI4,""))) -> 45 | CB4: 戦略的産学連携経費の設定 | CP4: 有 | CT4: 無 | CZ4: ある | DA4: インキュベーション施設
CB5: 戦略的産学連携経費の費目 | CZ5: ある | DA5: 相談窓口
A6: 基 礎 情 報 | BB6: 各種規程類の整備状況 | CB6: 戦略的産学連携経費の直接経費に対する割合 | CZ6: ある | DA6: 設立ポリシー | DI6: ◎ | DJ6: 産学連携ポリシー
BB7: 産学連携ポリシー | BM7: 職務発明規程（教職員のみ対象） | CZ7: ない | DA7: 支援ファンド | DI7: ◎ | DJ7: 知的財産ポリシー
B8: 大学の得意分野とその具体例 | BB8: 知的財産ポリシー | BM8: 職務発明規程（教職員、学生対象） | CA8: 人件費の企業負担 | DI8: ◎ | DJ8: 共同研究取扱規程
B9: 数々の実績のあるINS等産学官金ネットワークを基盤に、特徴的な研究シーズを活かした産学官連携を実施 ・次世代アグリイノベーション ・パルスパワーによる植物等の革新的機能性制御技術 ・分子接合技術によるエレクトロニクス実装技術 等 | AA9: 科研費 （千円） | AL9: その他政府系研究費 (千円) | AS9: その他補助・助成金等 (千円) | BB9: 共同研究取扱規程 | BM9: 発明補償関係規程（教職員のみ対象） | CB9: 教員人件費の企業負担に関する規程や制度 | CP9: 有 | CT9: 無 | DI9: ◎ | DJ9: 受託研究取扱規程
BB10: 受託研究取扱規程 | BM10: 発明補償関係規程（教職員、学生対象） | CB10: 教員人件費の企業負担の費目 | DI10: ◎ | DJ10: 研究成果有体物取扱規程
AA11: 548231 | AL11: 12531 | AS11: 0 | BB11: 研究成果有体物取扱規程 | BM11: 守秘義務に係る規程（教職員のみ対象） | CB11: 学生人件費の企業負担に関する規程や制度 | CP11: 有 | CT11: 無 | DI11: ◎ | DJ11: 営業秘密管理に関する規程
BB12: 営業秘密管理に関する規程 | BM12: 守秘義務に係る規程（教職員、学生対象） | CB12: 学生人件費の企業負担の費目 | DI12: ◎ | DJ12: 株式の取扱等規程、ポリシー
AA13: 間接経費割合 | AN13: 株式の保有 | AT13: 新株予約権の保有 | BB13: 株式の取扱等規程、ポリシー | DA13: × | DB13: 株式 | DI13: × | DJ13: 職務発明規程（教職員のみ対象）
AA14: 20％以上25％未満 | AN14: 有 | AQ14: 無 | AT14: 有 | AW14: 無 | BD14: ※各種規定類を整備している場合は、赤色で表示されます。 | CA14: 特別試験研究費税額控除制度 | DA14: ○ | DB14: 新株予約権 | DI14: ◎ | DJ14: 職務発明規程（教職員、学生対象）
CB15: 特別試験研究費税額控除制度の活用 | CP15: 有 | CT15: 無 | DI15: × | DJ15: 発明補償関係規程（教職員のみ対象）
B16: 産学官連携活動において今後重点化したい事項 | AA16: ■共同研究 | AG16: 2019年度 | AO16: 2020年度 | AW16: 順位※ | BB16: クロスアポイントメントの実績（人） | BK16: 大学等 | BN16: 公的機関 | BQ16: 民間企業 | BU16: その他機関 | DI16: ◎ | DJ16: 発明補償関係規程（教職員、学生対象）
B17: ・地域企業との共同研究数・金額の増加。 ・オープンイノベーション拠点である「銀河オープンラボ」のプロジェクトを中心に、大型プロジェクトの創出と支援を行う。 ・地域の水産業をはじめ、1次産業との連携を更に進める。 | AG17: 受入額（千円） | AL17: 件数 | AO17: 受入額（千円） | AT17: 件数 | BH17: 受入 | BK17: 0 | BN17: 0 | BQ17: 0 | BU17: 0 | DB17: 順位 | DI17: ◎ | DJ17: 守秘義務に係る規程（教職員のみ対象）
AA18: 全体 | AG18: 263008 | AL18: 222 | AO18: 311174 | AT18: 193 | AW18: =IF(DB18<50,DB18,"") ->  | AY18: 位 | BH18: 派遣 | BK18: 0 | BN18: 0 | BQ18: 0 | BU18: 0 | DB18: 51 | DI18: × | DJ18: 守秘義務に係る規程（教職員、学生対象）
AB19: 民間企業 のみ | AG19: 230995 | AL19: 197 | AO19: 262167 | AT19: 167 | AW19: =IF(DB19<50,DB19,"") -> 49 | AY19: 位 | DB19: 49
AC20: 大企業 | AG20: 167072 | AL20: 96 | AO20: 146344 | AT20: 72 | AW20: =IF(DB20<50,DB20,"") ->  | AY20: 位 | BB20: ■組織的産学連携活動の取組事例 | DB20: 54 | DI20: ない | DJ20: 戦略的産学連携経費の設定
AC21: 中小企業 | AG21: 62927 | AL21: 100 | AO21: 115823 | AT21: 95 | AW21: =IF(DB21<50,DB21,"") -> 31 | AY21: 位 | DB21: 31 | DI21: ない | DJ21: 教員人件費の企業負担に関する規程や制度
AL22: ※順位は2020年度の受入額を比較したもの | DI22: ない | DJ22: 学生人件費の企業負担に関する規程や制度
DB23: 0 | DC23: 0 | DI23: ある | DJ23: 特別試験研究費税額控除制度の活用
DB24: ～100万 | DC24: 106
B25: 研究者数 | I25: 810 | P25: 名 | DB25: ～300万 | DC25: 41
DB26: ～500万 | DC26: 12
DB27: ～1000万 | DC27: 6
DB28: ～5000万 | DC28: 2
DB29: ～1億 | DC29: 0 | DJ29: 共同研究等の企画・提案
B30: 産学連携担当部署 | O30: 実務者当たり研究者数 | DB30: 1億以上 | DC30: 0 | DJ30: 契約書での成果目標、達成時の明記
C31: 実務担当者数 | I31: 5 | N31: 名 | O31: =IF(OR(I25="",I31=""),"",IFERROR($I$25/I31,"")) -> 162 | DJ31: 共同研究契約の締結/判断（契約権限の集中）
C32: 専門家の配置 | I32: 弁護士 | L32: 弁理士 | O32: 税理士 | R32: 公認会計士 | V32: その他 | DJ32: 共同研究の進捗管理とフィードバック
I33: ※専門家を配置している場合は、赤色で表示されます。 | DJ33: 企業ニーズに適応した技術移転・事業化提案
AA34: ■受託研究 | AG34: 2019年度 | AO34: 2020年度 | AW34: 順位※ | DJ34: 共同研究等の企画・提案
AG35: 受入額（千円） | AL35: 件数 | AO35: 受入額（千円） | AT35: 件数 | DB35: 順位 | DJ35: 契約書での成果目標、達成時の明記
AA36: 全体 | AG36: 189250 | AL36: 49 | AO36: 200810 | AT36: 47 | AW36: =IF(DB36<50,DB36,"") ->  | AY36: 位 | DB36: 117 | DJ36: 共同研究契約の締結/判断（契約権限の集中）
AB37: 民間企業 のみ | AG37: 8196 | AL37: 5 | AO37: 3283 | AT37: 5 | AW37: =IF(DB37<50,DB37,"") ->  | AY37: 位 | DB37: 221 | DJ37: 共同研究の進捗管理とフィードバック
C38: 産学連携本部が関与した共同研究 | P38: 3 | T38: 件 | AC38: 大企業 | AG38: 5451 | AL38: 3 | AO38: 3283 | AT38: 4 | AW38: =IF(DB38<50,DB38,"") ->  | AY38: 位 | DB38: 189 | DJ38: 企業ニーズに適応した技術移転・事業化提案
D39: 内、マッチングを行い、契約締結した件数 | P39: 3 | T39: 件 | AC39: 中小企業 | AG39: 2745 | AL39: 2 | AO39: 0 | AT39: 1 | AW39: =IF(DB39<50,DB39,"") ->  | AY39: 位 | BB39: ■産学連携活動の主な実用化事例 | DB39: 316 | DJ39: 共同研究等の企画・提案
I40: ※1,000万円以上の共同研究 | AL40: ※順位は2020年度の受入額を比較したもの | DB40: 弁護士 | DG40: 0 | DH40: 2 | DJ40: 契約書での成果目標、達成時の明記
DB41: 弁理士 | DG41: ～100万 | DH41: 1 | DJ41: 共同研究契約の締結/判断（契約権限の集中）
C42: 組織対組織による包括連携契約の締結数 | P42: 0 | T42: 件 | DB42: 税理士 | DG42: ～300万 | DH42: 2 | DJ42: 共同研究の進捗管理とフィードバック
D43: 内、1,000万円以上の実績がある相手方数 | P43: 0 | T43: 件 | DB43: 公認会計士 | DG43: ～500万 | DH43: 0 | DJ43: 企業ニーズに適応した技術移転・事業化提案
DA44: ○ | DB44: その他 | DG44: ～1000万 | DH44: 0
C45: 寄附講座・寄附研究部門の受入件数 | P45: 0 | V45: 件 | DG45: ～5000万 | DH45: 0
C46: 寄附講座・寄附研究部門の受入金額（千円） | P46: 0 | DG46: ～1億 | DH46: 0
C47: 共同研究講座・共同研究部門の受入件数 | V47: 件 | DG47: 1億以上 | DH47: 0
C48: 共同研究講座・共同研究部門の受入金額（千円）
C52: 職務発明の帰属 | I52: 大学 | M52: 発明者 | Q52: 未設定 | CZ52: 大学 | DA52: 職務発明
AD53: 特許権実施等件数 | AL53: 34 | AS53: 実施等件数 あたり | DA53: 不実施
M54: 研究者あたり | AD54: 特許権実施等収入（千円） | AL54: 2552 | AS54: =IF(OR(AL53="",AL54=""),"",IFERROR(AL54/AL53,"")) -> 75.05882353 | CZ54: 2552000 | DA54: 特許等収入
C55: 特許出願件数 | I55: 48 | M55: =IF(OR(I25="",I55=""),"",IFERROR(I55/I25,"")) -> 0.05925925926
C56: 特許保有件数 | I56: 198 | M56: =IF(OR(I25="",I56=""),"",IFERROR(I56/I25,"")) -> 0.2444444444
C61: 大学発ベンチャー数 | J61: 17 | O61: 社
C62: Exit件数（IPO） | J62: 0 | O62: 社 | P62: Exit件数（M&A） | W62: 1 | Z62: 社
C63: 相談窓口 | K63: 支援ファンド | S63: インキュベーション施設
C64: 有 | G64: 無 | K64: 有 | O64: 無 | S64: 有 | W64: 無
C65: 知的財産戦略方針 | K65: 支援総額（千円） | S65: 部屋数 | W65: 26 | Z65: 件
C66: 有 | G66: 無 | S66: 利用件数 | W66: 8 | Z66: 件
A69: 1 | B69: 2 | C69: 3 | D69: 4 | E69: 5 | F69: 6 | G69: 7 | H69: 8 | I69: 9 | J69: 10 | K69: 11 | L69: 12 | M69: 13 | N69: 14 | O69: 15 | P69: 16 | Q69: 17 | R69: 18 | S69: 19 | T69: 20 | U69: 21 | V69: 22 | W69: 23 | X69: 24 | Y69: 25 | Z69: 26 | AA69: 27 | AB69: 28 | AC69: 29 | AD69: 30 | AE69: 31 | AF69: 32 | AG69: 33 | AH69: 34 | AI69: 35 | AJ69: 36 | AK69: 37 | AL69: 38 | AM69: 39 | AN69: 40 | AO69: 41 | AP69: 42 | AQ69: 43 | AR69: 44 | AS69: 45 | AT69: 46 | AU69: 47 | AV69: 48 | AW69: 49 | AX69: 50 | AY69: 51 | AZ69: 52 | BA69: 53 | BB69: 54 | BC69: 55 | BD69: 56 | BE69: 57 | BF69: 58 | BG69: 59 | BH69: 60 | BI69: 61 | BJ69: 62 | BK69: 63 | BL69: 64 | BM69: 65 | BN69: 66 | BO69: 67 | BP69: 68 | BQ69: 69 | BR69: 70 | BS69: 71 | BT69: 72 | BU69: 73 | BV69: 74 | BW69: 75 | BX69: 76 | BY69: 77 | BZ69: 78 | CA69: 79 | CB69: 80 | CC69: 81 | CD69: 82 | CE69: 83 | CF69: 84 | CG69: 85 | CH69: 86 | CI69: 87 | CJ69: 88 | CK69: 89 | CL69: 90 | CM69: 91 | CN69: 92 | CO69: 93 | CP69: 94 | CQ69: 95 | CR69: 96 | CS69: 97 | CT69: 98 | CU69: 99 | CV69: 100 | CW69: 101 | CX69: 102 | CY69: 103 | CZ69: 104 | DA69: 105 | DB69: 106 | DC69: 107 | DD69: 108 | DE69: 109 | DF69: 110 | DG69: 111 | DH69: 112 | DI69: 113 | DJ69: 114 | DK69: 115 | DL69: 116 | DM69: 117 | DN69: 118 | DO69: 119 | DP69: 120 | DQ69: 121 | DR69: 122 | DS69: 123 | DT69: 124 | DU69: 125
D70: 特許権収入
B71: 東京大学 | C71: 4495 | D71: 261744000
B72: 東北大学 | C72: 3533 | D72: 157139000
B73: 京都大学 | C73: 3044 | D73: 698373000
B74: 大阪大学 | C74: 2854 | D74: 509758000
B75: 東京工業大学 | C75: 1979 | D75: 57301000
B76: 九州大学 | C76: 1530 | D76: 601936000
B77: 名古屋大学 | C77: 1346 | D77: 72156000
B78: 北海道大学 | C78: 1167 | D78: 86700000
B79: 信州大学 | C79: 952 | D79: 29305000
B80: 広島大学 | C80: 921 | D80: 41265000
B81: 筑波大学 | C81: 850 | D81: 42694000
B82: 慶應義塾大学 | C82: 798 | D82: 67998000
B83: 千葉大学 | C83: 769 | D83: 17609000
B84: 岡山大学 | C84: 749 | D84: 8886000
B85: 山口大学 | C85: 700 | D85: 29167000
B86: 早稲田大学 | C86: 698 | D86: 21143000
B87: 名古屋工業大学 | C87: 638 | D87: 12139000
B88: 東京農工大学 | C88: 632 | D88: 44098000
B89: 九州工業大学 | C89: 611 | D89: 10288000
B90: 大阪府立大学 | C90: 573 | D90: 9177000
B91: 東京理科大学 | C91: 528 | D91: 15523000
B92: 神戸大学 | C92: 525 | D92: 78768000
B93: 静岡大学 | C93: 509 | D93: 8145000
B94: 群馬大学 | C94: 483 | D94: 5316000
B95: 熊本大学 | C95: 475 | D95: 29359000
B96: 近畿大学 | C96: 453 | D96: 82359000
B97: 長岡技術科学大学 | C97: 441 | D97: 3921000
B98: 横浜国立大学 | C98: 439 | D98: 5839000
B99: 奈良先端科学技術大学院大学 | C99: 427 | D99: 3542000
B100: 三重大学 | C100: 417 | D100: 10844000
B101: 鹿児島大学 | C101: 416 | D101: 14284000
B102: 大阪市立大学 | C102: 403 | D102: 2791000
B103: 東京都立大学 | C103: 398 | D103: 574000
B104: 山梨大学 | C104: 395 | D104: 5041000
B105: 香川大学 | C105: 389 | D105: 17113000
B106: 東京医科歯科大学 | C106: 377 | D106: 24076000
B107: 豊橋技術科学大学 | C107: 374 | D107: 5526000
B108: 徳島大学 | C108: 362 | D108: 131417000
B109: 電気通信大学 | C109: 355 | D109: 7847000
B110: 関西大学 | C110: 350 | D110: 5154000
B111: 鳥取大学 | C111: 340 | D111: 4814000
B112: 同志社大学 | C112: 337 | D112: 17850000
B113: 金沢大学 | C113: 337 | D113: 13893000
B114: 日本大学 | C114: 333 | D114: 38328000
B115: 山形大学 | C115: 323 | D115: 752000
B116: 北里大学 | C116: 315 | D116: 45190000
B117: 埼玉大学 | C117: 309 | D117: 2765000
B118: 富山大学 | C118: 305 | D118: 35859000
B119: 新潟大学 | C119: 301 | D119: 8943000
B120: 高知大学 | C120: 281 | D120: 26209000
B121: 立命館大学 | C121: 268 | D121: 2098000
B122: 秋田大学 | C122: 264 | D122: 1773000
B123: 神奈川大学 | C123: 263 | D123: 4940000
B124: 岐阜大学 | C124: 246 | D124: 7958000
B125: 弘前大学 | C125: 239 | D125: 10190000
B126: 宮崎大学 | C126: 236 | D126: 2168000
B127: 名城大学 | C127: 232 | D127: 2341000
B128: 兵庫県立大学 | C128: 232 | D128: 1142000
B129: 佐賀大学 | C129: 224 | D129: 4180000
B130: 福井大学 | C130: 221 | D130: 3913000
B131: 札幌医科大学 | C131: 218 | D131: 105462000
B132: 東海大学 | C132: 211 | D132: 5395000
B133: 京都工芸繊維大学 | C133: 201 | D133: 4782000
B134: 岩手大学 | C134: 198 | D134: 2552000
B135: 長崎大学 | C135: 194 | D135: 25364000
B136: 東京女子医科大学 | C136: 186 | D136: 2706000
B137: 横浜市立大学 | C137: 184 | D137: 50242000
B138: 北陸先端科学技術大学院大学 | C138: 175 | D138: 8323000
B139: 東京海洋大学 | C139: 175 | D139: 3222000
B140: 愛媛大学 | C140: 174 | D140: 35291000
B141: 宇都宮大学 | C141: 171 | D141: 2463000
B142: 高知工科大学 | C142: 165 | D142: 326000
B143: 千葉工業大学 | C143: 160 | D143: 0
B144: 茨城大学 | C144: 157 | D144: 2754000
B145: 福岡大学 | C145: 154 | D145: 874000
B146: 沖縄科学技術大学院大学 | C146: 152 | D146: 1100000
B147: 大分大学 | C147: 151 | D147: 1915000
B148: 金沢工業大学 | C148: 150 | D148: 2760000
B149: 中央大学 | C149: 144 | D149: 989000
B150: 浜松医科大学 | C150: 143 | D150: 3875000
B151: 島根大学 | C151: 137 | D151: 1166000
B152: 滋賀医科大学 | C152: 132 | D152: 2306000
B153: 関西学院大学 | C153: 128 | D153: 23880000
B154: 自治医科大学 | C154: 127 | D154: 6757000
B155: 久留米大学 | C155: 127 | D155: 1462000
B156: 上智大学 | C156: 126 | D156: 0
B157: 順天堂大学 | C157: 122 | D157: 3072000
B158: 中部大学 | C158: 118 | D158: 220000
B159: 東京電機大学 | C159: 102 | D159: 1180000
B160: 芝浦工業大学 | C160: 98 | D160: 1615000
B161: 埼玉医科大学 | C161: 96 | D161: 27468000
B162: 豊田工業大学 | C162: 96 | D162: 0
B163: 名古屋市立大学 | C163: 94 | D163: 17822000
B164: 京都府立医科大学 | C164: 94 | D164: 2128000
B165: 北見工業大学 | C165: 92 | D165: 995000
B166: 和歌山大学 | C166: 89 | D166: 4131000
B167: 富山県立大学 | C167: 87 | D167: 1375000
B168: 関東学院大学 | C168: 84 | D168: 14540000
B169: 明治大学 | C169: 81 | D169: 4886000
B170: 琉球大学 | C170: 77 | D170: 1146000
B171: 静岡県立大学 | C171: 72 | D171: 915000
B172: 福島大学 | C172: 67 | D172: 897000
B173: 藤田医科大学 | C173: 62 | D173: 0
B174: 帝京大学 | C174: 60 | D174: 2351000
B175: 兵庫医科大学 | C175: 60 | D175: 332000
B176: 旭川医科大学 | C176: 59 | D176: 1987000
B177: 日本医科大学 | C177: 55 | D177: 58243000
B178: 帯広畜産大学 | C178: 54 | D178: 2966000
B179: 東洋大学 | C179: 54 | D179: 633000
B180: 秋田県立大学 | C180: 52 | D180: 892000
B181: 奈良県立医科大学 | C181: 52 | D181: 743000
B182: 福岡工業大学 | C182: 52 | D182: 0
B183: 立教大学 | C183: 51 | D183: 231000
B184: 室蘭工業大学 | C184: 50 | D184: 0
B185: 昭和大学 | C185: 48 | D185: 4513000
B186: 聖マリアンナ医科大学 | C186: 46 | D186: 3204000
B187: 関西医科大学 | C187: 46 | D187: 781000
B188: 神奈川工科大学 | C188: 46 | D188: 289000
B189: 岡山理科大学 | C189: 45 | D189: 916000
B190: お茶の水女子大学 | C190: 45 | D190: 5000
B191: 広島市立大学 | C191: 44 | D191: 0
B192: 会津大学 | C192: 43 | D192: 33000
B193: 龍谷大学 | C193: 42 | D193: 1289000
B194: 玉川大学 | C194: 41 | D194: 119000
B195: 産業医科大学 | C195: 41 | D195: 7000
B196: 大阪工業大学 | C196: 39 | D196: 0
B197: 東京農業大学 | C197: 36 | D197: 748000
B198: 法政大学 | C198: 36 | D198: 550000
B199: 工学院大学 | C199: 35 | D199: 3516000
B200: 青山学院大学 | C200: 34 | D200: 0
B201: 北九州市立大学 | C201: 32 | D201: 2647000
B202: 東邦大学 | C202: 32 | D202: 23000
B203: 甲南大学 | C203: 31 | D203: 613000
B204: 石川県立大学 | C204: 31 | D204: 531000
B205: 東京都市大学 | C205: 30 | D205: 2371000
B206: 麻布大学 | C206: 28 | D206: 1505000
B207: 長崎県立大学 | C207: 28 | D207: 1001000
B208: 金沢医科大学 | C208: 27 | D208: 933000
B209: 滋賀県立大学 | C209: 27 | D209: 0
... 636 more rows

Sheet 秋田大学 (hidden)
A1: 国立 | C1: 秋田大学 | X1: 大学全体の経営理念における産学官連携活動の取組方針 | CY1: 103 | CZ1: 104 | DA1: 105 | DB1: 106 | DC1: 107 | DD1: 108 | DE1: 109 | DF1: 110 | DG1: 111 | DH1: 112 | DI1: 113 | DJ1: 114 | DK1: 115 | DL1: 116 | DM1: 117 | DN1: 118 | DO1: 119 | DP1: 120 | DQ1: 121 | DR1: 122 | DS1: 123 | DT1: 124 | DU1: 125 | DV1: 126 | DW1: 127 | DX1: 128 | DY1: 129
X2: 第３期中期計画の中で「大学職員と地域企業等との連携を促進し，地域企業の研究・開発力向上に寄与するためにも，学生も参加する産学連携推進による人材育成を行うとともに，社会人のキャリアアップやキャリアチェンジを支援する社会人学び直しプログラムを実施する」として全学的に実行している。
BB3: ＵＲＡ | BO3: URA当たり研究者数 | CA3: 戦略的産学連携経費
BC4: 実務担当者数 | BI4: 2 | BN4: 名 | BO4: =IF(OR(I25="",BI4=""),"",(IFERROR(I25/BI4,""))) -> 350.5 | CB4: 戦略的産学連携経費の設定 | CP4: 有 | CT4: 無 | CZ4: ある | DA4: インキュベーション施設
CB5: 戦略的産学連携経費の費目 | CZ5: ある | DA5: 相談窓口
A6: 基 礎 情 報 | BB6: 各種規程類の整備状況 | CB6: 戦略的産学連携経費の直接経費に対する割合 | CZ6: ある | DA6: 設立ポリシー | DI6: × | DJ6: 産学連携ポリシー
BB7: 産学連携ポリシー | BM7: 職務発明規程（教職員のみ対象） | CZ7: ない | DA7: 支援ファンド | DI7: ◎ | DJ7: 知的財産ポリシー
B8: 大学の得意分野とその具体例 | BB8: 知的財産ポリシー | BM8: 職務発明規程（教職員、学生対象） | CA8: 人件費の企業負担 | DI8: ◎ | DJ8: 共同研究取扱規程
B9: 創設以来の実績がある資源探査，リサイクル技術開発の実績を踏まえ，地球・資源分野の国際的研究，津波や雪害に関する地域防災の研究などを推進している。 | AA9: 科研費 （千円） | AL9: その他政府系研究費 (千円) | AS9: その他補助・助成金等 (千円) | BB9: 共同研究取扱規程 | BM9: 発明補償関係規程（教職員のみ対象） | CB9: 教員人件費の企業負担に関する規程や制度 | CP9: 有 | CT9: 無 | DI9: ◎ | DJ9: 受託研究取扱規程
BB10: 受託研究取扱規程 | BM10: 発明補償関係規程（教職員、学生対象） | CB10: 教員人件費の企業負担の費目 | DI10: ◎ | DJ10: 研究成果有体物取扱規程
AA11: 456950 | AL11: 275269 | AS11: 61606 | BB11: 研究成果有体物取扱規程 | BM11: 守秘義務に係る規程（教職員のみ対象） | CB11: 学生人件費の企業負担に関する規程や制度 | CP11: 有 | CT11: 無 | DI11: × | DJ11: 営業秘密管理に関する規程
BB12: 営業秘密管理に関する規程 | BM12: 守秘義務に係る規程（教職員、学生対象） | CB12: 学生人件費の企業負担の費目 | DI12: × | DJ12: 株式の取扱等規程、ポリシー
AA13: 間接経費割合 | AN13: 株式の保有 | AT13: 新株予約権の保有 | BB13: 株式の取扱等規程、ポリシー | DA13: × | DB13: 株式 | DI13: ◎ | DJ13: 職務発明規程（教職員のみ対象）
AA14: 30％以上 | AN14: 有 | AQ14: 無 | AT14: 有 | AW14: 無 | BD14: ※各種規定類を整備している場合は、赤色で表示されます。 | CA14: 特別試験研究費税額控除制度 | DA14: × | DB14: 新株予約権 | DI14: × | DJ14: 職務発明規程（教職員、学生対象）
CB15: 特別試験研究費税額控除制度の活用 | CP15: 有 | CT15: 無 | DI15: ◎ | DJ15: 発明補償関係規程（教職員のみ対象）
B16: 産学官連携活動において今後重点化したい事項 | AA16: ■共同研究 | AG16: 2019年度 | AO16: 2020年度 | AW16: 順位※ | BB16: クロスアポイントメントの実績（人） | BK16: 大学等 | BN16: 公的機関 | BQ16: 民間企業 | BU16: その他機関 | DI16: × | DJ16: 発明補償関係規程（教職員、学生対象）
B17: 高齢化先進県として，スマート社会，地域包括ケアの確立を目指した産学官医金のオール秋田による体制整備を行うとともに，医療・福祉・看護・介護に関する医理工連携分野において，オープンイノベーションの構築と推進を目標としている。 | AG17: 受入額（千円） | AL17: 件数 | AO17: 受入額（千円） | AT17: 件数 | BH17: 受入 | BK17: 1 | BN17: 0 | BQ17: 1 | BU17: 0 | DB17: 順位 | DI17: ◎ | DJ17: 守秘義務に係る規程（教職員のみ対象）
AA18: 全体 | AG18: 111284 | AL18: 107 | AO18: 127930 | AT18: 103 | AW18: =IF(DB18<50,DB18,"") ->  | AY18: 位 | BH18: 派遣 | BK18: 0 | BN18: 0 | BQ18: 0 | BU18: 0 | DB18: 91 | DI18: × | DJ18: 守秘義務に係る規程（教職員、学生対象）
AB19: 民間企業 のみ | AG19: 96325 | AL19: 97 | AO19: 105891 | AT19: 91 | AW19: =IF(DB19<50,DB19,"") ->  | AY19: 位 | DB19: 91
AC20: 大企業 | AG20: 56358 | AL20: 51 | AO20: 64338 | AT20: 44 | AW20: =IF(DB20<50,DB20,"") ->  | AY20: 位 | BB20: ■組織的産学連携活動の取組事例 | DB20: 100 | DI20: ない | DJ20: 戦略的産学連携経費の設定
AC21: 中小企業 | AG21: 39967 | AL21: 44 | AO21: 37353 | AT21: 43 | AW21: =IF(DB21<50,DB21,"") ->  | AY21: 位 | DB21: 72 | DI21: ない | DJ21: 教員人件費の企業負担に関する規程や制度
AL22: ※順位は2020年度の受入額を比較したもの | DI22: ない | DJ22: 学生人件費の企業負担に関する規程や制度
DB23: 0 | DC23: 26 | DI23: ある | DJ23: 特別試験研究費税額控除制度の活用
DB24: ～100万 | DC24: 18
B25: 研究者数 | I25: 701 | P25: 名 | DB25: ～300万 | DC25: 41
DB26: ～500万 | DC26: 2
DB27: ～1000万 | DC27: 3
DB28: ～5000万 | DC28: 1
DB29: ～1億 | DC29: 0 | DJ29: 共同研究等の企画・提案
B30: 産学連携担当部署 | O30: 実務者当たり研究者数 | DB30: 1億以上 | DC30: 0 | DJ30: 契約書での成果目標、達成時の明記
C31: 実務担当者数 | I31: 13 | N31: 名 | O31: =IF(OR(I25="",I31=""),"",IFERROR($I$25/I31,"")) -> 53.92307692 | DJ31: 共同研究契約の締結/判断（契約権限の集中）
C32: 専門家の配置 | I32: 弁護士 | L32: 弁理士 | O32: 税理士 | R32: 公認会計士 | V32: その他 | DJ32: 共同研究の進捗管理とフィードバック
I33: ※専門家を配置している場合は、赤色で表示されます。 | DJ33: 企業ニーズに適応した技術移転・事業化提案
AA34: ■受託研究 | AG34: 2019年度 | AO34: 2020年度 | AW34: 順位※ | DJ34: 共同研究等の企画・提案
AG35: 受入額（千円） | AL35: 件数 | AO35: 受入額（千円） | AT35: 件数 | DB35: 順位 | DJ35: 契約書での成果目標、達成時の明記
AA36: 全体 | AG36: 315454 | AL36: 128 | AO36: 303544 | AT36: 124 | AW36: =IF(DB36<50,DB36,"") ->  | AY36: 位 | DB36: 92 | DJ36: 共同研究契約の締結/判断（契約権限の集中）
AB37: 民間企業 のみ | AG37: 35026 | AL37: 42 | AO37: 20793 | AT37: 40 | AW37: =IF(DB37<50,DB37,"") ->  | AY37: 位 | DB37: 100 | DJ37: 共同研究の進捗管理とフィードバック
C38: 産学連携本部が関与した共同研究 | P38: 0 | T38: 件 | AC38: 大企業 | AG38: 12871 | AL38: 23 | AO38: 9959 | AT38: 21 | AW38: =IF(DB38<50,DB38,"") ->  | AY38: 位 | DB38: 118 | DJ38: 企業ニーズに適応した技術移転・事業化提案
D39: 内、マッチングを行い、契約締結した件数 | P39: 0 | T39: 件 | AC39: 中小企業 | AG39: 3178 | AL39: 13 | AO39: 5124 | AT39: 12 | AW39: =IF(DB39<50,DB39,"") ->  | AY39: 位 | BB39: ■産学連携活動の主な実用化事例 | DB39: 101 | DJ39: 共同研究等の企画・提案
I40: ※1,000万円以上の共同研究 | AL40: ※順位は2020年度の受入額を比較したもの | DB40: 弁護士 | DG40: 0 | DH40: 23 | DJ40: 契約書での成果目標、達成時の明記
DB41: 弁理士 | DG41: ～100万 | DH41: 7 | DJ41: 共同研究契約の締結/判断（契約権限の集中）
C42: 組織対組織による包括連携契約の締結数 | P42: 0 | T42: 件 | DB42: 税理士 | DG42: ～300万 | DH42: 8 | DJ42: 共同研究の進捗管理とフィードバック
D43: 内、1,000万円以上の実績がある相手方数 | P43: 0 | T43: 件 | DB43: 公認会計士 | DG43: ～500万 | DH43: 2 | DJ43: 企業ニーズに適応した技術移転・事業化提案
DB44: その他 | DG44: ～1000万 | DH44: 0
C45: 寄附講座・寄附研究部門の受入件数 | P45: 2 | V45: 件 | DG45: ～5000万 | DH45: 0
C46: 寄附講座・寄附研究部門の受入金額（千円） | P46: 85000 | DG46: ～1億 | DH46: 0
C47: 共同研究講座・共同研究部門の受入件数 | V47: 件 | DG47: 1億以上 | DH47: 0
C48: 共同研究講座・共同研究部門の受入金額（千円）
C52: 職務発明の帰属 | I52: 大学 | M52: 発明者 | Q52: 未設定 | CZ52: 大学 | DA52: 職務発明
AD53: 特許権実施等件数 | AL53: 24 | AS53: 実施等件数 あたり | DA53: 不実施
M54: 研究者あたり | AD54: 特許権実施等収入（千円） | AL54: 1773 | AS54: =IF(OR(AL53="",AL54=""),"",IFERROR(AL54/AL53,"")) -> 73.875 | CZ54: 1773000 | DA54: 特許等収入
C55: 特許出願件数 | I55: 31 | M55: =IF(OR(I25="",I55=""),"",IFERROR(I55/I25,"")) -> 0.04422253923
C56: 特許保有件数 | I56: 264 | M56: =IF(OR(I25="",I56=""),"",IFERROR(I56/I25,"")) -> 0.3766048502
C61: 大学発ベンチャー数 | J61: 5 | O61: 社
C62: Exit件数（IPO） | O62: 社 | P62: Exit件数（M&A） | Z62: 社
C63: 相談窓口 | K63: 支援ファンド | S63: インキュベーション施設
C64: 有 | G64: 無 | K64: 有 | O64: 無 | S64: 有 | W64: 無
C65: 知的財産戦略方針 | K65: 支援総額（千円） | S65: 部屋数 | W65: 5 | Z65: 件
C66: 有 | G66: 無 | S66: 利用件数 | W66: 0 | Z66: 件
A69: 1 | B69: 2 | C69: 3 | D69: 4 | E69: 5 | F69: 6 | G69: 7 | H69: 8 | I69: 9 | J69: 10 | K69: 11 | L69: 12 | M69: 13 | N69: 14 | O69: 15 | P69: 16 | Q69: 17 | R69: 18 | S69: 19 | T69: 20 | U69: 21 | V69: 22 | W69: 23 | X69: 24 | Y69: 25 | Z69: 26 | AA69: 27 | AB69: 28 | AC69: 29 | AD69: 30 | AE69: 31 | AF69: 32 | AG69: 33 | AH69: 34 | AI69: 35 | AJ69: 36 | AK69: 37 | AL69: 38 | AM69: 39 | AN69: 40 | AO69: 41 | AP69: 42 | AQ69: 43 | AR69: 44 | AS69: 45 | AT69: 46 | AU69: 47 | AV69: 48 | AW69: 49 | AX69: 50 | AY69: 51 | AZ69: 52 | BA69: 53 | BB69: 54 | BC69: 55 | BD69: 56 | BE69: 57 | BF69: 58 | BG69: 59 | BH69: 60 | BI69: 61 | BJ69: 62 | BK69: 63 | BL69: 64 | BM69: 65 | BN69: 66 | BO69: 67 | BP69: 68 | BQ69: 69 | BR69: 70 | BS69: 71 | BT69: 72 | BU69: 73 | BV69: 74 | BW69: 75 | BX69: 76 | BY69: 77 | BZ69: 78 | CA69: 79 | CB69: 80 | CC69: 81 | CD69: 82 | CE69: 83 | CF69: 84 | CG69: 85 | CH69: 86 | CI69: 87 | CJ69: 88 | CK69: 89 | CL69: 90 | CM69: 91 | CN69: 92 | CO69: 93 | CP69: 94 | CQ69: 95 | CR69: 96 | CS69: 97 | CT69: 98 | CU69: 99 | CV69: 100 | CW69: 101 | CX69: 102 | CY69: 103 | CZ69: 104 | DA69: 105 | DB69: 106 | DC69: 107 | DD69: 108 | DE69: 109 | DF69: 110 | DG69: 111 | DH69: 112 | DI69: 113 | DJ69: 114 | DK69: 115 | DL69: 116 | DM69: 117 | DN69: 118 | DO69: 119 | DP69: 120 | DQ69: 121 | DR69: 122 | DS69: 123 | DT69: 124 | DU69: 125
D70: 特許権収入
B71: 東京大学 | C71: 4495 | D71: 261744000
B72: 東北大学 | C72: 3533 | D72: 157139000
B73: 京都大学 | C73: 3044 | D73: 698373000
B74: 大阪大学 | C74: 2854 | D74: 509758000
B75: 東京工業大学 | C75: 1979 | D75: 57301000
B76: 九州大学 | C76: 1530 | D76: 601936000
B77: 名古屋大学 | C77: 1346 | D77: 72156000
B78: 北海道大学 | C78: 1167 | D78: 86700000
B79: 信州大学 | C79: 952 | D79: 29305000
B80: 広島大学 | C80: 921 | D80: 41265000
B81: 筑波大学 | C81: 850 | D81: 42694000
B82: 慶應義塾大学 | C82: 798 | D82: 67998000
B83: 千葉大学 | C83: 769 | D83: 17609000
B84: 岡山大学 | C84: 749 | D84: 8886000
B85: 山口大学 | C85: 700 | D85: 29167000
B86: 早稲田大学 | C86: 698 | D86: 21143000
B87: 名古屋工業大学 | C87: 638 | D87: 12139000
B88: 東京農工大学 | C88: 632 | D88: 44098000
B89: 九州工業大学 | C89: 611 | D89: 10288000
B90: 大阪府立大学 | C90: 573 | D90: 9177000
B91: 東京理科大学 | C91: 528 | D91: 15523000
B92: 神戸大学 | C92: 525 | D92: 78768000
B93: 静岡大学 | C93: 509 | D93: 8145000
B94: 群馬大学 | C94: 483 | D94: 5316000
B95: 熊本大学 | C95: 475 | D95: 29359000
B96: 近畿大学 | C96: 453 | D96: 82359000
B97: 長岡技術科学大学 | C97: 441 | D97: 3921000
B98: 横浜国立大学 | C98: 439 | D98: 5839000
B99: 奈良先端科学技術大学院大学 | C99: 427 | D99: 3542000
B100: 三重大学 | C100: 417 | D100: 10844000
B101: 鹿児島大学 | C101: 416 | D101: 14284000
B102: 大阪市立大学 | C102: 403 | D102: 2791000
B103: 東京都立大学 | C103: 398 | D103: 574000
B104: 山梨大学 | C104: 395 | D104: 5041000
B105: 香川大学 | C105: 389 | D105: 17113000
B106: 東京医科歯科大学 | C106: 377 | D106: 24076000
B107: 豊橋技術科学大学 | C107: 374 | D107: 5526000
B108: 徳島大学 | C108: 362 | D108: 131417000
B109: 電気通信大学 | C109: 355 | D109: 7847000
B110: 関西大学 | C110: 350 | D110: 5154000
B111: 鳥取大学 | C111: 340 | D111: 4814000
B112: 同志社大学 | C112: 337 | D112: 17850000
B113: 金沢大学 | C113: 337 | D113: 13893000
B114: 日本大学 | C114: 333 | D114: 38328000
B115: 山形大学 | C115: 323 | D115: 752000
B116: 北里大学 | C116: 315 | D116: 45190000
B117: 埼玉大学 | C117: 309 | D117: 2765000
B118: 富山大学 | C118: 305 | D118: 35859000
B119: 新潟大学 | C119: 301 | D119: 8943000
B120: 高知大学 | C120: 281 | D120: 26209000
B121: 立命館大学 | C121: 268 | D121: 2098000
B122: 秋田大学 | C122: 264 | D122: 1773000
B123: 神奈川大学 | C123: 263 | D123: 4940000
B124: 岐阜大学 | C124: 246 | D124: 7958000
B125: 弘前大学 | C125: 239 | D125: 10190000
B126: 宮崎大学 | C126: 236 | D126: 2168000
B127: 名城大学 | C127: 232 | D127: 2341000
B128: 兵庫県立大学 | C128: 232 | D128: 1142000
B129: 佐賀大学 | C129: 224 | D129: 4180000
B130: 福井大学 | C130: 221 | D130: 3913000
B131: 札幌医科大学 | C131: 218 | D131: 105462000
B132: 東海大学 | C132: 211 | D132: 5395000
B133: 京都工芸繊維大学 | C133: 201 | D133: 4782000
B134: 岩手大学 | C134: 198 | D134: 2552000
B135: 長崎大学 | C135: 194 | D135: 25364000
B136: 東京女子医科大学 | C136: 186 | D136: 2706000
B137: 横浜市立大学 | C137: 184 | D137: 50242000
B138: 北陸先端科学技術大学院大学 | C138: 175 | D138: 8323000
B139: 東京海洋大学 | C139: 175 | D139: 3222000
B140: 愛媛大学 | C140: 174 | D140: 35291000
B141: 宇都宮大学 | C141: 171 | D141: 2463000
B142: 高知工科大学 | C142: 165 | D142: 326000
B143: 千葉工業大学 | C143: 160 | D143: 0
B144: 茨城大学 | C144: 157 | D144: 2754000
B145: 福岡大学 | C145: 154 | D145: 874000
B146: 沖縄科学技術大学院大学 | C146: 152 | D146: 1100000
B147: 大分大学 | C147: 151 | D147: 1915000
B148: 金沢工業大学 | C148: 150 | D148: 2760000
B149: 中央大学 | C149: 144 | D149: 989000
B150: 浜松医科大学 | C150: 143 | D150: 3875000
B151: 島根大学 | C151: 137 | D151: 1166000
B152: 滋賀医科大学 | C152: 132 | D152: 2306000
B153: 関西学院大学 | C153: 128 | D153: 23880000
B154: 自治医科大学 | C154: 127 | D154: 6757000
B155: 久留米大学 | C155: 127 | D155: 1462000
B156: 上智大学 | C156: 126 | D156: 0
B157: 順天堂大学 | C157: 122 | D157: 3072000
B158: 中部大学 | C158: 118 | D158: 220000
B159: 東京電機大学 | C159: 102 | D159: 1180000
B160: 芝浦工業大学 | C160: 98 | D160: 1615000
B161: 埼玉医科大学 | C161: 96 | D161: 27468000
B162: 豊田工業大学 | C162: 96 | D162: 0
B163: 名古屋市立大学 | C163: 94 | D163: 17822000
B164: 京都府立医科大学 | C164: 94 | D164: 2128000
B165: 北見工業大学 | C165: 92 | D165: 995000
B166: 和歌山大学 | C166: 89 | D166: 4131000
B167: 富山県立大学 | C167: 87 | D167: 1375000
B168: 関東学院大学 | C168: 84 | D168: 14540000
B169: 明治大学 | C169: 81 | D169: 4886000
B170: 琉球大学 | C170: 77 | D170: 1146000
B171: 静岡県立大学 | C171: 72 | D171: 915000
B172: 福島大学 | C172: 67 | D172: 897000
B173: 藤田医科大学 | C173: 62 | D173: 0
B174: 帝京大学 | C174: 60 | D174: 2351000
B175: 兵庫医科大学 | C175: 60 | D175: 332000
B176: 旭川医科大学 | C176: 59 | D176: 1987000
B177: 日本医科大学 | C177: 55 | D177: 58243000
B178: 帯広畜産大学 | C178: 54 | D178: 2966000
B179: 東洋大学 | C179: 54 | D179: 633000
B180: 秋田県立大学 | C180: 52 | D180: 892000
B181: 奈良県立医科大学 | C181: 52 | D181: 743000
B182: 福岡工業大学 | C182: 52 | D182: 0
B183: 立教大学 | C183: 51 | D183: 231000
B184: 室蘭工業大学 | C184: 50 | D184: 0
B185: 昭和大学 | C185: 48 | D185: 4513000
B186: 聖マリアンナ医科大学 | C186: 46 | D186: 3204000
B187: 関西医科大学 | C187: 46 | D187: 781000
B188: 神奈川工科大学 | C188: 46 | D188: 289000
B189: 岡山理科大学 | C189: 45 | D189: 916000
B190: お茶の水女子大学 | C190: 45 | D190: 5000
B191: 広島市立大学 | C191: 44 | D191: 0
B192: 会津大学 | C192: 43 | D192: 33000
B193: 龍谷大学 | C193: 42 | D193: 1289000
B194: 玉川大学 | C194: 41 | D194: 119000
B195: 産業医科大学 | C195: 41 | D195: 7000
B196: 大阪工業大学 | C196: 39 | D196: 0
B197: 東京農業大学 | C197: 36 | D197: 748000
B198: 法政大学 | C198: 36 | D198: 550000
B199: 工学院大学 | C199: 35 | D199: 3516000
B200: 青山学院大学 | C200: 34 | D200: 0
B201: 北九州市立大学 | C201: 32 | D201: 2647000
B202: 東邦大学 | C202: 32 | D202: 23000
B203: 甲南大学 | C203: 31 | D203: 613000
B204: 石川県立大学 | C204: 31 | D204: 531000
B205: 東京都市大学 | C205: 30 | D205: 2371000
B206: 麻布大学 | C206: 28 | D206: 1505000
B207: 長崎県立大学 | C207: 28 | D207: 1001000
B208: 金沢医科大学 | C208: 27 | D208: 933000
B209: 滋賀県立大学 | C209: 27 | D209: 0
... 636 more rows

Sheet 茨城大学 (hidden)
A1: 国立 | C1: 茨城大学 | X1: 大学全体の経営理念における産学官連携活動の取組方針 | CY1: 103 | CZ1: 104 | DA1: 105 | DB1: 106 | DC1: 107 | DD1: 108 | DE1: 109 | DF1: 110 | DG1: 111 | DH1: 112 | DI1: 113 | DJ1: 114 | DK1: 115 | DL1: 116 | DM1: 117 | DN1: 118 | DO1: 119 | DP1: 120 | DQ1: 121 | DR1: 122 | DS1: 123 | DT1: 124 | DU1: 125 | DV1: 126 | DW1: 127 | DX1: 128 | DY1: 129
X2: 「知的財産を活用した社会貢献」を知的財産活動の基本理念とし、学術研究活動の成果である知的財産の創出と活用をとおして社会の持続的な発展に貢献することにより、学術研究活動の更なる活性化を図る。
BB3: ＵＲＡ | BO3: URA当たり研究者数 | CA3: 戦略的産学連携経費
BC4: 実務担当者数 | BI4: 8 | BN4: 名 | BO4: =IF(OR(I25="",BI4=""),"",(IFERROR(I25/BI4,""))) -> 76.875 | CB4: 戦略的産学連携経費の設定 | CP4: 有 | CT4: 無 | CZ4: ない | DA4: インキュベーション施設
CB5: 戦略的産学連携経費の費目 | CZ5: ある | DA5: 相談窓口
A6: 基 礎 情 報 | BB6: 各種規程類の整備状況 | CB6: 戦略的産学連携経費の直接経費に対する割合 | CZ6: ある | DA6: 設立ポリシー | DI6: ◎ | DJ6: 産学連携ポリシー
BB7: 産学連携ポリシー | BM7: 職務発明規程（教職員のみ対象） | CZ7: ない | DA7: 支援ファンド | DI7: ◎ | DJ7: 知的財産ポリシー
B8: 大学の得意分野とその具体例 | BB8: 知的財産ポリシー | BM8: 職務発明規程（教職員、学生対象） | CA8: 人件費の企業負担 | DI8: ◎ | DJ8: 共同研究取扱規程
B9: ・無線・通信・画像処理分野 ・ものづくりが関連する金属加工分野 ・中性子線を用いた材料評価分野 | AA9: 科研費 （千円） | AL9: その他政府系研究費 (千円) | AS9: その他補助・助成金等 (千円) | BB9: 共同研究取扱規程 | BM9: 発明補償関係規程（教職員のみ対象） | CB9: 教員人件費の企業負担に関する規程や制度 | CP9: 有 | CT9: 無 | DI9: ◎ | DJ9: 受託研究取扱規程
BB10: 受託研究取扱規程 | BM10: 発明補償関係規程（教職員、学生対象） | CB10: 教員人件費の企業負担の費目 | DI10: ◎ | DJ10: 研究成果有体物取扱規程
AA11: 501656 | AL11: 13700 | BB11: 研究成果有体物取扱規程 | BM11: 守秘義務に係る規程（教職員のみ対象） | CB11: 学生人件費の企業負担に関する規程や制度 | CP11: 有 | CT11: 無 | DI11: × | DJ11: 営業秘密管理に関する規程
BB12: 営業秘密管理に関する規程 | BM12: 守秘義務に係る規程（教職員、学生対象） | CB12: 学生人件費の企業負担の費目 | CP12: 直接経費 | DI12: △ | DJ12: 株式の取扱等規程、ポリシー
AA13: 間接経費割合 | AN13: 株式の保有 | AT13: 新株予約権の保有 | BB13: 株式の取扱等規程、ポリシー | DB13: 株式 | DI13: × | DJ13: 職務発明規程（教職員のみ対象）
AA14: 20％以上25％未満 | AN14: 有 | AQ14: 無 | AT14: 有 | AW14: 無 | BD14: ※各種規定類を整備している場合は、赤色で表示されます。 | CA14: 特別試験研究費税額控除制度 | DB14: 新株予約権 | DI14: ◎ | DJ14: 職務発明規程（教職員、学生対象）
CB15: 特別試験研究費税額控除制度の活用 | CP15: 有 | CT15: 無 | DI15: × | DJ15: 発明補償関係規程（教職員のみ対象）
B16: 産学官連携活動において今後重点化したい事項 | AA16: ■共同研究 | AG16: 2019年度 | AO16: 2020年度 | AW16: 順位※ | BB16: クロスアポイントメントの実績（人） | BK16: 大学等 | BN16: 公的機関 | BQ16: 民間企業 | BU16: その他機関 | DI16: ◎ | DJ16: 発明補償関係規程（教職員、学生対象）
B17: ・県内に研究・製造の拠点のある企業との連携強化 ・県内の大学及び国研等との連携プロジェクトの推進 ・県内企業や自治体と連携したカーボンニュートラルの達成 | AG17: 受入額（千円） | AL17: 件数 | AO17: 受入額（千円） | AT17: 件数 | BH17: 受入 | BK17: 2 | BN17: 3 | BQ17: 2 | BU17: 0 | DB17: 順位 | DI17: × | DJ17: 守秘義務に係る規程（教職員のみ対象）
AA18: 全体 | AG18: 179245 | AL18: 246 | AO18: 208222 | AT18: 240 | AW18: =IF(DB18<50,DB18,"") ->  | AY18: 位 | BH18: 派遣 | BK18: 0 | BN18: 0 | BQ18: 1 | BU18: 0 | DB18: 67 | DI18: ◎ | DJ18: 守秘義務に係る規程（教職員、学生対象）
AB19: 民間企業 のみ | AG19: 133632 | AL19: 181 | AO19: 156278 | AT19: 180 | AW19: =IF(DB19<50,DB19,"") ->  | AY19: 位 | DB19: 71
AC20: 大企業 | AG20: 111367 | AL20: 111 | AO20: 102591 | AT20: 109 | AW20: =IF(DB20<50,DB20,"") ->  | AY20: 位 | BB20: ■組織的産学連携活動の取組事例 | DB20: 72 | DI20: ない | DJ20: 戦略的産学連携経費の設定
AC21: 中小企業 | AG21: 22265 | AL21: 70 | AO21: 53687 | AT21: 71 | AW21: =IF(DB21<50,DB21,"") ->  | AY21: 位 | DB21: 51 | DI21: ない | DJ21: 教員人件費の企業負担に関する規程や制度
AL22: ※順位は2020年度の受入額を比較したもの | DI22: ある | DJ22: 学生人件費の企業負担に関する規程や制度
DB23: 0 | DC23: 54 | DI23: ある | DJ23: 特別試験研究費税額控除制度の活用
DB24: ～100万 | DC24: 61
B25: 研究者数 | I25: 615 | P25: 名 | DB25: ～300万 | DC25: 53
DB26: ～500万 | DC26: 9
DB27: ～1000万 | DC27: 1
DB28: ～5000万 | DC28: 2
DB29: ～1億 | DJ29: 共同研究等の企画・提案
B30: 産学連携担当部署 | O30: 実務者当たり研究者数 | DB30: 1億以上 | DJ30: 契約書での成果目標、達成時の明記
C31: 実務担当者数 | I31: 17 | N31: 名 | O31: =IF(OR(I25="",I31=""),"",IFERROR($I$25/I31,"")) -> 36.17647059 | DJ31: 共同研究契約の締結/判断（契約権限の集中）
C32: 専門家の配置 | I32: 弁護士 | L32: 弁理士 | O32: 税理士 | R32: 公認会計士 | V32: その他 | DJ32: 共同研究の進捗管理とフィードバック
I33: ※専門家を配置している場合は、赤色で表示されます。 | DJ33: 企業ニーズに適応した技術移転・事業化提案
AA34: ■受託研究 | AG34: 2019年度 | AO34: 2020年度 | AW34: 順位※ | DJ34: 共同研究等の企画・提案
AG35: 受入額（千円） | AL35: 件数 | AO35: 受入額（千円） | AT35: 件数 | DB35: 順位 | DJ35: 契約書での成果目標、達成時の明記
AA36: 全体 | AG36: 490520 | AL36: 54 | AO36: 553138 | AT36: 51 | AW36: =IF(DB36<50,DB36,"") ->  | AY36: 位 | DB36: 65 | DJ36: 共同研究契約の締結/判断（契約権限の集中）
AB37: 民間企業 のみ | AG37: 12169 | AL37: 7 | AO37: 5736 | AT37: 5 | AW37: =IF(DB37<50,DB37,"") ->  | AY37: 位 | DB37: 195 | DJ37: 共同研究の進捗管理とフィードバック
C38: 産学連携本部が関与した共同研究 | P38: 1 | T38: 件 | AC38: 大企業 | AG38: 12029 | AL38: 6 | AO38: 5736 | AT38: 5 | AW38: =IF(DB38<50,DB38,"") ->  | AY38: 位 | DB38: 160 | DJ38: 企業ニーズに適応した技術移転・事業化提案
D39: 内、マッチングを行い、契約締結した件数 | P39: 1 | T39: 件 | AC39: 中小企業 | AG39: 140 | AL39: 1 | AO39: 0 | AW39: =IF(DB39<50,DB39,"") ->  | AY39: 位 | BB39: ■産学連携活動の主な実用化事例 | DB39: 316 | DJ39: 共同研究等の企画・提案
I40: ※1,000万円以上の共同研究 | AL40: ※順位は2020年度の受入額を比較したもの | DB40: 弁護士 | DG40: 0 | DJ40: 契約書での成果目標、達成時の明記
DB41: 弁理士 | DG41: ～100万 | DH41: 2 | DJ41: 共同研究契約の締結/判断（契約権限の集中）
C42: 組織対組織による包括連携契約の締結数 | P42: 2 | T42: 件 | DB42: 税理士 | DG42: ～300万 | DH42: 3 | DJ42: 共同研究の進捗管理とフィードバック
D43: 内、1,000万円以上の実績がある相手方数 | P43: 0 | T43: 件 | DB43: 公認会計士 | DG43: ～500万 | DJ43: 企業ニーズに適応した技術移転・事業化提案
DA44: ○ | DB44: その他 | DG44: ～1000万
C45: 寄附講座・寄附研究部門の受入件数 | V45: 件 | DG45: ～5000万
C46: 寄附講座・寄附研究部門の受入金額（千円） | DG46: ～1億
C47: 共同研究講座・共同研究部門の受入件数 | P47: 0 | V47: 件 | DG47: 1億以上
C48: 共同研究講座・共同研究部門の受入金額（千円） | P48: 0
C52: 職務発明の帰属 | I52: 大学 | M52: 発明者 | Q52: 未設定 | CZ52: 大学 | DA52: 職務発明
AD53: 特許権実施等件数 | AL53: 15 | AS53: 実施等件数 あたり | DA53: 不実施
M54: 研究者あたり | AD54: 特許権実施等収入（千円） | AL54: 2754 | AS54: =IF(OR(AL53="",AL54=""),"",IFERROR(AL54/AL53,"")) -> 183.6 | CZ54: 2754000 | DA54: 特許等収入
C55: 特許出願件数 | I55: 26 | M55: =IF(OR(I25="",I55=""),"",IFERROR(I55/I25,"")) -> 0.04227642276
C56: 特許保有件数 | I56: 157 | M56: =IF(OR(I25="",I56=""),"",IFERROR(I56/I25,"")) -> 0.2552845528
C61: 大学発ベンチャー数 | J61: 9 | O61: 社
C62: Exit件数（IPO） | J62: 0 | O62: 社 | P62: Exit件数（M&A） | W62: 0 | Z62: 社
C63: 相談窓口 | K63: 支援ファンド | S63: インキュベーション施設
C64: 有 | G64: 無 | K64: 有 | O64: 無 | S64: 有 | W64: 無
C65: 知的財産戦略方針 | K65: 支援総額（千円） | S65: 部屋数 | Z65: 件
C66: 有 | G66: 無 | S66: 利用件数 | Z66: 件
A69: 1 | B69: 2 | C69: 3 | D69: 4 | E69: 5 | F69: 6 | G69: 7 | H69: 8 | I69: 9 | J69: 10 | K69: 11 | L69: 12 | M69: 13 | N69: 14 | O69: 15 | P69: 16 | Q69: 17 | R69: 18 | S69: 19 | T69: 20 | U69: 21 | V69: 22 | W69: 23 | X69: 24 | Y69: 25 | Z69: 26 | AA69: 27 | AB69: 28 | AC69: 29 | AD69: 30 | AE69: 31 | AF69: 32 | AG69: 33 | AH69: 34 | AI69: 35 | AJ69: 36 | AK69: 37 | AL69: 38 | AM69: 39 | AN69: 40 | AO69: 41 | AP69: 42 | AQ69: 43 | AR69: 44 | AS69: 45 | AT69: 46 | AU69: 47 | AV69: 48 | AW69: 49 | AX69: 50 | AY69: 51 | AZ69: 52 | BA69: 53 | BB69: 54 | BC69: 55 | BD69: 56 | BE69: 57 | BF69: 58 | BG69: 59 | BH69: 60 | BI69: 61 | BJ69: 62 | BK69: 63 | BL69: 64 | BM69: 65 | BN69: 66 | BO69: 67 | BP69: 68 | BQ69: 69 | BR69: 70 | BS69: 71 | BT69: 72 | BU69: 73 | BV69: 74 | BW69: 75 | BX69: 76 | BY69: 77 | BZ69: 78 | CA69: 79 | CB69: 80 | CC69: 81 | CD69: 82 | CE69: 83 | CF69: 84 | CG69: 85 | CH69: 86 | CI69: 87 | CJ69: 88 | CK69: 89 | CL69: 90 | CM69: 91 | CN69: 92 | CO69: 93 | CP69: 94 | CQ69: 95 | CR69: 96 | CS69: 97 | CT69: 98 | CU69: 99 | CV69: 100 | CW69: 101 | CX69: 102 | CY69: 103 | CZ69: 104 | DA69: 105 | DB69: 106 | DC69: 107 | DD69: 108 | DE69: 109 | DF69: 110 | DG69: 111 | DH69: 112 | DI69: 113 | DJ69: 114 | DK69: 115 | DL69: 116 | DM69: 117 | DN69: 118 | DO69: 119 | DP69: 120 | DQ69: 121 | DR69: 122 | DS69: 123 | DT69: 124 | DU69: 125
D70: 特許権収入
B71: 東京大学 | C71: 4495 | D71: 261744000
B72: 東北大学 | C72: 3533 | D72: 157139000
B73: 京都大学 | C73: 3044 | D73: 698373000
B74: 大阪大学 | C74: 2854 | D74: 509758000
B75: 東京工業大学 | C75: 1979 | D75: 57301000
B76: 九州大学 | C76: 1530 | D76: 601936000
B77: 名古屋大学 | C77: 1346 | D77: 72156000
B78: 北海道大学 | C78: 1167 | D78: 86700000
B79: 信州大学 | C79: 952 | D79: 29305000
B80: 広島大学 | C80: 921 | D80: 41265000
B81: 筑波大学 | C81: 850 | D81: 42694000
B82: 慶應義塾大学 | C82: 798 | D82: 67998000
B83: 千葉大学 | C83: 769 | D83: 17609000
B84: 岡山大学 | C84: 749 | D84: 8886000
B85: 山口大学 | C85: 700 | D85: 29167000
B86: 早稲田大学 | C86: 698 | D86: 21143000
B87: 名古屋工業大学 | C87: 638 | D87: 12139000
B88: 東京農工大学 | C88: 632 | D88: 44098000
B89: 九州工業大学 | C89: 611 | D89: 10288000
B90: 大阪府立大学 | C90: 573 | D90: 9177000
B91: 東京理科大学 | C91: 528 | D91: 15523000
B92: 神戸大学 | C92: 525 | D92: 78768000
B93: 静岡大学 | C93: 509 | D93: 8145000
B94: 群馬大学 | C94: 483 | D94: 5316000
B95: 熊本大学 | C95: 475 | D95: 29359000
B96: 近畿大学 | C96: 453 | D96: 82359000
B97: 長岡技術科学大学 | C97: 441 | D97: 3921000
B98: 横浜国立大学 | C98: 439 | D98: 5839000
B99: 奈良先端科学技術大学院大学 | C99: 427 | D99: 3542000
B100: 三重大学 | C100: 417 | D100: 10844000
B101: 鹿児島大学 | C101: 416 | D101: 14284000
B102: 大阪市立大学 | C102: 403 | D102: 2791000
B103: 東京都立大学 | C103: 398 | D103: 574000
B104: 山梨大学 | C104: 395 | D104: 5041000
B105: 香川大学 | C105: 389 | D105: 17113000
B106: 東京医科歯科大学 | C106: 377 | D106: 24076000
B107: 豊橋技術科学大学 | C107: 374 | D107: 5526000
B108: 徳島大学 | C108: 362 | D108: 131417000
B109: 電気通信大学 | C109: 355 | D109: 7847000
B110: 関西大学 | C110: 350 | D110: 5154000
B111: 鳥取大学 | C111: 340 | D111: 4814000
B112: 同志社大学 | C112: 337 | D112: 17850000
B113: 金沢大学 | C113: 337 | D113: 13893000
B114: 日本大学 | C114: 333 | D114: 38328000
B115: 山形大学 | C115: 323 | D115: 752000
B116: 北里大学 | C116: 315 | D116: 45190000
B117: 埼玉大学 | C117: 309 | D117: 2765000
B118: 富山大学 | C118: 305 | D118: 35859000
B119: 新潟大学 | C119: 301 | D119: 8943000
B120: 高知大学 | C120: 281 | D120: 26209000
B121: 立命館大学 | C121: 268 | D121: 2098000
B122: 秋田大学 | C122: 264 | D122: 1773000
B123: 神奈川大学 | C123: 263 | D123: 4940000
B124: 岐阜大学 | C124: 246 | D124: 7958000
B125: 弘前大学 | C125: 239 | D125: 10190000
B126: 宮崎大学 | C126: 236 | D126: 2168000
B127: 名城大学 | C127: 232 | D127: 2341000
B128: 兵庫県立大学 | C128: 232 | D128: 1142000
B129: 佐賀大学 | C129: 224 | D129: 4180000
B130: 福井大学 | C130: 221 | D130: 3913000
B131: 札幌医科大学 | C131: 218 | D131: 105462000
B132: 東海大学 | C132: 211 | D132: 5395000
B133: 京都工芸繊維大学 | C133: 201 | D133: 4782000
B134: 岩手大学 | C134: 198 | D134: 2552000
B135: 長崎大学 | C135: 194 | D135: 25364000
B136: 東京女子医科大学 | C136: 186 | D136: 2706000
B137: 横浜市立大学 | C137: 184 | D137: 50242000
B138: 北陸先端科学技術大学院大学 | C138: 175 | D138: 8323000
B139: 東京海洋大学 | C139: 175 | D139: 3222000
B140: 愛媛大学 | C140: 174 | D140: 35291000
B141: 宇都宮大学 | C141: 171 | D141: 2463000
B142: 高知工科大学 | C142: 165 | D142: 326000
B143: 千葉工業大学 | C143: 160 | D143: 0
B144: 茨城大学 | C144: 157 | D144: 2754000
B145: 福岡大学 | C145: 154 | D145: 874000
B146: 沖縄科学技術大学院大学 | C146: 152 | D146: 1100000
B147: 大分大学 | C147: 151 | D147: 1915000
B148: 金沢工業大学 | C148: 150 | D148: 2760000
B149: 中央大学 | C149: 144 | D149: 989000
B150: 浜松医科大学 | C150: 143 | D150: 3875000
B151: 島根大学 | C151: 137 | D151: 1166000
B152: 滋賀医科大学 | C152: 132 | D152: 2306000
B153: 関西学院大学 | C153: 128 | D153: 23880000
B154: 自治医科大学 | C154: 127 | D154: 6757000
B155: 久留米大学 | C155: 127 | D155: 1462000
B156: 上智大学 | C156: 126 | D156: 0
B157: 順天堂大学 | C157: 122 | D157: 3072000
B158: 中部大学 | C158: 118 | D158: 220000
B159: 東京電機大学 | C159: 102 | D159: 1180000
B160: 芝浦工業大学 | C160: 98 | D160: 1615000
B161: 埼玉医科大学 | C161: 96 | D161: 27468000
B162: 豊田工業大学 | C162: 96 | D162: 0
B163: 名古屋市立大学 | C163: 94 | D163: 17822000
B164: 京都府立医科大学 | C164: 94 | D164: 2128000
B165: 北見工業大学 | C165: 92 | D165: 995000
B166: 和歌山大学 | C166: 89 | D166: 4131000
B167: 富山県立大学 | C167: 87 | D167: 1375000
B168: 関東学院大学 | C168: 84 | D168: 14540000
B169: 明治大学 | C169: 81 | D169: 4886000
B170: 琉球大学 | C170: 77 | D170: 1146000
B171: 静岡県立大学 | C171: 72 | D171: 915000
B172: 福島大学 | C172: 67 | D172: 897000
B173: 藤田医科大学 | C173: 62 | D173: 0
B174: 帝京大学 | C174: 60 | D174: 2351000
B175: 兵庫医科大学 | C175: 60 | D175: 332000
B176: 旭川医科大学 | C176: 59 | D176: 1987000
B177: 日本医科大学 | C177: 55 | D177: 58243000
B178: 帯広畜産大学 | C178: 54 | D178: 2966000
B179: 東洋大学 | C179: 54 | D179: 633000
B180: 秋田県立大学 | C180: 52 | D180: 892000
B181: 奈良県立医科大学 | C181: 52 | D181: 743000
B182: 福岡工業大学 | C182: 52 | D182: 0
B183: 立教大学 | C183: 51 | D183: 231000
B184: 室蘭工業大学 | C184: 50 | D184: 0
B185: 昭和大学 | C185: 48 | D185: 4513000
B186: 聖マリアンナ医科大学 | C186: 46 | D186: 3204000
B187: 関西医科大学 | C187: 46 | D187: 781000
B188: 神奈川工科大学 | C188: 46 | D188: 289000
B189: 岡山理科大学 | C189: 45 | D189: 916000
B190: お茶の水女子大学 | C190: 45 | D190: 5000
B191: 広島市立大学 | C191: 44 | D191: 0
B192: 会津大学 | C192: 43 | D192: 33000
B193: 龍谷大学 | C193: 42 | D193: 1289000
B194: 玉川大学 | C194: 41 | D194: 119000
B195: 産業医科大学 | C195: 41 | D195: 7000
B196: 大阪工業大学 | C196: 39 | D196: 0
B197: 東京農業大学 | C197: 36 | D197: 748000
B198: 法政大学 | C198: 36 | D198: 550000
B199: 工学院大学 | C199: 35 | D199: 3516000
B200: 青山学院大学 | C200: 34 | D200: 0
B201: 北九州市立大学 | C201: 32 | D201: 2647000
B202: 東邦大学 | C202: 32 | D202: 23000
B203: 甲南大学 | C203: 31 | D203: 613000
B204: 石川県立大学 | C204: 31 | D204: 531000
B205: 東京都市大学 | C205: 30 | D205: 2371000
B206: 麻布大学 | C206: 28 | D206: 1505000
B207: 長崎県立大学 | C207: 28 | D207: 1001000
B208: 金沢医科大学 | C208: 27 | D208: 933000
B209: 滋賀県立大学 | C209: 27 | D209: 0
... 636 more rows

Sheet 筑波大学 (hidden)
A1: 国立 | C1: 筑波大学 | X1: 大学全体の経営理念における産学官連携活動の取組方針 | CY1: 103 | CZ1: 104 | DA1: 105 | DB1: 106 | DC1: 107 | DD1: 108 | DE1: 109 | DF1: 110 | DG1: 111 | DH1: 112 | DI1: 113 | DJ1: 114 | DK1: 115 | DL1: 116 | DM1: 117 | DN1: 118 | DO1: 119 | DP1: 120 | DQ1: 121 | DR1: 122 | DS1: 123 | DT1: 124 | DU1: 125 | DV1: 126 | DW1: 127 | DX1: 128 | DY1: 129
X2: 大学経営に資する産学官連携の強化
BB3: ＵＲＡ | BO3: URA当たり研究者数 | CA3: 戦略的産学連携経費
BC4: 実務担当者数 | BI4: 46 | BN4: 名 | BO4: =IF(OR(I25="",BI4=""),"",(IFERROR(I25/BI4,""))) -> 54.43478261 | CB4: 戦略的産学連携経費の設定 | CP4: 有 | CT4: 無 | CZ4: ある | DA4: インキュベーション施設
CB5: 戦略的産学連携経費の費目 | CP5: 間接経費 | CZ5: ある | DA5: 相談窓口
A6: 基 礎 情 報 | BB6: 各種規程類の整備状況 | CB6: 戦略的産学連携経費の直接経費に対する割合 | CP6: 20％以上25％未満 | CZ6: ある | DA6: 設立ポリシー | DI6: ◎ | DJ6: 産学連携ポリシー
BB7: 産学連携ポリシー | BM7: 職務発明規程（教職員のみ対象） | CZ7: ない | DA7: 支援ファンド | DI7: ◎ | DJ7: 知的財産ポリシー
B8: 大学の得意分野とその具体例 | BB8: 知的財産ポリシー | BM8: 職務発明規程（教職員、学生対象） | CA8: 人件費の企業負担 | DI8: ◎ | DJ8: 共同研究取扱規程
B9: (1)系（研究領域）の垣根がない学際性を活かした産学官融合拠点（11の開発研究センター） (2)アントレプレナー教育からスタートアップ起業までの一貫したベンチャー創出支援プログラム | AA9: 科研費 （千円） | AL9: その他政府系研究費 (千円) | AS9: その他補助・助成金等 (千円) | BB9: 共同研究取扱規程 | BM9: 発明補償関係規程（教職員のみ対象） | CB9: 教員人件費の企業負担に関する規程や制度 | CP9: 有 | CT9: 無 | DI9: ◎ | DJ9: 受託研究取扱規程
BB10: 受託研究取扱規程 | BM10: 発明補償関係規程（教職員、学生対象） | CB10: 教員人件費の企業負担の費目 | DI10: ◎ | DJ10: 研究成果有体物取扱規程
AA11: 4545539 | AL11: 659142 | AS11: 512400 | BB11: 研究成果有体物取扱規程 | BM11: 守秘義務に係る規程（教職員のみ対象） | CB11: 学生人件費の企業負担に関する規程や制度 | CP11: 有 | CT11: 無 | DI11: ◎ | DJ11: 営業秘密管理に関する規程
BB12: 営業秘密管理に関する規程 | BM12: 守秘義務に係る規程（教職員、学生対象） | CB12: 学生人件費の企業負担の費目 | DI12: ◎ | DJ12: 株式の取扱等規程、ポリシー
AA13: 間接経費割合 | AN13: 株式の保有 | AT13: 新株予約権の保有 | BB13: 株式の取扱等規程、ポリシー | DA13: × | DB13: 株式 | DI13: × | DJ13: 職務発明規程（教職員のみ対象）
AA14: 20％以上25％未満 | AN14: 有 | AQ14: 無 | AT14: 有 | AW14: 無 | BD14: ※各種規定類を整備している場合は、赤色で表示されます。 | CA14: 特別試験研究費税額控除制度 | DA14: ○ | DB14: 新株予約権 | DI14: ◎ | DJ14: 職務発明規程（教職員、学生対象）
CB15: 特別試験研究費税額控除制度の活用 | CP15: 有 | CT15: 無 | DI15: × | DJ15: 発明補償関係規程（教職員のみ対象）
B16: 産学官連携活動において今後重点化したい事項 | AA16: ■共同研究 | AG16: 2019年度 | AO16: 2020年度 | AW16: 順位※ | BB16: クロスアポイントメントの実績（人） | BK16: 大学等 | BN16: 公的機関 | BQ16: 民間企業 | BU16: その他機関 | DI16: ◎ | DJ16: 発明補償関係規程（教職員、学生対象）
B17: (1)ベンチャー創業、成長、国際化の支援の強化とベンチャーからの資金、人財を大学に循環するベンチャーエコシステムの形成 (2)組織対組織の連携、オープンイノベーションによる大型共同研究の拡大 | AG17: 受入額（千円） | AL17: 件数 | AO17: 受入額（千円） | AT17: 件数 | BH17: 受入 | BK17: 10 | BN17: 2 | BQ17: 1 | BU17: 15 | DB17: 順位 | DI17: × | DJ17: 守秘義務に係る規程（教職員のみ対象）
AA18: 全体 | AG18: 2069582 | AL18: 516 | AO18: 2009060 | AT18: 584 | AW18: =IF(DB18<50,DB18,"") -> 10 | AY18: 位 | BH18: 派遣 | BK18: 3 | BN18: 0 | BQ18: 2 | BU18: 6 | DB18: 10 | DI18: ◎ | DJ18: 守秘義務に係る規程（教職員、学生対象）
AB19: 民間企業 のみ | AG19: 1707730 | AL19: 426 | AO19: 1497232 | AT19: 446 | AW19: =IF(DB19<50,DB19,"") -> 10 | AY19: 位 | DB19: 10
AC20: 大企業 | AG20: 1218441 | AL20: 286 | AO20: 1134339 | AT20: 315 | AW20: =IF(DB20<50,DB20,"") -> 10 | AY20: 位 | BB20: ■組織的産学連携活動の取組事例 | DB20: 10 | DI20: ある | DJ20: 戦略的産学連携経費の設定
AC21: 中小企業 | AG21: 489289 | AL21: 140 | AO21: 362893 | AT21: 131 | AW21: =IF(DB21<50,DB21,"") -> 8 | AY21: 位 | DB21: 8 | DI21: ない | DJ21: 教員人件費の企業負担に関する規程や制度
AL22: ※順位は2020年度の受入額を比較したもの | DI22: ない | DJ22: 学生人件費の企業負担に関する規程や制度
DB23: 0 | DC23: 108 | DI23: ある | DJ23: 特別試験研究費税額控除制度の活用
DB24: ～100万 | DC24: 97
B25: 研究者数 | I25: 2504 | P25: 名 | DB25: ～300万 | DC25: 156
DB26: ～500万 | DC26: 39
DB27: ～1000万 | DC27: 21
DB28: ～5000万 | DC28: 21
DB29: ～1億 | DC29: 3 | DJ29: 共同研究等の企画・提案
B30: 産学連携担当部署 | O30: 実務者当たり研究者数 | DB30: 1億以上 | DC30: 1 | DJ30: 契約書での成果目標、達成時の明記
C31: 実務担当者数 | I31: 59 | N31: 名 | O31: =IF(OR(I25="",I31=""),"",IFERROR($I$25/I31,"")) -> 42.44067797 | DJ31: 共同研究契約の締結/判断（契約権限の集中）
C32: 専門家の配置 | I32: 弁護士 | L32: 弁理士 | O32: 税理士 | R32: 公認会計士 | V32: その他 | DJ32: 共同研究の進捗管理とフィードバック
I33: ※専門家を配置している場合は、赤色で表示されます。 | DJ33: 企業ニーズに適応した技術移転・事業化提案
AA34: ■受託研究 | AG34: 2019年度 | AO34: 2020年度 | AW34: 順位※ | DJ34: 共同研究等の企画・提案
AG35: 受入額（千円） | AL35: 件数 | AO35: 受入額（千円） | AT35: 件数 | DB35: 順位 | DJ35: 契約書での成果目標、達成時の明記
AA36: 全体 | AG36: 4275567 | AL36: 415 | AO36: 5059708 | AT36: 387 | AW36: =IF(DB36<50,DB36,"") -> 10 | AY36: 位 | DB36: 10 | DJ36: 共同研究契約の締結/判断（契約権限の集中）
AB37: 民間企業 のみ | AG37: 123196 | AL37: 46 | AO37: 203232 | AT37: 42 | AW37: =IF(DB37<50,DB37,"") -> 18 | AY37: 位 | DB37: 18 | DJ37: 共同研究の進捗管理とフィードバック
C38: 産学連携本部が関与した共同研究 | P38: 11 | T38: 件 | AC38: 大企業 | AG38: 93598 | AL38: 34 | AO38: 48578 | AT38: 31 | AW38: =IF(DB38<50,DB38,"") -> 35 | AY38: 位 | DB38: 35 | DJ38: 企業ニーズに適応した技術移転・事業化提案
D39: 内、マッチングを行い、契約締結した件数 | P39: 1 | T39: 件 | AC39: 中小企業 | AG39: 29598 | AL39: 12 | AO39: 137439 | AT39: 10 | AW39: =IF(DB39<50,DB39,"") -> 4 | AY39: 位 | BB39: ■産学連携活動の主な実用化事例 | DB39: 4 | DJ39: 共同研究等の企画・提案
I40: ※1,000万円以上の共同研究 | AL40: ※順位は2020年度の受入額を比較したもの | DB40: 弁護士 | DG40: 0 | DH40: 9 | DJ40: 契約書での成果目標、達成時の明記
DA41: ○ | DB41: 弁理士 | DG41: ～100万 | DH41: 12 | DJ41: 共同研究契約の締結/判断（契約権限の集中）
C42: 組織対組織による包括連携契約の締結数 | P42: 0 | T42: 件 | DB42: 税理士 | DG42: ～300万 | DH42: 10 | DJ42: 共同研究の進捗管理とフィードバック
D43: 内、1,000万円以上の実績がある相手方数 | P43: 0 | T43: 件 | DB43: 公認会計士 | DG43: ～500万 | DH43: 5 | DJ43: 企業ニーズに適応した技術移転・事業化提案
DB44: その他 | DG44: ～1000万 | DH44: 2
C45: 寄附講座・寄附研究部門の受入件数 | P45: 25 | V45: 件 | DG45: ～5000万 | DH45: 3
C46: 寄附講座・寄附研究部門の受入金額（千円） | P46: 1393520 | DG46: ～1億 | DH46: 0
C47: 共同研究講座・共同研究部門の受入件数 | V47: 件 | DG47: 1億以上 | DH47: 1
C48: 共同研究講座・共同研究部門の受入金額（千円）
C52: 職務発明の帰属 | I52: 大学 | M52: 発明者 | Q52: 未設定 | CZ52: 発明者 | DA52: 職務発明
AD53: 特許権実施等件数 | AL53: 412 | AS53: 実施等件数 あたり | DA53: 不実施
M54: 研究者あたり | AD54: 特許権実施等収入（千円） | AL54: 42694 | AS54: =IF(OR(AL53="",AL54=""),"",IFERROR(AL54/AL53,"")) -> 103.6262136 | CZ54: 42694000 | DA54: 特許等収入
C55: 特許出願件数 | I55: 97 | M55: =IF(OR(I25="",I55=""),"",IFERROR(I55/I25,"")) -> 0.03873801917
C56: 特許保有件数 | I56: 850 | M56: =IF(OR(I25="",I56=""),"",IFERROR(I56/I25,"")) -> 0.339456869
C61: 大学発ベンチャー数 | J61: 146 | O61: 社
C62: Exit件数（IPO） | J62: 3 | O62: 社 | P62: Exit件数（M&A） | W62: 0 | Z62: 社
C63: 相談窓口 | K63: 支援ファンド | S63: インキュベーション施設
C64: 有 | G64: 無 | K64: 有 | O64: 無 | S64: 有 | W64: 無
C65: 知的財産戦略方針 | K65: 支援総額（千円） | S65: 部屋数 | W65: 29 | Z65: 件
C66: 有 | G66: 無 | S66: 利用件数 | W66: 27 | Z66: 件
A69: 1 | B69: 2 | C69: 3 | D69: 4 | E69: 5 | F69: 6 | G69: 7 | H69: 8 | I69: 9 | J69: 10 | K69: 11 | L69: 12 | M69: 13 | N69: 14 | O69: 15 | P69: 16 | Q69: 17 | R69: 18 | S69: 19 | T69: 20 | U69: 21 | V69: 22 | W69: 23 | X69: 24 | Y69: 25 | Z69: 26 | AA69: 27 | AB69: 28 | AC69: 29 | AD69: 30 | AE69: 31 | AF69: 32 | AG69: 33 | AH69: 34 | AI69: 35 | AJ69: 36 | AK69: 37 | AL69: 38 | AM69: 39 | AN69: 40 | AO69: 41 | AP69: 42 | AQ69: 43 | AR69: 44 | AS69: 45 | AT69: 46 | AU69: 47 | AV69: 48 | AW69: 49 | AX69: 50 | AY69: 51 | AZ69: 52 | BA69: 53 | BB69: 54 | BC69: 55 | BD69: 56 | BE69: 57 | BF69: 58 | BG69: 59 | BH69: 60 | BI69: 61 | BJ69: 62 | BK69: 63 | BL69: 64 | BM69: 65 | BN69: 66 | BO69: 67 | BP69: 68 | BQ69: 69 | BR69: 70 | BS69: 71 | BT69: 72 | BU69: 73 | BV69: 74 | BW69: 75 | BX69: 76 | BY69: 77 | BZ69: 78 | CA69: 79 | CB69: 80 | CC69: 81 | CD69: 82 | CE69: 83 | CF69: 84 | CG69: 85 | CH69: 86 | CI69: 87 | CJ69: 88 | CK69: 89 | CL69: 90 | CM69: 91 | CN69: 92 | CO69: 93 | CP69: 94 | CQ69: 95 | CR69: 96 | CS69: 97 | CT69: 98 | CU69: 99 | CV69: 100 | CW69: 101 | CX69: 102 | CY69: 103 | CZ69: 104 | DA69: 105 | DB69: 106 | DC69: 107 | DD69: 108 | DE69: 109 | DF69: 110 | DG69: 111 | DH69: 112 | DI69: 113 | DJ69: 114 | DK69: 115 | DL69: 116 | DM69: 117 | DN69: 118 | DO69: 119 | DP69: 120 | DQ69: 121 | DR69: 122 | DS69: 123 | DT69: 124 | DU69: 125
D70: 特許権収入
B71: 東京大学 | C71: 4495 | D71: 261744000
B72: 東北大学 | C72: 3533 | D72: 157139000
B73: 京都大学 | C73: 3044 | D73: 698373000
B74: 大阪大学 | C74: 2854 | D74: 509758000
B75: 東京工業大学 | C75: 1979 | D75: 57301000
B76: 九州大学 | C76: 1530 | D76: 601936000
B77: 名古屋大学 | C77: 1346 | D77: 72156000
B78: 北海道大学 | C78: 1167 | D78: 86700000
B79: 信州大学 | C79: 952 | D79: 29305000
B80: 広島大学 | C80: 921 | D80: 41265000
B81: 筑波大学 | C81: 850 | D81: 42694000
B82: 慶應義塾大学 | C82: 798 | D82: 67998000
B83: 千葉大学 | C83: 769 | D83: 17609000
B84: 岡山大学 | C84: 749 | D84: 8886000
B85: 山口大学 | C85: 700 | D85: 29167000
B86: 早稲田大学 | C86: 698 | D86: 21143000
B87: 名古屋工業大学 | C87: 638 | D87: 12139000
B88: 東京農工大学 | C88: 632 | D88: 44098000
B89: 九州工業大学 | C89: 611 | D89: 10288000
B90: 大阪府立大学 | C90: 573 | D90: 9177000
B91: 東京理科大学 | C91: 528 | D91: 15523000
B92: 神戸大学 | C92: 525 | D92: 78768000
B93: 静岡大学 | C93: 509 | D93: 8145000
B94: 群馬大学 | C94: 483 | D94: 5316000
B95: 熊本大学 | C95: 475 | D95: 29359000
B96: 近畿大学 | C96: 453 | D96: 82359000
B97: 長岡技術科学大学 | C97: 441 | D97: 3921000
B98: 横浜国立大学 | C98: 439 | D98: 5839000
B99: 奈良先端科学技術大学院大学 | C99: 427 | D99: 3542000
B100: 三重大学 | C100: 417 | D100: 10844000
B101: 鹿児島大学 | C101: 416 | D101: 14284000
B102: 大阪市立大学 | C102: 403 | D102: 2791000
B103: 東京都立大学 | C103: 398 | D103: 574000
B104: 山梨大学 | C104: 395 | D104: 5041000
B105: 香川大学 | C105: 389 | D105: 17113000
B106: 東京医科歯科大学 | C106: 377 | D106: 24076000
B107: 豊橋技術科学大学 | C107: 374 | D107: 5526000
B108: 徳島大学 | C108: 362 | D108: 131417000
B109: 電気通信大学 | C109: 355 | D109: 7847000
B110: 関西大学 | C110: 350 | D110: 5154000
B111: 鳥取大学 | C111: 340 | D111: 4814000
B112: 同志社大学 | C112: 337 | D112: 17850000
B113: 金沢大学 | C113: 337 | D113: 13893000
B114: 日本大学 | C114: 333 | D114: 38328000
B115: 山形大学 | C115: 323 | D115: 752000
B116: 北里大学 | C116: 315 | D116: 45190000
B117: 埼玉大学 | C117: 309 | D117: 2765000
B118: 富山大学 | C118: 305 | D118: 35859000
B119: 新潟大学 | C119: 301 | D119: 8943000
B120: 高知大学 | C120: 281 | D120: 26209000
B121: 立命館大学 | C121: 268 | D121: 2098000
B122: 秋田大学 | C122: 264 | D122: 1773000
B123: 神奈川大学 | C123: 263 | D123: 4940000
B124: 岐阜大学 | C124: 246 | D124: 7958000
B125: 弘前大学 | C125: 239 | D125: 10190000
B126: 宮崎大学 | C126: 236 | D126: 2168000
B127: 名城大学 | C127: 232 | D127: 2341000
B128: 兵庫県立大学 | C128: 232 | D128: 1142000
B129: 佐賀大学 | C129: 224 | D129: 4180000
B130: 福井大学 | C130: 221 | D130: 3913000
B131: 札幌医科大学 | C131: 218 | D131: 105462000
B132: 東海大学 | C132: 211 | D132: 5395000
B133: 京都工芸繊維大学 | C133: 201 | D133: 4782000
B134: 岩手大学 | C134: 198 | D134: 2552000
B135: 長崎大学 | C135: 194 | D135: 25364000
B136: 東京女子医科大学 | C136: 186 | D136: 2706000
B137: 横浜市立大学 | C137: 184 | D137: 50242000
B138: 北陸先端科学技術大学院大学 | C138: 175 | D138: 8323000
B139: 東京海洋大学 | C139: 175 | D139: 3222000
B140: 愛媛大学 | C140: 174 | D140: 35291000
B141: 宇都宮大学 | C141: 171 | D141: 2463000
B142: 高知工科大学 | C142: 165 | D142: 326000
B143: 千葉工業大学 | C143: 160 | D143: 0
B144: 茨城大学 | C144: 157 | D144: 2754000
B145: 福岡大学 | C145: 154 | D145: 874000
B146: 沖縄科学技術大学院大学 | C146: 152 | D146: 1100000
B147: 大分大学 | C147: 151 | D147: 1915000
B148: 金沢工業大学 | C148: 150 | D148: 2760000
B149: 中央大学 | C149: 144 | D149: 989000
B150: 浜松医科大学 | C150: 143 | D150: 3875000
B151: 島根大学 | C151: 137 | D151: 1166000
B152: 滋賀医科大学 | C152: 132 | D152: 2306000
B153: 関西学院大学 | C153: 128 | D153: 23880000
B154: 自治医科大学 | C154: 127 | D154: 6757000
B155: 久留米大学 | C155: 127 | D155: 1462000
B156: 上智大学 | C156: 126 | D156: 0
B157: 順天堂大学 | C157: 122 | D157: 3072000
B158: 中部大学 | C158: 118 | D158: 220000
B159: 東京電機大学 | C159: 102 | D159: 1180000
B160: 芝浦工業大学 | C160: 98 | D160: 1615000
B161: 埼玉医科大学 | C161: 96 | D161: 27468000
B162: 豊田工業大学 | C162: 96 | D162: 0
B163: 名古屋市立大学 | C163: 94 | D163: 17822000
B164: 京都府立医科大学 | C164: 94 | D164: 2128000
B165: 北見工業大学 | C165: 92 | D165: 995000
B166: 和歌山大学 | C166: 89 | D166: 4131000
B167: 富山県立大学 | C167: 87 | D167: 1375000
B168: 関東学院大学 | C168: 84 | D168: 14540000
B169: 明治大学 | C169: 81 | D169: 4886000
B170: 琉球大学 | C170: 77 | D170: 1146000
B171: 静岡県立大学 | C171: 72 | D171: 915000
B172: 福島大学 | C172: 67 | D172: 897000
B173: 藤田医科大学 | C173: 62 | D173: 0
B174: 帝京大学 | C174: 60 | D174: 2351000
B175: 兵庫医科大学 | C175: 60 | D175: 332000
B176: 旭川医科大学 | C176: 59 | D176: 1987000
B177: 日本医科大学 | C177: 55 | D177: 58243000
B178: 帯広畜産大学 | C178: 54 | D178: 2966000
B179: 東洋大学 | C179: 54 | D179: 633000
B180: 秋田県立大学 | C180: 52 | D180: 892000
B181: 奈良県立医科大学 | C181: 52 | D181: 743000
B182: 福岡工業大学 | C182: 52 | D182: 0
B183: 立教大学 | C183: 51 | D183: 231000
B184: 室蘭工業大学 | C184: 50 | D184: 0
B185: 昭和大学 | C185: 48 | D185: 4513000
B186: 聖マリアンナ医科大学 | C186: 46 | D186: 3204000
B187: 関西医科大学 | C187: 46 | D187: 781000
B188: 神奈川工科大学 | C188: 46 | D188: 289000
B189: 岡山理科大学 | C189: 45 | D189: 916000
B190: お茶の水女子大学 | C190: 45 | D190: 5000
B191: 広島市立大学 | C191: 44 | D191: 0
B192: 会津大学 | C192: 43 | D192: 33000
B193: 龍谷大学 | C193: 42 | D193: 1289000
B194: 玉川大学 | C194: 41 | D194: 119000
B195: 産業医科大学 | C195: 41 | D195: 7000
B196: 大阪工業大学 | C196: 39 | D196: 0
B197: 東京農業大学 | C197: 36 | D197: 748000
B198: 法政大学 | C198: 36 | D198: 550000
B199: 工学院大学 | C199: 35 | D199: 3516000
B200: 青山学院大学 | C200: 34 | D200: 0
B201: 北九州市立大学 | C201: 32 | D201: 2647000
B202: 東邦大学 | C202: 32 | D202: 23000
B203: 甲南大学 | C203: 31 | D203: 613000
B204: 石川県立大学 | C204: 31 | D204: 531000
B205: 東京都市大学 | C205: 30 | D205: 2371000
B206: 麻布大学 | C206: 28 | D206: 1505000
B207: 長崎県立大学 | C207: 28 | D207: 1001000
B208: 金沢医科大学 | C208: 27 | D208: 933000
B209: 滋賀県立大学 | C209: 27 | D209: 0
... 636 more rows

Sheet 筑波技術大学 (hidden)
A1: 国立 | C1: 筑波技術大学 | X1: 大学全体の経営理念における産学官連携活動の取組方針 | CY1: 103 | CZ1: 104 | DA1: 105 | DB1: 106 | DC1: 107 | DD1: 108 | DE1: 109 | DF1: 110 | DG1: 111 | DH1: 112 | DI1: 113 | DJ1: 114 | DK1: 115 | DL1: 116 | DM1: 117 | DN1: 118 | DO1: 119 | DP1: 120 | DQ1: 121 | DR1: 122 | DS1: 123 | DT1: 124 | DU1: 125 | DV1: 126 | DW1: 127 | DX1: 128 | DY1: 129
BB3: ＵＲＡ | BO3: URA当たり研究者数 | CA3: 戦略的産学連携経費
BC4: 実務担当者数 | BN4: 名 | BO4: =IF(OR(I25="",BI4=""),"",(IFERROR(I25/BI4,""))) ->  | CB4: 戦略的産学連携経費の設定 | CP4: 有 | CT4: 無 | CZ4: ない | DA4: インキュベーション施設
CB5: 戦略的産学連携経費の費目 | CZ5: ない | DA5: 相談窓口
A6: 基 礎 情 報 | BB6: 各種規程類の整備状況 | CB6: 戦略的産学連携経費の直接経費に対する割合 | CZ6: ない | DA6: 設立ポリシー | DI6: ◎ | DJ6: 産学連携ポリシー
BB7: 産学連携ポリシー | BM7: 職務発明規程（教職員のみ対象） | CZ7: ない | DA7: 支援ファンド | DI7: × | DJ7: 知的財産ポリシー
B8: 大学の得意分野とその具体例 | BB8: 知的財産ポリシー | BM8: 職務発明規程（教職員、学生対象） | CA8: 人件費の企業負担 | DI8: ◎ | DJ8: 共同研究取扱規程
AA9: 科研費 （千円） | AL9: その他政府系研究費 (千円) | AS9: その他補助・助成金等 (千円) | BB9: 共同研究取扱規程 | BM9: 発明補償関係規程（教職員のみ対象） | CB9: 教員人件費の企業負担に関する規程や制度 | CP9: 有 | CT9: 無 | DI9: ◎ | DJ9: 受託研究取扱規程
BB10: 受託研究取扱規程 | BM10: 発明補償関係規程（教職員、学生対象） | CB10: 教員人件費の企業負担の費目 | DI10: × | DJ10: 研究成果有体物取扱規程
AA11: 116170 | AL11: 800 | AS11: 0 | BB11: 研究成果有体物取扱規程 | BM11: 守秘義務に係る規程（教職員のみ対象） | CB11: 学生人件費の企業負担に関する規程や制度 | CP11: 有 | CT11: 無 | DI11: × | DJ11: 営業秘密管理に関する規程
BB12: 営業秘密管理に関する規程 | BM12: 守秘義務に係る規程（教職員、学生対象） | CB12: 学生人件費の企業負担の費目 | DI12: × | DJ12: 株式の取扱等規程、ポリシー
AA13: 間接経費割合 | AN13: 株式の保有 | AT13: 新株予約権の保有 | BB13: 株式の取扱等規程、ポリシー | DA13: × | DB13: 株式 | DI13: × | DJ13: 職務発明規程（教職員のみ対象）
AA14: 実績有割合無 | AN14: 有 | AQ14: 無 | AT14: 有 | AW14: 無 | BD14: ※各種規定類を整備している場合は、赤色で表示されます。 | CA14: 特別試験研究費税額控除制度 | DA14: × | DB14: 新株予約権 | DI14: ◎ | DJ14: 職務発明規程（教職員、学生対象）
CB15: 特別試験研究費税額控除制度の活用 | CP15: 有 | CT15: 無 | DI15: × | DJ15: 発明補償関係規程（教職員のみ対象）
B16: 産学官連携活動において今後重点化したい事項 | AA16: ■共同研究 | AG16: 2019年度 | AO16: 2020年度 | AW16: 順位※ | BB16: クロスアポイントメントの実績（人） | BK16: 大学等 | BN16: 公的機関 | BQ16: 民間企業 | BU16: その他機関 | DI16: ◎ | DJ16: 発明補償関係規程（教職員、学生対象）
AG17: 受入額（千円） | AL17: 件数 | AO17: 受入額（千円） | AT17: 件数 | BH17: 受入 | BK17: 0 | BN17: 0 | BQ17: 0 | BU17: 0 | DB17: 順位 | DI17: × | DJ17: 守秘義務に係る規程（教職員のみ対象）
AA18: 全体 | AG18: 13131 | AL18: 10 | AO18: 825 | AT18: 2 | AW18: =IF(DB18<50,DB18,"") ->  | AY18: 位 | BH18: 派遣 | BK18: 0 | BN18: 0 | BQ18: 0 | BU18: 0 | DB18: 419 | DI18: ◎ | DJ18: 守秘義務に係る規程（教職員、学生対象）
AB19: 民間企業 のみ | AG19: 11545 | AL19: 6 | AO19: 825 | AT19: 2 | AW19: =IF(DB19<50,DB19,"") ->  | AY19: 位 | DB19: 392
AC20: 大企業 | AG20: 11545 | AL20: 4 | AO20: 825 | AT20: 1 | AW20: =IF(DB20<50,DB20,"") ->  | AY20: 位 | BB20: ■組織的産学連携活動の取組事例 | DB20: 348 | DI20: ない | DJ20: 戦略的産学連携経費の設定
AC21: 中小企業 | AG21: 0 | AL21: 2 | AO21: 0 | AT21: 1 | AW21: =IF(DB21<50,DB21,"") ->  | AY21: 位 | DB21: 358 | DI21: ない | DJ21: 教員人件費の企業負担に関する規程や制度
AL22: ※順位は2020年度の受入額を比較したもの | DI22: ない | DJ22: 学生人件費の企業負担に関する規程や制度
DB23: 0 | DC23: 1 | DI23: ない | DJ23: 特別試験研究費税額控除制度の活用
DB24: ～100万 | DC24: 1
B25: 研究者数 | I25: 140 | P25: 名 | DB25: ～300万 | DC25: 0
DB26: ～500万 | DC26: 0
DB27: ～1000万 | DC27: 0
DB28: ～5000万 | DC28: 0
DB29: ～1億 | DC29: 0 | DJ29: 共同研究等の企画・提案
B30: 産学連携担当部署 | O30: 実務者当たり研究者数 | DB30: 1億以上 | DC30: 0 | DJ30: 契約書での成果目標、達成時の明記
C31: 実務担当者数 | I31: 2 | N31: 名 | O31: =IF(OR(I25="",I31=""),"",IFERROR($I$25/I31,"")) -> 70 | DJ31: 共同研究契約の締結/判断（契約権限の集中）
C32: 専門家の配置 | I32: 弁護士 | L32: 弁理士 | O32: 税理士 | R32: 公認会計士 | V32: その他 | DJ32: 共同研究の進捗管理とフィードバック
I33: ※専門家を配置している場合は、赤色で表示されます。 | DJ33: 企業ニーズに適応した技術移転・事業化提案
AA34: ■受託研究 | AG34: 2019年度 | AO34: 2020年度 | AW34: 順位※ | DJ34: 共同研究等の企画・提案
AG35: 受入額（千円） | AL35: 件数 | AO35: 受入額（千円） | AT35: 件数 | DB35: 順位 | DJ35: 契約書での成果目標、達成時の明記
AA36: 全体 | AG36: 6676 | AL36: 7 | AO36: 6721 | AT36: 4 | AW36: =IF(DB36<50,DB36,"") ->  | AY36: 位 | DB36: 316 | DJ36: 共同研究契約の締結/判断（契約権限の集中）
AB37: 民間企業 のみ | AG37: 100 | AL37: 1 | AO37: 208 | AT37: 1 | AW37: =IF(DB37<50,DB37,"") ->  | AY37: 位 | DB37: 382 | DJ37: 共同研究の進捗管理とフィードバック
C38: 産学連携本部が関与した共同研究 | P38: 0 | T38: 件 | AC38: 大企業 | AG38: 100 | AL38: 1 | AO38: 0 | AT38: 0 | AW38: =IF(DB38<50,DB38,"") ->  | AY38: 位 | DB38: 308 | DJ38: 企業ニーズに適応した技術移転・事業化提案
D39: 内、マッチングを行い、契約締結した件数 | P39: 0 | T39: 件 | AC39: 中小企業 | AG39: 0 | AL39: 0 | AO39: 208 | AT39: 1 | AW39: =IF(DB39<50,DB39,"") ->  | AY39: 位 | BB39: ■産学連携活動の主な実用化事例 | DB39: 289 | DJ39: 共同研究等の企画・提案
I40: ※1,000万円以上の共同研究 | AL40: ※順位は2020年度の受入額を比較したもの | DB40: 弁護士 | DG40: 0 | DH40: 0 | DJ40: 契約書での成果目標、達成時の明記
DB41: 弁理士 | DG41: ～100万 | DH41: 1 | DJ41: 共同研究契約の締結/判断（契約権限の集中）
C42: 組織対組織による包括連携契約の締結数 | P42: 0 | T42: 件 | DB42: 税理士 | DG42: ～300万 | DH42: 0 | DJ42: 共同研究の進捗管理とフィードバック
D43: 内、1,000万円以上の実績がある相手方数 | P43: 0 | T43: 件 | DB43: 公認会計士 | DG43: ～500万 | DH43: 0 | DJ43: 企業ニーズに適応した技術移転・事業化提案
DB44: その他 | DG44: ～1000万 | DH44: 0
C45: 寄附講座・寄附研究部門の受入件数 | P45: 0 | V45: 件 | DG45: ～5000万 | DH45: 0
C46: 寄附講座・寄附研究部門の受入金額（千円） | P46: 0 | DG46: ～1億 | DH46: 0
C47: 共同研究講座・共同研究部門の受入件数 | P47: 0 | V47: 件 | DG47: 1億以上 | DH47: 0
C48: 共同研究講座・共同研究部門の受入金額（千円） | P48: 0
C52: 職務発明の帰属 | I52: 大学 | M52: 発明者 | Q52: 未設定 | CZ52: 大学 | DA52: 職務発明
AD53: 特許権実施等件数 | AL53: 0 | AS53: 実施等件数 あたり | DA53: 不実施
M54: 研究者あたり | AD54: 特許権実施等収入（千円） | AL54: 0 | AS54: =IF(OR(AL53="",AL54=""),"",IFERROR(AL54/AL53,"")) ->  | CZ54: 0 | DA54: 特許等収入
C55: 特許出願件数 | I55: 1 | M55: =IF(OR(I25="",I55=""),"",IFERROR(I55/I25,"")) -> 0.007142857143
C56: 特許保有件数 | I56: 5 | M56: =IF(OR(I25="",I56=""),"",IFERROR(I56/I25,"")) -> 0.03571428571
C61: 大学発ベンチャー数 | J61: 0 | O61: 社
C62: Exit件数（IPO） | O62: 社 | P62: Exit件数（M&A） | Z62: 社
C63: 相談窓口 | K63: 支援ファンド | S63: インキュベーション施設
C64: 有 | G64: 無 | K64: 有 | O64: 無 | S64: 有 | W64: 無
C65: 知的財産戦略方針 | K65: 支援総額（千円） | S65: 部屋数 | Z65: 件
C66: 有 | G66: 無 | S66: 利用件数 | Z66: 件
A69: 1 | B69: 2 | C69: 3 | D69: 4 | E69: 5 | F69: 6 | G69: 7 | H69: 8 | I69: 9 | J69: 10 | K69: 11 | L69: 12 | M69: 13 | N69: 14 | O69: 15 | P69: 16 | Q69: 17 | R69: 18 | S69: 19 | T69: 20 | U69: 21 | V69: 22 | W69: 23 | X69: 24 | Y69: 25 | Z69: 26 | AA69: 27 | AB69: 28 | AC69: 29 | AD69: 30 | AE69: 31 | AF69: 32 | AG69: 33 | AH69: 34 | AI69: 35 | AJ69: 36 | AK69: 37 | AL69: 38 | AM69: 39 | AN69: 40 | AO69: 41 | AP69: 42 | AQ69: 43 | AR69: 44 | AS69: 45 | AT69: 46 | AU69: 47 | AV69: 48 | AW69: 49 | AX69: 50 | AY69: 51 | AZ69: 52 | BA69: 53 | BB69: 54 | BC69: 55 | BD69: 56 | BE69: 57 | BF69: 58 | BG69: 59 | BH69: 60 | BI69: 61 | BJ69: 62 | BK69: 63 | BL69: 64 | BM69: 65 | BN69: 66 | BO69: 67 | BP69: 68 | BQ69: 69 | BR69: 70 | BS69: 71 | BT69: 72 | BU69: 73 | BV69: 74 | BW69: 75 | BX69: 76 | BY69: 77 | BZ69: 78 | CA69: 79 | CB69: 80 | CC69: 81 | CD69: 82 | CE69: 83 | CF69: 84 | CG69: 85 | CH69: 86 | CI69: 87 | CJ69: 88 | CK69: 89 | CL69: 90 | CM69: 91 | CN69: 92 | CO69: 93 | CP69: 94 | CQ69: 95 | CR69: 96 | CS69: 97 | CT69: 98 | CU69: 99 | CV69: 100 | CW69: 101 | CX69: 102 | CY69: 103 | CZ69: 104 | DA69: 105 | DB69: 106 | DC69: 107 | DD69: 108 | DE69: 109 | DF69: 110 | DG69: 111 | DH69: 112 | DI69: 113 | DJ69: 114 | DK69: 115 | DL69: 116 | DM69: 117 | DN69: 118 | DO69: 119 | DP69: 120 | DQ69: 121 | DR69: 122 | DS69: 123 | DT69: 124 | DU69: 125
D70: 特許権収入
B71: 東京大学 | C71: 4495 | D71: 261744000
B72: 東北大学 | C72: 3533 | D72: 157139000
B73: 京都大学 | C73: 3044 | D73: 698373000
B74: 大阪大学 | C74: 2854 | D74: 509758000
B75: 東京工業大学 | C75: 1979 | D75: 57301000
B76: 九州大学 | C76: 1530 | D76: 601936000
B77: 名古屋大学 | C77: 1346 | D77: 72156000
B78: 北海道大学 | C78: 1167 | D78: 86700000
B79: 信州大学 | C79: 952 | D79: 29305000
B80: 広島大学 | C80: 921 | D80: 41265000
B81: 筑波大学 | C81: 850 | D81: 42694000
B82: 慶應義塾大学 | C82: 798 | D82: 67998000
B83: 千葉大学 | C83: 769 | D83: 17609000
B84: 岡山大学 | C84: 749 | D84: 8886000
B85: 山口大学 | C85: 700 | D85: 29167000
B86: 早稲田大学 | C86: 698 | D86: 21143000
B87: 名古屋工業大学 | C87: 638 | D87: 12139000
B88: 東京農工大学 | C88: 632 | D88: 44098000
B89: 九州工業大学 | C89: 611 | D89: 10288000
B90: 大阪府立大学 | C90: 573 | D90: 9177000
B91: 東京理科大学 | C91: 528 | D91: 15523000
B92: 神戸大学 | C92: 525 | D92: 78768000
B93: 静岡大学 | C93: 509 | D93: 8145000
B94: 群馬大学 | C94: 483 | D94: 5316000
B95: 熊本大学 | C95: 475 | D95: 29359000
B96: 近畿大学 | C96: 453 | D96: 82359000
B97: 長岡技術科学大学 | C97: 441 | D97: 3921000
B98: 横浜国立大学 | C98: 439 | D98: 5839000
B99: 奈良先端科学技術大学院大学 | C99: 427 | D99: 3542000
B100: 三重大学 | C100: 417 | D100: 10844000
B101: 鹿児島大学 | C101: 416 | D101: 14284000
B102: 大阪市立大学 | C102: 403 | D102: 2791000
B103: 東京都立大学 | C103: 398 | D103: 574000
B104: 山梨大学 | C104: 395 | D104: 5041000
B105: 香川大学 | C105: 389 | D105: 17113000
B106: 東京医科歯科大学 | C106: 377 | D106: 24076000
B107: 豊橋技術科学大学 | C107: 374 | D107: 5526000
B108: 徳島大学 | C108: 362 | D108: 131417000
B109: 電気通信大学 | C109: 355 | D109: 7847000
B110: 関西大学 | C110: 350 | D110: 5154000
B111: 鳥取大学 | C111: 340 | D111: 4814000
B112: 同志社大学 | C112: 337 | D112: 17850000
B113: 金沢大学 | C113: 337 | D113: 13893000
B114: 日本大学 | C114: 333 | D114: 38328000
B115: 山形大学 | C115: 323 | D115: 752000
B116: 北里大学 | C116: 315 | D116: 45190000
B117: 埼玉大学 | C117: 309 | D117: 2765000
B118: 富山大学 | C118: 305 | D118: 35859000
B119: 新潟大学 | C119: 301 | D119: 8943000
B120: 高知大学 | C120: 281 | D120: 26209000
B121: 立命館大学 | C121: 268 | D121: 2098000
B122: 秋田大学 | C122: 264 | D122: 1773000
B123: 神奈川大学 | C123: 263 | D123: 4940000
B124: 岐阜大学 | C124: 246 | D124: 7958000
B125: 弘前大学 | C125: 239 | D125: 10190000
B126: 宮崎大学 | C126: 236 | D126: 2168000
B127: 名城大学 | C127: 232 | D127: 2341000
B128: 兵庫県立大学 | C128: 232 | D128: 1142000
B129: 佐賀大学 | C129: 224 | D129: 4180000
B130: 福井大学 | C130: 221 | D130: 3913000
B131: 札幌医科大学 | C131: 218 | D131: 105462000
B132: 東海大学 | C132: 211 | D132: 5395000
B133: 京都工芸繊維大学 | C133: 201 | D133: 4782000
B134: 岩手大学 | C134: 198 | D134: 2552000
B135: 長崎大学 | C135: 194 | D135: 25364000
B136: 東京女子医科大学 | C136: 186 | D136: 2706000
B137: 横浜市立大学 | C137: 184 | D137: 50242000
B138: 北陸先端科学技術大学院大学 | C138: 175 | D138: 8323000
B139: 東京海洋大学 | C139: 175 | D139: 3222000
B140: 愛媛大学 | C140: 174 | D140: 35291000
B141: 宇都宮大学 | C141: 171 | D141: 2463000
B142: 高知工科大学 | C142: 165 | D142: 326000
B143: 千葉工業大学 | C143: 160 | D143: 0
B144: 茨城大学 | C144: 157 | D144: 2754000
B145: 福岡大学 | C145: 154 | D145: 874000
B146: 沖縄科学技術大学院大学 | C146: 152 | D146: 1100000
B147: 大分大学 | C147: 151 | D147: 1915000
B148: 金沢工業大学 | C148: 150 | D148: 2760000
B149: 中央大学 | C149: 144 | D149: 989000
B150: 浜松医科大学 | C150: 143 | D150: 3875000
B151: 島根大学 | C151: 137 | D151: 1166000
B152: 滋賀医科大学 | C152: 132 | D152: 2306000
B153: 関西学院大学 | C153: 128 | D153: 23880000
B154: 自治医科大学 | C154: 127 | D154: 6757000
B155: 久留米大学 | C155: 127 | D155: 1462000
B156: 上智大学 | C156: 126 | D156: 0
B157: 順天堂大学 | C157: 122 | D157: 3072000
B158: 中部大学 | C158: 118 | D158: 220000
B159: 東京電機大学 | C159: 102 | D159: 1180000
B160: 芝浦工業大学 | C160: 98 | D160: 1615000
B161: 埼玉医科大学 | C161: 96 | D161: 27468000
B162: 豊田工業大学 | C162: 96 | D162: 0
B163: 名古屋市立大学 | C163: 94 | D163: 17822000
B164: 京都府立医科大学 | C164: 94 | D164: 2128000
B165: 北見工業大学 | C165: 92 | D165: 995000
B166: 和歌山大学 | C166: 89 | D166: 4131000
B167: 富山県立大学 | C167: 87 | D167: 1375000
B168: 関東学院大学 | C168: 84 | D168: 14540000
B169: 明治大学 | C169: 81 | D169: 4886000
B170: 琉球大学 | C170: 77 | D170: 1146000
B171: 静岡県立大学 | C171: 72 | D171: 915000
B172: 福島大学 | C172: 67 | D172: 897000
B173: 藤田医科大学 | C173: 62 | D173: 0
B174: 帝京大学 | C174: 60 | D174: 2351000
B175: 兵庫医科大学 | C175: 60 | D175: 332000
B176: 旭川医科大学 | C176: 59 | D176: 1987000
B177: 日本医科大学 | C177: 55 | D177: 58243000
B178: 帯広畜産大学 | C178: 54 | D178: 2966000
B179: 東洋大学 | C179: 54 | D179: 633000
B180: 秋田県立大学 | C180: 52 | D180: 892000
B181: 奈良県立医科大学 | C181: 52 | D181: 743000
B182: 福岡工業大学 | C182: 52 | D182: 0
B183: 立教大学 | C183: 51 | D183: 231000
B184: 室蘭工業大学 | C184: 50 | D184: 0
B185: 昭和大学 | C185: 48 | D185: 4513000
B186: 聖マリアンナ医科大学 | C186: 46 | D186: 3204000
B187: 関西医科大学 | C187: 46 | D187: 781000
B188: 神奈川工科大学 | C188: 46 | D188: 289000
B189: 岡山理科大学 | C189: 45 | D189: 916000
B190: お茶の水女子大学 | C190: 45 | D190: 5000
B191: 広島市立大学 | C191: 44 | D191: 0
B192: 会津大学 | C192: 43 | D192: 33000
B193: 龍谷大学 | C193: 42 | D193: 1289000
B194: 玉川大学 | C194: 41 | D194: 119000
B195: 産業医科大学 | C195: 41 | D195: 7000
B196: 大阪工業大学 | C196: 39 | D196: 0
B197: 東京農業大学 | C197: 36 | D197: 748000
B198: 法政大学 | C198: 36 | D198: 550000
B199: 工学院大学 | C199: 35 | D199: 3516000
B200: 青山学院大学 | C200: 34 | D200: 0
B201: 北九州市立大学 | C201: 32 | D201: 2647000
B202: 東邦大学 | C202: 32 | D202: 23000
B203: 甲南大学 | C203: 31 | D203: 613000
B204: 石川県立大学 | C204: 31 | D204: 531000
B205: 東京都市大学 | C205: 30 | D205: 2371000
B206: 麻布大学 | C206: 28 | D206: 1505000
B207: 長崎県立大学 | C207: 28 | D207: 1001000
B208: 金沢医科大学 | C208: 27 | D208: 933000
B209: 滋賀県立大学 | C209: 27 | D209: 0
B210: 愛知工業大学 | C210: 26 | D210: 0
... 635 more rows

Sheet 宇都宮大学 (hidden)
A1: 国立 | C1: 宇都宮大学 | X1: 大学全体の経営理念における産学官連携活動の取組方針 | CY1: 103 | CZ1: 104 | DA1: 105 | DB1: 106 | DC1: 107 | DD1: 108 | DE1: 109 | DF1: 110 | DG1: 111 | DH1: 112 | DI1: 113 | DJ1: 114 | DK1: 115 | DL1: 116 | DM1: 117 | DN1: 118 | DO1: 119 | DP1: 120 | DQ1: 121 | DR1: 122 | DS1: 123 | DT1: 124 | DU1: 125 | DV1: 126 | DW1: 127 | DX1: 128 | DY1: 129
X2: 研究シーズを産業に結び付けるための競争的資金獲得の支援、地域企業ニーズを本学教員と結び付け共同研究に繋げる支援も行います。産学連携の基盤となる知的財産の管理と出願を支援します。本学が地域産業に貢献するために、産学官金連携の前段階となる交流を支援します。加えて、教員の研究活動、共同研究を研究設備と研究開発スペースの提供により支援します。
BB3: ＵＲＡ | BO3: URA当たり研究者数 | CA3: 戦略的産学連携経費
BC4: 実務担当者数 | BI4: 7 | BN4: 名 | BO4: =IF(OR(I25="",BI4=""),"",(IFERROR(I25/BI4,""))) -> 53.57142857 | CB4: 戦略的産学連携経費の設定 | CP4: 有 | CT4: 無 | CZ4: ある | DA4: インキュベーション施設
CB5: 戦略的産学連携経費の費目 | CP5: 戦略的産学連携経費 | CZ5: ある | DA5: 相談窓口
A6: 基 礎 情 報 | BB6: 各種規程類の整備状況 | CB6: 戦略的産学連携経費の直接経費に対する割合 | CP6: 実績有割合無 | CZ6: ある | DA6: 設立ポリシー | DI6: ◎ | DJ6: 産学連携ポリシー
BB7: 産学連携ポリシー | BM7: 職務発明規程（教職員のみ対象） | CZ7: ない | DA7: 支援ファンド | DI7: ◎ | DJ7: 知的財産ポリシー
B8: 大学の得意分野とその具体例 | BB8: 知的財産ポリシー | BM8: 職務発明規程（教職員、学生対象） | CA8: 人件費の企業負担 | DI8: ◎ | DJ8: 共同研究取扱規程
B9: ○国際的ネットワークを有し、世界的な拠点ともなっている光工学分野 ○農工融合によるスマート農業用ロボティクス分野 ○レーザー制御技術、自走、マニュピュレータ技術 | AA9: 科研費 （千円） | AL9: その他政府系研究費 (千円) | AS9: その他補助・助成金等 (千円) | BB9: 共同研究取扱規程 | BM9: 発明補償関係規程（教職員のみ対象） | CB9: 教員人件費の企業負担に関する規程や制度 | CP9: 有 | CT9: 無 | DI9: ◎ | DJ9: 受託研究取扱規程
BB10: 受託研究取扱規程 | BM10: 発明補償関係規程（教職員、学生対象） | CB10: 教員人件費の企業負担の費目 | DI10: ◎ | DJ10: 研究成果有体物取扱規程
AA11: 466378 | AL11: 175233 | AS11: 67121 | BB11: 研究成果有体物取扱規程 | BM11: 守秘義務に係る規程（教職員のみ対象） | CB11: 学生人件費の企業負担に関する規程や制度 | CP11: 有 | CT11: 無 | DI11: × | DJ11: 営業秘密管理に関する規程
BB12: 営業秘密管理に関する規程 | BM12: 守秘義務に係る規程（教職員、学生対象） | CB12: 学生人件費の企業負担の費目 | DI12: ◎ | DJ12: 株式の取扱等規程、ポリシー
AA13: 間接経費割合 | AN13: 株式の保有 | AT13: 新株予約権の保有 | BB13: 株式の取扱等規程、ポリシー | DA13: × | DB13: 株式 | DI13: × | DJ13: 職務発明規程（教職員のみ対象）
AA14: 20％以上25％未満 | AN14: 有 | AQ14: 無 | AT14: 有 | AW14: 無 | BD14: ※各種規定類を整備している場合は、赤色で表示されます。 | CA14: 特別試験研究費税額控除制度 | DA14: × | DB14: 新株予約権 | DI14: ◎ | DJ14: 職務発明規程（教職員、学生対象）
CB15: 特別試験研究費税額控除制度の活用 | CP15: 有 | CT15: 無 | DI15: × | DJ15: 発明補償関係規程（教職員のみ対象）
B16: 産学官連携活動において今後重点化したい事項 | AA16: ■共同研究 | AG16: 2019年度 | AO16: 2020年度 | AW16: 順位※ | BB16: クロスアポイントメントの実績（人） | BK16: 大学等 | BN16: 公的機関 | BQ16: 民間企業 | BU16: その他機関 | DI16: ◎ | DJ16: 発明補償関係規程（教職員、学生対象）
B17: ○地域企業や団体・機関と包括的に連携する産学官金連携および県をまたぐ広域的な産学官連携。 ○分野を横断する融合的な産業創出と地域への還元。 ○地域産業活性の資するベンチャー企業の創生ならびに育成。 | AG17: 受入額（千円） | AL17: 件数 | AO17: 受入額（千円） | AT17: 件数 | BH17: 受入 | BK17: 1 | BN17: 0 | BQ17: 0 | BU17: 0 | DB17: 順位 | DI17: × | DJ17: 守秘義務に係る規程（教職員のみ対象）
AA18: 全体 | AG18: 229786 | AL18: 165 | AO18: 162192 | AT18: 171 | AW18: =IF(DB18<50,DB18,"") ->  | AY18: 位 | BH18: 派遣 | BK18: 0 | BN18: 0 | BQ18: 0 | BU18: 0 | DB18: 80 | DI18: ◎ | DJ18: 守秘義務に係る規程（教職員、学生対象）
AB19: 民間企業 のみ | AG19: 215580 | AL19: 145 | AO19: 147625 | AT19: 148 | AW19: =IF(DB19<50,DB19,"") ->  | AY19: 位 | DB19: 78
AC20: 大企業 | AG20: 142586 | AL20: 81 | AO20: 81435 | AT20: 71 | AW20: =IF(DB20<50,DB20,"") ->  | AY20: 位 | BB20: ■組織的産学連携活動の取組事例 | DB20: 90 | DI20: ある | DJ20: 戦略的産学連携経費の設定
AC21: 中小企業 | AG21: 56538 | AL21: 63 | AO21: 64390 | AT21: 75 | AW21: =IF(DB21<50,DB21,"") -> 48 | AY21: 位 | DB21: 48 | DI21: ない | DJ21: 教員人件費の企業負担に関する規程や制度
AL22: ※順位は2020年度の受入額を比較したもの | DI22: ない | DJ22: 学生人件費の企業負担に関する規程や制度
DB23: 0 | DC23: 36 | DI23: ある | DJ23: 特別試験研究費税額控除制度の活用
DB24: ～100万 | DC24: 50
B25: 研究者数 | I25: 375 | P25: 名 | DB25: ～300万 | DC25: 49
DB26: ～500万 | DC26: 10
DB27: ～1000万 | DC27: 3
DB28: ～5000万 | DC28: 0
DB29: ～1億 | DC29: 0 | DJ29: 共同研究等の企画・提案
B30: 産学連携担当部署 | O30: 実務者当たり研究者数 | DB30: 1億以上 | DC30: 0 | DJ30: 契約書での成果目標、達成時の明記
C31: 実務担当者数 | I31: 15 | N31: 名 | O31: =IF(OR(I25="",I31=""),"",IFERROR($I$25/I31,"")) -> 25 | DJ31: 共同研究契約の締結/判断（契約権限の集中）
C32: 専門家の配置 | I32: 弁護士 | L32: 弁理士 | O32: 税理士 | R32: 公認会計士 | V32: その他 | DJ32: 共同研究の進捗管理とフィードバック
I33: ※専門家を配置している場合は、赤色で表示されます。 | DJ33: 企業ニーズに適応した技術移転・事業化提案
AA34: ■受託研究 | AG34: 2019年度 | AO34: 2020年度 | AW34: 順位※ | DJ34: 共同研究等の企画・提案
AG35: 受入額（千円） | AL35: 件数 | AO35: 受入額（千円） | AT35: 件数 | DB35: 順位 | DJ35: 契約書での成果目標、達成時の明記
AA36: 全体 | AG36: 316981 | AL36: 51 | AO36: 266353 | AT36: 56 | AW36: =IF(DB36<50,DB36,"") ->  | AY36: 位 | DB36: 99 | DJ36: 共同研究契約の締結/判断（契約権限の集中）
AB37: 民間企業 のみ | AG37: 32501 | AL37: 15 | AO37: 26496 | AT37: 13 | AW37: =IF(DB37<50,DB37,"") ->  | AY37: 位 | DB37: 92 | DJ37: 共同研究の進捗管理とフィードバック
C38: 産学連携本部が関与した共同研究 | P38: 0 | T38: 件 | AC38: 大企業 | AG38: 29341 | AL38: 10 | AO38: 26396 | AT38: 10 | AW38: =IF(DB38<50,DB38,"") ->  | AY38: 位 | DB38: 66 | DJ38: 企業ニーズに適応した技術移転・事業化提案
D39: 内、マッチングを行い、契約締結した件数 | P39: 0 | T39: 件 | AC39: 中小企業 | AG39: 3160 | AL39: 5 | AO39: 100 | AT39: 3 | AW39: =IF(DB39<50,DB39,"") ->  | AY39: 位 | BB39: ■産学連携活動の主な実用化事例 | DB39: 304 | DJ39: 共同研究等の企画・提案
I40: ※1,000万円以上の共同研究 | AL40: ※順位は2020年度の受入額を比較したもの | DB40: 弁護士 | DG40: 0 | DH40: 3 | DJ40: 契約書での成果目標、達成時の明記
DA41: ○ | DB41: 弁理士 | DG41: ～100万 | DH41: 5 | DJ41: 共同研究契約の締結/判断（契約権限の集中）
C42: 組織対組織による包括連携契約の締結数 | P42: 0 | T42: 件 | DB42: 税理士 | DG42: ～300万 | DH42: 4 | DJ42: 共同研究の進捗管理とフィードバック
D43: 内、1,000万円以上の実績がある相手方数 | P43: 0 | T43: 件 | DB43: 公認会計士 | DG43: ～500万 | DH43: 0 | DJ43: 企業ニーズに適応した技術移転・事業化提案
DA44: ○ | DB44: その他 | DG44: ～1000万 | DH44: 0
C45: 寄附講座・寄附研究部門の受入件数 | P45: 0 | V45: 件 | DG45: ～5000万 | DH45: 1
C46: 寄附講座・寄附研究部門の受入金額（千円） | P46: 0 | DG46: ～1億 | DH46: 0
C47: 共同研究講座・共同研究部門の受入件数 | P47: 0 | V47: 件 | DG47: 1億以上 | DH47: 0
C48: 共同研究講座・共同研究部門の受入金額（千円） | P48: 0
C52: 職務発明の帰属 | I52: 大学 | M52: 発明者 | Q52: 未設定 | CZ52: 大学 | DA52: 職務発明
AD53: 特許権実施等件数 | AL53: 16 | AS53: 実施等件数 あたり | DA53: 不実施
M54: 研究者あたり | AD54: 特許権実施等収入（千円） | AL54: 2463 | AS54: =IF(OR(AL53="",AL54=""),"",IFERROR(AL54/AL53,"")) -> 153.9375 | CZ54: 2463000 | DA54: 特許等収入
C55: 特許出願件数 | I55: 25 | M55: =IF(OR(I25="",I55=""),"",IFERROR(I55/I25,"")) -> 0.06666666667
C56: 特許保有件数 | I56: 171 | M56: =IF(OR(I25="",I56=""),"",IFERROR(I56/I25,"")) -> 0.456
C61: 大学発ベンチャー数 | J61: 6 | O61: 社
C62: Exit件数（IPO） | J62: 0 | O62: 社 | P62: Exit件数（M&A） | W62: 0 | Z62: 社
C63: 相談窓口 | K63: 支援ファンド | S63: インキュベーション施設
C64: 有 | G64: 無 | K64: 有 | O64: 無 | S64: 有 | W64: 無
C65: 知的財産戦略方針 | K65: 支援総額（千円） | S65: 部屋数 | W65: 33 | Z65: 件
C66: 有 | G66: 無 | S66: 利用件数 | W66: 4 | Z66: 件
A69: 1 | B69: 2 | C69: 3 | D69: 4 | E69: 5 | F69: 6 | G69: 7 | H69: 8 | I69: 9 | J69: 10 | K69: 11 | L69: 12 | M69: 13 | N69: 14 | O69: 15 | P69: 16 | Q69: 17 | R69: 18 | S69: 19 | T69: 20 | U69: 21 | V69: 22 | W69: 23 | X69: 24 | Y69: 25 | Z69: 26 | AA69: 27 | AB69: 28 | AC69: 29 | AD69: 30 | AE69: 31 | AF69: 32 | AG69: 33 | AH69: 34 | AI69: 35 | AJ69: 36 | AK69: 37 | AL69: 38 | AM69: 39 | AN69: 40 | AO69: 41 | AP69: 42 | AQ69: 43 | AR69: 44 | AS69: 45 | AT69: 46 | AU69: 47 | AV69: 48 | AW69: 49 | AX69: 50 | AY69: 51 | AZ69: 52 | BA69: 53 | BB69: 54 | BC69: 55 | BD69: 56 | BE69: 57 | BF69: 58 | BG69: 59 | BH69: 60 | BI69: 61 | BJ69: 62 | BK69: 63 | BL69: 64 | BM69: 65 | BN69: 66 | BO69: 67 | BP69: 68 | BQ69: 69 | BR69: 70 | BS69: 71 | BT69: 72 | BU69: 73 | BV69: 74 | BW69: 75 | BX69: 76 | BY69: 77 | BZ69: 78 | CA69: 79 | CB69: 80 | CC69: 81 | CD69: 82 | CE69: 83 | CF69: 84 | CG69: 85 | CH69: 86 | CI69: 87 | CJ69: 88 | CK69: 89 | CL69: 90 | CM69: 91 | CN69: 92 | CO69: 93 | CP69: 94 | CQ69: 95 | CR69: 96 | CS69: 97 | CT69: 98 | CU69: 99 | CV69: 100 | CW69: 101 | CX69: 102 | CY69: 103 | CZ69: 104 | DA69: 105 | DB69: 106 | DC69: 107 | DD69: 108 | DE69: 109 | DF69: 110 | DG69: 111 | DH69: 112 | DI69: 113 | DJ69: 114 | DK69: 115 | DL69: 116 | DM69: 117 | DN69: 118 | DO69: 119 | DP69: 120 | DQ69: 121 | DR69: 122 | DS69: 123 | DT69: 124 | DU69: 125
D70: 特許権収入
B71: 東京大学 | C71: 4495 | D71: 261744000
B72: 東北大学 | C72: 3533 | D72: 157139000
B73: 京都大学 | C73: 3044 | D73: 698373000
B74: 大阪大学 | C74: 2854 | D74: 509758000
B75: 東京工業大学 | C75: 1979 | D75: 57301000
B76: 九州大学 | C76: 1530 | D76: 601936000
B77: 名古屋大学 | C77: 1346 | D77: 72156000
B78: 北海道大学 | C78: 1167 | D78: 86700000
B79: 信州大学 | C79: 952 | D79: 29305000
B80: 広島大学 | C80: 921 | D80: 41265000
B81: 筑波大学 | C81: 850 | D81: 42694000
B82: 慶應義塾大学 | C82: 798 | D82: 67998000
B83: 千葉大学 | C83: 769 | D83: 17609000
B84: 岡山大学 | C84: 749 | D84: 8886000
B85: 山口大学 | C85: 700 | D85: 29167000
B86: 早稲田大学 | C86: 698 | D86: 21143000
B87: 名古屋工業大学 | C87: 638 | D87: 12139000
B88: 東京農工大学 | C88: 632 | D88: 44098000
B89: 九州工業大学 | C89: 611 | D89: 10288000
B90: 大阪府立大学 | C90: 573 | D90: 9177000
B91: 東京理科大学 | C91: 528 | D91: 15523000
B92: 神戸大学 | C92: 525 | D92: 78768000
B93: 静岡大学 | C93: 509 | D93: 8145000
B94: 群馬大学 | C94: 483 | D94: 5316000
B95: 熊本大学 | C95: 475 | D95: 29359000
B96: 近畿大学 | C96: 453 | D96: 82359000
B97: 長岡技術科学大学 | C97: 441 | D97: 3921000
B98: 横浜国立大学 | C98: 439 | D98: 5839000
B99: 奈良先端科学技術大学院大学 | C99: 427 | D99: 3542000
B100: 三重大学 | C100: 417 | D100: 10844000
B101: 鹿児島大学 | C101: 416 | D101: 14284000
B102: 大阪市立大学 | C102: 403 | D102: 2791000
B103: 東京都立大学 | C103: 398 | D103: 574000
B104: 山梨大学 | C104: 395 | D104: 5041000
B105: 香川大学 | C105: 389 | D105: 17113000
B106: 東京医科歯科大学 | C106: 377 | D106: 24076000
B107: 豊橋技術科学大学 | C107: 374 | D107: 5526000
B108: 徳島大学 | C108: 362 | D108: 131417000
B109: 電気通信大学 | C109: 355 | D109: 7847000
B110: 関西大学 | C110: 350 | D110: 5154000
B111: 鳥取大学 | C111: 340 | D111: 4814000
B112: 同志社大学 | C112: 337 | D112: 17850000
B113: 金沢大学 | C113: 337 | D113: 13893000
B114: 日本大学 | C114: 333 | D114: 38328000
B115: 山形大学 | C115: 323 | D115: 752000
B116: 北里大学 | C116: 315 | D116: 45190000
B117: 埼玉大学 | C117: 309 | D117: 2765000
B118: 富山大学 | C118: 305 | D118: 35859000
B119: 新潟大学 | C119: 301 | D119: 8943000
B120: 高知大学 | C120: 281 | D120: 26209000
B121: 立命館大学 | C121: 268 | D121: 2098000
B122: 秋田大学 | C122: 264 | D122: 1773000
B123: 神奈川大学 | C123: 263 | D123: 4940000
B124: 岐阜大学 | C124: 246 | D124: 7958000
B125: 弘前大学 | C125: 239 | D125: 10190000
B126: 宮崎大学 | C126: 236 | D126: 2168000
B127: 名城大学 | C127: 232 | D127: 2341000
B128: 兵庫県立大学 | C128: 232 | D128: 1142000
B129: 佐賀大学 | C129: 224 | D129: 4180000
B130: 福井大学 | C130: 221 | D130: 3913000
B131: 札幌医科大学 | C131: 218 | D131: 105462000
B132: 東海大学 | C132: 211 | D132: 5395000
B133: 京都工芸繊維大学 | C133: 201 | D133: 4782000
B134: 岩手大学 | C134: 198 | D134: 2552000
B135: 長崎大学 | C135: 194 | D135: 25364000
B136: 東京女子医科大学 | C136: 186 | D136: 2706000
B137: 横浜市立大学 | C137: 184 | D137: 50242000
B138: 北陸先端科学技術大学院大学 | C138: 175 | D138: 8323000
B139: 東京海洋大学 | C139: 175 | D139: 3222000
B140: 愛媛大学 | C140: 174 | D140: 35291000
B141: 宇都宮大学 | C141: 171 | D141: 2463000
B142: 高知工科大学 | C142: 165 | D142: 326000
B143: 千葉工業大学 | C143: 160 | D143: 0
B144: 茨城大学 | C144: 157 | D144: 2754000
B145: 福岡大学 | C145: 154 | D145: 874000
B146: 沖縄科学技術大学院大学 | C146: 152 | D146: 1100000
B147: 大分大学 | C147: 151 | D147: 1915000
B148: 金沢工業大学 | C148: 150 | D148: 2760000
B149: 中央大学 | C149: 144 | D149: 989000
B150: 浜松医科大学 | C150: 143 | D150: 3875000
B151: 島根大学 | C151: 137 | D151: 1166000
B152: 滋賀医科大学 | C152: 132 | D152: 2306000
B153: 関西学院大学 | C153: 128 | D153: 23880000
B154: 自治医科大学 | C154: 127 | D154: 6757000
B155: 久留米大学 | C155: 127 | D155: 1462000
B156: 上智大学 | C156: 126 | D156: 0
B157: 順天堂大学 | C157: 122 | D157: 3072000
B158: 中部大学 | C158: 118 | D158: 220000
B159: 東京電機大学 | C159: 102 | D159: 1180000
B160: 芝浦工業大学 | C160: 98 | D160: 1615000
B161: 埼玉医科大学 | C161: 96 | D161: 27468000
B162: 豊田工業大学 | C162: 96 | D162: 0
B163: 名古屋市立大学 | C163: 94 | D163: 17822000
B164: 京都府立医科大学 | C164: 94 | D164: 2128000
B165: 北見工業大学 | C165: 92 | D165: 995000
B166: 和歌山大学 | C166: 89 | D166: 4131000
B167: 富山県立大学 | C167: 87 | D167: 1375000
B168: 関東学院大学 | C168: 84 | D168: 14540000
B169: 明治大学 | C169: 81 | D169: 4886000
B170: 琉球大学 | C170: 77 | D170: 1146000
B171: 静岡県立大学 | C171: 72 | D171: 915000
B172: 福島大学 | C172: 67 | D172: 897000
B173: 藤田医科大学 | C173: 62 | D173: 0
B174: 帝京大学 | C174: 60 | D174: 2351000
B175: 兵庫医科大学 | C175: 60 | D175: 332000
B176: 旭川医科大学 | C176: 59 | D176: 1987000
B177: 日本医科大学 | C177: 55 | D177: 58243000
B178: 帯広畜産大学 | C178: 54 | D178: 2966000
B179: 東洋大学 | C179: 54 | D179: 633000
B180: 秋田県立大学 | C180: 52 | D180: 892000
B181: 奈良県立医科大学 | C181: 52 | D181: 743000
B182: 福岡工業大学 | C182: 52 | D182: 0
B183: 立教大学 | C183: 51 | D183: 231000
B184: 室蘭工業大学 | C184: 50 | D184: 0
B185: 昭和大学 | C185: 48 | D185: 4513000
B186: 聖マリアンナ医科大学 | C186: 46 | D186: 3204000
B187: 関西医科大学 | C187: 46 | D187: 781000
B188: 神奈川工科大学 | C188: 46 | D188: 289000
B189: 岡山理科大学 | C189: 45 | D189: 916000
B190: お茶の水女子大学 | C190: 45 | D190: 5000
B191: 広島市立大学 | C191: 44 | D191: 0
B192: 会津大学 | C192: 43 | D192: 33000
B193: 龍谷大学 | C193: 42 | D193: 1289000
B194: 玉川大学 | C194: 41 | D194: 119000
B195: 産業医科大学 | C195: 41 | D195: 7000
B196: 大阪工業大学 | C196: 39 | D196: 0
B197: 東京農業大学 | C197: 36 | D197: 748000
B198: 法政大学 | C198: 36 | D198: 550000
B199: 工学院大学 | C199: 35 | D199: 3516000
B200: 青山学院大学 | C200: 34 | D200: 0
B201: 北九州市立大学 | C201: 32 | D201: 2647000
B202: 東邦大学 | C202: 32 | D202: 23000
B203: 甲南大学 | C203: 31 | D203: 613000
B204: 石川県立大学 | C204: 31 | D204: 531000
B205: 東京都市大学 | C205: 30 | D205: 2371000
B206: 麻布大学 | C206: 28 | D206: 1505000
B207: 長崎県立大学 | C207: 28 | D207: 1001000
B208: 金沢医科大学 | C208: 27 | D208: 933000
B209: 滋賀県立大学 | C209: 27 | D209: 0
... 636 more rows

Sheet 群馬大学 (hidden)
A1: 国立 | C1: 群馬大学 | X1: 大学全体の経営理念における産学官連携活動の取組方針 | CY1: 103 | CZ1: 104 | DA1: 105 | DB1: 106 | DC1: 107 | DD1: 108 | DE1: 109 | DF1: 110 | DG1: 111 | DH1: 112 | DI1: 113 | DJ1: 114 | DK1: 115 | DL1: 116 | DM1: 117 | DN1: 118 | DO1: 119 | DP1: 120 | DQ1: 121 | DR1: 122 | DS1: 123 | DT1: 124 | DU1: 125 | DV1: 126 | DW1: 127 | DX1: 128 | DY1: 129
X2: 地域の知の拠点として学内外の関係機関と連携した活動を通じて、地域の文化及び伝統を育み、豊かな地域社会を創造する活動を行うとともに、知の地域社会への還元を推進し、産業の発展に貢献する。
BB3: ＵＲＡ | BO3: URA当たり研究者数 | CA3: 戦略的産学連携経費
BC4: 実務担当者数 | BI4: 6 | BN4: 名 | BO4: =IF(OR(I25="",BI4=""),"",(IFERROR(I25/BI4,""))) -> 168.8333333 | CB4: 戦略的産学連携経費の設定 | CP4: 有 | CT4: 無 | CZ4: ある | DA4: インキュベーション施設
CB5: 戦略的産学連携経費の費目 | CZ5: ある | DA5: 相談窓口
A6: 基 礎 情 報 | BB6: 各種規程類の整備状況 | CB6: 戦略的産学連携経費の直接経費に対する割合 | CZ6: ある | DA6: 設立ポリシー | DI6: ◎ | DJ6: 産学連携ポリシー
BB7: 産学連携ポリシー | BM7: 職務発明規程（教職員のみ対象） | CZ7: ない | DA7: 支援ファンド | DI7: ◎ | DJ7: 知的財産ポリシー
B8: 大学の得意分野とその具体例 | BB8: 知的財産ポリシー | BM8: 職務発明規程（教職員、学生対象） | CA8: 人件費の企業負担 | DI8: ◎ | DJ8: 共同研究取扱規程
B9: ①健康科学 ②食品開発 ③食品機能解析 ④食マネジメント ⑤環境調和型食品パッケージ開発 | AA9: 科研費 （千円） | AL9: その他政府系研究費 (千円) | AS9: その他補助・助成金等 (千円) | BB9: 共同研究取扱規程 | BM9: 発明補償関係規程（教職員のみ対象） | CB9: 教員人件費の企業負担に関する規程や制度 | CP9: 有 | CT9: 無 | DI9: ◎ | DJ9: 受託研究取扱規程
BB10: 受託研究取扱規程 | BM10: 発明補償関係規程（教職員、学生対象） | CB10: 教員人件費の企業負担の費目 | DI10: ◎ | DJ10: 研究成果有体物取扱規程
AA11: 872274 | AL11: 0 | AS11: 0 | BB11: 研究成果有体物取扱規程 | BM11: 守秘義務に係る規程（教職員のみ対象） | CB11: 学生人件費の企業負担に関する規程や制度 | CP11: 有 | CT11: 無 | DI11: ◎ | DJ11: 営業秘密管理に関する規程
BB12: 営業秘密管理に関する規程 | BM12: 守秘義務に係る規程（教職員、学生対象） | CB12: 学生人件費の企業負担の費目 | DI12: ◎ | DJ12: 株式の取扱等規程、ポリシー
AA13: 間接経費割合 | AN13: 株式の保有 | AT13: 新株予約権の保有 | BB13: 株式の取扱等規程、ポリシー | DA13: × | DB13: 株式 | DI13: × | DJ13: 職務発明規程（教職員のみ対象）
AA14: 30％以上 | AN14: 有 | AQ14: 無 | AT14: 有 | AW14: 無 | BD14: ※各種規定類を整備している場合は、赤色で表示されます。 | CA14: 特別試験研究費税額控除制度 | DA14: × | DB14: 新株予約権 | DI14: ◎ | DJ14: 職務発明規程（教職員、学生対象）
CB15: 特別試験研究費税額控除制度の活用 | CP15: 有 | CT15: 無 | DI15: × | DJ15: 発明補償関係規程（教職員のみ対象）
B16: 産学官連携活動において今後重点化したい事項 | AA16: ■共同研究 | AG16: 2019年度 | AO16: 2020年度 | AW16: 順位※ | BB16: クロスアポイントメントの実績（人） | BK16: 大学等 | BN16: 公的機関 | BQ16: 民間企業 | BU16: その他機関 | DI16: ◎ | DJ16: 発明補償関係規程（教職員、学生対象）
B17: 令和２年度，NEDOのムーンショット型研究開発事業：生分解開始スイッチ機能を有する海洋分解性プラスチックの研究開発が採択された。今後も，食と健康に関連する幅広い研究分野に対して，共同研究活動から得られた知見をベースに実証実験，社会実証実験を経て，社会に必要な技術を提供する体制を整える。 | AG17: 受入額（千円） | AL17: 件数 | AO17: 受入額（千円） | AT17: 件数 | BH17: 受入 | BK17: 0 | BN17: 0 | BQ17: 0 | BU17: 0 | DB17: 順位 | DI17: × | DJ17: 守秘義務に係る規程（教職員のみ対象）
AA18: 全体 | AG18: 414634 | AL18: 267 | AO18: 544410 | AT18: 287 | AW18: =IF(DB18<50,DB18,"") -> 35 | AY18: 位 | BH18: 派遣 | BK18: 2 | BN18: 0 | BQ18: 0 | BU18: 0 | DB18: 35 | DI18: ◎ | DJ18: 守秘義務に係る規程（教職員、学生対象）
AB19: 民間企業 のみ | AG19: 380416 | AL19: 243 | AO19: 437503 | AT19: 256 | AW19: =IF(DB19<50,DB19,"") -> 34 | AY19: 位 | DB19: 34
AC20: 大企業 | AG20: 325466 | AL20: 160 | AO20: 357709 | AT20: 161 | AW20: =IF(DB20<50,DB20,"") -> 25 | AY20: 位 | BB20: ■組織的産学連携活動の取組事例 | DB20: 25 | DI20: ない | DJ20: 戦略的産学連携経費の設定
AC21: 中小企業 | AG21: 54950 | AL21: 83 | AO21: 79794 | AT21: 95 | AW21: =IF(DB21<50,DB21,"") -> 40 | AY21: 位 | DB21: 40 | DI21: ない | DJ21: 教員人件費の企業負担に関する規程や制度
AL22: ※順位は2020年度の受入額を比較したもの | DI22: ない | DJ22: 学生人件費の企業負担に関する規程や制度
DB23: 0 | DC23: 73 | DI23: ある | DJ23: 特別試験研究費税額控除制度の活用
DB24: ～100万 | DC24: 65
B25: 研究者数 | I25: 1013 | P25: 名 | DB25: ～300万 | DC25: 90
DB26: ～500万 | DC26: 12
DB27: ～1000万 | DC27: 11
DB28: ～5000万 | DC28: 4
DB29: ～1億 | DC29: 1 | DJ29: 共同研究等の企画・提案
B30: 産学連携担当部署 | O30: 実務者当たり研究者数 | DB30: 1億以上 | DC30: 0 | DJ30: 契約書での成果目標、達成時の明記
C31: 実務担当者数 | I31: 16 | N31: 名 | O31: =IF(OR(I25="",I31=""),"",IFERROR($I$25/I31,"")) -> 63.3125 | DJ31: 共同研究契約の締結/判断（契約権限の集中）
C32: 専門家の配置 | I32: 弁護士 | L32: 弁理士 | O32: 税理士 | R32: 公認会計士 | V32: その他 | DJ32: 共同研究の進捗管理とフィードバック
I33: ※専門家を配置している場合は、赤色で表示されます。 | DJ33: 企業ニーズに適応した技術移転・事業化提案
AA34: ■受託研究 | AG34: 2019年度 | AO34: 2020年度 | AW34: 順位※ | DJ34: 共同研究等の企画・提案
AG35: 受入額（千円） | AL35: 件数 | AO35: 受入額（千円） | AT35: 件数 | DB35: 順位 | DJ35: 契約書での成果目標、達成時の明記
AA36: 全体 | AG36: 563853 | AL36: 153 | AO36: 564418 | AT36: 156 | AW36: =IF(DB36<50,DB36,"") ->  | AY36: 位 | DB36: 64 | DJ36: 共同研究契約の締結/判断（契約権限の集中）
AB37: 民間企業 のみ | AG37: 42545 | AL37: 30 | AO37: 35914 | AT37: 31 | AW37: =IF(DB37<50,DB37,"") ->  | AY37: 位 | DB37: 80 | DJ37: 共同研究の進捗管理とフィードバック
C38: 産学連携本部が関与した共同研究 | P38: 4 | T38: 件 | AC38: 大企業 | AG38: 40071 | AL38: 24 | AO38: 28024 | AT38: 24 | AW38: =IF(DB38<50,DB38,"") ->  | AY38: 位 | DB38: 60 | DJ38: 企業ニーズに適応した技術移転・事業化提案
D39: 内、マッチングを行い、契約締結した件数 | P39: 4 | T39: 件 | AC39: 中小企業 | AG39: 2474 | AL39: 6 | AO39: 7890 | AT39: 7 | AW39: =IF(DB39<50,DB39,"") ->  | AY39: 位 | BB39: ■産学連携活動の主な実用化事例 | DB39: 80 | DJ39: 共同研究等の企画・提案
I40: ※1,000万円以上の共同研究 | AL40: ※順位は2020年度の受入額を比較したもの | DB40: 弁護士 | DG40: 0 | DH40: 9 | DJ40: 契約書での成果目標、達成時の明記
DB41: 弁理士 | DG41: ～100万 | DH41: 11 | DJ41: 共同研究契約の締結/判断（契約権限の集中）
C42: 組織対組織による包括連携契約の締結数 | P42: 2 | T42: 件 | DB42: 税理士 | DG42: ～300万 | DH42: 7 | DJ42: 共同研究の進捗管理とフィードバック
D43: 内、1,000万円以上の実績がある相手方数 | P43: 0 | T43: 件 | DB43: 公認会計士 | DG43: ～500万 | DH43: 1 | DJ43: 企業ニーズに適応した技術移転・事業化提案
DA44: ○ | DB44: その他 | DG44: ～1000万 | DH44: 3
C45: 寄附講座・寄附研究部門の受入件数 | P45: 2 | V45: 件 | DG45: ～5000万
C46: 寄附講座・寄附研究部門の受入金額（千円） | P46: 34900 | DG46: ～1億
C47: 共同研究講座・共同研究部門の受入件数 | P47: 4 | V47: 件 | DG47: 1億以上
C48: 共同研究講座・共同研究部門の受入金額（千円） | P48: 138300
C52: 職務発明の帰属 | I52: 大学 | M52: 発明者 | Q52: 未設定 | CZ52: 大学 | DA52: 職務発明
AD53: 特許権実施等件数 | AL53: 159 | AS53: 実施等件数 あたり | DA53: 不実施
M54: 研究者あたり | AD54: 特許権実施等収入（千円） | AL54: 5316 | AS54: =IF(OR(AL53="",AL54=""),"",IFERROR(AL54/AL53,"")) -> 33.43396226 | CZ54: 5316000 | DA54: 特許等収入
C55: 特許出願件数 | I55: 39 | M55: =IF(OR(I25="",I55=""),"",IFERROR(I55/I25,"")) -> 0.03849950642
C56: 特許保有件数 | I56: 483 | M56: =IF(OR(I25="",I56=""),"",IFERROR(I56/I25,"")) -> 0.4768015795
C61: 大学発ベンチャー数 | J61: 7 | O61: 社
C62: Exit件数（IPO） | O62: 社 | P62: Exit件数（M&A） | Z62: 社
C63: 相談窓口 | K63: 支援ファンド | S63: インキュベーション施設
C64: 有 | G64: 無 | K64: 有 | O64: 無 | S64: 有 | W64: 無
C65: 知的財産戦略方針 | K65: 支援総額（千円） | S65: 部屋数 | W65: 9 | Z65: 件
C66: 有 | G66: 無 | S66: 利用件数 | W66: 8 | Z66: 件
A69: 1 | B69: 2 | C69: 3 | D69: 4 | E69: 5 | F69: 6 | G69: 7 | H69: 8 | I69: 9 | J69: 10 | K69: 11 | L69: 12 | M69: 13 | N69: 14 | O69: 15 | P69: 16 | Q69: 17 | R69: 18 | S69: 19 | T69: 20 | U69: 21 | V69: 22 | W69: 23 | X69: 24 | Y69: 25 | Z69: 26 | AA69: 27 | AB69: 28 | AC69: 29 | AD69: 30 | AE69: 31 | AF69: 32 | AG69: 33 | AH69: 34 | AI69: 35 | AJ69: 36 | AK69: 37 | AL69: 38 | AM69: 39 | AN69: 40 | AO69: 41 | AP69: 42 | AQ69: 43 | AR69: 44 | AS69: 45 | AT69: 46 | AU69: 47 | AV69: 48 | AW69: 49 | AX69: 50 | AY69: 51 | AZ69: 52 | BA69: 53 | BB69: 54 | BC69: 55 | BD69: 56 | BE69: 57 | BF69: 58 | BG69: 59 | BH69: 60 | BI69: 61 | BJ69: 62 | BK69: 63 | BL69: 64 | BM69: 65 | BN69: 66 | BO69: 67 | BP69: 68 | BQ69: 69 | BR69: 70 | BS69: 71 | BT69: 72 | BU69: 73 | BV69: 74 | BW69: 75 | BX69: 76 | BY69: 77 | BZ69: 78 | CA69: 79 | CB69: 80 | CC69: 81 | CD69: 82 | CE69: 83 | CF69: 84 | CG69: 85 | CH69: 86 | CI69: 87 | CJ69: 88 | CK69: 89 | CL69: 90 | CM69: 91 | CN69: 92 | CO69: 93 | CP69: 94 | CQ69: 95 | CR69: 96 | CS69: 97 | CT69: 98 | CU69: 99 | CV69: 100 | CW69: 101 | CX69: 102 | CY69: 103 | CZ69: 104 | DA69: 105 | DB69: 106 | DC69: 107 | DD69: 108 | DE69: 109 | DF69: 110 | DG69: 111 | DH69: 112 | DI69: 113 | DJ69: 114 | DK69: 115 | DL69: 116 | DM69: 117 | DN69: 118 | DO69: 119 | DP69: 120 | DQ69: 121 | DR69: 122 | DS69: 123 | DT69: 124 | DU69: 125
D70: 特許権収入
B71: 東京大学 | C71: 4495 | D71: 261744000
B72: 東北大学 | C72: 3533 | D72: 157139000
B73: 京都大学 | C73: 3044 | D73: 698373000
B74: 大阪大学 | C74: 2854 | D74: 509758000
B75: 東京工業大学 | C75: 1979 | D75: 57301000
B76: 九州大学 | C76: 1530 | D76: 601936000
B77: 名古屋大学 | C77: 1346 | D77: 72156000
B78: 北海道大学 | C78: 1167 | D78: 86700000
B79: 信州大学 | C79: 952 | D79: 29305000
B80: 広島大学 | C80: 921 | D80: 41265000
B81: 筑波大学 | C81: 850 | D81: 42694000
B82: 慶應義塾大学 | C82: 798 | D82: 67998000
B83: 千葉大学 | C83: 769 | D83: 17609000
B84: 岡山大学 | C84: 749 | D84: 8886000
B85: 山口大学 | C85: 700 | D85: 29167000
B86: 早稲田大学 | C86: 698 | D86: 21143000
B87: 名古屋工業大学 | C87: 638 | D87: 12139000
B88: 東京農工大学 | C88: 632 | D88: 44098000
B89: 九州工業大学 | C89: 611 | D89: 10288000
B90: 大阪府立大学 | C90: 573 | D90: 9177000
B91: 東京理科大学 | C91: 528 | D91: 15523000
B92: 神戸大学 | C92: 525 | D92: 78768000
B93: 静岡大学 | C93: 509 | D93: 8145000
B94: 群馬大学 | C94: 483 | D94: 5316000
B95: 熊本大学 | C95: 475 | D95: 29359000
B96: 近畿大学 | C96: 453 | D96: 82359000
B97: 長岡技術科学大学 | C97: 441 | D97: 3921000
B98: 横浜国立大学 | C98: 439 | D98: 5839000
B99: 奈良先端科学技術大学院大学 | C99: 427 | D99: 3542000
B100: 三重大学 | C100: 417 | D100: 10844000
B101: 鹿児島大学 | C101: 416 | D101: 14284000
B102: 大阪市立大学 | C102: 403 | D102: 2791000
B103: 東京都立大学 | C103: 398 | D103: 574000
B104: 山梨大学 | C104: 395 | D104: 5041000
B105: 香川大学 | C105: 389 | D105: 17113000
B106: 東京医科歯科大学 | C106: 377 | D106: 24076000
B107: 豊橋技術科学大学 | C107: 374 | D107: 5526000
B108: 徳島大学 | C108: 362 | D108: 131417000
B109: 電気通信大学 | C109: 355 | D109: 7847000
B110: 関西大学 | C110: 350 | D110: 5154000
B111: 鳥取大学 | C111: 340 | D111: 4814000
B112: 同志社大学 | C112: 337 | D112: 17850000
B113: 金沢大学 | C113: 337 | D113: 13893000
B114: 日本大学 | C114: 333 | D114: 38328000
B115: 山形大学 | C115: 323 | D115: 752000
B116: 北里大学 | C116: 315 | D116: 45190000
B117: 埼玉大学 | C117: 309 | D117: 2765000
B118: 富山大学 | C118: 305 | D118: 35859000
B119: 新潟大学 | C119: 301 | D119: 8943000
B120: 高知大学 | C120: 281 | D120: 26209000
B121: 立命館大学 | C121: 268 | D121: 2098000
B122: 秋田大学 | C122: 264 | D122: 1773000
B123: 神奈川大学 | C123: 263 | D123: 4940000
B124: 岐阜大学 | C124: 246 | D124: 7958000
B125: 弘前大学 | C125: 239 | D125: 10190000
B126: 宮崎大学 | C126: 236 | D126: 2168000
B127: 名城大学 | C127: 232 | D127: 2341000
B128: 兵庫県立大学 | C128: 232 | D128: 1142000
B129: 佐賀大学 | C129: 224 | D129: 4180000
B130: 福井大学 | C130: 221 | D130: 3913000
B131: 札幌医科大学 | C131: 218 | D131: 105462000
B132: 東海大学 | C132: 211 | D132: 5395000
B133: 京都工芸繊維大学 | C133: 201 | D133: 4782000
B134: 岩手大学 | C134: 198 | D134: 2552000
B135: 長崎大学 | C135: 194 | D135: 25364000
B136: 東京女子医科大学 | C136: 186 | D136: 2706000
B137: 横浜市立大学 | C137: 184 | D137: 50242000
B138: 北陸先端科学技術大学院大学 | C138: 175 | D138: 8323000
B139: 東京海洋大学 | C139: 175 | D139: 3222000
B140: 愛媛大学 | C140: 174 | D140: 35291000
B141: 宇都宮大学 | C141: 171 | D141: 2463000
B142: 高知工科大学 | C142: 165 | D142: 326000
B143: 千葉工業大学 | C143: 160 | D143: 0
B144: 茨城大学 | C144: 157 | D144: 2754000
B145: 福岡大学 | C145: 154 | D145: 874000
B146: 沖縄科学技術大学院大学 | C146: 152 | D146: 1100000
B147: 大分大学 | C147: 151 | D147: 1915000
B148: 金沢工業大学 | C148: 150 | D148: 2760000
B149: 中央大学 | C149: 144 | D149: 989000
B150: 浜松医科大学 | C150: 143 | D150: 3875000
B151: 島根大学 | C151: 137 | D151: 1166000
B152: 滋賀医科大学 | C152: 132 | D152: 2306000
B153: 関西学院大学 | C153: 128 | D153: 23880000
B154: 自治医科大学 | C154: 127 | D154: 6757000
B155: 久留米大学 | C155: 127 | D155: 1462000
B156: 上智大学 | C156: 126 | D156: 0
B157: 順天堂大学 | C157: 122 | D157: 3072000
B158: 中部大学 | C158: 118 | D158: 220000
B159: 東京電機大学 | C159: 102 | D159: 1180000
B160: 芝浦工業大学 | C160: 98 | D160: 1615000
B161: 埼玉医科大学 | C161: 96 | D161: 27468000
B162: 豊田工業大学 | C162: 96 | D162: 0
B163: 名古屋市立大学 | C163: 94 | D163: 17822000
B164: 京都府立医科大学 | C164: 94 | D164: 2128000
B165: 北見工業大学 | C165: 92 | D165: 995000
B166: 和歌山大学 | C166: 89 | D166: 4131000
B167: 富山県立大学 | C167: 87 | D167: 1375000
B168: 関東学院大学 | C168: 84 | D168: 14540000
B169: 明治大学 | C169: 81 | D169: 4886000
B170: 琉球大学 | C170: 77 | D170: 1146000
B171: 静岡県立大学 | C171: 72 | D171: 915000
B172: 福島大学 | C172: 67 | D172: 897000
B173: 藤田医科大学 | C173: 62 | D173: 0
B174: 帝京大学 | C174: 60 | D174: 2351000
B175: 兵庫医科大学 | C175: 60 | D175: 332000
B176: 旭川医科大学 | C176: 59 | D176: 1987000
B177: 日本医科大学 | C177: 55 | D177: 58243000
B178: 帯広畜産大学 | C178: 54 | D178: 2966000
B179: 東洋大学 | C179: 54 | D179: 633000
B180: 秋田県立大学 | C180: 52 | D180: 892000
B181: 奈良県立医科大学 | C181: 52 | D181: 743000
B182: 福岡工業大学 | C182: 52 | D182: 0
B183: 立教大学 | C183: 51 | D183: 231000
B184: 室蘭工業大学 | C184: 50 | D184: 0
B185: 昭和大学 | C185: 48 | D185: 4513000
B186: 聖マリアンナ医科大学 | C186: 46 | D186: 3204000
B187: 関西医科大学 | C187: 46 | D187: 781000
B188: 神奈川工科大学 | C188: 46 | D188: 289000
B189: 岡山理科大学 | C189: 45 | D189: 916000
B190: お茶の水女子大学 | C190: 45 | D190: 5000
B191: 広島市立大学 | C191: 44 | D191: 0
B192: 会津大学 | C192: 43 | D192: 33000
B193: 龍谷大学 | C193: 42 | D193: 1289000
B194: 玉川大学 | C194: 41 | D194: 119000
B195: 産業医科大学 | C195: 41 | D195: 7000
B196: 大阪工業大学 | C196: 39 | D196: 0
B197: 東京農業大学 | C197: 36 | D197: 748000
B198: 法政大学 | C198: 36 | D198: 550000
B199: 工学院大学 | C199: 35 | D199: 3516000
B200: 青山学院大学 | C200: 34 | D200: 0
B201: 北九州市立大学 | C201: 32 | D201: 2647000
B202: 東邦大学 | C202: 32 | D202: 23000
B203: 甲南大学 | C203: 31 | D203: 613000
B204: 石川県立大学 | C204: 31 | D204: 531000
B205: 東京都市大学 | C205: 30 | D205: 2371000
B206: 麻布大学 | C206: 28 | D206: 1505000
B207: 長崎県立大学 | C207: 28 | D207: 1001000
B208: 金沢医科大学 | C208: 27 | D208: 933000
B209: 滋賀県立大学 | C209: 27 | D209: 0
... 636 more rows

Sheet 埼玉大学 (hidden)
A1: 国立 | C1: 埼玉大学 | X1: 大学全体の経営理念における産学官連携活動の取組方針 | CY1: 103 | CZ1: 104 | DA1: 105 | DB1: 106 | DC1: 107 | DD1: 108 | DE1: 109 | DF1: 110 | DG1: 111 | DH1: 112 | DI1: 113 | DJ1: 114 | DK1: 115 | DL1: 116 | DM1: 117 | DN1: 118 | DO1: 119 | DP1: 120 | DQ1: 121 | DR1: 122 | DS1: 123 | DT1: 124 | DU1: 125 | DV1: 126 | DW1: 127 | DX1: 128 | DY1: 129
X2: 先端産業の創造・集積という首都圏埼玉の課題の解決と関連人材の育成のため、地域の産学官金連携により、文理融合科学研究・開発を推進、イノベーションを創出して地域活性を行う。
BB3: ＵＲＡ | BO3: URA当たり研究者数 | CA3: 戦略的産学連携経費
BC4: 実務担当者数 | BI4: 3 | BN4: 名 | BO4: =IF(OR(I25="",BI4=""),"",(IFERROR(I25/BI4,""))) -> 168.6666667 | CB4: 戦略的産学連携経費の設定 | CP4: 有 | CT4: 無 | CZ4: ある | DA4: インキュベーション施設
CB5: 戦略的産学連携経費の費目 | CZ5: ある | DA5: 相談窓口
A6: 基 礎 情 報 | BB6: 各種規程類の整備状況 | CB6: 戦略的産学連携経費の直接経費に対する割合 | CZ6: ある | DA6: 設立ポリシー | DI6: ◎ | DJ6: 産学連携ポリシー
BB7: 産学連携ポリシー | BM7: 職務発明規程（教職員のみ対象） | CZ7: ない | DA7: 支援ファンド | DI7: ◎ | DJ7: 知的財産ポリシー
B8: 大学の得意分野とその具体例 | BB8: 知的財産ポリシー | BM8: 職務発明規程（教職員、学生対象） | CA8: 人件費の企業負担 | DI8: ◎ | DJ8: 共同研究取扱規程
B9: ・大学が研究開発・事業化をインキュベーションする新たな産学官金共創ネットワークの構築 ・共創の場における先端産業分野での研究開発、プロジェクトおよび実践的PBLの推進 ・基礎研究から実用化・事業化まで一貫した研究開発管理体制 | AA9: 科研費 （千円） | AL9: その他政府系研究費 (千円) | AS9: その他補助・助成金等 (千円) | BB9: 共同研究取扱規程 | BM9: 発明補償関係規程（教職員のみ対象） | CB9: 教員人件費の企業負担に関する規程や制度 | CP9: 有 | CT9: 無 | DI9: ◎ | DJ9: 受託研究取扱規程
BB10: 受託研究取扱規程 | BM10: 発明補償関係規程（教職員、学生対象） | CB10: 教員人件費の企業負担の費目 | DI10: ◎ | DJ10: 研究成果有体物取扱規程
AA11: 633008 | AL11: 36003 | AS11: 0 | BB11: 研究成果有体物取扱規程 | BM11: 守秘義務に係る規程（教職員のみ対象） | CB11: 学生人件費の企業負担に関する規程や制度 | CP11: 有 | CT11: 無 | DI11: × | DJ11: 営業秘密管理に関する規程
BB12: 営業秘密管理に関する規程 | BM12: 守秘義務に係る規程（教職員、学生対象） | CB12: 学生人件費の企業負担の費目 | DI12: × | DJ12: 株式の取扱等規程、ポリシー
AA13: 間接経費割合 | AN13: 株式の保有 | AT13: 新株予約権の保有 | BB13: 株式の取扱等規程、ポリシー | DA13: × | DB13: 株式 | DI13: × | DJ13: 職務発明規程（教職員のみ対象）
AA14: 30％以上 | AN14: 有 | AQ14: 無 | AT14: 有 | AW14: 無 | BD14: ※各種規定類を整備している場合は、赤色で表示されます。 | CA14: 特別試験研究費税額控除制度 | DA14: × | DB14: 新株予約権 | DI14: ◎ | DJ14: 職務発明規程（教職員、学生対象）
CB15: 特別試験研究費税額控除制度の活用 | CP15: 有 | CT15: 無 | DI15: × | DJ15: 発明補償関係規程（教職員のみ対象）
B16: 産学官連携活動において今後重点化したい事項 | AA16: ■共同研究 | AG16: 2019年度 | AO16: 2020年度 | AW16: 順位※ | BB16: クロスアポイントメントの実績（人） | BK16: 大学等 | BN16: 公的機関 | BQ16: 民間企業 | BU16: その他機関 | DI16: ◎ | DJ16: 発明補償関係規程（教職員、学生対象）
B17: ・本格的な「組織」対「組織」の産学官連携に向け、学内外の連携機関間の有機的な連携を強化。 ・人材の育成・活用やワークショップを通じて国際的研究者ネットワークを構築するとともに、海外と地域の国際産学官連携クラスターの形成、GNT企業の創出を支援。 | AG17: 受入額（千円） | AL17: 件数 | AO17: 受入額（千円） | AT17: 件数 | BH17: 受入 | BK17: 0 | BN17: 0 | BQ17: 3 | BU17: 0 | DB17: 順位 | DI17: × | DJ17: 守秘義務に係る規程（教職員のみ対象）
AA18: 全体 | AG18: 228515 | AL18: 160 | AO18: 269386 | AT18: 137 | AW18: =IF(DB18<50,DB18,"") ->  | AY18: 位 | BH18: 派遣 | BK18: 2 | BN18: 2 | BQ18: 0 | BU18: 0 | DB18: 58 | DI18: ◎ | DJ18: 守秘義務に係る規程（教職員、学生対象）
AB19: 民間企業 のみ | AG19: 224503 | AL19: 147 | AO19: 267241 | AT19: 133 | AW19: =IF(DB19<50,DB19,"") -> 48 | AY19: 位 | DB19: 48
AC20: 大企業 | AG20: 148629 | AL20: 82 | AO20: 155432 | AT20: 63 | AW20: =IF(DB20<50,DB20,"") -> 48 | AY20: 位 | BB20: ■組織的産学連携活動の取組事例 | DB20: 48 | DI20: ない | DJ20: 戦略的産学連携経費の設定
AC21: 中小企業 | AG21: 72574 | AL21: 63 | AO21: 79886 | AT21: 55 | AW21: =IF(DB21<50,DB21,"") -> 39 | AY21: 位 | DB21: 39 | DI21: ない | DJ21: 教員人件費の企業負担に関する規程や制度
AL22: ※順位は2020年度の受入額を比較したもの | DI22: ない | DJ22: 学生人件費の企業負担に関する規程や制度
DB23: 0 | DC23: 20 | DI23: ある | DJ23: 特別試験研究費税額控除制度の活用
DB24: ～100万 | DC24: 24
B25: 研究者数 | I25: 506 | P25: 名 | DB25: ～300万 | DC25: 59
DB26: ～500万 | DC26: 22
DB27: ～1000万 | DC27: 6
DB28: ～5000万 | DC28: 2
DB29: ～1億 | DC29: 0 | DJ29: 共同研究等の企画・提案
B30: 産学連携担当部署 | O30: 実務者当たり研究者数 | DB30: 1億以上 | DC30: 0 | DJ30: 契約書での成果目標、達成時の明記
C31: 実務担当者数 | I31: 12 | N31: 名 | O31: =IF(OR(I25="",I31=""),"",IFERROR($I$25/I31,"")) -> 42.16666667 | DJ31: 共同研究契約の締結/判断（契約権限の集中）
C32: 専門家の配置 | I32: 弁護士 | L32: 弁理士 | O32: 税理士 | R32: 公認会計士 | V32: その他 | DJ32: 共同研究の進捗管理とフィードバック
I33: ※専門家を配置している場合は、赤色で表示されます。 | DJ33: 企業ニーズに適応した技術移転・事業化提案
AA34: ■受託研究 | AG34: 2019年度 | AO34: 2020年度 | AW34: 順位※ | DJ34: 共同研究等の企画・提案
AG35: 受入額（千円） | AL35: 件数 | AO35: 受入額（千円） | AT35: 件数 | DB35: 順位 | DJ35: 契約書での成果目標、達成時の明記
AA36: 全体 | AG36: 347288 | AL36: 47 | AO36: 316140 | AT36: 53 | AW36: =IF(DB36<50,DB36,"") ->  | AY36: 位 | DB36: 89 | DJ36: 共同研究契約の締結/判断（契約権限の集中）
AB37: 民間企業 のみ | AG37: 9697 | AL37: 7 | AO37: 10728 | AT37: 10 | AW37: =IF(DB37<50,DB37,"") ->  | AY37: 位 | DB37: 153 | DJ37: 共同研究の進捗管理とフィードバック
C38: 産学連携本部が関与した共同研究 | P38: 0 | T38: 件 | AC38: 大企業 | AG38: 9634 | AL38: 6 | AO38: 8748 | AT38: 7 | AW38: =IF(DB38<50,DB38,"") ->  | AY38: 位 | DB38: 129 | DJ38: 企業ニーズに適応した技術移転・事業化提案
D39: 内、マッチングを行い、契約締結した件数 | P39: 0 | T39: 件 | AC39: 中小企業 | AG39: 63 | AL39: 1 | AO39: 1980 | AT39: 3 | AW39: =IF(DB39<50,DB39,"") ->  | AY39: 位 | BB39: ■産学連携活動の主な実用化事例 | DB39: 171 | DJ39: 共同研究等の企画・提案
I40: ※1,000万円以上の共同研究 | AL40: ※順位は2020年度の受入額を比較したもの | DB40: 弁護士 | DG40: 0 | DH40: 0 | DJ40: 契約書での成果目標、達成時の明記
DA41: ○ | DB41: 弁理士 | DG41: ～100万 | DH41: 5 | DJ41: 共同研究契約の締結/判断（契約権限の集中）
C42: 組織対組織による包括連携契約の締結数 | P42: 2 | T42: 件 | DB42: 税理士 | DG42: ～300万 | DH42: 4 | DJ42: 共同研究の進捗管理とフィードバック
D43: 内、1,000万円以上の実績がある相手方数 | P43: 1 | T43: 件 | DB43: 公認会計士 | DG43: ～500万 | DH43: 1 | DJ43: 企業ニーズに適応した技術移転・事業化提案
DA44: ○ | DB44: その他 | DG44: ～1000万 | DH44: 0
C45: 寄附講座・寄附研究部門の受入件数 | P45: 2 | V45: 件 | DG45: ～5000万 | DH45: 0
C46: 寄附講座・寄附研究部門の受入金額（千円） | P46: 2800 | DG46: ～1億 | DH46: 0
C47: 共同研究講座・共同研究部門の受入件数 | P47: 0 | V47: 件 | DG47: 1億以上 | DH47: 0
C48: 共同研究講座・共同研究部門の受入金額（千円） | P48: 0
C52: 職務発明の帰属 | I52: 大学 | M52: 発明者 | Q52: 未設定 | CZ52: 大学 | DA52: 職務発明
AD53: 特許権実施等件数 | AL53: 55 | AS53: 実施等件数 あたり | DA53: 不実施
M54: 研究者あたり | AD54: 特許権実施等収入（千円） | AL54: 2765 | AS54: =IF(OR(AL53="",AL54=""),"",IFERROR(AL54/AL53,"")) -> 50.27272727 | CZ54: 2765000 | DA54: 特許等収入
C55: 特許出願件数 | I55: 25 | M55: =IF(OR(I25="",I55=""),"",IFERROR(I55/I25,"")) -> 0.04940711462
C56: 特許保有件数 | I56: 309 | M56: =IF(OR(I25="",I56=""),"",IFERROR(I56/I25,"")) -> 0.6106719368
C61: 大学発ベンチャー数 | J61: 3 | O61: 社
C62: Exit件数（IPO） | O62: 社 | P62: Exit件数（M&A） | Z62: 社
C63: 相談窓口 | K63: 支援ファンド | S63: インキュベーション施設
C64: 有 | G64: 無 | K64: 有 | O64: 無 | S64: 有 | W64: 無
C65: 知的財産戦略方針 | K65: 支援総額（千円） | S65: 部屋数 | W65: 17 | Z65: 件
C66: 有 | G66: 無 | S66: 利用件数 | W66: 5 | Z66: 件
A69: 1 | B69: 2 | C69: 3 | D69: 4 | E69: 5 | F69: 6 | G69: 7 | H69: 8 | I69: 9 | J69: 10 | K69: 11 | L69: 12 | M69: 13 | N69: 14 | O69: 15 | P69: 16 | Q69: 17 | R69: 18 | S69: 19 | T69: 20 | U69: 21 | V69: 22 | W69: 23 | X69: 24 | Y69: 25 | Z69: 26 | AA69: 27 | AB69: 28 | AC69: 29 | AD69: 30 | AE69: 31 | AF69: 32 | AG69: 33 | AH69: 34 | AI69: 35 | AJ69: 36 | AK69: 37 | AL69: 38 | AM69: 39 | AN69: 40 | AO69: 41 | AP69: 42 | AQ69: 43 | AR69: 44 | AS69: 45 | AT69: 46 | AU69: 47 | AV69: 48 | AW69: 49 | AX69: 50 | AY69: 51 | AZ69: 52 | BA69: 53 | BB69: 54 | BC69: 55 | BD69: 56 | BE69: 57 | BF69: 58 | BG69: 59 | BH69: 60 | BI69: 61 | BJ69: 62 | BK69: 63 | BL69: 64 | BM69: 65 | BN69: 66 | BO69: 67 | BP69: 68 | BQ69: 69 | BR69: 70 | BS69: 71 | BT69: 72 | BU69: 73 | BV69: 74 | BW69: 75 | BX69: 76 | BY69: 77 | BZ69: 78 | CA69: 79 | CB69: 80 | CC69: 81 | CD69: 82 | CE69: 83 | CF69: 84 | CG69: 85 | CH69: 86 | CI69: 87 | CJ69: 88 | CK69: 89 | CL69: 90 | CM69: 91 | CN69: 92 | CO69: 93 | CP69: 94 | CQ69: 95 | CR69: 96 | CS69: 97 | CT69: 98 | CU69: 99 | CV69: 100 | CW69: 101 | CX69: 102 | CY69: 103 | CZ69: 104 | DA69: 105 | DB69: 106 | DC69: 107 | DD69: 108 | DE69: 109 | DF69: 110 | DG69: 111 | DH69: 112 | DI69: 113 | DJ69: 114 | DK69: 115 | DL69: 116 | DM69: 117 | DN69: 118 | DO69: 119 | DP69: 120 | DQ69: 121 | DR69: 122 | DS69: 123 | DT69: 124 | DU69: 125
D70: 特許権収入
B71: 東京大学 | C71: 4495 | D71: 261744000
B72: 東北大学 | C72: 3533 | D72: 157139000
B73: 京都大学 | C73: 3044 | D73: 698373000
B74: 大阪大学 | C74: 2854 | D74: 509758000
B75: 東京工業大学 | C75: 1979 | D75: 57301000
B76: 九州大学 | C76: 1530 | D76: 601936000
B77: 名古屋大学 | C77: 1346 | D77: 72156000
B78: 北海道大学 | C78: 1167 | D78: 86700000
B79: 信州大学 | C79: 952 | D79: 29305000
B80: 広島大学 | C80: 921 | D80: 41265000
B81: 筑波大学 | C81: 850 | D81: 42694000
B82: 慶應義塾大学 | C82: 798 | D82: 67998000
B83: 千葉大学 | C83: 769 | D83: 17609000
B84: 岡山大学 | C84: 749 | D84: 8886000
B85: 山口大学 | C85: 700 | D85: 29167000
B86: 早稲田大学 | C86: 698 | D86: 21143000
B87: 名古屋工業大学 | C87: 638 | D87: 12139000
B88: 東京農工大学 | C88: 632 | D88: 44098000
B89: 九州工業大学 | C89: 611 | D89: 10288000
B90: 大阪府立大学 | C90: 573 | D90: 9177000
B91: 東京理科大学 | C91: 528 | D91: 15523000
B92: 神戸大学 | C92: 525 | D92: 78768000
B93: 静岡大学 | C93: 509 | D93: 8145000
B94: 群馬大学 | C94: 483 | D94: 5316000
B95: 熊本大学 | C95: 475 | D95: 29359000
B96: 近畿大学 | C96: 453 | D96: 82359000
B97: 長岡技術科学大学 | C97: 441 | D97: 3921000
B98: 横浜国立大学 | C98: 439 | D98: 5839000
B99: 奈良先端科学技術大学院大学 | C99: 427 | D99: 3542000
B100: 三重大学 | C100: 417 | D100: 10844000
B101: 鹿児島大学 | C101: 416 | D101: 14284000
B102: 大阪市立大学 | C102: 403 | D102: 2791000
B103: 東京都立大学 | C103: 398 | D103: 574000
B104: 山梨大学 | C104: 395 | D104: 5041000
B105: 香川大学 | C105: 389 | D105: 17113000
B106: 東京医科歯科大学 | C106: 377 | D106: 24076000
B107: 豊橋技術科学大学 | C107: 374 | D107: 5526000
B108: 徳島大学 | C108: 362 | D108: 131417000
B109: 電気通信大学 | C109: 355 | D109: 7847000
B110: 関西大学 | C110: 350 | D110: 5154000
B111: 鳥取大学 | C111: 340 | D111: 4814000
B112: 同志社大学 | C112: 337 | D112: 17850000
B113: 金沢大学 | C113: 337 | D113: 13893000
B114: 日本大学 | C114: 333 | D114: 38328000
B115: 山形大学 | C115: 323 | D115: 752000
B116: 北里大学 | C116: 315 | D116: 45190000
B117: 埼玉大学 | C117: 309 | D117: 2765000
B118: 富山大学 | C118: 305 | D118: 35859000
B119: 新潟大学 | C119: 301 | D119: 8943000
B120: 高知大学 | C120: 281 | D120: 26209000
B121: 立命館大学 | C121: 268 | D121: 2098000
B122: 秋田大学 | C122: 264 | D122: 1773000
B123: 神奈川大学 | C123: 263 | D123: 4940000
B124: 岐阜大学 | C124: 246 | D124: 7958000
B125: 弘前大学 | C125: 239 | D125: 10190000
B126: 宮崎大学 | C126: 236 | D126: 2168000
B127: 名城大学 | C127: 232 | D127: 2341000
B128: 兵庫県立大学 | C128: 232 | D128: 1142000
B129: 佐賀大学 | C129: 224 | D129: 4180000
B130: 福井大学 | C130: 221 | D130: 3913000
B131: 札幌医科大学 | C131: 218 | D131: 105462000
B132: 東海大学 | C132: 211 | D132: 5395000
B133: 京都工芸繊維大学 | C133: 201 | D133: 4782000
B134: 岩手大学 | C134: 198 | D134: 2552000
B135: 長崎大学 | C135: 194 | D135: 25364000
B136: 東京女子医科大学 | C136: 186 | D136: 2706000
B137: 横浜市立大学 | C137: 184 | D137: 50242000
B138: 北陸先端科学技術大学院大学 | C138: 175 | D138: 8323000
B139: 東京海洋大学 | C139: 175 | D139: 3222000
B140: 愛媛大学 | C140: 174 | D140: 35291000
B141: 宇都宮大学 | C141: 171 | D141: 2463000
B142: 高知工科大学 | C142: 165 | D142: 326000
B143: 千葉工業大学 | C143: 160 | D143: 0
B144: 茨城大学 | C144: 157 | D144: 2754000
B145: 福岡大学 | C145: 154 | D145: 874000
B146: 沖縄科学技術大学院大学 | C146: 152 | D146: 1100000
B147: 大分大学 | C147: 151 | D147: 1915000
B148: 金沢工業大学 | C148: 150 | D148: 2760000
B149: 中央大学 | C149: 144 | D149: 989000
B150: 浜松医科大学 | C150: 143 | D150: 3875000
B151: 島根大学 | C151: 137 | D151: 1166000
B152: 滋賀医科大学 | C152: 132 | D152: 2306000
B153: 関西学院大学 | C153: 128 | D153: 23880000
B154: 自治医科大学 | C154: 127 | D154: 6757000
B155: 久留米大学 | C155: 127 | D155: 1462000
B156: 上智大学 | C156: 126 | D156: 0
B157: 順天堂大学 | C157: 122 | D157: 3072000
B158: 中部大学 | C158: 118 | D158: 220000
B159: 東京電機大学 | C159: 102 | D159: 1180000
B160: 芝浦工業大学 | C160: 98 | D160: 1615000
B161: 埼玉医科大学 | C161: 96 | D161: 27468000
B162: 豊田工業大学 | C162: 96 | D162: 0
B163: 名古屋市立大学 | C163: 94 | D163: 17822000
B164: 京都府立医科大学 | C164: 94 | D164: 2128000
B165: 北見工業大学 | C165: 92 | D165: 995000
B166: 和歌山大学 | C166: 89 | D166: 4131000
B167: 富山県立大学 | C167: 87 | D167: 1375000
B168: 関東学院大学 | C168: 84 | D168: 14540000
B169: 明治大学 | C169: 81 | D169: 4886000
B170: 琉球大学 | C170: 77 | D170: 1146000
B171: 静岡県立大学 | C171: 72 | D171: 915000
B172: 福島大学 | C172: 67 | D172: 897000
B173: 藤田医科大学 | C173: 62 | D173: 0
B174: 帝京大学 | C174: 60 | D174: 2351000
B175: 兵庫医科大学 | C175: 60 | D175: 332000
B176: 旭川医科大学 | C176: 59 | D176: 1987000
B177: 日本医科大学 | C177: 55 | D177: 58243000
B178: 帯広畜産大学 | C178: 54 | D178: 2966000
B179: 東洋大学 | C179: 54 | D179: 633000
B180: 秋田県立大学 | C180: 52 | D180: 892000
B181: 奈良県立医科大学 | C181: 52 | D181: 743000
B182: 福岡工業大学 | C182: 52 | D182: 0
B183: 立教大学 | C183: 51 | D183: 231000
B184: 室蘭工業大学 | C184: 50 | D184: 0
B185: 昭和大学 | C185: 48 | D185: 4513000
B186: 聖マリアンナ医科大学 | C186: 46 | D186: 3204000
B187: 関西医科大学 | C187: 46 | D187: 781000
B188: 神奈川工科大学 | C188: 46 | D188: 289000
B189: 岡山理科大学 | C189: 45 | D189: 916000
B190: お茶の水女子大学 | C190: 45 | D190: 5000
B191: 広島市立大学 | C191: 44 | D191: 0
B192: 会津大学 | C192: 43 | D192: 33000
B193: 龍谷大学 | C193: 42 | D193: 1289000
B194: 玉川大学 | C194: 41 | D194: 119000
B195: 産業医科大学 | C195: 41 | D195: 7000
B196: 大阪工業大学 | C196: 39 | D196: 0
B197: 東京農業大学 | C197: 36 | D197: 748000
B198: 法政大学 | C198: 36 | D198: 550000
B199: 工学院大学 | C199: 35 | D199: 3516000
B200: 青山学院大学 | C200: 34 | D200: 0
B201: 北九州市立大学 | C201: 32 | D201: 2647000
B202: 東邦大学 | C202: 32 | D202: 23000
B203: 甲南大学 | C203: 31 | D203: 613000
B204: 石川県立大学 | C204: 31 | D204: 531000
B205: 東京都市大学 | C205: 30 | D205: 2371000
B206: 麻布大学 | C206: 28 | D206: 1505000
B207: 長崎県立大学 | C207: 28 | D207: 1001000
B208: 金沢医科大学 | C208: 27 | D208: 933000
B209: 滋賀県立大学 | C209: 27 | D209: 0
... 636 more rows

Sheet 千葉大学 (hidden)
A1: 国立 | C1: 千葉大学 | X1: 大学全体の経営理念における産学官連携活動の取組方針 | CY1: 103 | CZ1: 104 | DA1: 105 | DB1: 106 | DC1: 107 | DD1: 108 | DE1: 109 | DF1: 110 | DG1: 111 | DH1: 112 | DI1: 113 | DJ1: 114 | DK1: 115 | DL1: 116 | DM1: 117 | DN1: 118 | DO1: 119 | DP1: 120 | DQ1: 121 | DR1: 122 | DS1: 123 | DT1: 124 | DU1: 125 | DV1: 126 | DW1: 127 | DX1: 128 | DY1: 129
X2: イノベーションの創出に向けた産業連携研究の推進・強化、研究成果の社会実装に向けた知的財産の確保と活用、イノベーション創出人材の育成と組織改革。
BB3: ＵＲＡ | BO3: URA当たり研究者数 | CA3: 戦略的産学連携経費
BC4: 実務担当者数 | BI4: 15 | BN4: 名 | BO4: =IF(OR(I25="",BI4=""),"",(IFERROR(I25/BI4,""))) -> 121.3333333 | CB4: 戦略的産学連携経費の設定 | CP4: 有 | CT4: 無 | CZ4: ある | DA4: インキュベーション施設
CB5: 戦略的産学連携経費の費目 | CZ5: ある | DA5: 相談窓口
A6: 基 礎 情 報 | BB6: 各種規程類の整備状況 | CB6: 戦略的産学連携経費の直接経費に対する割合 | CZ6: ある | DA6: 設立ポリシー | DI6: ◇ | DJ6: 産学連携ポリシー
BB7: 産学連携ポリシー | BM7: 職務発明規程（教職員のみ対象） | CZ7: ない | DA7: 支援ファンド | DI7: ◎ | DJ7: 知的財産ポリシー
B8: 大学の得意分野とその具体例 | BB8: 知的財産ポリシー | BM8: 職務発明規程（教職員、学生対象） | CA8: 人件費の企業負担 | DI8: ◎ | DJ8: 共同研究取扱規程
B9: イノベーション創出のための新たな産学官連携拠点として「イノベーション・マネージメント・オフィス（IMO)」を設立し、必要な機能を集約かつ拡充して連動させ、外部資金獲得を大幅に増加させることを目指すため、既存組織を解体し、研究推進・産学連携部門の抜本的な組織改革のため、機能の集約化を行った。 | AA9: 科研費 （千円） | AL9: その他政府系研究費 (千円) | AS9: その他補助・助成金等 (千円) | BB9: 共同研究取扱規程 | BM9: 発明補償関係規程（教職員のみ対象） | CB9: 教員人件費の企業負担に関する規程や制度 | CP9: 有 | CT9: 無 | DI9: ◎ | DJ9: 受託研究取扱規程
BB10: 受託研究取扱規程 | BM10: 発明補償関係規程（教職員、学生対象） | CB10: 教員人件費の企業負担の費目 | DI10: ◎ | DJ10: 研究成果有体物取扱規程
AA11: 2584640 | AL11: 190228 | AS11: 0 | BB11: 研究成果有体物取扱規程 | BM11: 守秘義務に係る規程（教職員のみ対象） | CB11: 学生人件費の企業負担に関する規程や制度 | CP11: 有 | CT11: 無 | DI11: ◇ | DJ11: 営業秘密管理に関する規程
BB12: 営業秘密管理に関する規程 | BM12: 守秘義務に係る規程（教職員、学生対象） | CB12: 学生人件費の企業負担の費目 | DI12: ◎ | DJ12: 株式の取扱等規程、ポリシー
AA13: 間接経費割合 | AN13: 株式の保有 | AT13: 新株予約権の保有 | BB13: 株式の取扱等規程、ポリシー | DA13: × | DB13: 株式 | DI13: ◎ | DJ13: 職務発明規程（教職員のみ対象）
AA14: 30％以上 | AN14: 有 | AQ14: 無 | AT14: 有 | AW14: 無 | BD14: ※各種規定類を整備している場合は、赤色で表示されます。 | CA14: 特別試験研究費税額控除制度 | DA14: × | DB14: 新株予約権 | DI14: × | DJ14: 職務発明規程（教職員、学生対象）
CB15: 特別試験研究費税額控除制度の活用 | CP15: 有 | CT15: 無 | DI15: ◇ | DJ15: 発明補償関係規程（教職員のみ対象）
B16: 産学官連携活動において今後重点化したい事項 | AA16: ■共同研究 | AG16: 2019年度 | AO16: 2020年度 | AW16: 順位※ | BB16: クロスアポイントメントの実績（人） | BK16: 大学等 | BN16: 公的機関 | BQ16: 民間企業 | BU16: その他機関 | DI16: × | DJ16: 発明補償関係規程（教職員、学生対象）
B17: イノベーション創出へとつながる流れを循環させる「イノベーション・エコシステム」の取組を推進する具体的な施策。 | AG17: 受入額（千円） | AL17: 件数 | AO17: 受入額（千円） | AT17: 件数 | BH17: 受入 | BK17: 1 | BN17: 0 | BQ17: 2 | BU17: 3 | DB17: 順位 | DI17: ◇ | DJ17: 守秘義務に係る規程（教職員のみ対象）
AA18: 全体 | AG18: 839163 | AL18: 418 | AO18: 935813 | AT18: 403 | AW18: =IF(DB18<50,DB18,"") -> 15 | AY18: 位 | BH18: 派遣 | BK18: 3 | BN18: 1 | BQ18: 0 | BU18: 2 | DB18: 15 | DI18: × | DJ18: 守秘義務に係る規程（教職員、学生対象）
AB19: 民間企業 のみ | AG19: 675574 | AL19: 380 | AO19: 712836 | AT19: 362 | AW19: =IF(DB19<50,DB19,"") -> 17 | AY19: 位 | DB19: 17
AC20: 大企業 | AG20: 514710 | AL20: 273 | AO20: 530210 | AT20: 253 | AW20: =IF(DB20<50,DB20,"") -> 17 | AY20: 位 | BB20: ■組織的産学連携活動の取組事例 | DB20: 17 | DI20: ない | DJ20: 戦略的産学連携経費の設定
AC21: 中小企業 | AG21: 160864 | AL21: 107 | AO21: 179022 | AT21: 103 | AW21: =IF(DB21<50,DB21,"") -> 22 | AY21: 位 | DB21: 22 | DI21: ない | DJ21: 教員人件費の企業負担に関する規程や制度
AL22: ※順位は2020年度の受入額を比較したもの | DI22: ない | DJ22: 学生人件費の企業負担に関する規程や制度
DB23: 0 | DC23: 80 | DI23: ある | DJ23: 特別試験研究費税額控除制度の活用
DB24: ～100万 | DC24: 93
B25: 研究者数 | I25: 1820 | P25: 名 | DB25: ～300万 | DC25: 118
DB26: ～500万 | DC26: 36
DB27: ～1000万 | DC27: 19
DB28: ～5000万 | DC28: 16
DB29: ～1億 | DC29: 0 | DJ29: 共同研究等の企画・提案
B30: 産学連携担当部署 | O30: 実務者当たり研究者数 | DB30: 1億以上 | DC30: 0 | DJ30: 契約書での成果目標、達成時の明記
C31: 実務担当者数 | I31: 39 | N31: 名 | O31: =IF(OR(I25="",I31=""),"",IFERROR($I$25/I31,"")) -> 46.66666667 | DJ31: 共同研究契約の締結/判断（契約権限の集中）
C32: 専門家の配置 | I32: 弁護士 | L32: 弁理士 | O32: 税理士 | R32: 公認会計士 | V32: その他 | DJ32: 共同研究の進捗管理とフィードバック
I33: ※専門家を配置している場合は、赤色で表示されます。 | DJ33: 企業ニーズに適応した技術移転・事業化提案
AA34: ■受託研究 | AG34: 2019年度 | AO34: 2020年度 | AW34: 順位※ | DJ34: 共同研究等の企画・提案
AG35: 受入額（千円） | AL35: 件数 | AO35: 受入額（千円） | AT35: 件数 | DB35: 順位 | DJ35: 契約書での成果目標、達成時の明記
AA36: 全体 | AG36: 2354026 | AL36: 359 | AO36: 2312234 | AT36: 351 | AW36: =IF(DB36<50,DB36,"") -> 18 | AY36: 位 | DB36: 18 | DJ36: 共同研究契約の締結/判断（契約権限の集中）
AB37: 民間企業 のみ | AG37: 334770 | AL37: 78 | AO37: 280312 | AT37: 86 | AW37: =IF(DB37<50,DB37,"") -> 14 | AY37: 位 | DB37: 14 | DJ37: 共同研究の進捗管理とフィードバック
C38: 産学連携本部が関与した共同研究 | P38: 1 | T38: 件 | AC38: 大企業 | AG38: 183167 | AL38: 57 | AO38: 236943 | AT38: 55 | AW38: =IF(DB38<50,DB38,"") -> 7 | AY38: 位 | DB38: 7 | DJ38: 企業ニーズに適応した技術移転・事業化提案
D39: 内、マッチングを行い、契約締結した件数 | P39: 0 | T39: 件 | AC39: 中小企業 | AG39: 151603 | AL39: 21 | AO39: 22524 | AT39: 20 | AW39: =IF(DB39<50,DB39,"") -> 30 | AY39: 位 | BB39: ■産学連携活動の主な実用化事例 | DB39: 30 | DJ39: 共同研究等の企画・提案
I40: ※1,000万円以上の共同研究 | AL40: ※順位は2020年度の受入額を比較したもの | DB40: 弁護士 | DG40: 0 | DH40: 31 | DJ40: 契約書での成果目標、達成時の明記
DA41: ○ | DB41: 弁理士 | DG41: ～100万 | DH41: 24 | DJ41: 共同研究契約の締結/判断（契約権限の集中）
C42: 組織対組織による包括連携契約の締結数 | P42: 13 | T42: 件 | DB42: 税理士 | DG42: ～300万 | DH42: 18 | DJ42: 共同研究の進捗管理とフィードバック
D43: 内、1,000万円以上の実績がある相手方数 | P43: 0 | T43: 件 | DB43: 公認会計士 | DG43: ～500万 | DH43: 4 | DJ43: 企業ニーズに適応した技術移転・事業化提案
DA44: ○ | DB44: その他 | DG44: ～1000万 | DH44: 4
C45: 寄附講座・寄附研究部門の受入件数 | V45: 件 | DG45: ～5000万 | DH45: 4
C46: 寄附講座・寄附研究部門の受入金額（千円） | DG46: ～1億 | DH46: 0
C47: 共同研究講座・共同研究部門の受入件数 | P47: 3 | V47: 件 | DG47: 1億以上 | DH47: 1
C48: 共同研究講座・共同研究部門の受入金額（千円） | P48: 41672
C52: 職務発明の帰属 | I52: 大学 | M52: 発明者 | Q52: 未設定 | CZ52: 大学 | DA52: 職務発明
AD53: 特許権実施等件数 | AL53: 357 | AS53: 実施等件数 あたり | DA53: 不実施
M54: 研究者あたり | AD54: 特許権実施等収入（千円） | AL54: 17609 | AS54: =IF(OR(AL53="",AL54=""),"",IFERROR(AL54/AL53,"")) -> 49.32492997 | CZ54: 17609000 | DA54: 特許等収入
C55: 特許出願件数 | I55: 116 | M55: =IF(OR(I25="",I55=""),"",IFERROR(I55/I25,"")) -> 0.06373626374
C56: 特許保有件数 | I56: 769 | M56: =IF(OR(I25="",I56=""),"",IFERROR(I56/I25,"")) -> 0.4225274725
C61: 大学発ベンチャー数 | J61: 29 | O61: 社
C62: Exit件数（IPO） | J62: 1 | O62: 社 | P62: Exit件数（M&A） | W62: 0 | Z62: 社
C63: 相談窓口 | K63: 支援ファンド | S63: インキュベーション施設
C64: 有 | G64: 無 | K64: 有 | O64: 無 | S64: 有 | W64: 無
C65: 知的財産戦略方針 | K65: 支援総額（千円） | S65: 部屋数 | W65: 52 | Z65: 件
C66: 有 | G66: 無 | S66: 利用件数 | W66: 12 | Z66: 件
A69: 1 | B69: 2 | C69: 3 | D69: 4 | E69: 5 | F69: 6 | G69: 7 | H69: 8 | I69: 9 | J69: 10 | K69: 11 | L69: 12 | M69: 13 | N69: 14 | O69: 15 | P69: 16 | Q69: 17 | R69: 18 | S69: 19 | T69: 20 | U69: 21 | V69: 22 | W69: 23 | X69: 24 | Y69: 25 | Z69: 26 | AA69: 27 | AB69: 28 | AC69: 29 | AD69: 30 | AE69: 31 | AF69: 32 | AG69: 33 | AH69: 34 | AI69: 35 | AJ69: 36 | AK69: 37 | AL69: 38 | AM69: 39 | AN69: 40 | AO69: 41 | AP69: 42 | AQ69: 43 | AR69: 44 | AS69: 45 | AT69: 46 | AU69: 47 | AV69: 48 | AW69: 49 | AX69: 50 | AY69: 51 | AZ69: 52 | BA69: 53 | BB69: 54 | BC69: 55 | BD69: 56 | BE69: 57 | BF69: 58 | BG69: 59 | BH69: 60 | BI69: 61 | BJ69: 62 | BK69: 63 | BL69: 64 | BM69: 65 | BN69: 66 | BO69: 67 | BP69: 68 | BQ69: 69 | BR69: 70 | BS69: 71 | BT69: 72 | BU69: 73 | BV69: 74 | BW69: 75 | BX69: 76 | BY69: 77 | BZ69: 78 | CA69: 79 | CB69: 80 | CC69: 81 | CD69: 82 | CE69: 83 | CF69: 84 | CG69: 85 | CH69: 86 | CI69: 87 | CJ69: 88 | CK69: 89 | CL69: 90 | CM69: 91 | CN69: 92 | CO69: 93 | CP69: 94 | CQ69: 95 | CR69: 96 | CS69: 97 | CT69: 98 | CU69: 99 | CV69: 100 | CW69: 101 | CX69: 102 | CY69: 103 | CZ69: 104 | DA69: 105 | DB69: 106 | DC69: 107 | DD69: 108 | DE69: 109 | DF69: 110 | DG69: 111 | DH69: 112 | DI69: 113 | DJ69: 114 | DK69: 115 | DL69: 116 | DM69: 117 | DN69: 118 | DO69: 119 | DP69: 120 | DQ69: 121 | DR69: 122 | DS69: 123 | DT69: 124 | DU69: 125
D70: 特許権収入
B71: 東京大学 | C71: 4495 | D71: 261744000
B72: 東北大学 | C72: 3533 | D72: 157139000
B73: 京都大学 | C73: 3044 | D73: 698373000
B74: 大阪大学 | C74: 2854 | D74: 509758000
B75: 東京工業大学 | C75: 1979 | D75: 57301000
B76: 九州大学 | C76: 1530 | D76: 601936000
B77: 名古屋大学 | C77: 1346 | D77: 72156000
B78: 北海道大学 | C78: 1167 | D78: 86700000
B79: 信州大学 | C79: 952 | D79: 29305000
B80: 広島大学 | C80: 921 | D80: 41265000
B81: 筑波大学 | C81: 850 | D81: 42694000
B82: 慶應義塾大学 | C82: 798 | D82: 67998000
B83: 千葉大学 | C83: 769 | D83: 17609000
B84: 岡山大学 | C84: 749 | D84: 8886000
B85: 山口大学 | C85: 700 | D85: 29167000
B86: 早稲田大学 | C86: 698 | D86: 21143000
B87: 名古屋工業大学 | C87: 638 | D87: 12139000
B88: 東京農工大学 | C88: 632 | D88: 44098000
B89: 九州工業大学 | C89: 611 | D89: 10288000
B90: 大阪府立大学 | C90: 573 | D90: 9177000
B91: 東京理科大学 | C91: 528 | D91: 15523000
B92: 神戸大学 | C92: 525 | D92: 78768000
B93: 静岡大学 | C93: 509 | D93: 8145000
B94: 群馬大学 | C94: 483 | D94: 5316000
B95: 熊本大学 | C95: 475 | D95: 29359000
B96: 近畿大学 | C96: 453 | D96: 82359000
B97: 長岡技術科学大学 | C97: 441 | D97: 3921000
B98: 横浜国立大学 | C98: 439 | D98: 5839000
B99: 奈良先端科学技術大学院大学 | C99: 427 | D99: 3542000
B100: 三重大学 | C100: 417 | D100: 10844000
B101: 鹿児島大学 | C101: 416 | D101: 14284000
B102: 大阪市立大学 | C102: 403 | D102: 2791000
B103: 東京都立大学 | C103: 398 | D103: 574000
B104: 山梨大学 | C104: 395 | D104: 5041000
B105: 香川大学 | C105: 389 | D105: 17113000
B106: 東京医科歯科大学 | C106: 377 | D106: 24076000
B107: 豊橋技術科学大学 | C107: 374 | D107: 5526000
B108: 徳島大学 | C108: 362 | D108: 131417000
B109: 電気通信大学 | C109: 355 | D109: 7847000
B110: 関西大学 | C110: 350 | D110: 5154000
B111: 鳥取大学 | C111: 340 | D111: 4814000
B112: 同志社大学 | C112: 337 | D112: 17850000
B113: 金沢大学 | C113: 337 | D113: 13893000
B114: 日本大学 | C114: 333 | D114: 38328000
B115: 山形大学 | C115: 323 | D115: 752000
B116: 北里大学 | C116: 315 | D116: 45190000
B117: 埼玉大学 | C117: 309 | D117: 2765000
B118: 富山大学 | C118: 305 | D118: 35859000
B119: 新潟大学 | C119: 301 | D119: 8943000
B120: 高知大学 | C120: 281 | D120: 26209000
B121: 立命館大学 | C121: 268 | D121: 2098000
B122: 秋田大学 | C122: 264 | D122: 1773000
B123: 神奈川大学 | C123: 263 | D123: 4940000
B124: 岐阜大学 | C124: 246 | D124: 7958000
B125: 弘前大学 | C125: 239 | D125: 10190000
B126: 宮崎大学 | C126: 236 | D126: 2168000
B127: 名城大学 | C127: 232 | D127: 2341000
B128: 兵庫県立大学 | C128: 232 | D128: 1142000
B129: 佐賀大学 | C129: 224 | D129: 4180000
B130: 福井大学 | C130: 221 | D130: 3913000
B131: 札幌医科大学 | C131: 218 | D131: 105462000
B132: 東海大学 | C132: 211 | D132: 5395000
B133: 京都工芸繊維大学 | C133: 201 | D133: 4782000
B134: 岩手大学 | C134: 198 | D134: 2552000
B135: 長崎大学 | C135: 194 | D135: 25364000
B136: 東京女子医科大学 | C136: 186 | D136: 2706000
B137: 横浜市立大学 | C137: 184 | D137: 50242000
B138: 北陸先端科学技術大学院大学 | C138: 175 | D138: 8323000
B139: 東京海洋大学 | C139: 175 | D139: 3222000
B140: 愛媛大学 | C140: 174 | D140: 35291000
B141: 宇都宮大学 | C141: 171 | D141: 2463000
B142: 高知工科大学 | C142: 165 | D142: 326000
B143: 千葉工業大学 | C143: 160 | D143: 0
B144: 茨城大学 | C144: 157 | D144: 2754000
B145: 福岡大学 | C145: 154 | D145: 874000
B146: 沖縄科学技術大学院大学 | C146: 152 | D146: 1100000
B147: 大分大学 | C147: 151 | D147: 1915000
B148: 金沢工業大学 | C148: 150 | D148: 2760000
B149: 中央大学 | C149: 144 | D149: 989000
B150: 浜松医科大学 | C150: 143 | D150: 3875000
B151: 島根大学 | C151: 137 | D151: 1166000
B152: 滋賀医科大学 | C152: 132 | D152: 2306000
B153: 関西学院大学 | C153: 128 | D153: 23880000
B154: 自治医科大学 | C154: 127 | D154: 6757000
B155: 久留米大学 | C155: 127 | D155: 1462000
B156: 上智大学 | C156: 126 | D156: 0
B157: 順天堂大学 | C157: 122 | D157: 3072000
B158: 中部大学 | C158: 118 | D158: 220000
B159: 東京電機大学 | C159: 102 | D159: 1180000
B160: 芝浦工業大学 | C160: 98 | D160: 1615000
B161: 埼玉医科大学 | C161: 96 | D161: 27468000
B162: 豊田工業大学 | C162: 96 | D162: 0
B163: 名古屋市立大学 | C163: 94 | D163: 17822000
B164: 京都府立医科大学 | C164: 94 | D164: 2128000
B165: 北見工業大学 | C165: 92 | D165: 995000
B166: 和歌山大学 | C166: 89 | D166: 4131000
B167: 富山県立大学 | C167: 87 | D167: 1375000
B168: 関東学院大学 | C168: 84 | D168: 14540000
B169: 明治大学 | C169: 81 | D169: 4886000
B170: 琉球大学 | C170: 77 | D170: 1146000
B171: 静岡県立大学 | C171: 72 | D171: 915000
B172: 福島大学 | C172: 67 | D172: 897000
B173: 藤田医科大学 | C173: 62 | D173: 0
B174: 帝京大学 | C174: 60 | D174: 2351000
B175: 兵庫医科大学 | C175: 60 | D175: 332000
B176: 旭川医科大学 | C176: 59 | D176: 1987000
B177: 日本医科大学 | C177: 55 | D177: 58243000
B178: 帯広畜産大学 | C178: 54 | D178: 2966000
B179: 東洋大学 | C179: 54 | D179: 633000
B180: 秋田県立大学 | C180: 52 | D180: 892000
B181: 奈良県立医科大学 | C181: 52 | D181: 743000
B182: 福岡工業大学 | C182: 52 | D182: 0
B183: 立教大学 | C183: 51 | D183: 231000
B184: 室蘭工業大学 | C184: 50 | D184: 0
B185: 昭和大学 | C185: 48 | D185: 4513000
B186: 聖マリアンナ医科大学 | C186: 46 | D186: 3204000
B187: 関西医科大学 | C187: 46 | D187: 781000
B188: 神奈川工科大学 | C188: 46 | D188: 289000
B189: 岡山理科大学 | C189: 45 | D189: 916000
B190: お茶の水女子大学 | C190: 45 | D190: 5000
B191: 広島市立大学 | C191: 44 | D191: 0
B192: 会津大学 | C192: 43 | D192: 33000
B193: 龍谷大学 | C193: 42 | D193: 1289000
B194: 玉川大学 | C194: 41 | D194: 119000
B195: 産業医科大学 | C195: 41 | D195: 7000
B196: 大阪工業大学 | C196: 39 | D196: 0
B197: 東京農業大学 | C197: 36 | D197: 748000
B198: 法政大学 | C198: 36 | D198: 550000
B199: 工学院大学 | C199: 35 | D199: 3516000
B200: 青山学院大学 | C200: 34 | D200: 0
B201: 北九州市立大学 | C201: 32 | D201: 2647000
B202: 東邦大学 | C202: 32 | D202: 23000
B203: 甲南大学 | C203: 31 | D203: 613000
B204: 石川県立大学 | C204: 31 | D204: 531000
B205: 東京都市大学 | C205: 30 | D205: 2371000
B206: 麻布大学 | C206: 28 | D206: 1505000
B207: 長崎県立大学 | C207: 28 | D207: 1001000
B208: 金沢医科大学 | C208: 27 | D208: 933000
B209: 滋賀県立大学 | C209: 27 | D209: 0
... 636 more rows

Sheet お茶の水女子大学 (hidden)
A1: 国立 | C1: お茶の水女子大学 | X1: 大学全体の経営理念における産学官連携活動の取組方針 | CY1: 103 | CZ1: 104 | DA1: 105 | DB1: 106 | DC1: 107 | DD1: 108 | DE1: 109 | DF1: 110 | DG1: 111 | DH1: 112 | DI1: 113 | DJ1: 114 | DK1: 115 | DL1: 116 | DM1: 117 | DN1: 118 | DO1: 119 | DP1: 120 | DQ1: 121 | DR1: 122 | DS1: 123 | DT1: 124 | DU1: 125 | DV1: 126 | DW1: 127 | DX1: 128 | DY1: 129
X2: 本学は、委託研究・共同研究・技術移転等を通した企業等との連携、政府・地方自治体の政策形成への寄与、地域社会における市民活動との連携等の幅広い産学公連携の推進のための組織的取り組みを行う。 （お茶の水女子大学社会貢献ポリシーより）
BB3: ＵＲＡ | BO3: URA当たり研究者数 | CA3: 戦略的産学連携経費
BC4: 実務担当者数 | BI4: 2 | BN4: 名 | BO4: =IF(OR(I25="",BI4=""),"",(IFERROR(I25/BI4,""))) -> 177.5 | CB4: 戦略的産学連携経費の設定 | CP4: 有 | CT4: 無 | CZ4: ある | DA4: インキュベーション施設
CB5: 戦略的産学連携経費の費目 | CZ5: ある | DA5: 相談窓口
A6: 基 礎 情 報 | BB6: 各種規程類の整備状況 | CB6: 戦略的産学連携経費の直接経費に対する割合 | CZ6: ない | DA6: 設立ポリシー | DI6: ◎ | DJ6: 産学連携ポリシー
BB7: 産学連携ポリシー | BM7: 職務発明規程（教職員のみ対象） | CZ7: ない | DA7: 支援ファンド | DI7: ◎ | DJ7: 知的財産ポリシー
B8: 大学の得意分野とその具体例 | BB8: 知的財産ポリシー | BM8: 職務発明規程（教職員、学生対象） | CA8: 人件費の企業負担 | DI8: ◎ | DJ8: 共同研究取扱規程
B9: ライフサイエンス、工学、情報科学を生活者の視点で横断する分野。未来の食を開く、昆虫食の開発研究等。 | AA9: 科研費 （千円） | AL9: その他政府系研究費 (千円) | AS9: その他補助・助成金等 (千円) | BB9: 共同研究取扱規程 | BM9: 発明補償関係規程（教職員のみ対象） | CB9: 教員人件費の企業負担に関する規程や制度 | CP9: 有 | CT9: 無 | DI9: ◎ | DJ9: 受託研究取扱規程
BB10: 受託研究取扱規程 | BM10: 発明補償関係規程（教職員、学生対象） | CB10: 教員人件費の企業負担の費目 | DI10: ◎ | DJ10: 研究成果有体物取扱規程
AA11: 260572 | AL11: 0 | AS11: 0 | BB11: 研究成果有体物取扱規程 | BM11: 守秘義務に係る規程（教職員のみ対象） | CB11: 学生人件費の企業負担に関する規程や制度 | CP11: 有 | CT11: 無 | DI11: ◎ | DJ11: 営業秘密管理に関する規程
BB12: 営業秘密管理に関する規程 | BM12: 守秘義務に係る規程（教職員、学生対象） | CB12: 学生人件費の企業負担の費目 | CP12: 直接経費 | DI12: × | DJ12: 株式の取扱等規程、ポリシー
AA13: 間接経費割合 | AN13: 株式の保有 | AT13: 新株予約権の保有 | BB13: 株式の取扱等規程、ポリシー | DA13: × | DB13: 株式 | DI13: × | DJ13: 職務発明規程（教職員のみ対象）
AA14: 30％以上 | AN14: 有 | AQ14: 無 | AT14: 有 | AW14: 無 | BD14: ※各種規定類を整備している場合は、赤色で表示されます。 | CA14: 特別試験研究費税額控除制度 | DA14: × | DB14: 新株予約権 | DI14: ◎ | DJ14: 職務発明規程（教職員、学生対象）
CB15: 特別試験研究費税額控除制度の活用 | CP15: 有 | CT15: 無 | DI15: × | DJ15: 発明補償関係規程（教職員のみ対象）
B16: 産学官連携活動において今後重点化したい事項 | AA16: ■共同研究 | AG16: 2019年度 | AO16: 2020年度 | AW16: 順位※ | BB16: クロスアポイントメントの実績（人） | BK16: 大学等 | BN16: 公的機関 | BQ16: 民間企業 | BU16: その他機関 | DI16: ◎ | DJ16: 発明補償関係規程（教職員、学生対象）
B17: 産学官連携による教育・研究プロジェクトの推進を図る。 ・SDGsを軸にした企業等との包括的連携を行う。 ・ヒューマンライフイノベーション研究機構による人が生涯を通じて健康で心豊かに過ごすための研究・開発、安心・安全な社会環境構築のための研究開発を行う。 ・研究コンプライアンスの推進のための活動を実施する。 | AG17: 受入額（千円） | AL17: 件数 | AO17: 受入額（千円） | AT17: 件数 | BH17: 受入 | BK17: 4 | BN17: 0 | BQ17: 0 | BU17: 0 | DB17: 順位 | DI17: × | DJ17: 守秘義務に係る規程（教職員のみ対象）
AA18: 全体 | AG18: 54949 | AL18: 36 | AO18: 38300 | AT18: 25 | AW18: =IF(DB18<50,DB18,"") ->  | AY18: 位 | BH18: 派遣 | BK18: 5 | BN18: 0 | BQ18: 0 | BU18: 0 | DB18: 158 | DI18: ◎ | DJ18: 守秘義務に係る規程（教職員、学生対象）
AB19: 民間企業 のみ | AG19: 52998 | AL19: 34 | AO19: 37800 | AT19: 24 | AW19: =IF(DB19<50,DB19,"") ->  | AY19: 位 | DB19: 148
AC20: 大企業 | AG20: 44460 | AL20: 29 | AO20: 37800 | AT20: 24 | AW20: =IF(DB20<50,DB20,"") ->  | AY20: 位 | BB20: ■組織的産学連携活動の取組事例 | DB20: 123 | DI20: ない | DJ20: 戦略的産学連携経費の設定
AC21: 中小企業 | AG21: 8538 | AL21: 5 | AO21: 0 | AT21: 0 | AW21: =IF(DB21<50,DB21,"") ->  | AY21: 位 | DB21: 358 | DI21: ない | DJ21: 教員人件費の企業負担に関する規程や制度
AL22: ※順位は2020年度の受入額を比較したもの | DI22: ある | DJ22: 学生人件費の企業負担に関する規程や制度
DB23: 0 | DC23: 0 | DI23: ある | DJ23: 特別試験研究費税額控除制度の活用
DB24: ～100万 | DC24: 11
B25: 研究者数 | I25: 355 | P25: 名 | DB25: ～300万 | DC25: 11
DB26: ～500万 | DC26: 0
DB27: ～1000万 | DC27: 1
DB28: ～5000万 | DC28: 1
DB29: ～1億 | DC29: 0 | DJ29: 共同研究等の企画・提案
B30: 産学連携担当部署 | O30: 実務者当たり研究者数 | DB30: 1億以上 | DC30: 0 | DJ30: 契約書での成果目標、達成時の明記
C31: 実務担当者数 | I31: 2 | N31: 名 | O31: =IF(OR(I25="",I31=""),"",IFERROR($I$25/I31,"")) -> 177.5 | DJ31: 共同研究契約の締結/判断（契約権限の集中）
C32: 専門家の配置 | I32: 弁護士 | L32: 弁理士 | O32: 税理士 | R32: 公認会計士 | V32: その他 | DJ32: 共同研究の進捗管理とフィードバック
I33: ※専門家を配置している場合は、赤色で表示されます。 | DJ33: 企業ニーズに適応した技術移転・事業化提案
AA34: ■受託研究 | AG34: 2019年度 | AO34: 2020年度 | AW34: 順位※ | DJ34: 共同研究等の企画・提案
AG35: 受入額（千円） | AL35: 件数 | AO35: 受入額（千円） | AT35: 件数 | DB35: 順位 | DJ35: 契約書での成果目標、達成時の明記
AA36: 全体 | AG36: 95118 | AL36: 26 | AO36: 221104 | AT36: 27 | AW36: =IF(DB36<50,DB36,"") ->  | AY36: 位 | DB36: 110 | DJ36: 共同研究契約の締結/判断（契約権限の集中）
AB37: 民間企業 のみ | AG37: 5000 | AL37: 1 | AO37: 6430 | AT37: 2 | AW37: =IF(DB37<50,DB37,"") ->  | AY37: 位 | DB37: 187 | DJ37: 共同研究の進捗管理とフィードバック
C38: 産学連携本部が関与した共同研究 | P38: 0 | T38: 件 | AC38: 大企業 | AG38: 5000 | AL38: 1 | AO38: 6430 | AT38: 2 | AW38: =IF(DB38<50,DB38,"") ->  | AY38: 位 | DB38: 152 | DJ38: 企業ニーズに適応した技術移転・事業化提案
D39: 内、マッチングを行い、契約締結した件数 | P39: 0 | T39: 件 | AC39: 中小企業 | AG39: 0 | AL39: 0 | AO39: 0 | AT39: 0 | AW39: =IF(DB39<50,DB39,"") ->  | AY39: 位 | BB39: ■産学連携活動の主な実用化事例 | DB39: 316 | DJ39: 共同研究等の企画・提案
I40: ※1,000万円以上の共同研究 | AL40: ※順位は2020年度の受入額を比較したもの | DB40: 弁護士 | DG40: 0 | DH40: 0 | DJ40: 契約書での成果目標、達成時の明記
DB41: 弁理士 | DG41: ～100万 | DH41: 0 | DJ41: 共同研究契約の締結/判断（契約権限の集中）
C42: 組織対組織による包括連携契約の締結数 | P42: 0 | T42: 件 | DB42: 税理士 | DG42: ～300万 | DH42: 1 | DJ42: 共同研究の進捗管理とフィードバック
D43: 内、1,000万円以上の実績がある相手方数 | P43: 0 | T43: 件 | DB43: 公認会計士 | DG43: ～500万 | DH43: 0 | DJ43: 企業ニーズに適応した技術移転・事業化提案
DA44: ○ | DB44: その他 | DG44: ～1000万 | DH44: 1
C45: 寄附講座・寄附研究部門の受入件数 | P45: 5 | V45: 件 | DG45: ～5000万 | DH45: 0
C46: 寄附講座・寄附研究部門の受入金額（千円） | P46: 24430 | DG46: ～1億 | DH46: 0
C47: 共同研究講座・共同研究部門の受入件数 | P47: 0 | V47: 件 | DG47: 1億以上 | DH47: 0
C48: 共同研究講座・共同研究部門の受入金額（千円） | P48: 0
C52: 職務発明の帰属 | I52: 大学 | M52: 発明者 | Q52: 未設定 | CZ52: 大学 | DA52: 職務発明
AD53: 特許権実施等件数 | AL53: 2 | AS53: 実施等件数 あたり | DA53: 不実施
M54: 研究者あたり | AD54: 特許権実施等収入（千円） | AL54: 5 | AS54: =IF(OR(AL53="",AL54=""),"",IFERROR(AL54/AL53,"")) -> 2.5 | CZ54: 5000 | DA54: 特許等収入
C55: 特許出願件数 | I55: 13 | M55: =IF(OR(I25="",I55=""),"",IFERROR(I55/I25,"")) -> 0.03661971831
C56: 特許保有件数 | I56: 45 | M56: =IF(OR(I25="",I56=""),"",IFERROR(I56/I25,"")) -> 0.1267605634
C61: 大学発ベンチャー数 | J61: 0 | O61: 社
C62: Exit件数（IPO） | O62: 社 | P62: Exit件数（M&A） | Z62: 社
C63: 相談窓口 | K63: 支援ファンド | S63: インキュベーション施設
C64: 有 | G64: 無 | K64: 有 | O64: 無 | S64: 有 | W64: 無
C65: 知的財産戦略方針 | K65: 支援総額（千円） | S65: 部屋数 | W65: 0 | Z65: 件
C66: 有 | G66: 無 | S66: 利用件数 | W66: 0 | Z66: 件
A69: 1 | B69: 2 | C69: 3 | D69: 4 | E69: 5 | F69: 6 | G69: 7 | H69: 8 | I69: 9 | J69: 10 | K69: 11 | L69: 12 | M69: 13 | N69: 14 | O69: 15 | P69: 16 | Q69: 17 | R69: 18 | S69: 19 | T69: 20 | U69: 21 | V69: 22 | W69: 23 | X69: 24 | Y69: 25 | Z69: 26 | AA69: 27 | AB69: 28 | AC69: 29 | AD69: 30 | AE69: 31 | AF69: 32 | AG69: 33 | AH69: 34 | AI69: 35 | AJ69: 36 | AK69: 37 | AL69: 38 | AM69: 39 | AN69: 40 | AO69: 41 | AP69: 42 | AQ69: 43 | AR69: 44 | AS69: 45 | AT69: 46 | AU69: 47 | AV69: 48 | AW69: 49 | AX69: 50 | AY69: 51 | AZ69: 52 | BA69: 53 | BB69: 54 | BC69: 55 | BD69: 56 | BE69: 57 | BF69: 58 | BG69: 59 | BH69: 60 | BI69: 61 | BJ69: 62 | BK69: 63 | BL69: 64 | BM69: 65 | BN69: 66 | BO69: 67 | BP69: 68 | BQ69: 69 | BR69: 70 | BS69: 71 | BT69: 72 | BU69: 73 | BV69: 74 | BW69: 75 | BX69: 76 | BY69: 77 | BZ69: 78 | CA69: 79 | CB69: 80 | CC69: 81 | CD69: 82 | CE69: 83 | CF69: 84 | CG69: 85 | CH69: 86 | CI69: 87 | CJ69: 88 | CK69: 89 | CL69: 90 | CM69: 91 | CN69: 92 | CO69: 93 | CP69: 94 | CQ69: 95 | CR69: 96 | CS69: 97 | CT69: 98 | CU69: 99 | CV69: 100 | CW69: 101 | CX69: 102 | CY69: 103 | CZ69: 104 | DA69: 105 | DB69: 106 | DC69: 107 | DD69: 108 | DE69: 109 | DF69: 110 | DG69: 111 | DH69: 112 | DI69: 113 | DJ69: 114 | DK69: 115 | DL69: 116 | DM69: 117 | DN69: 118 | DO69: 119 | DP69: 120 | DQ69: 121 | DR69: 122 | DS69: 123 | DT69: 124 | DU69: 125
D70: 特許権収入
B71: 東京大学 | C71: 4495 | D71: 261744000
B72: 東北大学 | C72: 3533 | D72: 157139000
B73: 京都大学 | C73: 3044 | D73: 698373000
B74: 大阪大学 | C74: 2854 | D74: 509758000
B75: 東京工業大学 | C75: 1979 | D75: 57301000
B76: 九州大学 | C76: 1530 | D76: 601936000
B77: 名古屋大学 | C77: 1346 | D77: 72156000
B78: 北海道大学 | C78: 1167 | D78: 86700000
B79: 信州大学 | C79: 952 | D79: 29305000
B80: 広島大学 | C80: 921 | D80: 41265000
B81: 筑波大学 | C81: 850 | D81: 42694000
B82: 慶應義塾大学 | C82: 798 | D82: 67998000
B83: 千葉大学 | C83: 769 | D83: 17609000
B84: 岡山大学 | C84: 749 | D84: 8886000
B85: 山口大学 | C85: 700 | D85: 29167000
B86: 早稲田大学 | C86: 698 | D86: 21143000
B87: 名古屋工業大学 | C87: 638 | D87: 12139000
B88: 東京農工大学 | C88: 632 | D88: 44098000
B89: 九州工業大学 | C89: 611 | D89: 10288000
B90: 大阪府立大学 | C90: 573 | D90: 9177000
B91: 東京理科大学 | C91: 528 | D91: 15523000
B92: 神戸大学 | C92: 525 | D92: 78768000
B93: 静岡大学 | C93: 509 | D93: 8145000
B94: 群馬大学 | C94: 483 | D94: 5316000
B95: 熊本大学 | C95: 475 | D95: 29359000
B96: 近畿大学 | C96: 453 | D96: 82359000
B97: 長岡技術科学大学 | C97: 441 | D97: 3921000
B98: 横浜国立大学 | C98: 439 | D98: 5839000
B99: 奈良先端科学技術大学院大学 | C99: 427 | D99: 3542000
B100: 三重大学 | C100: 417 | D100: 10844000
B101: 鹿児島大学 | C101: 416 | D101: 14284000
B102: 大阪市立大学 | C102: 403 | D102: 2791000
B103: 東京都立大学 | C103: 398 | D103: 574000
B104: 山梨大学 | C104: 395 | D104: 5041000
B105: 香川大学 | C105: 389 | D105: 17113000
B106: 東京医科歯科大学 | C106: 377 | D106: 24076000
B107: 豊橋技術科学大学 | C107: 374 | D107: 5526000
B108: 徳島大学 | C108: 362 | D108: 131417000
B109: 電気通信大学 | C109: 355 | D109: 7847000
B110: 関西大学 | C110: 350 | D110: 5154000
B111: 鳥取大学 | C111: 340 | D111: 4814000
B112: 同志社大学 | C112: 337 | D112: 17850000
B113: 金沢大学 | C113: 337 | D113: 13893000
B114: 日本大学 | C114: 333 | D114: 38328000
B115: 山形大学 | C115: 323 | D115: 752000
B116: 北里大学 | C116: 315 | D116: 45190000
B117: 埼玉大学 | C117: 309 | D117: 2765000
B118: 富山大学 | C118: 305 | D118: 35859000
B119: 新潟大学 | C119: 301 | D119: 8943000
B120: 高知大学 | C120: 281 | D120: 26209000
B121: 立命館大学 | C121: 268 | D121: 2098000
B122: 秋田大学 | C122: 264 | D122: 1773000
B123: 神奈川大学 | C123: 263 | D123: 4940000
B124: 岐阜大学 | C124: 246 | D124: 7958000
B125: 弘前大学 | C125: 239 | D125: 10190000
B126: 宮崎大学 | C126: 236 | D126: 2168000
B127: 名城大学 | C127: 232 | D127: 2341000
B128: 兵庫県立大学 | C128: 232 | D128: 1142000
B129: 佐賀大学 | C129: 224 | D129: 4180000
B130: 福井大学 | C130: 221 | D130: 3913000
B131: 札幌医科大学 | C131: 218 | D131: 105462000
B132: 東海大学 | C132: 211 | D132: 5395000
B133: 京都工芸繊維大学 | C133: 201 | D133: 4782000
B134: 岩手大学 | C134: 198 | D134: 2552000
B135: 長崎大学 | C135: 194 | D135: 25364000
B136: 東京女子医科大学 | C136: 186 | D136: 2706000
B137: 横浜市立大学 | C137: 184 | D137: 50242000
B138: 北陸先端科学技術大学院大学 | C138: 175 | D138: 8323000
B139: 東京海洋大学 | C139: 175 | D139: 3222000
B140: 愛媛大学 | C140: 174 | D140: 35291000
B141: 宇都宮大学 | C141: 171 | D141: 2463000
B142: 高知工科大学 | C142: 165 | D142: 326000
B143: 千葉工業大学 | C143: 160 | D143: 0
B144: 茨城大学 | C144: 157 | D144: 2754000
B145: 福岡大学 | C145: 154 | D145: 874000
B146: 沖縄科学技術大学院大学 | C146: 152 | D146: 1100000
B147: 大分大学 | C147: 151 | D147: 1915000
B148: 金沢工業大学 | C148: 150 | D148: 2760000
B149: 中央大学 | C149: 144 | D149: 989000
B150: 浜松医科大学 | C150: 143 | D150: 3875000
B151: 島根大学 | C151: 137 | D151: 1166000
B152: 滋賀医科大学 | C152: 132 | D152: 2306000
B153: 関西学院大学 | C153: 128 | D153: 23880000
B154: 自治医科大学 | C154: 127 | D154: 6757000
B155: 久留米大学 | C155: 127 | D155: 1462000
B156: 上智大学 | C156: 126 | D156: 0
B157: 順天堂大学 | C157: 122 | D157: 3072000
B158: 中部大学 | C158: 118 | D158: 220000
B159: 東京電機大学 | C159: 102 | D159: 1180000
B160: 芝浦工業大学 | C160: 98 | D160: 1615000
B161: 埼玉医科大学 | C161: 96 | D161: 27468000
B162: 豊田工業大学 | C162: 96 | D162: 0
B163: 名古屋市立大学 | C163: 94 | D163: 17822000
B164: 京都府立医科大学 | C164: 94 | D164: 2128000
B165: 北見工業大学 | C165: 92 | D165: 995000
B166: 和歌山大学 | C166: 89 | D166: 4131000
B167: 富山県立大学 | C167: 87 | D167: 1375000
B168: 関東学院大学 | C168: 84 | D168: 14540000
B169: 明治大学 | C169: 81 | D169: 4886000
B170: 琉球大学 | C170: 77 | D170: 1146000
B171: 静岡県立大学 | C171: 72 | D171: 915000
B172: 福島大学 | C172: 67 | D172: 897000
B173: 藤田医科大学 | C173: 62 | D173: 0
B174: 帝京大学 | C174: 60 | D174: 2351000
B175: 兵庫医科大学 | C175: 60 | D175: 332000
B176: 旭川医科大学 | C176: 59 | D176: 1987000
B177: 日本医科大学 | C177: 55 | D177: 58243000
B178: 帯広畜産大学 | C178: 54 | D178: 2966000
B179: 東洋大学 | C179: 54 | D179: 633000
B180: 秋田県立大学 | C180: 52 | D180: 892000
B181: 奈良県立医科大学 | C181: 52 | D181: 743000
B182: 福岡工業大学 | C182: 52 | D182: 0
B183: 立教大学 | C183: 51 | D183: 231000
B184: 室蘭工業大学 | C184: 50 | D184: 0
B185: 昭和大学 | C185: 48 | D185: 4513000
B186: 聖マリアンナ医科大学 | C186: 46 | D186: 3204000
B187: 関西医科大学 | C187: 46 | D187: 781000
B188: 神奈川工科大学 | C188: 46 | D188: 289000
B189: 岡山理科大学 | C189: 45 | D189: 916000
B190: お茶の水女子大学 | C190: 45 | D190: 5000
B191: 広島市立大学 | C191: 44 | D191: 0
B192: 会津大学 | C192: 43 | D192: 33000
B193: 龍谷大学 | C193: 42 | D193: 1289000
B194: 玉川大学 | C194: 41 | D194: 119000
B195: 産業医科大学 | C195: 41 | D195: 7000
B196: 大阪工業大学 | C196: 39 | D196: 0
B197: 東京農業大学 | C197: 36 | D197: 748000
B198: 法政大学 | C198: 36 | D198: 550000
B199: 工学院大学 | C199: 35 | D199: 3516000
B200: 青山学院大学 | C200: 34 | D200: 0
B201: 北九州市立大学 | C201: 32 | D201: 2647000
B202: 東邦大学 | C202: 32 | D202: 23000
B203: 甲南大学 | C203: 31 | D203: 613000
B204: 石川県立大学 | C204: 31 | D204: 531000
B205: 東京都市大学 | C205: 30 | D205: 2371000
B206: 麻布大学 | C206: 28 | D206: 1505000
B207: 長崎県立大学 | C207: 28 | D207: 1001000
B208: 金沢医科大学 | C208: 27 | D208: 933000
B209: 滋賀県立大学 | C209: 27 | D209: 0
... 636 more rows

Sheet 電気通信大学 (hidden)
A1: 国立 | C1: 電気通信大学 | X1: 大学全体の経営理念における産学官連携活動の取組方針 | CY1: 103 | CZ1: 104 | DA1: 105 | DB1: 106 | DC1: 107 | DD1: 108 | DE1: 109 | DF1: 110 | DG1: 111 | DH1: 112 | DI1: 113 | DJ1: 114 | DK1: 115 | DL1: 116 | DM1: 117 | DN1: 118 | DO1: 119 | DP1: 120 | DQ1: 121 | DR1: 122 | DS1: 123 | DT1: 124 | DU1: 125 | DV1: 126 | DW1: 127 | DX1: 128 | DY1: 129
X2: 本学は、新たな戦略目標「D.C.& I.」（多元的な多様性を尊重し、異なるものも含めた要素間の相互理解・相互触発を活性化させることにより、イノベーションの持続的創出を目指す）に基づいて、組織連携の拡大及び資金獲得の強化に焦点を置いた産学官連携活動を推進している。
BB3: ＵＲＡ | BO3: URA当たり研究者数 | CA3: 戦略的産学連携経費
BC4: 実務担当者数 | BI4: 19 | BN4: 名 | BO4: =IF(OR(I25="",BI4=""),"",(IFERROR(I25/BI4,""))) -> 18.94736842 | CB4: 戦略的産学連携経費の設定 | CP4: 有 | CT4: 無 | CZ4: ある | DA4: インキュベーション施設
CB5: 戦略的産学連携経費の費目 | CP5: 間接経費 | CZ5: ある | DA5: 相談窓口
A6: 基 礎 情 報 | BB6: 各種規程類の整備状況 | CB6: 戦略的産学連携経費の直接経費に対する割合 | CP6: 実績有割合無 | CZ6: ある | DA6: 設立ポリシー | DI6: ◎ | DJ6: 産学連携ポリシー
BB7: 産学連携ポリシー | BM7: 職務発明規程（教職員のみ対象） | CZ7: ない | DA7: 支援ファンド | DI7: ◎ | DJ7: 知的財産ポリシー
B8: 大学の得意分野とその具体例 | BB8: 知的財産ポリシー | BM8: 職務発明規程（教職員、学生対象） | CA8: 人件費の企業負担 | DI8: ◎ | DJ8: 共同研究取扱規程
B9: 本学は、Society5.0の実現に必要な基盤技術の学問領域すべてをカバーし、かつ基礎研究から応用研究までをカバーしていることに強みを持っている。具体例として、AI研究の成果である言葉の響きによる印象を数値化する「感性評価システム」を事業化する大学発ベンチャーがある。 | AA9: 科研費 （千円） | AL9: その他政府系研究費 (千円) | AS9: その他補助・助成金等 (千円) | BB9: 共同研究取扱規程 | BM9: 発明補償関係規程（教職員のみ対象） | CB9: 教員人件費の企業負担に関する規程や制度 | CP9: 有 | CT9: 無 | DI9: ◎ | DJ9: 受託研究取扱規程
BB10: 受託研究取扱規程 | BM10: 発明補償関係規程（教職員、学生対象） | CB10: 教員人件費の企業負担の費目 | CP10: 直接経費 | DI10: ◎ | DJ10: 研究成果有体物取扱規程
AA11: 745877 | AL11: 325 | AS11: 48956 | BB11: 研究成果有体物取扱規程 | BM11: 守秘義務に係る規程（教職員のみ対象） | CB11: 学生人件費の企業負担に関する規程や制度 | CP11: 有 | CT11: 無 | DI11: △ | DJ11: 営業秘密管理に関する規程
BB12: 営業秘密管理に関する規程 | BM12: 守秘義務に係る規程（教職員、学生対象） | CB12: 学生人件費の企業負担の費目 | CP12: 直接経費 | DI12: △ | DJ12: 株式の取扱等規程、ポリシー
AA13: 間接経費割合 | AN13: 株式の保有 | AT13: 新株予約権の保有 | BB13: 株式の取扱等規程、ポリシー | DA13: × | DB13: 株式 | DI13: × | DJ13: 職務発明規程（教職員のみ対象）
AA14: 30％以上 | AN14: 有 | AQ14: 無 | AT14: 有 | AW14: 無 | BD14: ※各種規定類を整備している場合は、赤色で表示されます。 | CA14: 特別試験研究費税額控除制度 | DA14: × | DB14: 新株予約権 | DI14: ◎ | DJ14: 職務発明規程（教職員、学生対象）
CB15: 特別試験研究費税額控除制度の活用 | CP15: 有 | CT15: 無 | DI15: × | DJ15: 発明補償関係規程（教職員のみ対象）
B16: 産学官連携活動において今後重点化したい事項 | AA16: ■共同研究 | AG16: 2019年度 | AO16: 2020年度 | AW16: 順位※ | BB16: クロスアポイントメントの実績（人） | BK16: 大学等 | BN16: 公的機関 | BQ16: 民間企業 | BU16: その他機関 | DI16: ◎ | DJ16: 発明補償関係規程（教職員、学生対象）
B17: 本学は、“お客様目線”に立ち、連携をスムーズに展開し、徹底した対話により相手の求める研究成果とプロジェクトサイクルを理解した上で、最適かつ戦略的なマッチングソリューションを提案することを重視している。 | AG17: 受入額（千円） | AL17: 件数 | AO17: 受入額（千円） | AT17: 件数 | BH17: 受入 | BK17: 0 | BN17: 0 | BQ17: 0 | BU17: 0 | DB17: 順位 | DI17: ◎ | DJ17: 守秘義務に係る規程（教職員のみ対象）
AA18: 全体 | AG18: 392725 | AL18: 194 | AO18: 358790 | AT18: 192 | AW18: =IF(DB18<50,DB18,"") -> 43 | AY18: 位 | BH18: 派遣 | BK18: 1 | BN18: 0 | BQ18: 1 | BU18: 0 | DB18: 43 | DI18: △ | DJ18: 守秘義務に係る規程（教職員、学生対象）
AB19: 民間企業 のみ | AG19: 334521 | AL19: 173 | AO19: 316407 | AT19: 173 | AW19: =IF(DB19<50,DB19,"") -> 43 | AY19: 位 | DB19: 43
AC20: 大企業 | AG20: 241643 | AL20: 113 | AO20: 204665 | AT20: 87 | AW20: =IF(DB20<50,DB20,"") -> 42 | AY20: 位 | BB20: ■組織的産学連携活動の取組事例 | DB20: 42 | DI20: ある | DJ20: 戦略的産学連携経費の設定
AC21: 中小企業 | AG21: 82842 | AL21: 58 | AO21: 77270 | AT21: 60 | AW21: =IF(DB21<50,DB21,"") -> 41 | AY21: 位 | DB21: 41 | DI21: ある | DJ21: 教員人件費の企業負担に関する規程や制度
AL22: ※順位は2020年度の受入額を比較したもの | DI22: ある | DJ22: 学生人件費の企業負担に関する規程や制度
DB23: 0 | DC23: 41 | DI23: ある | DJ23: 特別試験研究費税額控除制度の活用
DB24: ～100万 | DC24: 36
B25: 研究者数 | I25: 360 | P25: 名 | DB25: ～300万 | DC25: 66
DB26: ～500万 | DC26: 17
DB27: ～1000万 | DC27: 11
DB28: ～5000万 | DC28: 2
DB29: ～1億 | DC29: 0 | DJ29: 共同研究等の企画・提案
B30: 産学連携担当部署 | O30: 実務者当たり研究者数 | DB30: 1億以上 | DC30: 0 | DJ30: 契約書での成果目標、達成時の明記
C31: 実務担当者数 | I31: 17 | N31: 名 | O31: =IF(OR(I25="",I31=""),"",IFERROR($I$25/I31,"")) -> 21.17647059 | DJ31: 共同研究契約の締結/判断（契約権限の集中）
C32: 専門家の配置 | I32: 弁護士 | L32: 弁理士 | O32: 税理士 | R32: 公認会計士 | V32: その他 | DJ32: 共同研究の進捗管理とフィードバック
I33: ※専門家を配置している場合は、赤色で表示されます。 | DJ33: 企業ニーズに適応した技術移転・事業化提案
AA34: ■受託研究 | AG34: 2019年度 | AO34: 2020年度 | AW34: 順位※ | DJ34: 共同研究等の企画・提案
AG35: 受入額（千円） | AL35: 件数 | AO35: 受入額（千円） | AT35: 件数 | DB35: 順位 | DJ35: 契約書での成果目標、達成時の明記
AA36: 全体 | AG36: 1020194 | AL36: 60 | AO36: 947560 | AT36: 69 | AW36: =IF(DB36<50,DB36,"") -> 39 | AY36: 位 | DB36: 39 | DJ36: 共同研究契約の締結/判断（契約権限の集中）
AB37: 民間企業 のみ | AG37: 13980 | AL37: 3 | AO37: 18450 | AT37: 7 | AW37: =IF(DB37<50,DB37,"") ->  | AY37: 位 | DB37: 107 | DJ37: 共同研究の進捗管理とフィードバック
C38: 産学連携本部が関与した共同研究 | P38: 1 | T38: 件 | AC38: 大企業 | AG38: 13980 | AL38: 3 | AO38: 12650 | AT38: 4 | AW38: =IF(DB38<50,DB38,"") ->  | AY38: 位 | DB38: 102 | DJ38: 企業ニーズに適応した技術移転・事業化提案
D39: 内、マッチングを行い、契約締結した件数 | P39: 1 | T39: 件 | AC39: 中小企業 | AG39: 0 | AL39: 0 | AO39: 2500 | AT39: 2 | AW39: =IF(DB39<50,DB39,"") ->  | AY39: 位 | BB39: ■産学連携活動の主な実用化事例 | DB39: 153 | DJ39: 共同研究等の企画・提案
I40: ※1,000万円以上の共同研究 | AL40: ※順位は2020年度の受入額を比較したもの | DB40: 弁護士 | DG40: 0 | DH40: 1 | DJ40: 契約書での成果目標、達成時の明記
DB41: 弁理士 | DG41: ～100万 | DH41: 0 | DJ41: 共同研究契約の締結/判断（契約権限の集中）
C42: 組織対組織による包括連携契約の締結数 | P42: 6 | T42: 件 | DB42: 税理士 | DG42: ～300万 | DH42: 3 | DJ42: 共同研究の進捗管理とフィードバック
D43: 内、1,000万円以上の実績がある相手方数 | P43: 0 | T43: 件 | DB43: 公認会計士 | DG43: ～500万 | DH43: 1 | DJ43: 企業ニーズに適応した技術移転・事業化提案
DB44: その他 | DG44: ～1000万 | DH44: 2
C45: 寄附講座・寄附研究部門の受入件数 | P45: 1 | V45: 件 | DG45: ～5000万 | DH45: 0
C46: 寄附講座・寄附研究部門の受入金額（千円） | P46: 7000 | DG46: ～1億 | DH46: 0
C47: 共同研究講座・共同研究部門の受入件数 | P47: 0 | V47: 件 | DG47: 1億以上 | DH47: 0
C48: 共同研究講座・共同研究部門の受入金額（千円） | P48: 0
C52: 職務発明の帰属 | I52: 大学 | M52: 発明者 | Q52: 未設定 | CZ52: 大学 | DA52: 職務発明
AD53: 特許権実施等件数 | AL53: 90 | AS53: 実施等件数 あたり | DA53: 不実施
M54: 研究者あたり | AD54: 特許権実施等収入（千円） | AL54: 7847 | AS54: =IF(OR(AL53="",AL54=""),"",IFERROR(AL54/AL53,"")) -> 87.18888889 | CZ54: 7847000 | DA54: 特許等収入
C55: 特許出願件数 | I55: 60 | M55: =IF(OR(I25="",I55=""),"",IFERROR(I55/I25,"")) -> 0.1666666667
C56: 特許保有件数 | I56: 355 | M56: =IF(OR(I25="",I56=""),"",IFERROR(I56/I25,"")) -> 0.9861111111
C61: 大学発ベンチャー数 | J61: 32 | O61: 社
C62: Exit件数（IPO） | J62: 0 | O62: 社 | P62: Exit件数（M&A） | W62: 0 | Z62: 社
C63: 相談窓口 | K63: 支援ファンド | S63: インキュベーション施設
C64: 有 | G64: 無 | K64: 有 | O64: 無 | S64: 有 | W64: 無
C65: 知的財産戦略方針 | K65: 支援総額（千円） | S65: 部屋数 | W65: 14 | Z65: 件
C66: 有 | G66: 無 | S66: 利用件数 | W66: 11 | Z66: 件
A69: 1 | B69: 2 | C69: 3 | D69: 4 | E69: 5 | F69: 6 | G69: 7 | H69: 8 | I69: 9 | J69: 10 | K69: 11 | L69: 12 | M69: 13 | N69: 14 | O69: 15 | P69: 16 | Q69: 17 | R69: 18 | S69: 19 | T69: 20 | U69: 21 | V69: 22 | W69: 23 | X69: 24 | Y69: 25 | Z69: 26 | AA69: 27 | AB69: 28 | AC69: 29 | AD69: 30 | AE69: 31 | AF69: 32 | AG69: 33 | AH69: 34 | AI69: 35 | AJ69: 36 | AK69: 37 | AL69: 38 | AM69: 39 | AN69: 40 | AO69: 41 | AP69: 42 | AQ69: 43 | AR69: 44 | AS69: 45 | AT69: 46 | AU69: 47 | AV69: 48 | AW69: 49 | AX69: 50 | AY69: 51 | AZ69: 52 | BA69: 53 | BB69: 54 | BC69: 55 | BD69: 56 | BE69: 57 | BF69: 58 | BG69: 59 | BH69: 60 | BI69: 61 | BJ69: 62 | BK69: 63 | BL69: 64 | BM69: 65 | BN69: 66 | BO69: 67 | BP69: 68 | BQ69: 69 | BR69: 70 | BS69: 71 | BT69: 72 | BU69: 73 | BV69: 74 | BW69: 75 | BX69: 76 | BY69: 77 | BZ69: 78 | CA69: 79 | CB69: 80 | CC69: 81 | CD69: 82 | CE69: 83 | CF69: 84 | CG69: 85 | CH69: 86 | CI69: 87 | CJ69: 88 | CK69: 89 | CL69: 90 | CM69: 91 | CN69: 92 | CO69: 93 | CP69: 94 | CQ69: 95 | CR69: 96 | CS69: 97 | CT69: 98 | CU69: 99 | CV69: 100 | CW69: 101 | CX69: 102 | CY69: 103 | CZ69: 104 | DA69: 105 | DB69: 106 | DC69: 107 | DD69: 108 | DE69: 109 | DF69: 110 | DG69: 111 | DH69: 112 | DI69: 113 | DJ69: 114 | DK69: 115 | DL69: 116 | DM69: 117 | DN69: 118 | DO69: 119 | DP69: 120 | DQ69: 121 | DR69: 122 | DS69: 123 | DT69: 124 | DU69: 125
D70: 特許権収入
B71: 東京大学 | C71: 4495 | D71: 261744000
B72: 東北大学 | C72: 3533 | D72: 157139000
B73: 京都大学 | C73: 3044 | D73: 698373000
B74: 大阪大学 | C74: 2854 | D74: 509758000
B75: 東京工業大学 | C75: 1979 | D75: 57301000
B76: 九州大学 | C76: 1530 | D76: 601936000
B77: 名古屋大学 | C77: 1346 | D77: 72156000
B78: 北海道大学 | C78: 1167 | D78: 86700000
B79: 信州大学 | C79: 952 | D79: 29305000
B80: 広島大学 | C80: 921 | D80: 41265000
B81: 筑波大学 | C81: 850 | D81: 42694000
B82: 慶應義塾大学 | C82: 798 | D82: 67998000
B83: 千葉大学 | C83: 769 | D83: 17609000
B84: 岡山大学 | C84: 749 | D84: 8886000
B85: 山口大学 | C85: 700 | D85: 29167000
B86: 早稲田大学 | C86: 698 | D86: 21143000
B87: 名古屋工業大学 | C87: 638 | D87: 12139000
B88: 東京農工大学 | C88: 632 | D88: 44098000
B89: 九州工業大学 | C89: 611 | D89: 10288000
B90: 大阪府立大学 | C90: 573 | D90: 9177000
B91: 東京理科大学 | C91: 528 | D91: 15523000
B92: 神戸大学 | C92: 525 | D92: 78768000
B93: 静岡大学 | C93: 509 | D93: 8145000
B94: 群馬大学 | C94: 483 | D94: 5316000
B95: 熊本大学 | C95: 475 | D95: 29359000
B96: 近畿大学 | C96: 453 | D96: 82359000
B97: 長岡技術科学大学 | C97: 441 | D97: 3921000
B98: 横浜国立大学 | C98: 439 | D98: 5839000
B99: 奈良先端科学技術大学院大学 | C99: 427 | D99: 3542000
B100: 三重大学 | C100: 417 | D100: 10844000
B101: 鹿児島大学 | C101: 416 | D101: 14284000
B102: 大阪市立大学 | C102: 403 | D102: 2791000
B103: 東京都立大学 | C103: 398 | D103: 574000
B104: 山梨大学 | C104: 395 | D104: 5041000
B105: 香川大学 | C105: 389 | D105: 17113000
B106: 東京医科歯科大学 | C106: 377 | D106: 24076000
B107: 豊橋技術科学大学 | C107: 374 | D107: 5526000
B108: 徳島大学 | C108: 362 | D108: 131417000
B109: 電気通信大学 | C109: 355 | D109: 7847000
B110: 関西大学 | C110: 350 | D110: 5154000
B111: 鳥取大学 | C111: 340 | D111: 4814000
B112: 同志社大学 | C112: 337 | D112: 17850000
B113: 金沢大学 | C113: 337 | D113: 13893000
B114: 日本大学 | C114: 333 | D114: 38328000
B115: 山形大学 | C115: 323 | D115: 752000
B116: 北里大学 | C116: 315 | D116: 45190000
B117: 埼玉大学 | C117: 309 | D117: 2765000
B118: 富山大学 | C118: 305 | D118: 35859000
B119: 新潟大学 | C119: 301 | D119: 8943000
B120: 高知大学 | C120: 281 | D120: 26209000
B121: 立命館大学 | C121: 268 | D121: 2098000
B122: 秋田大学 | C122: 264 | D122: 1773000
B123: 神奈川大学 | C123: 263 | D123: 4940000
B124: 岐阜大学 | C124: 246 | D124: 7958000
B125: 弘前大学 | C125: 239 | D125: 10190000
B126: 宮崎大学 | C126: 236 | D126: 2168000
B127: 名城大学 | C127: 232 | D127: 2341000
B128: 兵庫県立大学 | C128: 232 | D128: 1142000
B129: 佐賀大学 | C129: 224 | D129: 4180000
B130: 福井大学 | C130: 221 | D130: 3913000
B131: 札幌医科大学 | C131: 218 | D131: 105462000
B132: 東海大学 | C132: 211 | D132: 5395000
B133: 京都工芸繊維大学 | C133: 201 | D133: 4782000
B134: 岩手大学 | C134: 198 | D134: 2552000
B135: 長崎大学 | C135: 194 | D135: 25364000
B136: 東京女子医科大学 | C136: 186 | D136: 2706000
B137: 横浜市立大学 | C137: 184 | D137: 50242000
B138: 北陸先端科学技術大学院大学 | C138: 175 | D138: 8323000
B139: 東京海洋大学 | C139: 175 | D139: 3222000
B140: 愛媛大学 | C140: 174 | D140: 35291000
B141: 宇都宮大学 | C141: 171 | D141: 2463000
B142: 高知工科大学 | C142: 165 | D142: 326000
B143: 千葉工業大学 | C143: 160 | D143: 0
B144: 茨城大学 | C144: 157 | D144: 2754000
B145: 福岡大学 | C145: 154 | D145: 874000
B146: 沖縄科学技術大学院大学 | C146: 152 | D146: 1100000
B147: 大分大学 | C147: 151 | D147: 1915000
B148: 金沢工業大学 | C148: 150 | D148: 2760000
B149: 中央大学 | C149: 144 | D149: 989000
B150: 浜松医科大学 | C150: 143 | D150: 3875000
B151: 島根大学 | C151: 137 | D151: 1166000
B152: 滋賀医科大学 | C152: 132 | D152: 2306000
B153: 関西学院大学 | C153: 128 | D153: 23880000
B154: 自治医科大学 | C154: 127 | D154: 6757000
B155: 久留米大学 | C155: 127 | D155: 1462000
B156: 上智大学 | C156: 126 | D156: 0
B157: 順天堂大学 | C157: 122 | D157: 3072000
B158: 中部大学 | C158: 118 | D158: 220000
B159: 東京電機大学 | C159: 102 | D159: 1180000
B160: 芝浦工業大学 | C160: 98 | D160: 1615000
B161: 埼玉医科大学 | C161: 96 | D161: 27468000
B162: 豊田工業大学 | C162: 96 | D162: 0
B163: 名古屋市立大学 | C163: 94 | D163: 17822000
B164: 京都府立医科大学 | C164: 94 | D164: 2128000
B165: 北見工業大学 | C165: 92 | D165: 995000
B166: 和歌山大学 | C166: 89 | D166: 4131000
B167: 富山県立大学 | C167: 87 | D167: 1375000
B168: 関東学院大学 | C168: 84 | D168: 14540000
B169: 明治大学 | C169: 81 | D169: 4886000
B170: 琉球大学 | C170: 77 | D170: 1146000
B171: 静岡県立大学 | C171: 72 | D171: 915000
B172: 福島大学 | C172: 67 | D172: 897000
B173: 藤田医科大学 | C173: 62 | D173: 0
B174: 帝京大学 | C174: 60 | D174: 2351000
B175: 兵庫医科大学 | C175: 60 | D175: 332000
B176: 旭川医科大学 | C176: 59 | D176: 1987000
B177: 日本医科大学 | C177: 55 | D177: 58243000
B178: 帯広畜産大学 | C178: 54 | D178: 2966000
B179: 東洋大学 | C179: 54 | D179: 633000
B180: 秋田県立大学 | C180: 52 | D180: 892000
B181: 奈良県立医科大学 | C181: 52 | D181: 743000
B182: 福岡工業大学 | C182: 52 | D182: 0
B183: 立教大学 | C183: 51 | D183: 231000
B184: 室蘭工業大学 | C184: 50 | D184: 0
B185: 昭和大学 | C185: 48 | D185: 4513000
B186: 聖マリアンナ医科大学 | C186: 46 | D186: 3204000
B187: 関西医科大学 | C187: 46 | D187: 781000
B188: 神奈川工科大学 | C188: 46 | D188: 289000
B189: 岡山理科大学 | C189: 45 | D189: 916000
B190: お茶の水女子大学 | C190: 45 | D190: 5000
B191: 広島市立大学 | C191: 44 | D191: 0
B192: 会津大学 | C192: 43 | D192: 33000
B193: 龍谷大学 | C193: 42 | D193: 1289000
B194: 玉川大学 | C194: 41 | D194: 119000
B195: 産業医科大学 | C195: 41 | D195: 7000
B196: 大阪工業大学 | C196: 39 | D196: 0
B197: 東京農業大学 | C197: 36 | D197: 748000
B198: 法政大学 | C198: 36 | D198: 550000
B199: 工学院大学 | C199: 35 | D199: 3516000
B200: 青山学院大学 | C200: 34 | D200: 0
B201: 北九州市立大学 | C201: 32 | D201: 2647000
B202: 東邦大学 | C202: 32 | D202: 23000
B203: 甲南大学 | C203: 31 | D203: 613000
B204: 石川県立大学 | C204: 31 | D204: 531000
B205: 東京都市大学 | C205: 30 | D205: 2371000
B206: 麻布大学 | C206: 28 | D206: 1505000
B207: 長崎県立大学 | C207: 28 | D207: 1001000
B208: 金沢医科大学 | C208: 27 | D208: 933000
B209: 滋賀県立大学 | C209: 27 | D209: 0
... 636 more rows

Sheet 政策研究大学院大学 (hidden)
A1: 国立 | C1: 政策研究大学院大学 | X1: 大学全体の経営理念における産学官連携活動の取組方針 | CY1: 103 | CZ1: 104 | DA1: 105 | DB1: 106 | DC1: 107 | DD1: 108 | DE1: 109 | DF1: 110 | DG1: 111 | DH1: 112 | DI1: 113 | DJ1: 114 | DK1: 115 | DL1: 116 | DM1: 117 | DN1: 118 | DO1: 119 | DP1: 120 | DQ1: 121 | DR1: 122 | DS1: 123 | DT1: 124 | DU1: 125 | DV1: 126 | DW1: 127 | DX1: 128 | DY1: 129
BB3: ＵＲＡ | BO3: URA当たり研究者数 | CA3: 戦略的産学連携経費
BC4: 実務担当者数 | BN4: 名 | BO4: =IF(OR(I25="",BI4=""),"",(IFERROR(I25/BI4,""))) ->  | CB4: 戦略的産学連携経費の設定 | CP4: 有 | CT4: 無 | CZ4: ない | DA4: インキュベーション施設
CB5: 戦略的産学連携経費の費目 | CZ5: ない | DA5: 相談窓口
A6: 基 礎 情 報 | BB6: 各種規程類の整備状況 | CB6: 戦略的産学連携経費の直接経費に対する割合 | CZ6: ない | DA6: 設立ポリシー | DI6: × | DJ6: 産学連携ポリシー
BB7: 産学連携ポリシー | BM7: 職務発明規程（教職員のみ対象） | CZ7: ない | DA7: 支援ファンド | DI7: ◇ | DJ7: 知的財産ポリシー
B8: 大学の得意分野とその具体例 | BB8: 知的財産ポリシー | BM8: 職務発明規程（教職員、学生対象） | CA8: 人件費の企業負担 | DI8: ◎ | DJ8: 共同研究取扱規程
AA9: 科研費 （千円） | AL9: その他政府系研究費 (千円) | AS9: その他補助・助成金等 (千円) | BB9: 共同研究取扱規程 | BM9: 発明補償関係規程（教職員のみ対象） | CB9: 教員人件費の企業負担に関する規程や制度 | CP9: 有 | CT9: 無 | DI9: ◎ | DJ9: 受託研究取扱規程
BB10: 受託研究取扱規程 | BM10: 発明補償関係規程（教職員、学生対象） | CB10: 教員人件費の企業負担の費目 | CP10: 直接経費 | DI10: × | DJ10: 研究成果有体物取扱規程
AA11: 118161 | AL11: 650 | AS11: 4770 | BB11: 研究成果有体物取扱規程 | BM11: 守秘義務に係る規程（教職員のみ対象） | CB11: 学生人件費の企業負担に関する規程や制度 | CP11: 有 | CT11: 無 | DI11: × | DJ11: 営業秘密管理に関する規程
BB12: 営業秘密管理に関する規程 | BM12: 守秘義務に係る規程（教職員、学生対象） | CB12: 学生人件費の企業負担の費目 | DI12: × | DJ12: 株式の取扱等規程、ポリシー
AA13: 間接経費割合 | AN13: 株式の保有 | AT13: 新株予約権の保有 | BB13: 株式の取扱等規程、ポリシー | DB13: 株式 | DI13: ◎ | DJ13: 職務発明規程（教職員のみ対象）
AA14: 30％以上 | AN14: 有 | AQ14: 無 | AT14: 有 | AW14: 無 | BD14: ※各種規定類を整備している場合は、赤色で表示されます。 | CA14: 特別試験研究費税額控除制度 | DB14: 新株予約権 | DI14: × | DJ14: 職務発明規程（教職員、学生対象）
CB15: 特別試験研究費税額控除制度の活用 | CP15: 有 | CT15: 無 | DI15: × | DJ15: 発明補償関係規程（教職員のみ対象）
B16: 産学官連携活動において今後重点化したい事項 | AA16: ■共同研究 | AG16: 2019年度 | AO16: 2020年度 | AW16: 順位※ | BB16: クロスアポイントメントの実績（人） | BK16: 大学等 | BN16: 公的機関 | BQ16: 民間企業 | BU16: その他機関 | DI16: × | DJ16: 発明補償関係規程（教職員、学生対象）
AG17: 受入額（千円） | AL17: 件数 | AO17: 受入額（千円） | AT17: 件数 | BH17: 受入 | BK17: 0 | BN17: 0 | BQ17: 0 | BU17: 2 | DB17: 順位 | DI17: ◎ | DJ17: 守秘義務に係る規程（教職員のみ対象）
AA18: 全体 | AG18: 878 | AL18: 2 | AO18: 6074 | AT18: 3 | AW18: =IF(DB18<50,DB18,"") ->  | AY18: 位 | BH18: 派遣 | BK18: 0 | BN18: 0 | BQ18: 0 | BU18: 0 | DB18: 279 | DI18: × | DJ18: 守秘義務に係る規程（教職員、学生対象）
AB19: 民間企業 のみ | AG19: 500 | AL19: 1 | AO19: 500 | AT19: 1 | AW19: =IF(DB19<50,DB19,"") ->  | AY19: 位 | DB19: 407
AC20: 大企業 | AG20: 500 | AL20: 1 | AO20: 500 | AT20: 1 | AW20: =IF(DB20<50,DB20,"") ->  | AY20: 位 | BB20: ■組織的産学連携活動の取組事例 | DB20: 359 | DI20: ない | DJ20: 戦略的産学連携経費の設定
AC21: 中小企業 | AG21: 0 | AO21: 0 | AW21: =IF(DB21<50,DB21,"") ->  | AY21: 位 | DB21: 358 | DI21: ある | DJ21: 教員人件費の企業負担に関する規程や制度
AL22: ※順位は2020年度の受入額を比較したもの | DI22: ない | DJ22: 学生人件費の企業負担に関する規程や制度
DB23: 0 | DI23: ない | DJ23: 特別試験研究費税額控除制度の活用
DB24: ～100万 | DC24: 1
B25: 研究者数 | I25: 137 | P25: 名 | DB25: ～300万
DB26: ～500万
DB27: ～1000万
DB28: ～5000万
DB29: ～1億 | DJ29: 共同研究等の企画・提案
B30: 産学連携担当部署 | O30: 実務者当たり研究者数 | DB30: 1億以上 | DJ30: 契約書での成果目標、達成時の明記
C31: 実務担当者数 | I31: 3 | N31: 名 | O31: =IF(OR(I25="",I31=""),"",IFERROR($I$25/I31,"")) -> 45.66666667 | DJ31: 共同研究契約の締結/判断（契約権限の集中）
C32: 専門家の配置 | I32: 弁護士 | L32: 弁理士 | O32: 税理士 | R32: 公認会計士 | V32: その他 | DJ32: 共同研究の進捗管理とフィードバック
I33: ※専門家を配置している場合は、赤色で表示されます。 | DJ33: 企業ニーズに適応した技術移転・事業化提案
AA34: ■受託研究 | AG34: 2019年度 | AO34: 2020年度 | AW34: 順位※ | DJ34: 共同研究等の企画・提案
AG35: 受入額（千円） | AL35: 件数 | AO35: 受入額（千円） | AT35: 件数 | DB35: 順位 | DJ35: 契約書での成果目標、達成時の明記
AA36: 全体 | AG36: 271830 | AL36: 17 | AO36: 205878 | AT36: 15 | AW36: =IF(DB36<50,DB36,"") ->  | AY36: 位 | DB36: 113 | DJ36: 共同研究契約の締結/判断（契約権限の集中）
AB37: 民間企業 のみ | AG37: 22917 | AL37: 1 | AO37: 0 | AT37: 0 | AW37: =IF(DB37<50,DB37,"") ->  | AY37: 位 | DB37: 401 | DJ37: 共同研究の進捗管理とフィードバック
C38: 産学連携本部が関与した共同研究 | P38: 0 | T38: 件 | AC38: 大企業 | AG38: 22917 | AL38: 1 | AO38: 0 | AW38: =IF(DB38<50,DB38,"") ->  | AY38: 位 | DB38: 308 | DJ38: 企業ニーズに適応した技術移転・事業化提案
D39: 内、マッチングを行い、契約締結した件数 | P39: 0 | T39: 件 | AC39: 中小企業 | AG39: 0 | AO39: 0 | AW39: =IF(DB39<50,DB39,"") ->  | AY39: 位 | BB39: ■産学連携活動の主な実用化事例 | DB39: 316 | DJ39: 共同研究等の企画・提案
I40: ※1,000万円以上の共同研究 | AL40: ※順位は2020年度の受入額を比較したもの | DB40: 弁護士 | DG40: 0 | DJ40: 契約書での成果目標、達成時の明記
DB41: 弁理士 | DG41: ～100万 | DJ41: 共同研究契約の締結/判断（契約権限の集中）
C42: 組織対組織による包括連携契約の締結数 | P42: 0 | T42: 件 | DB42: 税理士 | DG42: ～300万 | DJ42: 共同研究の進捗管理とフィードバック
D43: 内、1,000万円以上の実績がある相手方数 | P43: 0 | T43: 件 | DB43: 公認会計士 | DG43: ～500万 | DJ43: 企業ニーズに適応した技術移転・事業化提案
DB44: その他 | DG44: ～1000万
C45: 寄附講座・寄附研究部門の受入件数 | P45: 1 | V45: 件 | DG45: ～5000万
C46: 寄附講座・寄附研究部門の受入金額（千円） | P46: 35000 | DG46: ～1億
C47: 共同研究講座・共同研究部門の受入件数 | P47: 0 | V47: 件 | DG47: 1億以上
C48: 共同研究講座・共同研究部門の受入金額（千円） | P48: 0
C52: 職務発明の帰属 | I52: 大学 | M52: 発明者 | Q52: 未設定 | CZ52: 大学 | DA52: 職務発明
AD53: 特許権実施等件数 | AL53: 0 | AS53: 実施等件数 あたり | DA53: 不実施
M54: 研究者あたり | AD54: 特許権実施等収入（千円） | AL54: 0 | AS54: =IF(OR(AL53="",AL54=""),"",IFERROR(AL54/AL53,"")) ->  | CZ54: 0 | DA54: 特許等収入
C55: 特許出願件数 | M55: =IF(OR(I25="",I55=""),"",IFERROR(I55/I25,"")) -> 
C56: 特許保有件数 | M56: =IF(OR(I25="",I56=""),"",IFERROR(I56/I25,"")) -> 
C61: 大学発ベンチャー数 | J61: 0 | O61: 社
C62: Exit件数（IPO） | O62: 社 | P62: Exit件数（M&A） | Z62: 社
C63: 相談窓口 | K63: 支援ファンド | S63: インキュベーション施設
C64: 有 | G64: 無 | K64: 有 | O64: 無 | S64: 有 | W64: 無
C65: 知的財産戦略方針 | K65: 支援総額（千円） | S65: 部屋数 | Z65: 件
C66: 有 | G66: 無 | S66: 利用件数 | Z66: 件
A69: 1 | B69: 2 | C69: 3 | D69: 4 | E69: 5 | F69: 6 | G69: 7 | H69: 8 | I69: 9 | J69: 10 | K69: 11 | L69: 12 | M69: 13 | N69: 14 | O69: 15 | P69: 16 | Q69: 17 | R69: 18 | S69: 19 | T69: 20 | U69: 21 | V69: 22 | W69: 23 | X69: 24 | Y69: 25 | Z69: 26 | AA69: 27 | AB69: 28 | AC69: 29 | AD69: 30 | AE69: 31 | AF69: 32 | AG69: 33 | AH69: 34 | AI69: 35 | AJ69: 36 | AK69: 37 | AL69: 38 | AM69: 39 | AN69: 40 | AO69: 41 | AP69: 42 | AQ69: 43 | AR69: 44 | AS69: 45 | AT69: 46 | AU69: 47 | AV69: 48 | AW69: 49 | AX69: 50 | AY69: 51 | AZ69: 52 | BA69: 53 | BB69: 54 | BC69: 55 | BD69: 56 | BE69: 57 | BF69: 58 | BG69: 59 | BH69: 60 | BI69: 61 | BJ69: 62 | BK69: 63 | BL69: 64 | BM69: 65 | BN69: 66 | BO69: 67 | BP69: 68 | BQ69: 69 | BR69: 70 | BS69: 71 | BT69: 72 | BU69: 73 | BV69: 74 | BW69: 75 | BX69: 76 | BY69: 77 | BZ69: 78 | CA69: 79 | CB69: 80 | CC69: 81 | CD69: 82 | CE69: 83 | CF69: 84 | CG69: 85 | CH69: 86 | CI69: 87 | CJ69: 88 | CK69: 89 | CL69: 90 | CM69: 91 | CN69: 92 | CO69: 93 | CP69: 94 | CQ69: 95 | CR69: 96 | CS69: 97 | CT69: 98 | CU69: 99 | CV69: 100 | CW69: 101 | CX69: 102 | CY69: 103 | CZ69: 104 | DA69: 105 | DB69: 106 | DC69: 107 | DD69: 108 | DE69: 109 | DF69: 110 | DG69: 111 | DH69: 112 | DI69: 113 | DJ69: 114 | DK69: 115 | DL69: 116 | DM69: 117 | DN69: 118 | DO69: 119 | DP69: 120 | DQ69: 121 | DR69: 122 | DS69: 123 | DT69: 124 | DU69: 125
D70: 特許権収入
B71: 東京大学 | C71: 4495 | D71: 261744000
B72: 東北大学 | C72: 3533 | D72: 157139000
B73: 京都大学 | C73: 3044 | D73: 698373000
B74: 大阪大学 | C74: 2854 | D74: 509758000
B75: 東京工業大学 | C75: 1979 | D75: 57301000
B76: 九州大学 | C76: 1530 | D76: 601936000
B77: 名古屋大学 | C77: 1346 | D77: 72156000
B78: 北海道大学 | C78: 1167 | D78: 86700000
B79: 信州大学 | C79: 952 | D79: 29305000
B80: 広島大学 | C80: 921 | D80: 41265000
B81: 筑波大学 | C81: 850 | D81: 42694000
B82: 慶應義塾大学 | C82: 798 | D82: 67998000
B83: 千葉大学 | C83: 769 | D83: 17609000
B84: 岡山大学 | C84: 749 | D84: 8886000
B85: 山口大学 | C85: 700 | D85: 29167000
B86: 早稲田大学 | C86: 698 | D86: 21143000
B87: 名古屋工業大学 | C87: 638 | D87: 12139000
B88: 東京農工大学 | C88: 632 | D88: 44098000
B89: 九州工業大学 | C89: 611 | D89: 10288000
B90: 大阪府立大学 | C90: 573 | D90: 9177000
B91: 東京理科大学 | C91: 528 | D91: 15523000
B92: 神戸大学 | C92: 525 | D92: 78768000
B93: 静岡大学 | C93: 509 | D93: 8145000
B94: 群馬大学 | C94: 483 | D94: 5316000
B95: 熊本大学 | C95: 475 | D95: 29359000
B96: 近畿大学 | C96: 453 | D96: 82359000
B97: 長岡技術科学大学 | C97: 441 | D97: 3921000
B98: 横浜国立大学 | C98: 439 | D98: 5839000
B99: 奈良先端科学技術大学院大学 | C99: 427 | D99: 3542000
B100: 三重大学 | C100: 417 | D100: 10844000
B101: 鹿児島大学 | C101: 416 | D101: 14284000
B102: 大阪市立大学 | C102: 403 | D102: 2791000
B103: 東京都立大学 | C103: 398 | D103: 574000
B104: 山梨大学 | C104: 395 | D104: 5041000
B105: 香川大学 | C105: 389 | D105: 17113000
B106: 東京医科歯科大学 | C106: 377 | D106: 24076000
B107: 豊橋技術科学大学 | C107: 374 | D107: 5526000
B108: 徳島大学 | C108: 362 | D108: 131417000
B109: 電気通信大学 | C109: 355 | D109: 7847000
B110: 関西大学 | C110: 350 | D110: 5154000
B111: 鳥取大学 | C111: 340 | D111: 4814000
B112: 同志社大学 | C112: 337 | D112: 17850000
B113: 金沢大学 | C113: 337 | D113: 13893000
B114: 日本大学 | C114: 333 | D114: 38328000
B115: 山形大学 | C115: 323 | D115: 752000
B116: 北里大学 | C116: 315 | D116: 45190000
B117: 埼玉大学 | C117: 309 | D117: 2765000
B118: 富山大学 | C118: 305 | D118: 35859000
B119: 新潟大学 | C119: 301 | D119: 8943000
B120: 高知大学 | C120: 281 | D120: 26209000
B121: 立命館大学 | C121: 268 | D121: 2098000
B122: 秋田大学 | C122: 264 | D122: 1773000
B123: 神奈川大学 | C123: 263 | D123: 4940000
B124: 岐阜大学 | C124: 246 | D124: 7958000
B125: 弘前大学 | C125: 239 | D125: 10190000
B126: 宮崎大学 | C126: 236 | D126: 2168000
B127: 名城大学 | C127: 232 | D127: 2341000
B128: 兵庫県立大学 | C128: 232 | D128: 1142000
B129: 佐賀大学 | C129: 224 | D129: 4180000
B130: 福井大学 | C130: 221 | D130: 3913000
B131: 札幌医科大学 | C131: 218 | D131: 105462000
B132: 東海大学 | C132: 211 | D132: 5395000
B133: 京都工芸繊維大学 | C133: 201 | D133: 4782000
B134: 岩手大学 | C134: 198 | D134: 2552000
B135: 長崎大学 | C135: 194 | D135: 25364000
B136: 東京女子医科大学 | C136: 186 | D136: 2706000
B137: 横浜市立大学 | C137: 184 | D137: 50242000
B138: 北陸先端科学技術大学院大学 | C138: 175 | D138: 8323000
B139: 東京海洋大学 | C139: 175 | D139: 3222000
B140: 愛媛大学 | C140: 174 | D140: 35291000
B141: 宇都宮大学 | C141: 171 | D141: 2463000
B142: 高知工科大学 | C142: 165 | D142: 326000
B143: 千葉工業大学 | C143: 160 | D143: 0
B144: 茨城大学 | C144: 157 | D144: 2754000
B145: 福岡大学 | C145: 154 | D145: 874000
B146: 沖縄科学技術大学院大学 | C146: 152 | D146: 1100000
B147: 大分大学 | C147: 151 | D147: 1915000
B148: 金沢工業大学 | C148: 150 | D148: 2760000
B149: 中央大学 | C149: 144 | D149: 989000
B150: 浜松医科大学 | C150: 143 | D150: 3875000
B151: 島根大学 | C151: 137 | D151: 1166000
B152: 滋賀医科大学 | C152: 132 | D152: 2306000
B153: 関西学院大学 | C153: 128 | D153: 23880000
B154: 自治医科大学 | C154: 127 | D154: 6757000
B155: 久留米大学 | C155: 127 | D155: 1462000
B156: 上智大学 | C156: 126 | D156: 0
B157: 順天堂大学 | C157: 122 | D157: 3072000
B158: 中部大学 | C158: 118 | D158: 220000
B159: 東京電機大学 | C159: 102 | D159: 1180000
B160: 芝浦工業大学 | C160: 98 | D160: 1615000
B161: 埼玉医科大学 | C161: 96 | D161: 27468000
B162: 豊田工業大学 | C162: 96 | D162: 0
B163: 名古屋市立大学 | C163: 94 | D163: 17822000
B164: 京都府立医科大学 | C164: 94 | D164: 2128000
B165: 北見工業大学 | C165: 92 | D165: 995000
B166: 和歌山大学 | C166: 89 | D166: 4131000
B167: 富山県立大学 | C167: 87 | D167: 1375000
B168: 関東学院大学 | C168: 84 | D168: 14540000
B169: 明治大学 | C169: 81 | D169: 4886000
B170: 琉球大学 | C170: 77 | D170: 1146000
B171: 静岡県立大学 | C171: 72 | D171: 915000
B172: 福島大学 | C172: 67 | D172: 897000
B173: 藤田医科大学 | C173: 62 | D173: 0
B174: 帝京大学 | C174: 60 | D174: 2351000
B175: 兵庫医科大学 | C175: 60 | D175: 332000
B176: 旭川医科大学 | C176: 59 | D176: 1987000
B177: 日本医科大学 | C177: 55 | D177: 58243000
B178: 帯広畜産大学 | C178: 54 | D178: 2966000
B179: 東洋大学 | C179: 54 | D179: 633000
B180: 秋田県立大学 | C180: 52 | D180: 892000
B181: 奈良県立医科大学 | C181: 52 | D181: 743000
B182: 福岡工業大学 | C182: 52 | D182: 0
B183: 立教大学 | C183: 51 | D183: 231000
B184: 室蘭工業大学 | C184: 50 | D184: 0
B185: 昭和大学 | C185: 48 | D185: 4513000
B186: 聖マリアンナ医科大学 | C186: 46 | D186: 3204000
B187: 関西医科大学 | C187: 46 | D187: 781000
B188: 神奈川工科大学 | C188: 46 | D188: 289000
B189: 岡山理科大学 | C189: 45 | D189: 916000
B190: お茶の水女子大学 | C190: 45 | D190: 5000
B191: 広島市立大学 | C191: 44 | D191: 0
B192: 会津大学 | C192: 43 | D192: 33000
B193: 龍谷大学 | C193: 42 | D193: 1289000
B194: 玉川大学 | C194: 41 | D194: 119000
B195: 産業医科大学 | C195: 41 | D195: 7000
B196: 大阪工業大学 | C196: 39 | D196: 0
B197: 東京農業大学 | C197: 36 | D197: 748000
B198: 法政大学 | C198: 36 | D198: 550000
B199: 工学院大学 | C199: 35 | D199: 3516000
B200: 青山学院大学 | C200: 34 | D200: 0
B201: 北九州市立大学 | C201: 32 | D201: 2647000
B202: 東邦大学 | C202: 32 | D202: 23000
B203: 甲南大学 | C203: 31 | D203: 613000
B204: 石川県立大学 | C204: 31 | D204: 531000
B205: 東京都市大学 | C205: 30 | D205: 2371000
B206: 麻布大学 | C206: 28 | D206: 1505000
B207: 長崎県立大学 | C207: 28 | D207: 1001000
B208: 金沢医科大学 | C208: 27 | D208: 933000
B209: 滋賀県立大学 | C209: 27 | D209: 0
B210: 愛知工業大学 | C210: 26 | D210: 0
... 635 more rows

Sheet 総合研究大学院大学 (hidden)
A1: 国立 | C1: 総合研究大学院大学 | X1: 大学全体の経営理念における産学官連携活動の取組方針 | CY1: 103 | CZ1: 104 | DA1: 105 | DB1: 106 | DC1: 107 | DD1: 108 | DE1: 109 | DF1: 110 | DG1: 111 | DH1: 112 | DI1: 113 | DJ1: 114 | DK1: 115 | DL1: 116 | DM1: 117 | DN1: 118 | DO1: 119 | DP1: 120 | DQ1: 121 | DR1: 122 | DS1: 123 | DT1: 124 | DU1: 125 | DV1: 126 | DW1: 127 | DX1: 128 | DY1: 129
BB3: ＵＲＡ | BO3: URA当たり研究者数 | CA3: 戦略的産学連携経費
BC4: 実務担当者数 | BN4: 名 | BO4: =IF(OR(I25="",BI4=""),"",(IFERROR(I25/BI4,""))) ->  | CB4: 戦略的産学連携経費の設定 | CP4: 有 | CT4: 無 | CZ4: ない | DA4: インキュベーション施設
CB5: 戦略的産学連携経費の費目 | CZ5: ない | DA5: 相談窓口
A6: 基 礎 情 報 | BB6: 各種規程類の整備状況 | CB6: 戦略的産学連携経費の直接経費に対する割合 | CZ6: ない | DA6: 設立ポリシー | DI6: × | DJ6: 産学連携ポリシー
BB7: 産学連携ポリシー | BM7: 職務発明規程（教職員のみ対象） | CZ7: ない | DA7: 支援ファンド | DI7: ◎ | DJ7: 知的財産ポリシー
B8: 大学の得意分野とその具体例 | BB8: 知的財産ポリシー | BM8: 職務発明規程（教職員、学生対象） | CA8: 人件費の企業負担 | DI8: ◎ | DJ8: 共同研究取扱規程
AA9: 科研費 （千円） | AL9: その他政府系研究費 (千円) | AS9: その他補助・助成金等 (千円) | BB9: 共同研究取扱規程 | BM9: 発明補償関係規程（教職員のみ対象） | CB9: 教員人件費の企業負担に関する規程や制度 | CP9: 有 | CT9: 無 | DI9: ◎ | DJ9: 受託研究取扱規程
BB10: 受託研究取扱規程 | BM10: 発明補償関係規程（教職員、学生対象） | CB10: 教員人件費の企業負担の費目 | DI10: ◎ | DJ10: 研究成果有体物取扱規程
AA11: 126700 | AS11: 3800 | BB11: 研究成果有体物取扱規程 | BM11: 守秘義務に係る規程（教職員のみ対象） | CB11: 学生人件費の企業負担に関する規程や制度 | CP11: 有 | CT11: 無 | DI11: × | DJ11: 営業秘密管理に関する規程
BB12: 営業秘密管理に関する規程 | BM12: 守秘義務に係る規程（教職員、学生対象） | CB12: 学生人件費の企業負担の費目 | DI12: × | DJ12: 株式の取扱等規程、ポリシー
AA13: 間接経費割合 | AN13: 株式の保有 | AT13: 新株予約権の保有 | BB13: 株式の取扱等規程、ポリシー | DB13: 株式 | DI13: × | DJ13: 職務発明規程（教職員のみ対象）
AA14: 30％以上 | AN14: 有 | AQ14: 無 | AT14: 有 | AW14: 無 | BD14: ※各種規定類を整備している場合は、赤色で表示されます。 | CA14: 特別試験研究費税額控除制度 | DB14: 新株予約権 | DI14: ◎ | DJ14: 職務発明規程（教職員、学生対象）
CB15: 特別試験研究費税額控除制度の活用 | CP15: 有 | CT15: 無 | DI15: × | DJ15: 発明補償関係規程（教職員のみ対象）
B16: 産学官連携活動において今後重点化したい事項 | AA16: ■共同研究 | AG16: 2019年度 | AO16: 2020年度 | AW16: 順位※ | BB16: クロスアポイントメントの実績（人） | BK16: 大学等 | BN16: 公的機関 | BQ16: 民間企業 | BU16: その他機関 | DI16: × | DJ16: 発明補償関係規程（教職員、学生対象）
AG17: 受入額（千円） | AL17: 件数 | AO17: 受入額（千円） | AT17: 件数 | BH17: 受入 | BK17: 0 | BN17: 0 | BQ17: 0 | BU17: 0 | DB17: 順位 | DI17: ◎ | DJ17: 守秘義務に係る規程（教職員のみ対象）
AA18: 全体 | AG18: 200 | AL18: 2 | AO18: 200 | AT18: 2 | AW18: =IF(DB18<50,DB18,"") ->  | AY18: 位 | BH18: 派遣 | BK18: 0 | BN18: 0 | BQ18: 0 | BU18: 0 | DB18: 465 | DI18: × | DJ18: 守秘義務に係る規程（教職員、学生対象）
AB19: 民間企業 のみ | AG19: 200 | AL19: 2 | AO19: 200 | AT19: 2 | AW19: =IF(DB19<50,DB19,"") ->  | AY19: 位 | DB19: 429
AC20: 大企業 | AG20: 200 | AL20: 2 | AO20: 200 | AT20: 2 | AW20: =IF(DB20<50,DB20,"") ->  | AY20: 位 | BB20: ■組織的産学連携活動の取組事例 | DB20: 375 | DI20: ない | DJ20: 戦略的産学連携経費の設定
AC21: 中小企業 | AG21: 0 | AO21: 0 | AW21: =IF(DB21<50,DB21,"") ->  | AY21: 位 | DB21: 358 | DI21: ない | DJ21: 教員人件費の企業負担に関する規程や制度
AL22: ※順位は2020年度の受入額を比較したもの | DI22: ない | DJ22: 学生人件費の企業負担に関する規程や制度
DB23: 0 | DC23: 1 | DI23: ない | DJ23: 特別試験研究費税額控除制度の活用
DB24: ～100万 | DC24: 1
B25: 研究者数 | I25: 49 | P25: 名 | DB25: ～300万
DB26: ～500万
DB27: ～1000万
DB28: ～5000万
DB29: ～1億 | DJ29: 共同研究等の企画・提案
B30: 産学連携担当部署 | O30: 実務者当たり研究者数 | DB30: 1億以上 | DJ30: 契約書での成果目標、達成時の明記
C31: 実務担当者数 | I31: 3 | N31: 名 | O31: =IF(OR(I25="",I31=""),"",IFERROR($I$25/I31,"")) -> 16.33333333 | DJ31: 共同研究契約の締結/判断（契約権限の集中）
C32: 専門家の配置 | I32: 弁護士 | L32: 弁理士 | O32: 税理士 | R32: 公認会計士 | V32: その他 | DJ32: 共同研究の進捗管理とフィードバック
I33: ※専門家を配置している場合は、赤色で表示されます。 | DJ33: 企業ニーズに適応した技術移転・事業化提案
AA34: ■受託研究 | AG34: 2019年度 | AO34: 2020年度 | AW34: 順位※ | DJ34: 共同研究等の企画・提案
AG35: 受入額（千円） | AL35: 件数 | AO35: 受入額（千円） | AT35: 件数 | DB35: 順位 | DJ35: 契約書での成果目標、達成時の明記
AA36: 全体 | AG36: 1170 | AL36: 1 | AO36: 24254 | AT36: 4 | AW36: =IF(DB36<50,DB36,"") ->  | AY36: 位 | DB36: 222 | DJ36: 共同研究契約の締結/判断（契約権限の集中）
AB37: 民間企業 のみ | AG37: 0 | AL37: 0 | AO37: 0 | AT37: 0 | AW37: =IF(DB37<50,DB37,"") ->  | AY37: 位 | DB37: 401 | DJ37: 共同研究の進捗管理とフィードバック
C38: 産学連携本部が関与した共同研究 | P38: 0 | T38: 件 | AC38: 大企業 | AG38: 0 | AO38: 0 | AW38: =IF(DB38<50,DB38,"") ->  | AY38: 位 | DB38: 308 | DJ38: 企業ニーズに適応した技術移転・事業化提案
D39: 内、マッチングを行い、契約締結した件数 | P39: 0 | T39: 件 | AC39: 中小企業 | AG39: 0 | AO39: 0 | AW39: =IF(DB39<50,DB39,"") ->  | AY39: 位 | BB39: ■産学連携活動の主な実用化事例 | DB39: 316 | DJ39: 共同研究等の企画・提案
I40: ※1,000万円以上の共同研究 | AL40: ※順位は2020年度の受入額を比較したもの | DB40: 弁護士 | DG40: 0 | DJ40: 契約書での成果目標、達成時の明記
DB41: 弁理士 | DG41: ～100万 | DJ41: 共同研究契約の締結/判断（契約権限の集中）
C42: 組織対組織による包括連携契約の締結数 | P42: 0 | T42: 件 | DB42: 税理士 | DG42: ～300万 | DJ42: 共同研究の進捗管理とフィードバック
D43: 内、1,000万円以上の実績がある相手方数 | P43: 0 | T43: 件 | DB43: 公認会計士 | DG43: ～500万 | DJ43: 企業ニーズに適応した技術移転・事業化提案
DB44: その他 | DG44: ～1000万
C45: 寄附講座・寄附研究部門の受入件数 | V45: 件 | DG45: ～5000万
C46: 寄附講座・寄附研究部門の受入金額（千円） | DG46: ～1億
C47: 共同研究講座・共同研究部門の受入件数 | V47: 件 | DG47: 1億以上
C48: 共同研究講座・共同研究部門の受入金額（千円）
C52: 職務発明の帰属 | I52: 大学 | M52: 発明者 | Q52: 未設定 | CZ52: 大学 | DA52: 職務発明
AD53: 特許権実施等件数 | AL53: 0 | AS53: 実施等件数 あたり | DA53: 不実施
M54: 研究者あたり | AD54: 特許権実施等収入（千円） | AL54: 0 | AS54: =IF(OR(AL53="",AL54=""),"",IFERROR(AL54/AL53,"")) ->  | CZ54: 0 | DA54: 特許等収入
C55: 特許出願件数 | M55: =IF(OR(I25="",I55=""),"",IFERROR(I55/I25,"")) -> 
C56: 特許保有件数 | M56: =IF(OR(I25="",I56=""),"",IFERROR(I56/I25,"")) -> 
C61: 大学発ベンチャー数 | O61: 社
C62: Exit件数（IPO） | O62: 社 | P62: Exit件数（M&A） | Z62: 社
C63: 相談窓口 | K63: 支援ファンド | S63: インキュベーション施設
C64: 有 | G64: 無 | K64: 有 | O64: 無 | S64: 有 | W64: 無
C65: 知的財産戦略方針 | K65: 支援総額（千円） | S65: 部屋数 | Z65: 件
C66: 有 | G66: 無 | S66: 利用件数 | Z66: 件
A69: 1 | B69: 2 | C69: 3 | D69: 4 | E69: 5 | F69: 6 | G69: 7 | H69: 8 | I69: 9 | J69: 10 | K69: 11 | L69: 12 | M69: 13 | N69: 14 | O69: 15 | P69: 16 | Q69: 17 | R69: 18 | S69: 19 | T69: 20 | U69: 21 | V69: 22 | W69: 23 | X69: 24 | Y69: 25 | Z69: 26 | AA69: 27 | AB69: 28 | AC69: 29 | AD69: 30 | AE69: 31 | AF69: 32 | AG69: 33 | AH69: 34 | AI69: 35 | AJ69: 36 | AK69: 37 | AL69: 38 | AM69: 39 | AN69: 40 | AO69: 41 | AP69: 42 | AQ69: 43 | AR69: 44 | AS69: 45 | AT69: 46 | AU69: 47 | AV69: 48 | AW69: 49 | AX69: 50 | AY69: 51 | AZ69: 52 | BA69: 53 | BB69: 54 | BC69: 55 | BD69: 56 | BE69: 57 | BF69: 58 | BG69: 59 | BH69: 60 | BI69: 61 | BJ69: 62 | BK69: 63 | BL69: 64 | BM69: 65 | BN69: 66 | BO69: 67 | BP69: 68 | BQ69: 69 | BR69: 70 | BS69: 71 | BT69: 72 | BU69: 73 | BV69: 74 | BW69: 75 | BX69: 76 | BY69: 77 | BZ69: 78 | CA69: 79 | CB69: 80 | CC69: 81 | CD69: 82 | CE69: 83 | CF69: 84 | CG69: 85 | CH69: 86 | CI69: 87 | CJ69: 88 | CK69: 89 | CL69: 90 | CM69: 91 | CN69: 92 | CO69: 93 | CP69: 94 | CQ69: 95 | CR69: 96 | CS69: 97 | CT69: 98 | CU69: 99 | CV69: 100 | CW69: 101 | CX69: 102 | CY69: 103 | CZ69: 104 | DA69: 105 | DB69: 106 | DC69: 107 | DD69: 108 | DE69: 109 | DF69: 110 | DG69: 111 | DH69: 112 | DI69: 113 | DJ69: 114 | DK69: 115 | DL69: 116 | DM69: 117 | DN69: 118 | DO69: 119 | DP69: 120 | DQ69: 121 | DR69: 122 | DS69: 123 | DT69: 124 | DU69: 125
D70: 特許権収入
B71: 東京大学 | C71: 4495 | D71: 261744000
B72: 東北大学 | C72: 3533 | D72: 157139000
B73: 京都大学 | C73: 3044 | D73: 698373000
B74: 大阪大学 | C74: 2854 | D74: 509758000
B75: 東京工業大学 | C75: 1979 | D75: 57301000
B76: 九州大学 | C76: 1530 | D76: 601936000
B77: 名古屋大学 | C77: 1346 | D77: 72156000
B78: 北海道大学 | C78: 1167 | D78: 86700000
B79: 信州大学 | C79: 952 | D79: 29305000
B80: 広島大学 | C80: 921 | D80: 41265000
B81: 筑波大学 | C81: 850 | D81: 42694000
B82: 慶應義塾大学 | C82: 798 | D82: 67998000
B83: 千葉大学 | C83: 769 | D83: 17609000
B84: 岡山大学 | C84: 749 | D84: 8886000
B85: 山口大学 | C85: 700 | D85: 29167000
B86: 早稲田大学 | C86: 698 | D86: 21143000
B87: 名古屋工業大学 | C87: 638 | D87: 12139000
B88: 東京農工大学 | C88: 632 | D88: 44098000
B89: 九州工業大学 | C89: 611 | D89: 10288000
B90: 大阪府立大学 | C90: 573 | D90: 9177000
B91: 東京理科大学 | C91: 528 | D91: 15523000
B92: 神戸大学 | C92: 525 | D92: 78768000
B93: 静岡大学 | C93: 509 | D93: 8145000
B94: 群馬大学 | C94: 483 | D94: 5316000
B95: 熊本大学 | C95: 475 | D95: 29359000
B96: 近畿大学 | C96: 453 | D96: 82359000
B97: 長岡技術科学大学 | C97: 441 | D97: 3921000
B98: 横浜国立大学 | C98: 439 | D98: 5839000
B99: 奈良先端科学技術大学院大学 | C99: 427 | D99: 3542000
B100: 三重大学 | C100: 417 | D100: 10844000
B101: 鹿児島大学 | C101: 416 | D101: 14284000
B102: 大阪市立大学 | C102: 403 | D102: 2791000
B103: 東京都立大学 | C103: 398 | D103: 574000
B104: 山梨大学 | C104: 395 | D104: 5041000
B105: 香川大学 | C105: 389 | D105: 17113000
B106: 東京医科歯科大学 | C106: 377 | D106: 24076000
B107: 豊橋技術科学大学 | C107: 374 | D107: 5526000
B108: 徳島大学 | C108: 362 | D108: 131417000
B109: 電気通信大学 | C109: 355 | D109: 7847000
B110: 関西大学 | C110: 350 | D110: 5154000
B111: 鳥取大学 | C111: 340 | D111: 4814000
B112: 同志社大学 | C112: 337 | D112: 17850000
B113: 金沢大学 | C113: 337 | D113: 13893000
B114: 日本大学 | C114: 333 | D114: 38328000
B115: 山形大学 | C115: 323 | D115: 752000
B116: 北里大学 | C116: 315 | D116: 45190000
B117: 埼玉大学 | C117: 309 | D117: 2765000
B118: 富山大学 | C118: 305 | D118: 35859000
B119: 新潟大学 | C119: 301 | D119: 8943000
B120: 高知大学 | C120: 281 | D120: 26209000
B121: 立命館大学 | C121: 268 | D121: 2098000
B122: 秋田大学 | C122: 264 | D122: 1773000
B123: 神奈川大学 | C123: 263 | D123: 4940000
B124: 岐阜大学 | C124: 246 | D124: 7958000
B125: 弘前大学 | C125: 239 | D125: 10190000
B126: 宮崎大学 | C126: 236 | D126: 2168000
B127: 名城大学 | C127: 232 | D127: 2341000
B128: 兵庫県立大学 | C128: 232 | D128: 1142000
B129: 佐賀大学 | C129: 224 | D129: 4180000
B130: 福井大学 | C130: 221 | D130: 3913000
B131: 札幌医科大学 | C131: 218 | D131: 105462000
B132: 東海大学 | C132: 211 | D132: 5395000
B133: 京都工芸繊維大学 | C133: 201 | D133: 4782000
B134: 岩手大学 | C134: 198 | D134: 2552000
B135: 長崎大学 | C135: 194 | D135: 25364000
B136: 東京女子医科大学 | C136: 186 | D136: 2706000
B137: 横浜市立大学 | C137: 184 | D137: 50242000
B138: 北陸先端科学技術大学院大学 | C138: 175 | D138: 8323000
B139: 東京海洋大学 | C139: 175 | D139: 3222000
B140: 愛媛大学 | C140: 174 | D140: 35291000
B141: 宇都宮大学 | C141: 171 | D141: 2463000
B142: 高知工科大学 | C142: 165 | D142: 326000
B143: 千葉工業大学 | C143: 160 | D143: 0
B144: 茨城大学 | C144: 157 | D144: 2754000
B145: 福岡大学 | C145: 154 | D145: 874000
B146: 沖縄科学技術大学院大学 | C146: 152 | D146: 1100000
B147: 大分大学 | C147: 151 | D147: 1915000
B148: 金沢工業大学 | C148: 150 | D148: 2760000
B149: 中央大学 | C149: 144 | D149: 989000
B150: 浜松医科大学 | C150: 143 | D150: 3875000
B151: 島根大学 | C151: 137 | D151: 1166000
B152: 滋賀医科大学 | C152: 132 | D152: 2306000
B153: 関西学院大学 | C153: 128 | D153: 23880000
B154: 自治医科大学 | C154: 127 | D154: 6757000
B155: 久留米大学 | C155: 127 | D155: 1462000
B156: 上智大学 | C156: 126 | D156: 0
B157: 順天堂大学 | C157: 122 | D157: 3072000
B158: 中部大学 | C158: 118 | D158: 220000
B159: 東京電機大学 | C159: 102 | D159: 1180000
B160: 芝浦工業大学 | C160: 98 | D160: 1615000
B161: 埼玉医科大学 | C161: 96 | D161: 27468000
B162: 豊田工業大学 | C162: 96 | D162: 0
B163: 名古屋市立大学 | C163: 94 | D163: 17822000
B164: 京都府立医科大学 | C164: 94 | D164: 2128000
B165: 北見工業大学 | C165: 92 | D165: 995000
B166: 和歌山大学 | C166: 89 | D166: 4131000
B167: 富山県立大学 | C167: 87 | D167: 1375000
B168: 関東学院大学 | C168: 84 | D168: 14540000
B169: 明治大学 | C169: 81 | D169: 4886000
B170: 琉球大学 | C170: 77 | D170: 1146000
B171: 静岡県立大学 | C171: 72 | D171: 915000
B172: 福島大学 | C172: 67 | D172: 897000
B173: 藤田医科大学 | C173: 62 | D173: 0
B174: 帝京大学 | C174: 60 | D174: 2351000
B175: 兵庫医科大学 | C175: 60 | D175: 332000
B176: 旭川医科大学 | C176: 59 | D176: 1987000
B177: 日本医科大学 | C177: 55 | D177: 58243000
B178: 帯広畜産大学 | C178: 54 | D178: 2966000
B179: 東洋大学 | C179: 54 | D179: 633000
B180: 秋田県立大学 | C180: 52 | D180: 892000
B181: 奈良県立医科大学 | C181: 52 | D181: 743000
B182: 福岡工業大学 | C182: 52 | D182: 0
B183: 立教大学 | C183: 51 | D183: 231000
B184: 室蘭工業大学 | C184: 50 | D184: 0
B185: 昭和大学 | C185: 48 | D185: 4513000
B186: 聖マリアンナ医科大学 | C186: 46 | D186: 3204000
B187: 関西医科大学 | C187: 46 | D187: 781000
B188: 神奈川工科大学 | C188: 46 | D188: 289000
B189: 岡山理科大学 | C189: 45 | D189: 916000
B190: お茶の水女子大学 | C190: 45 | D190: 5000
B191: 広島市立大学 | C191: 44 | D191: 0
B192: 会津大学 | C192: 43 | D192: 33000
B193: 龍谷大学 | C193: 42 | D193: 1289000
B194: 玉川大学 | C194: 41 | D194: 119000
B195: 産業医科大学 | C195: 41 | D195: 7000
B196: 大阪工業大学 | C196: 39 | D196: 0
B197: 東京農業大学 | C197: 36 | D197: 748000
B198: 法政大学 | C198: 36 | D198: 550000
B199: 工学院大学 | C199: 35 | D199: 3516000
B200: 青山学院大学 | C200: 34 | D200: 0
B201: 北九州市立大学 | C201: 32 | D201: 2647000
B202: 東邦大学 | C202: 32 | D202: 23000
B203: 甲南大学 | C203: 31 | D203: 613000
B204: 石川県立大学 | C204: 31 | D204: 531000
B205: 東京都市大学 | C205: 30 | D205: 2371000
B206: 麻布大学 | C206: 28 | D206: 1505000
B207: 長崎県立大学 | C207: 28 | D207: 1001000
B208: 金沢医科大学 | C208: 27 | D208: 933000
B209: 滋賀県立大学 | C209: 27 | D209: 0
B210: 愛知工業大学 | C210: 26 | D210: 0
... 635 more rows

Sheet 上越教育大学 (hidden)
A1: 国立 | C1: 上越教育大学 | X1: 大学全体の経営理念における産学官連携活動の取組方針 | CY1: 103 | CZ1: 104 | DA1: 105 | DB1: 106 | DC1: 107 | DD1: 108 | DE1: 109 | DF1: 110 | DG1: 111 | DH1: 112 | DI1: 113 | DJ1: 114 | DK1: 115 | DL1: 116 | DM1: 117 | DN1: 118 | DO1: 119 | DP1: 120 | DQ1: 121 | DR1: 122 | DS1: 123 | DT1: 124 | DU1: 125 | DV1: 126 | DW1: 127 | DX1: 128 | DY1: 129
BB3: ＵＲＡ | BO3: URA当たり研究者数 | CA3: 戦略的産学連携経費
BC4: 実務担当者数 | BN4: 名 | BO4: =IF(OR(I25="",BI4=""),"",(IFERROR(I25/BI4,""))) ->  | CB4: 戦略的産学連携経費の設定 | CP4: 有 | CT4: 無 | CZ4: ない | DA4: インキュベーション施設
CB5: 戦略的産学連携経費の費目 | CZ5: ない | DA5: 相談窓口
A6: 基 礎 情 報 | BB6: 各種規程類の整備状況 | CB6: 戦略的産学連携経費の直接経費に対する割合 | CZ6: ない | DA6: 設立ポリシー | DI6: × | DJ6: 産学連携ポリシー
BB7: 産学連携ポリシー | BM7: 職務発明規程（教職員のみ対象） | CZ7: ない | DA7: 支援ファンド | DI7: ◎ | DJ7: 知的財産ポリシー
B8: 大学の得意分野とその具体例 | BB8: 知的財産ポリシー | BM8: 職務発明規程（教職員、学生対象） | CA8: 人件費の企業負担 | DI8: ◎ | DJ8: 共同研究取扱規程
AA9: 科研費 （千円） | AL9: その他政府系研究費 (千円) | AS9: その他補助・助成金等 (千円) | BB9: 共同研究取扱規程 | BM9: 発明補償関係規程（教職員のみ対象） | CB9: 教員人件費の企業負担に関する規程や制度 | CP9: 有 | CT9: 無 | DI9: ◎ | DJ9: 受託研究取扱規程
BB10: 受託研究取扱規程 | BM10: 発明補償関係規程（教職員、学生対象） | CB10: 教員人件費の企業負担の費目 | DI10: ◎ | DJ10: 研究成果有体物取扱規程
AA11: 77740 | BB11: 研究成果有体物取扱規程 | BM11: 守秘義務に係る規程（教職員のみ対象） | CB11: 学生人件費の企業負担に関する規程や制度 | CP11: 有 | CT11: 無 | DI11: × | DJ11: 営業秘密管理に関する規程
BB12: 営業秘密管理に関する規程 | BM12: 守秘義務に係る規程（教職員、学生対象） | CB12: 学生人件費の企業負担の費目 | DI12: × | DJ12: 株式の取扱等規程、ポリシー
AA13: 間接経費割合 | AN13: 株式の保有 | AT13: 新株予約権の保有 | BB13: 株式の取扱等規程、ポリシー | DB13: 株式 | DI13: ◎ | DJ13: 職務発明規程（教職員のみ対象）
AA14: 30％以上 | AN14: 有 | AQ14: 無 | AT14: 有 | AW14: 無 | BD14: ※各種規定類を整備している場合は、赤色で表示されます。 | CA14: 特別試験研究費税額控除制度 | DB14: 新株予約権 | DI14: × | DJ14: 職務発明規程（教職員、学生対象）
CB15: 特別試験研究費税額控除制度の活用 | CP15: 有 | CT15: 無 | DI15: ◎ | DJ15: 発明補償関係規程（教職員のみ対象）
B16: 産学官連携活動において今後重点化したい事項 | AA16: ■共同研究 | AG16: 2019年度 | AO16: 2020年度 | AW16: 順位※ | BB16: クロスアポイントメントの実績（人） | BK16: 大学等 | BN16: 公的機関 | BQ16: 民間企業 | BU16: その他機関 | DI16: × | DJ16: 発明補償関係規程（教職員、学生対象）
AG17: 受入額（千円） | AL17: 件数 | AO17: 受入額（千円） | AT17: 件数 | BH17: 受入 | BK17: 0 | BN17: 0 | BQ17: 0 | BU17: 0 | DB17: 順位 | DI17: ◎ | DJ17: 守秘義務に係る規程（教職員のみ対象）
AA18: 全体 | AG18: 1797 | AL18: 4 | AO18: 2936 | AT18: 5 | AW18: =IF(DB18<50,DB18,"") ->  | AY18: 位 | BH18: 派遣 | BK18: 0 | BN18: 0 | BQ18: 0 | BU18: 0 | DB18: 336 | DI18: × | DJ18: 守秘義務に係る規程（教職員、学生対象）
AB19: 民間企業 のみ | AG19: 1510 | AL19: 3 | AO19: 1496 | AT19: 2 | AW19: =IF(DB19<50,DB19,"") ->  | AY19: 位 | DB19: 360
AC20: 大企業 | AG20: 110 | AL20: 1 | AO20: 0 | AW20: =IF(DB20<50,DB20,"") ->  | AY20: 位 | BB20: ■組織的産学連携活動の取組事例 | DB20: 380 | DI20: ない | DJ20: 戦略的産学連携経費の設定
AC21: 中小企業 | AG21: 1400 | AL21: 2 | AO21: 1496 | AT21: 2 | AW21: =IF(DB21<50,DB21,"") ->  | AY21: 位 | DB21: 259 | DI21: ない | DJ21: 教員人件費の企業負担に関する規程や制度
AL22: ※順位は2020年度の受入額を比較したもの | DI22: ない | DJ22: 学生人件費の企業負担に関する規程や制度
DB23: 0 | DC23: 1 | DI23: ない | DJ23: 特別試験研究費税額控除制度の活用
DB24: ～100万
B25: 研究者数 | I25: 161 | P25: 名 | DB25: ～300万 | DC25: 1
DB26: ～500万
DB27: ～1000万
DB28: ～5000万
DB29: ～1億 | DJ29: 共同研究等の企画・提案
B30: 産学連携担当部署 | O30: 実務者当たり研究者数 | DB30: 1億以上 | DJ30: 契約書での成果目標、達成時の明記
C31: 実務担当者数 | I31: 2 | N31: 名 | O31: =IF(OR(I25="",I31=""),"",IFERROR($I$25/I31,"")) -> 80.5 | DJ31: 共同研究契約の締結/判断（契約権限の集中）
C32: 専門家の配置 | I32: 弁護士 | L32: 弁理士 | O32: 税理士 | R32: 公認会計士 | V32: その他 | DJ32: 共同研究の進捗管理とフィードバック
I33: ※専門家を配置している場合は、赤色で表示されます。 | DJ33: 企業ニーズに適応した技術移転・事業化提案
AA34: ■受託研究 | AG34: 2019年度 | AO34: 2020年度 | AW34: 順位※ | DJ34: 共同研究等の企画・提案
AG35: 受入額（千円） | AL35: 件数 | AO35: 受入額（千円） | AT35: 件数 | DB35: 順位 | DJ35: 契約書での成果目標、達成時の明記
AA36: 全体 | AG36: 2545 | AL36: 2 | AO36: 2505 | AT36: 1 | AW36: =IF(DB36<50,DB36,"") ->  | AY36: 位 | DB36: 394 | DJ36: 共同研究契約の締結/判断（契約権限の集中）
AB37: 民間企業 のみ | AG37: 500 | AL37: 1 | AO37: 0 | AT37: 0 | AW37: =IF(DB37<50,DB37,"") ->  | AY37: 位 | DB37: 401 | DJ37: 共同研究の進捗管理とフィードバック
C38: 産学連携本部が関与した共同研究 | P38: 0 | T38: 件 | AC38: 大企業 | AG38: 500 | AL38: 1 | AO38: 0 | AW38: =IF(DB38<50,DB38,"") ->  | AY38: 位 | DB38: 308 | DJ38: 企業ニーズに適応した技術移転・事業化提案
D39: 内、マッチングを行い、契約締結した件数 | P39: 0 | T39: 件 | AC39: 中小企業 | AG39: 0 | AO39: 0 | AW39: =IF(DB39<50,DB39,"") ->  | AY39: 位 | BB39: ■産学連携活動の主な実用化事例 | DB39: 316 | DJ39: 共同研究等の企画・提案
I40: ※1,000万円以上の共同研究 | AL40: ※順位は2020年度の受入額を比較したもの | DB40: 弁護士 | DG40: 0 | DJ40: 契約書での成果目標、達成時の明記
DB41: 弁理士 | DG41: ～100万 | DJ41: 共同研究契約の締結/判断（契約権限の集中）
C42: 組織対組織による包括連携契約の締結数 | P42: 0 | T42: 件 | DB42: 税理士 | DG42: ～300万 | DJ42: 共同研究の進捗管理とフィードバック
D43: 内、1,000万円以上の実績がある相手方数 | P43: 0 | T43: 件 | DB43: 公認会計士 | DG43: ～500万 | DJ43: 企業ニーズに適応した技術移転・事業化提案
DB44: その他 | DG44: ～1000万
C45: 寄附講座・寄附研究部門の受入件数 | P45: 1 | V45: 件 | DG45: ～5000万
C46: 寄附講座・寄附研究部門の受入金額（千円） | P46: 22000 | DG46: ～1億
C47: 共同研究講座・共同研究部門の受入件数 | V47: 件 | DG47: 1億以上
C48: 共同研究講座・共同研究部門の受入金額（千円）
C52: 職務発明の帰属 | I52: 大学 | M52: 発明者 | Q52: 未設定 | CZ52: 大学 | DA52: 職務発明
AD53: 特許権実施等件数 | AL53: 0 | AS53: 実施等件数 あたり | DA53: 不実施
M54: 研究者あたり | AD54: 特許権実施等収入（千円） | AL54: 0 | AS54: =IF(OR(AL53="",AL54=""),"",IFERROR(AL54/AL53,"")) ->  | CZ54: 0 | DA54: 特許等収入
C55: 特許出願件数 | M55: =IF(OR(I25="",I55=""),"",IFERROR(I55/I25,"")) -> 
C56: 特許保有件数 | M56: =IF(OR(I25="",I56=""),"",IFERROR(I56/I25,"")) -> 
C61: 大学発ベンチャー数 | O61: 社
C62: Exit件数（IPO） | O62: 社 | P62: Exit件数（M&A） | Z62: 社
C63: 相談窓口 | K63: 支援ファンド | S63: インキュベーション施設
C64: 有 | G64: 無 | K64: 有 | O64: 無 | S64: 有 | W64: 無
C65: 知的財産戦略方針 | K65: 支援総額（千円） | S65: 部屋数 | Z65: 件
C66: 有 | G66: 無 | S66: 利用件数 | Z66: 件
A69: 1 | B69: 2 | C69: 3 | D69: 4 | E69: 5 | F69: 6 | G69: 7 | H69: 8 | I69: 9 | J69: 10 | K69: 11 | L69: 12 | M69: 13 | N69: 14 | O69: 15 | P69: 16 | Q69: 17 | R69: 18 | S69: 19 | T69: 20 | U69: 21 | V69: 22 | W69: 23 | X69: 24 | Y69: 25 | Z69: 26 | AA69: 27 | AB69: 28 | AC69: 29 | AD69: 30 | AE69: 31 | AF69: 32 | AG69: 33 | AH69: 34 | AI69: 35 | AJ69: 36 | AK69: 37 | AL69: 38 | AM69: 39 | AN69: 40 | AO69: 41 | AP69: 42 | AQ69: 43 | AR69: 44 | AS69: 45 | AT69: 46 | AU69: 47 | AV69: 48 | AW69: 49 | AX69: 50 | AY69: 51 | AZ69: 52 | BA69: 53 | BB69: 54 | BC69: 55 | BD69: 56 | BE69: 57 | BF69: 58 | BG69: 59 | BH69: 60 | BI69: 61 | BJ69: 62 | BK69: 63 | BL69: 64 | BM69: 65 | BN69: 66 | BO69: 67 | BP69: 68 | BQ69: 69 | BR69: 70 | BS69: 71 | BT69: 72 | BU69: 73 | BV69: 74 | BW69: 75 | BX69: 76 | BY69: 77 | BZ69: 78 | CA69: 79 | CB69: 80 | CC69: 81 | CD69: 82 | CE69: 83 | CF69: 84 | CG69: 85 | CH69: 86 | CI69: 87 | CJ69: 88 | CK69: 89 | CL69: 90 | CM69: 91 | CN69: 92 | CO69: 93 | CP69: 94 | CQ69: 95 | CR69: 96 | CS69: 97 | CT69: 98 | CU69: 99 | CV69: 100 | CW69: 101 | CX69: 102 | CY69: 103 | CZ69: 104 | DA69: 105 | DB69: 106 | DC69: 107 | DD69: 108 | DE69: 109 | DF69: 110 | DG69: 111 | DH69: 112 | DI69: 113 | DJ69: 114 | DK69: 115 | DL69: 116 | DM69: 117 | DN69: 118 | DO69: 119 | DP69: 120 | DQ69: 121 | DR69: 122 | DS69: 123 | DT69: 124 | DU69: 125
D70: 特許権収入
B71: 東京大学 | C71: 4495 | D71: 261744000
B72: 東北大学 | C72: 3533 | D72: 157139000
B73: 京都大学 | C73: 3044 | D73: 698373000
B74: 大阪大学 | C74: 2854 | D74: 509758000
B75: 東京工業大学 | C75: 1979 | D75: 57301000
B76: 九州大学 | C76: 1530 | D76: 601936000
B77: 名古屋大学 | C77: 1346 | D77: 72156000
B78: 北海道大学 | C78: 1167 | D78: 86700000
B79: 信州大学 | C79: 952 | D79: 29305000
B80: 広島大学 | C80: 921 | D80: 41265000
B81: 筑波大学 | C81: 850 | D81: 42694000
B82: 慶應義塾大学 | C82: 798 | D82: 67998000
B83: 千葉大学 | C83: 769 | D83: 17609000
B84: 岡山大学 | C84: 749 | D84: 8886000
B85: 山口大学 | C85: 700 | D85: 29167000
B86: 早稲田大学 | C86: 698 | D86: 21143000
B87: 名古屋工業大学 | C87: 638 | D87: 12139000
B88: 東京農工大学 | C88: 632 | D88: 44098000
B89: 九州工業大学 | C89: 611 | D89: 10288000
B90: 大阪府立大学 | C90: 573 | D90: 9177000
B91: 東京理科大学 | C91: 528 | D91: 15523000
B92: 神戸大学 | C92: 525 | D92: 78768000
B93: 静岡大学 | C93: 509 | D93: 8145000
B94: 群馬大学 | C94: 483 | D94: 5316000
B95: 熊本大学 | C95: 475 | D95: 29359000
B96: 近畿大学 | C96: 453 | D96: 82359000
B97: 長岡技術科学大学 | C97: 441 | D97: 3921000
B98: 横浜国立大学 | C98: 439 | D98: 5839000
B99: 奈良先端科学技術大学院大学 | C99: 427 | D99: 3542000
B100: 三重大学 | C100: 417 | D100: 10844000
B101: 鹿児島大学 | C101: 416 | D101: 14284000
B102: 大阪市立大学 | C102: 403 | D102: 2791000
B103: 東京都立大学 | C103: 398 | D103: 574000
B104: 山梨大学 | C104: 395 | D104: 5041000
B105: 香川大学 | C105: 389 | D105: 17113000
B106: 東京医科歯科大学 | C106: 377 | D106: 24076000
B107: 豊橋技術科学大学 | C107: 374 | D107: 5526000
B108: 徳島大学 | C108: 362 | D108: 131417000
B109: 電気通信大学 | C109: 355 | D109: 7847000
B110: 関西大学 | C110: 350 | D110: 5154000
B111: 鳥取大学 | C111: 340 | D111: 4814000
B112: 同志社大学 | C112: 337 | D112: 17850000
B113: 金沢大学 | C113: 337 | D113: 13893000
B114: 日本大学 | C114: 333 | D114: 38328000
B115: 山形大学 | C115: 323 | D115: 752000
B116: 北里大学 | C116: 315 | D116: 45190000
B117: 埼玉大学 | C117: 309 | D117: 2765000
B118: 富山大学 | C118: 305 | D118: 35859000
B119: 新潟大学 | C119: 301 | D119: 8943000
B120: 高知大学 | C120: 281 | D120: 26209000
B121: 立命館大学 | C121: 268 | D121: 2098000
B122: 秋田大学 | C122: 264 | D122: 1773000
B123: 神奈川大学 | C123: 263 | D123: 4940000
B124: 岐阜大学 | C124: 246 | D124: 7958000
B125: 弘前大学 | C125: 239 | D125: 10190000
B126: 宮崎大学 | C126: 236 | D126: 2168000
B127: 名城大学 | C127: 232 | D127: 2341000
B128: 兵庫県立大学 | C128: 232 | D128: 1142000
B129: 佐賀大学 | C129: 224 | D129: 4180000
B130: 福井大学 | C130: 221 | D130: 3913000
B131: 札幌医科大学 | C131: 218 | D131: 105462000
B132: 東海大学 | C132: 211 | D132: 5395000
B133: 京都工芸繊維大学 | C133: 201 | D133: 4782000
B134: 岩手大学 | C134: 198 | D134: 2552000
B135: 長崎大学 | C135: 194 | D135: 25364000
B136: 東京女子医科大学 | C136: 186 | D136: 2706000
B137: 横浜市立大学 | C137: 184 | D137: 50242000
B138: 北陸先端科学技術大学院大学 | C138: 175 | D138: 8323000
B139: 東京海洋大学 | C139: 175 | D139: 3222000
B140: 愛媛大学 | C140: 174 | D140: 35291000
B141: 宇都宮大学 | C141: 171 | D141: 2463000
B142: 高知工科大学 | C142: 165 | D142: 326000
B143: 千葉工業大学 | C143: 160 | D143: 0
B144: 茨城大学 | C144: 157 | D144: 2754000
B145: 福岡大学 | C145: 154 | D145: 874000
B146: 沖縄科学技術大学院大学 | C146: 152 | D146: 1100000
B147: 大分大学 | C147: 151 | D147: 1915000
B148: 金沢工業大学 | C148: 150 | D148: 2760000
B149: 中央大学 | C149: 144 | D149: 989000
B150: 浜松医科大学 | C150: 143 | D150: 3875000
B151: 島根大学 | C151: 137 | D151: 1166000
B152: 滋賀医科大学 | C152: 132 | D152: 2306000
B153: 関西学院大学 | C153: 128 | D153: 23880000
B154: 自治医科大学 | C154: 127 | D154: 6757000
B155: 久留米大学 | C155: 127 | D155: 1462000
B156: 上智大学 | C156: 126 | D156: 0
B157: 順天堂大学 | C157: 122 | D157: 3072000
B158: 中部大学 | C158: 118 | D158: 220000
B159: 東京電機大学 | C159: 102 | D159: 1180000
B160: 芝浦工業大学 | C160: 98 | D160: 1615000
B161: 埼玉医科大学 | C161: 96 | D161: 27468000
B162: 豊田工業大学 | C162: 96 | D162: 0
B163: 名古屋市立大学 | C163: 94 | D163: 17822000
B164: 京都府立医科大学 | C164: 94 | D164: 2128000
B165: 北見工業大学 | C165: 92 | D165: 995000
B166: 和歌山大学 | C166: 89 | D166: 4131000
B167: 富山県立大学 | C167: 87 | D167: 1375000
B168: 関東学院大学 | C168: 84 | D168: 14540000
B169: 明治大学 | C169: 81 | D169: 4886000
B170: 琉球大学 | C170: 77 | D170: 1146000
B171: 静岡県立大学 | C171: 72 | D171: 915000
B172: 福島大学 | C172: 67 | D172: 897000
B173: 藤田医科大学 | C173: 62 | D173: 0
B174: 帝京大学 | C174: 60 | D174: 2351000
B175: 兵庫医科大学 | C175: 60 | D175: 332000
B176: 旭川医科大学 | C176: 59 | D176: 1987000
B177: 日本医科大学 | C177: 55 | D177: 58243000
B178: 帯広畜産大学 | C178: 54 | D178: 2966000
B179: 東洋大学 | C179: 54 | D179: 633000
B180: 秋田県立大学 | C180: 52 | D180: 892000
B181: 奈良県立医科大学 | C181: 52 | D181: 743000
B182: 福岡工業大学 | C182: 52 | D182: 0
B183: 立教大学 | C183: 51 | D183: 231000
B184: 室蘭工業大学 | C184: 50 | D184: 0
B185: 昭和大学 | C185: 48 | D185: 4513000
B186: 聖マリアンナ医科大学 | C186: 46 | D186: 3204000
B187: 関西医科大学 | C187: 46 | D187: 781000
B188: 神奈川工科大学 | C188: 46 | D188: 289000
B189: 岡山理科大学 | C189: 45 | D189: 916000
B190: お茶の水女子大学 | C190: 45 | D190: 5000
B191: 広島市立大学 | C191: 44 | D191: 0
B192: 会津大学 | C192: 43 | D192: 33000
B193: 龍谷大学 | C193: 42 | D193: 1289000
B194: 玉川大学 | C194: 41 | D194: 119000
B195: 産業医科大学 | C195: 41 | D195: 7000
B196: 大阪工業大学 | C196: 39 | D196: 0
B197: 東京農業大学 | C197: 36 | D197: 748000
B198: 法政大学 | C198: 36 | D198: 550000
B199: 工学院大学 | C199: 35 | D199: 3516000
B200: 青山学院大学 | C200: 34 | D200: 0
B201: 北九州市立大学 | C201: 32 | D201: 2647000
B202: 東邦大学 | C202: 32 | D202: 23000
B203: 甲南大学 | C203: 31 | D203: 613000
B204: 石川県立大学 | C204: 31 | D204: 531000
B205: 東京都市大学 | C205: 30 | D205: 2371000
B206: 麻布大学 | C206: 28 | D206: 1505000
B207: 長崎県立大学 | C207: 28 | D207: 1001000
B208: 金沢医科大学 | C208: 27 | D208: 933000
B209: 滋賀県立大学 | C209: 27 | D209: 0
B210: 愛知工業大学 | C210: 26 | D210: 0
... 635 more rows

Sheet 金沢大学 (hidden)
A1: 国立 | C1: 金沢大学 | X1: 大学全体の経営理念における産学官連携活動の取組方針 | CY1: 103 | CZ1: 104 | DA1: 105 | DB1: 106 | DC1: 107 | DD1: 108 | DE1: 109 | DF1: 110 | DG1: 111 | DH1: 112 | DI1: 113 | DJ1: 114 | DK1: 115 | DL1: 116 | DM1: 117 | DN1: 118 | DO1: 119 | DP1: 120 | DQ1: 121 | DR1: 122 | DS1: 123 | DT1: 124 | DU1: 125 | DV1: 126 | DW1: 127 | DX1: 128 | DY1: 129
X2: 金沢大学は、真理の探究に関わる基礎研究から技術に直結する実践研究までの卓越した知の創造に努め、それらにより新たな学術分野を開拓し、技術移転や産業の創出等を図ることで積極的に社会に還元する。
BB3: ＵＲＡ | BO3: URA当たり研究者数 | CA3: 戦略的産学連携経費
BC4: 実務担当者数 | BI4: 18 | BN4: 名 | BO4: =IF(OR(I25="",BI4=""),"",(IFERROR(I25/BI4,""))) -> 88.11111111 | CB4: 戦略的産学連携経費の設定 | CP4: 有 | CT4: 無 | CZ4: ある | DA4: インキュベーション施設
CB5: 戦略的産学連携経費の費目 | CP5: 間接経費 | CZ5: ある | DA5: 相談窓口
A6: 基 礎 情 報 | BB6: 各種規程類の整備状況 | CB6: 戦略的産学連携経費の直接経費に対する割合 | CP6: 10％以上15％未満 | CZ6: ある | DA6: 設立ポリシー | DI6: ◎ | DJ6: 産学連携ポリシー
BB7: 産学連携ポリシー | BM7: 職務発明規程（教職員のみ対象） | CZ7: ない | DA7: 支援ファンド | DI7: ◎ | DJ7: 知的財産ポリシー
B8: 大学の得意分野とその具体例 | BB8: 知的財産ポリシー | BM8: 職務発明規程（教職員、学生対象） | CA8: 人件費の企業負担 | DI8: ◎ | DJ8: 共同研究取扱規程
B9: ①原子間力顕微鏡（AFM）を駆使したナノ計測分野。②自動運転技術（レベル3，4）に必要な認識技術等に関する研究。③スマート設計や複合材料等の生産技術に立脚した機械加工分野。④遺伝・ゲノム動態、神経精神医学に至るライフサイエンス分野。 | AA9: 科研費 （千円） | AL9: その他政府系研究費 (千円) | AS9: その他補助・助成金等 (千円) | BB9: 共同研究取扱規程 | BM9: 発明補償関係規程（教職員のみ対象） | CB9: 教員人件費の企業負担に関する規程や制度 | CP9: 有 | CT9: 無 | DI9: ◎ | DJ9: 受託研究取扱規程
BB10: 受託研究取扱規程 | BM10: 発明補償関係規程（教職員、学生対象） | CB10: 教員人件費の企業負担の費目 | CP10: 直接経費 | DI10: ◎ | DJ10: 研究成果有体物取扱規程
AA11: 2219357 | AL11: 74474 | AS11: 0 | BB11: 研究成果有体物取扱規程 | BM11: 守秘義務に係る規程（教職員のみ対象） | CB11: 学生人件費の企業負担に関する規程や制度 | CP11: 有 | CT11: 無 | DI11: △ | DJ11: 営業秘密管理に関する規程
BB12: 営業秘密管理に関する規程 | BM12: 守秘義務に係る規程（教職員、学生対象） | CB12: 学生人件費の企業負担の費目 | DI12: △ | DJ12: 株式の取扱等規程、ポリシー
AA13: 間接経費割合 | AN13: 株式の保有 | AT13: 新株予約権の保有 | BB13: 株式の取扱等規程、ポリシー | DB13: 株式 | DI13: × | DJ13: 職務発明規程（教職員のみ対象）
AA14: 20％以上25％未満 | AN14: 有 | AQ14: 無 | AT14: 有 | AW14: 無 | BD14: ※各種規定類を整備している場合は、赤色で表示されます。 | CA14: 特別試験研究費税額控除制度 | DB14: 新株予約権 | DI14: ◎ | DJ14: 職務発明規程（教職員、学生対象）
CB15: 特別試験研究費税額控除制度の活用 | CP15: 有 | CT15: 無 | DI15: × | DJ15: 発明補償関係規程（教職員のみ対象）
B16: 産学官連携活動において今後重点化したい事項 | AA16: ■共同研究 | AG16: 2019年度 | AO16: 2020年度 | AW16: 順位※ | BB16: クロスアポイントメントの実績（人） | BK16: 大学等 | BN16: 公的機関 | BQ16: 民間企業 | BU16: その他機関 | DI16: ◎ | DJ16: 発明補償関係規程（教職員、学生対象）
B17: 教員個々が個別に対応する共同研究体制を刷新し、産学官連携活動を組織対組織による研究推進体制に改める。さらに、共同研究など民間からの研究開発資金導入を、拡充するため、あらゆる可能性を模索し、企業群等との新しい関係構築に専念する。 | AG17: 受入額（千円） | AL17: 件数 | AO17: 受入額（千円） | AT17: 件数 | BH17: 受入 | BK17: 1 | BN17: 0 | BQ17: 3 | BU17: 0 | DB17: 順位 | DI17: × | DJ17: 守秘義務に係る規程（教職員のみ対象）
AA18: 全体 | AG18: 680856 | AL18: 324 | AO18: 673961 | AT18: 349 | AW18: =IF(DB18<50,DB18,"") -> 27 | AY18: 位 | BH18: 派遣 | BK18: 0 | BN18: 2 | BQ18: 0 | BU18: 0 | DB18: 27 | DI18: ◎ | DJ18: 守秘義務に係る規程（教職員、学生対象）
AB19: 民間企業 のみ | AG19: 572343 | AL19: 282 | AO19: 610808 | AT19: 311 | AW19: =IF(DB19<50,DB19,"") -> 25 | AY19: 位 | DB19: 25
AC20: 大企業 | AG20: 482573 | AL20: 209 | AO20: 331453 | AT20: 183 | AW20: =IF(DB20<50,DB20,"") -> 27 | AY20: 位 | BB20: ■組織的産学連携活動の取組事例 | DB20: 27 | DI20: ある | DJ20: 戦略的産学連携経費の設定
AC21: 中小企業 | AG21: 89770 | AL21: 73 | AO21: 87344 | AT21: 78 | AW21: =IF(DB21<50,DB21,"") -> 36 | AY21: 位 | DB21: 36 | DI21: ある | DJ21: 教員人件費の企業負担に関する規程や制度
AL22: ※順位は2020年度の受入額を比較したもの | DI22: ない | DJ22: 学生人件費の企業負担に関する規程や制度
DB23: 0 | DC23: 83 | DI23: ある | DJ23: 特別試験研究費税額控除制度の活用
DB24: ～100万 | DC24: 69
B25: 研究者数 | I25: 1586 | P25: 名 | DB25: ～300万 | DC25: 115
DB26: ～500万 | DC26: 23
DB27: ～1000万 | DC27: 11
DB28: ～5000万 | DC28: 9
DB29: ～1億 | DC29: 1 | DJ29: 共同研究等の企画・提案
B30: 産学連携担当部署 | O30: 実務者当たり研究者数 | DB30: 1億以上 | DC30: 0 | DJ30: 契約書での成果目標、達成時の明記
C31: 実務担当者数 | I31: 24 | N31: 名 | O31: =IF(OR(I25="",I31=""),"",IFERROR($I$25/I31,"")) -> 66.08333333 | DJ31: 共同研究契約の締結/判断（契約権限の集中）
C32: 専門家の配置 | I32: 弁護士 | L32: 弁理士 | O32: 税理士 | R32: 公認会計士 | V32: その他 | DJ32: 共同研究の進捗管理とフィードバック
I33: ※専門家を配置している場合は、赤色で表示されます。 | DJ33: 企業ニーズに適応した技術移転・事業化提案
AA34: ■受託研究 | AG34: 2019年度 | AO34: 2020年度 | AW34: 順位※ | DJ34: 共同研究等の企画・提案
AG35: 受入額（千円） | AL35: 件数 | AO35: 受入額（千円） | AT35: 件数 | DB35: 順位 | DJ35: 契約書での成果目標、達成時の明記
AA36: 全体 | AG36: 2156209 | AL36: 299 | AO36: 2085317 | AT36: 281 | AW36: =IF(DB36<50,DB36,"") -> 21 | AY36: 位 | DB36: 21 | DJ36: 共同研究契約の締結/判断（契約権限の集中）
AB37: 民間企業 のみ | AG37: 58880 | AL37: 53 | AO37: 46191 | AT37: 53 | AW37: =IF(DB37<50,DB37,"") ->  | AY37: 位 | DB37: 61 | DJ37: 共同研究の進捗管理とフィードバック
C38: 産学連携本部が関与した共同研究 | P38: 9 | T38: 件 | AC38: 大企業 | AG38: 52593 | AL38: 36 | AO38: 33778 | AT38: 33 | AW38: =IF(DB38<50,DB38,"") ->  | AY38: 位 | DB38: 55 | DJ38: 企業ニーズに適応した技術移転・事業化提案
D39: 内、マッチングを行い、契約締結した件数 | P39: 0 | T39: 件 | AC39: 中小企業 | AG39: 6287 | AL39: 17 | AO39: 6380 | AT39: 17 | AW39: =IF(DB39<50,DB39,"") ->  | AY39: 位 | BB39: ■産学連携活動の主な実用化事例 | DB39: 87 | DJ39: 共同研究等の企画・提案
I40: ※1,000万円以上の共同研究 | AL40: ※順位は2020年度の受入額を比較したもの | DB40: 弁護士 | DG40: 0 | DH40: 23 | DJ40: 契約書での成果目標、達成時の明記
DA41: ○ | DB41: 弁理士 | DG41: ～100万 | DH41: 18 | DJ41: 共同研究契約の締結/判断（契約権限の集中）
C42: 組織対組織による包括連携契約の締結数 | P42: 7 | T42: 件 | DB42: 税理士 | DG42: ～300万 | DH42: 7 | DJ42: 共同研究の進捗管理とフィードバック
D43: 内、1,000万円以上の実績がある相手方数 | P43: 1 | T43: 件 | DB43: 公認会計士 | DG43: ～500万 | DH43: 2 | DJ43: 企業ニーズに適応した技術移転・事業化提案
DB44: その他 | DG44: ～1000万 | DH44: 3
C45: 寄附講座・寄附研究部門の受入件数 | P45: 11 | V45: 件 | DG45: ～5000万 | DH45: 0
C46: 寄附講座・寄附研究部門の受入金額（千円） | P46: 179000 | DG46: ～1億 | DH46: 0
C47: 共同研究講座・共同研究部門の受入件数 | P47: 3 | V47: 件 | DG47: 1億以上 | DH47: 0
C48: 共同研究講座・共同研究部門の受入金額（千円） | P48: 109000
C52: 職務発明の帰属 | I52: 大学 | M52: 発明者 | Q52: 未設定 | CZ52: 大学 | DA52: 職務発明
AD53: 特許権実施等件数 | AL53: 221 | AS53: 実施等件数 あたり | DA53: 不実施
M54: 研究者あたり | AD54: 特許権実施等収入（千円） | AL54: 13893 | AS54: =IF(OR(AL53="",AL54=""),"",IFERROR(AL54/AL53,"")) -> 62.86425339 | CZ54: 13893000 | DA54: 特許等収入
C55: 特許出願件数 | I55: 85 | M55: =IF(OR(I25="",I55=""),"",IFERROR(I55/I25,"")) -> 0.05359394704
C56: 特許保有件数 | I56: 337 | M56: =IF(OR(I25="",I56=""),"",IFERROR(I56/I25,"")) -> 0.2124842371
C61: 大学発ベンチャー数 | J61: 9 | O61: 社
C62: Exit件数（IPO） | J62: 0 | O62: 社 | P62: Exit件数（M&A） | W62: 0 | Z62: 社
C63: 相談窓口 | K63: 支援ファンド | S63: インキュベーション施設
C64: 有 | G64: 無 | K64: 有 | O64: 無 | S64: 有 | W64: 無
C65: 知的財産戦略方針 | K65: 支援総額（千円） | S65: 部屋数 | W65: 19 | Z65: 件
C66: 有 | G66: 無 | S66: 利用件数 | W66: 0 | Z66: 件
A69: 1 | B69: 2 | C69: 3 | D69: 4 | E69: 5 | F69: 6 | G69: 7 | H69: 8 | I69: 9 | J69: 10 | K69: 11 | L69: 12 | M69: 13 | N69: 14 | O69: 15 | P69: 16 | Q69: 17 | R69: 18 | S69: 19 | T69: 20 | U69: 21 | V69: 22 | W69: 23 | X69: 24 | Y69: 25 | Z69: 26 | AA69: 27 | AB69: 28 | AC69: 29 | AD69: 30 | AE69: 31 | AF69: 32 | AG69: 33 | AH69: 34 | AI69: 35 | AJ69: 36 | AK69: 37 | AL69: 38 | AM69: 39 | AN69: 40 | AO69: 41 | AP69: 42 | AQ69: 43 | AR69: 44 | AS69: 45 | AT69: 46 | AU69: 47 | AV69: 48 | AW69: 49 | AX69: 50 | AY69: 51 | AZ69: 52 | BA69: 53 | BB69: 54 | BC69: 55 | BD69: 56 | BE69: 57 | BF69: 58 | BG69: 59 | BH69: 60 | BI69: 61 | BJ69: 62 | BK69: 63 | BL69: 64 | BM69: 65 | BN69: 66 | BO69: 67 | BP69: 68 | BQ69: 69 | BR69: 70 | BS69: 71 | BT69: 72 | BU69: 73 | BV69: 74 | BW69: 75 | BX69: 76 | BY69: 77 | BZ69: 78 | CA69: 79 | CB69: 80 | CC69: 81 | CD69: 82 | CE69: 83 | CF69: 84 | CG69: 85 | CH69: 86 | CI69: 87 | CJ69: 88 | CK69: 89 | CL69: 90 | CM69: 91 | CN69: 92 | CO69: 93 | CP69: 94 | CQ69: 95 | CR69: 96 | CS69: 97 | CT69: 98 | CU69: 99 | CV69: 100 | CW69: 101 | CX69: 102 | CY69: 103 | CZ69: 104 | DA69: 105 | DB69: 106 | DC69: 107 | DD69: 108 | DE69: 109 | DF69: 110 | DG69: 111 | DH69: 112 | DI69: 113 | DJ69: 114 | DK69: 115 | DL69: 116 | DM69: 117 | DN69: 118 | DO69: 119 | DP69: 120 | DQ69: 121 | DR69: 122 | DS69: 123 | DT69: 124 | DU69: 125
D70: 特許権収入
B71: 東京大学 | C71: 4495 | D71: 261744000
B72: 東北大学 | C72: 3533 | D72: 157139000
B73: 京都大学 | C73: 3044 | D73: 698373000
B74: 大阪大学 | C74: 2854 | D74: 509758000
B75: 東京工業大学 | C75: 1979 | D75: 57301000
B76: 九州大学 | C76: 1530 | D76: 601936000
B77: 名古屋大学 | C77: 1346 | D77: 72156000
B78: 北海道大学 | C78: 1167 | D78: 86700000
B79: 信州大学 | C79: 952 | D79: 29305000
B80: 広島大学 | C80: 921 | D80: 41265000
B81: 筑波大学 | C81: 850 | D81: 42694000
B82: 慶應義塾大学 | C82: 798 | D82: 67998000
B83: 千葉大学 | C83: 769 | D83: 17609000
B84: 岡山大学 | C84: 749 | D84: 8886000
B85: 山口大学 | C85: 700 | D85: 29167000
B86: 早稲田大学 | C86: 698 | D86: 21143000
B87: 名古屋工業大学 | C87: 638 | D87: 12139000
B88: 東京農工大学 | C88: 632 | D88: 44098000
B89: 九州工業大学 | C89: 611 | D89: 10288000
B90: 大阪府立大学 | C90: 573 | D90: 9177000
B91: 東京理科大学 | C91: 528 | D91: 15523000
B92: 神戸大学 | C92: 525 | D92: 78768000
B93: 静岡大学 | C93: 509 | D93: 8145000
B94: 群馬大学 | C94: 483 | D94: 5316000
B95: 熊本大学 | C95: 475 | D95: 29359000
B96: 近畿大学 | C96: 453 | D96: 82359000
B97: 長岡技術科学大学 | C97: 441 | D97: 3921000
B98: 横浜国立大学 | C98: 439 | D98: 5839000
B99: 奈良先端科学技術大学院大学 | C99: 427 | D99: 3542000
B100: 三重大学 | C100: 417 | D100: 10844000
B101: 鹿児島大学 | C101: 416 | D101: 14284000
B102: 大阪市立大学 | C102: 403 | D102: 2791000
B103: 東京都立大学 | C103: 398 | D103: 574000
B104: 山梨大学 | C104: 395 | D104: 5041000
B105: 香川大学 | C105: 389 | D105: 17113000
B106: 東京医科歯科大学 | C106: 377 | D106: 24076000
B107: 豊橋技術科学大学 | C107: 374 | D107: 5526000
B108: 徳島大学 | C108: 362 | D108: 131417000
B109: 電気通信大学 | C109: 355 | D109: 7847000
B110: 関西大学 | C110: 350 | D110: 5154000
B111: 鳥取大学 | C111: 340 | D111: 4814000
B112: 同志社大学 | C112: 337 | D112: 17850000
B113: 金沢大学 | C113: 337 | D113: 13893000
B114: 日本大学 | C114: 333 | D114: 38328000
B115: 山形大学 | C115: 323 | D115: 752000
B116: 北里大学 | C116: 315 | D116: 45190000
B117: 埼玉大学 | C117: 309 | D117: 2765000
B118: 富山大学 | C118: 305 | D118: 35859000
B119: 新潟大学 | C119: 301 | D119: 8943000
B120: 高知大学 | C120: 281 | D120: 26209000
B121: 立命館大学 | C121: 268 | D121: 2098000
B122: 秋田大学 | C122: 264 | D122: 1773000
B123: 神奈川大学 | C123: 263 | D123: 4940000
B124: 岐阜大学 | C124: 246 | D124: 7958000
B125: 弘前大学 | C125: 239 | D125: 10190000
B126: 宮崎大学 | C126: 236 | D126: 2168000
B127: 名城大学 | C127: 232 | D127: 2341000
B128: 兵庫県立大学 | C128: 232 | D128: 1142000
B129: 佐賀大学 | C129: 224 | D129: 4180000
B130: 福井大学 | C130: 221 | D130: 3913000
B131: 札幌医科大学 | C131: 218 | D131: 105462000
B132: 東海大学 | C132: 211 | D132: 5395000
B133: 京都工芸繊維大学 | C133: 201 | D133: 4782000
B134: 岩手大学 | C134: 198 | D134: 2552000
B135: 長崎大学 | C135: 194 | D135: 25364000
B136: 東京女子医科大学 | C136: 186 | D136: 2706000
B137: 横浜市立大学 | C137: 184 | D137: 50242000
B138: 北陸先端科学技術大学院大学 | C138: 175 | D138: 8323000
B139: 東京海洋大学 | C139: 175 | D139: 3222000
B140: 愛媛大学 | C140: 174 | D140: 35291000
B141: 宇都宮大学 | C141: 171 | D141: 2463000
B142: 高知工科大学 | C142: 165 | D142: 326000
B143: 千葉工業大学 | C143: 160 | D143: 0
B144: 茨城大学 | C144: 157 | D144: 2754000
B145: 福岡大学 | C145: 154 | D145: 874000
B146: 沖縄科学技術大学院大学 | C146: 152 | D146: 1100000
B147: 大分大学 | C147: 151 | D147: 1915000
B148: 金沢工業大学 | C148: 150 | D148: 2760000
B149: 中央大学 | C149: 144 | D149: 989000
B150: 浜松医科大学 | C150: 143 | D150: 3875000
B151: 島根大学 | C151: 137 | D151: 1166000
B152: 滋賀医科大学 | C152: 132 | D152: 2306000
B153: 関西学院大学 | C153: 128 | D153: 23880000
B154: 自治医科大学 | C154: 127 | D154: 6757000
B155: 久留米大学 | C155: 127 | D155: 1462000
B156: 上智大学 | C156: 126 | D156: 0
B157: 順天堂大学 | C157: 122 | D157: 3072000
B158: 中部大学 | C158: 118 | D158: 220000
B159: 東京電機大学 | C159: 102 | D159: 1180000
B160: 芝浦工業大学 | C160: 98 | D160: 1615000
B161: 埼玉医科大学 | C161: 96 | D161: 27468000
B162: 豊田工業大学 | C162: 96 | D162: 0
B163: 名古屋市立大学 | C163: 94 | D163: 17822000
B164: 京都府立医科大学 | C164: 94 | D164: 2128000
B165: 北見工業大学 | C165: 92 | D165: 995000
B166: 和歌山大学 | C166: 89 | D166: 4131000
B167: 富山県立大学 | C167: 87 | D167: 1375000
B168: 関東学院大学 | C168: 84 | D168: 14540000
B169: 明治大学 | C169: 81 | D169: 4886000
B170: 琉球大学 | C170: 77 | D170: 1146000
B171: 静岡県立大学 | C171: 72 | D171: 915000
B172: 福島大学 | C172: 67 | D172: 897000
B173: 藤田医科大学 | C173: 62 | D173: 0
B174: 帝京大学 | C174: 60 | D174: 2351000
B175: 兵庫医科大学 | C175: 60 | D175: 332000
B176: 旭川医科大学 | C176: 59 | D176: 1987000
B177: 日本医科大学 | C177: 55 | D177: 58243000
B178: 帯広畜産大学 | C178: 54 | D178: 2966000
B179: 東洋大学 | C179: 54 | D179: 633000
B180: 秋田県立大学 | C180: 52 | D180: 892000
B181: 奈良県立医科大学 | C181: 52 | D181: 743000
B182: 福岡工業大学 | C182: 52 | D182: 0
B183: 立教大学 | C183: 51 | D183: 231000
B184: 室蘭工業大学 | C184: 50 | D184: 0
B185: 昭和大学 | C185: 48 | D185: 4513000
B186: 聖マリアンナ医科大学 | C186: 46 | D186: 3204000
B187: 関西医科大学 | C187: 46 | D187: 781000
B188: 神奈川工科大学 | C188: 46 | D188: 289000
B189: 岡山理科大学 | C189: 45 | D189: 916000
B190: お茶の水女子大学 | C190: 45 | D190: 5000
B191: 広島市立大学 | C191: 44 | D191: 0
B192: 会津大学 | C192: 43 | D192: 33000
B193: 龍谷大学 | C193: 42 | D193: 1289000
B194: 玉川大学 | C194: 41 | D194: 119000
B195: 産業医科大学 | C195: 41 | D195: 7000
B196: 大阪工業大学 | C196: 39 | D196: 0
B197: 東京農業大学 | C197: 36 | D197: 748000
B198: 法政大学 | C198: 36 | D198: 550000
B199: 工学院大学 | C199: 35 | D199: 3516000
B200: 青山学院大学 | C200: 34 | D200: 0
B201: 北九州市立大学 | C201: 32 | D201: 2647000
B202: 東邦大学 | C202: 32 | D202: 23000
B203: 甲南大学 | C203: 31 | D203: 613000
B204: 石川県立大学 | C204: 31 | D204: 531000
B205: 東京都市大学 | C205: 30 | D205: 2371000
B206: 麻布大学 | C206: 28 | D206: 1505000
B207: 長崎県立大学 | C207: 28 | D207: 1001000
B208: 金沢医科大学 | C208: 27 | D208: 933000
B209: 滋賀県立大学 | C209: 27 | D209: 0
... 636 more rows

Sheet 信州大学 (hidden)
A1: 国立 | C1: 信州大学 | X1: 大学全体の経営理念における産学官連携活動の取組方針 | CY1: 103 | CZ1: 104 | DA1: 105 | DB1: 106 | DC1: 107 | DD1: 108 | DE1: 109 | DF1: 110 | DG1: 111 | DH1: 112 | DI1: 113 | DJ1: 114 | DK1: 115 | DL1: 116 | DM1: 117 | DN1: 118 | DO1: 119 | DP1: 120 | DQ1: 121 | DR1: 122 | DS1: 123 | DT1: 124 | DU1: 125 | DV1: 126 | DW1: 127 | DX1: 128 | DY1: 129
X2: 地域の発展や課題解決には、地域を主体として知を創出・集約するとともに、地域の大学を核にした新たなイノベーションエコシステムの構築が必要である。信州大学はその根幹として「研究力強化」「産学官連携による社会実装」「外部資金による経営基盤強化」の鼎立を成し、地域の未来やSDGsに貢献する。
BB3: ＵＲＡ | BO3: URA当たり研究者数 | CA3: 戦略的産学連携経費
BC4: 実務担当者数 | BI4: 34 | BN4: 名 | BO4: =IF(OR(I25="",BI4=""),"",(IFERROR(I25/BI4,""))) -> 40.73529412 | CB4: 戦略的産学連携経費の設定 | CP4: 有 | CT4: 無 | CZ4: ある | DA4: インキュベーション施設
CB5: 戦略的産学連携経費の費目 | CP5: 間接経費 | CZ5: ある | DA5: 相談窓口
A6: 基 礎 情 報 | BB6: 各種規程類の整備状況 | CB6: 戦略的産学連携経費の直接経費に対する割合 | CP6: 20％以上25％未満 | CZ6: ある | DA6: 設立ポリシー | DI6: ◎ | DJ6: 産学連携ポリシー
BB7: 産学連携ポリシー | BM7: 職務発明規程（教職員のみ対象） | CZ7: ない | DA7: 支援ファンド | DI7: ◎ | DJ7: 知的財産ポリシー
B8: 大学の得意分野とその具体例 | BB8: 知的財産ポリシー | BM8: 職務発明規程（教職員、学生対象） | CA8: 人件費の企業負担 | DI8: ◎ | DJ8: 共同研究取扱規程
B9: ファイバー、ナノカーボン、無機結晶（信大クリスタルⓇ）を始めとする材料研究シーズは、学術論文ベースで国内トップクラスの質を保持しており、特許や共同研究数も多い。さらに近年は、細胞治療技術や医療機器開発、スマート林業技術等でも注目されており、多様な産学官連携を支えるシーズが各研究分野で創出されている。 | AA9: 科研費 （千円） | AL9: その他政府系研究費 (千円) | AS9: その他補助・助成金等 (千円) | BB9: 共同研究取扱規程 | BM9: 発明補償関係規程（教職員のみ対象） | CB9: 教員人件費の企業負担に関する規程や制度 | CP9: 有 | CT9: 無 | DI9: ◎ | DJ9: 受託研究取扱規程
BB10: 受託研究取扱規程 | BM10: 発明補償関係規程（教職員、学生対象） | CB10: 教員人件費の企業負担の費目 | CP10: 直接経費 | DI10: ◎ | DJ10: 研究成果有体物取扱規程
AA11: 1189893 | AL11: 47805 | AS11: 11000 | BB11: 研究成果有体物取扱規程 | BM11: 守秘義務に係る規程（教職員のみ対象） | CB11: 学生人件費の企業負担に関する規程や制度 | CP11: 有 | CT11: 無 | DI11: ◎ | DJ11: 営業秘密管理に関する規程
BB12: 営業秘密管理に関する規程 | BM12: 守秘義務に係る規程（教職員、学生対象） | CB12: 学生人件費の企業負担の費目 | CP12: 直接経費 | DI12: ◎ | DJ12: 株式の取扱等規程、ポリシー
AA13: 間接経費割合 | AN13: 株式の保有 | AT13: 新株予約権の保有 | BB13: 株式の取扱等規程、ポリシー | DA13: × | DB13: 株式 | DI13: × | DJ13: 職務発明規程（教職員のみ対象）
AA14: 10％以上15％未満 | AN14: 有 | AQ14: 無 | AT14: 有 | AW14: 無 | BD14: ※各種規定類を整備している場合は、赤色で表示されます。 | CA14: 特別試験研究費税額控除制度 | DA14: × | DB14: 新株予約権 | DI14: ◎ | DJ14: 職務発明規程（教職員、学生対象）
CB15: 特別試験研究費税額控除制度の活用 | CP15: 有 | CT15: 無 | DI15: × | DJ15: 発明補償関係規程（教職員のみ対象）
B16: 産学官連携活動において今後重点化したい事項 | AA16: ■共同研究 | AG16: 2019年度 | AO16: 2020年度 | AW16: 順位※ | BB16: クロスアポイントメントの実績（人） | BK16: 大学等 | BN16: 公的機関 | BQ16: 民間企業 | BU16: その他機関 | DI16: ◎ | DJ16: 発明補償関係規程（教職員、学生対象）
B17: 「研究力強化」「産学官連携による社会実装」「外部資金による経営基盤強化」の鼎立を前提に、企業、自治体、市民等の多様なステークホルダーとの共創コミュニケーションにより、多彩な知、人材、リソースを結集して、地域の未来発展とSDGs達成に取り組む。地域貢献度全国トップクラスの活動をさらに高度化・拡大する。 | AG17: 受入額（千円） | AL17: 件数 | AO17: 受入額（千円） | AT17: 件数 | BH17: 受入 | BK17: 4 | BN17: 1 | BQ17: 6 | BU17: 0 | DB17: 順位 | DI17: × | DJ17: 守秘義務に係る規程（教職員のみ対象）
AA18: 全体 | AG18: 894038 | AL18: 488 | AO18: 896180 | AT18: 504 | AW18: =IF(DB18<50,DB18,"") -> 16 | AY18: 位 | BH18: 派遣 | BK18: 2 | BN18: 0 | BQ18: 0 | BU18: 1 | DB18: 16 | DI18: ◎ | DJ18: 守秘義務に係る規程（教職員、学生対象）
AB19: 民間企業 のみ | AG19: 658448 | AL19: 441 | AO19: 579987 | AT19: 447 | AW19: =IF(DB19<50,DB19,"") -> 26 | AY19: 位 | DB19: 26
AC20: 大企業 | AG20: 441749 | AL20: 279 | AO20: 365417 | AT20: 238 | AW20: =IF(DB20<50,DB20,"") -> 24 | AY20: 位 | BB20: ■組織的産学連携活動の取組事例 | DB20: 24 | DI20: ある | DJ20: 戦略的産学連携経費の設定
AC21: 中小企業 | AG21: 216699 | AL21: 162 | AO21: 182714 | AT21: 179 | AW21: =IF(DB21<50,DB21,"") -> 21 | AY21: 位 | DB21: 21 | DI21: ある | DJ21: 教員人件費の企業負担に関する規程や制度
AL22: ※順位は2020年度の受入額を比較したもの | DI22: ある | DJ22: 学生人件費の企業負担に関する規程や制度
DB23: 0 | DC23: 124 | DI23: ある | DJ23: 特別試験研究費税額控除制度の活用
DB24: ～100万 | DC24: 142
B25: 研究者数 | I25: 1385 | P25: 名 | DB25: ～300万 | DC25: 138
DB26: ～500万 | DC26: 21
DB27: ～1000万 | DC27: 11
DB28: ～5000万 | DC28: 11
DB29: ～1億 | DC29: 0 | DJ29: 共同研究等の企画・提案
B30: 産学連携担当部署 | O30: 実務者当たり研究者数 | DB30: 1億以上 | DC30: 0 | DJ30: 契約書での成果目標、達成時の明記
C31: 実務担当者数 | I31: 84 | N31: 名 | O31: =IF(OR(I25="",I31=""),"",IFERROR($I$25/I31,"")) -> 16.48809524 | DJ31: 共同研究契約の締結/判断（契約権限の集中）
C32: 専門家の配置 | I32: 弁護士 | L32: 弁理士 | O32: 税理士 | R32: 公認会計士 | V32: その他 | DJ32: 共同研究の進捗管理とフィードバック
I33: ※専門家を配置している場合は、赤色で表示されます。 | DJ33: 企業ニーズに適応した技術移転・事業化提案
AA34: ■受託研究 | AG34: 2019年度 | AO34: 2020年度 | AW34: 順位※ | DJ34: 共同研究等の企画・提案
AG35: 受入額（千円） | AL35: 件数 | AO35: 受入額（千円） | AT35: 件数 | DB35: 順位 | DJ35: 契約書での成果目標、達成時の明記
AA36: 全体 | AG36: 2193728 | AL36: 231 | AO36: 2422625 | AT36: 232 | AW36: =IF(DB36<50,DB36,"") -> 15 | AY36: 位 | DB36: 15 | DJ36: 共同研究契約の締結/判断（契約権限の集中）
AB37: 民間企業 のみ | AG37: 25524 | AL37: 25 | AO37: 17277 | AT37: 32 | AW37: =IF(DB37<50,DB37,"") ->  | AY37: 位 | DB37: 113 | DJ37: 共同研究の進捗管理とフィードバック
C38: 産学連携本部が関与した共同研究 | P38: 5 | T38: 件 | AC38: 大企業 | AG38: 20966 | AL38: 13 | AO38: 12027 | AT38: 14 | AW38: =IF(DB38<50,DB38,"") ->  | AY38: 位 | DB38: 103 | DJ38: 企業ニーズに適応した技術移転・事業化提案
D39: 内、マッチングを行い、契約締結した件数 | P39: 5 | T39: 件 | AC39: 中小企業 | AG39: 4558 | AL39: 12 | AO39: 2814 | AT39: 15 | AW39: =IF(DB39<50,DB39,"") ->  | AY39: 位 | BB39: ■産学連携活動の主な実用化事例 | DB39: 140 | DJ39: 共同研究等の企画・提案
I40: ※1,000万円以上の共同研究 | AL40: ※順位は2020年度の受入額を比較したもの | DB40: 弁護士 | DG40: 0 | DH40: 13 | DJ40: 契約書での成果目標、達成時の明記
DA41: ○ | DB41: 弁理士 | DG41: ～100万 | DH41: 12 | DJ41: 共同研究契約の締結/判断（契約権限の集中）
C42: 組織対組織による包括連携契約の締結数 | P42: 5 | T42: 件 | DB42: 税理士 | DG42: ～300万 | DH42: 6 | DJ42: 共同研究の進捗管理とフィードバック
D43: 内、1,000万円以上の実績がある相手方数 | P43: 0 | T43: 件 | DB43: 公認会計士 | DG43: ～500万 | DH43: 1 | DJ43: 企業ニーズに適応した技術移転・事業化提案
DA44: ○ | DB44: その他 | DG44: ～1000万 | DH44: 0
C45: 寄附講座・寄附研究部門の受入件数 | P45: 12 | V45: 件 | DG45: ～5000万 | DH45: 0
C46: 寄附講座・寄附研究部門の受入金額（千円） | P46: 233067 | DG46: ～1億 | DH46: 0
C47: 共同研究講座・共同研究部門の受入件数 | P47: 7 | V47: 件 | DG47: 1億以上 | DH47: 0
C48: 共同研究講座・共同研究部門の受入金額（千円） | P48: 109429
C52: 職務発明の帰属 | I52: 大学 | M52: 発明者 | Q52: 未設定 | CZ52: 大学 | DA52: 職務発明
AD53: 特許権実施等件数 | AL53: 381 | AS53: 実施等件数 あたり | DA53: 不実施
M54: 研究者あたり | AD54: 特許権実施等収入（千円） | AL54: 29305 | AS54: =IF(OR(AL53="",AL54=""),"",IFERROR(AL54/AL53,"")) -> 76.9160105 | CZ54: 29305000 | DA54: 特許等収入
C55: 特許出願件数 | I55: 169 | M55: =IF(OR(I25="",I55=""),"",IFERROR(I55/I25,"")) -> 0.1220216606
C56: 特許保有件数 | I56: 952 | M56: =IF(OR(I25="",I56=""),"",IFERROR(I56/I25,"")) -> 0.6873646209
C61: 大学発ベンチャー数 | J61: 13 | O61: 社
C62: Exit件数（IPO） | J62: 0 | O62: 社 | P62: Exit件数（M&A） | W62: 0 | Z62: 社
C63: 相談窓口 | K63: 支援ファンド | S63: インキュベーション施設
C64: 有 | G64: 無 | K64: 有 | O64: 無 | S64: 有 | W64: 無
C65: 知的財産戦略方針 | K65: 支援総額（千円） | S65: 部屋数 | W65: 165 | Z65: 件
C66: 有 | G66: 無 | S66: 利用件数 | W66: 22 | Z66: 件
A69: 1 | B69: 2 | C69: 3 | D69: 4 | E69: 5 | F69: 6 | G69: 7 | H69: 8 | I69: 9 | J69: 10 | K69: 11 | L69: 12 | M69: 13 | N69: 14 | O69: 15 | P69: 16 | Q69: 17 | R69: 18 | S69: 19 | T69: 20 | U69: 21 | V69: 22 | W69: 23 | X69: 24 | Y69: 25 | Z69: 26 | AA69: 27 | AB69: 28 | AC69: 29 | AD69: 30 | AE69: 31 | AF69: 32 | AG69: 33 | AH69: 34 | AI69: 35 | AJ69: 36 | AK69: 37 | AL69: 38 | AM69: 39 | AN69: 40 | AO69: 41 | AP69: 42 | AQ69: 43 | AR69: 44 | AS69: 45 | AT69: 46 | AU69: 47 | AV69: 48 | AW69: 49 | AX69: 50 | AY69: 51 | AZ69: 52 | BA69: 53 | BB69: 54 | BC69: 55 | BD69: 56 | BE69: 57 | BF69: 58 | BG69: 59 | BH69: 60 | BI69: 61 | BJ69: 62 | BK69: 63 | BL69: 64 | BM69: 65 | BN69: 66 | BO69: 67 | BP69: 68 | BQ69: 69 | BR69: 70 | BS69: 71 | BT69: 72 | BU69: 73 | BV69: 74 | BW69: 75 | BX69: 76 | BY69: 77 | BZ69: 78 | CA69: 79 | CB69: 80 | CC69: 81 | CD69: 82 | CE69: 83 | CF69: 84 | CG69: 85 | CH69: 86 | CI69: 87 | CJ69: 88 | CK69: 89 | CL69: 90 | CM69: 91 | CN69: 92 | CO69: 93 | CP69: 94 | CQ69: 95 | CR69: 96 | CS69: 97 | CT69: 98 | CU69: 99 | CV69: 100 | CW69: 101 | CX69: 102 | CY69: 103 | CZ69: 104 | DA69: 105 | DB69: 106 | DC69: 107 | DD69: 108 | DE69: 109 | DF69: 110 | DG69: 111 | DH69: 112 | DI69: 113 | DJ69: 114 | DK69: 115 | DL69: 116 | DM69: 117 | DN69: 118 | DO69: 119 | DP69: 120 | DQ69: 121 | DR69: 122 | DS69: 123 | DT69: 124 | DU69: 125
D70: 特許権収入
B71: 東京大学 | C71: 4495 | D71: 261744000
B72: 東北大学 | C72: 3533 | D72: 157139000
B73: 京都大学 | C73: 3044 | D73: 698373000
B74: 大阪大学 | C74: 2854 | D74: 509758000
B75: 東京工業大学 | C75: 1979 | D75: 57301000
B76: 九州大学 | C76: 1530 | D76: 601936000
B77: 名古屋大学 | C77: 1346 | D77: 72156000
B78: 北海道大学 | C78: 1167 | D78: 86700000
B79: 信州大学 | C79: 952 | D79: 29305000
B80: 広島大学 | C80: 921 | D80: 41265000
B81: 筑波大学 | C81: 850 | D81: 42694000
B82: 慶應義塾大学 | C82: 798 | D82: 67998000
B83: 千葉大学 | C83: 769 | D83: 17609000
B84: 岡山大学 | C84: 749 | D84: 8886000
B85: 山口大学 | C85: 700 | D85: 29167000
B86: 早稲田大学 | C86: 698 | D86: 21143000
B87: 名古屋工業大学 | C87: 638 | D87: 12139000
B88: 東京農工大学 | C88: 632 | D88: 44098000
B89: 九州工業大学 | C89: 611 | D89: 10288000
B90: 大阪府立大学 | C90: 573 | D90: 9177000
B91: 東京理科大学 | C91: 528 | D91: 15523000
B92: 神戸大学 | C92: 525 | D92: 78768000
B93: 静岡大学 | C93: 509 | D93: 8145000
B94: 群馬大学 | C94: 483 | D94: 5316000
B95: 熊本大学 | C95: 475 | D95: 29359000
B96: 近畿大学 | C96: 453 | D96: 82359000
B97: 長岡技術科学大学 | C97: 441 | D97: 3921000
B98: 横浜国立大学 | C98: 439 | D98: 5839000
B99: 奈良先端科学技術大学院大学 | C99: 427 | D99: 3542000
B100: 三重大学 | C100: 417 | D100: 10844000
B101: 鹿児島大学 | C101: 416 | D101: 14284000
B102: 大阪市立大学 | C102: 403 | D102: 2791000
B103: 東京都立大学 | C103: 398 | D103: 574000
B104: 山梨大学 | C104: 395 | D104: 5041000
B105: 香川大学 | C105: 389 | D105: 17113000
B106: 東京医科歯科大学 | C106: 377 | D106: 24076000
B107: 豊橋技術科学大学 | C107: 374 | D107: 5526000
B108: 徳島大学 | C108: 362 | D108: 131417000
B109: 電気通信大学 | C109: 355 | D109: 7847000
B110: 関西大学 | C110: 350 | D110: 5154000
B111: 鳥取大学 | C111: 340 | D111: 4814000
B112: 同志社大学 | C112: 337 | D112: 17850000
B113: 金沢大学 | C113: 337 | D113: 13893000
B114: 日本大学 | C114: 333 | D114: 38328000
B115: 山形大学 | C115: 323 | D115: 752000
B116: 北里大学 | C116: 315 | D116: 45190000
B117: 埼玉大学 | C117: 309 | D117: 2765000
B118: 富山大学 | C118: 305 | D118: 35859000
B119: 新潟大学 | C119: 301 | D119: 8943000
B120: 高知大学 | C120: 281 | D120: 26209000
B121: 立命館大学 | C121: 268 | D121: 2098000
B122: 秋田大学 | C122: 264 | D122: 1773000
B123: 神奈川大学 | C123: 263 | D123: 4940000
B124: 岐阜大学 | C124: 246 | D124: 7958000
B125: 弘前大学 | C125: 239 | D125: 10190000
B126: 宮崎大学 | C126: 236 | D126: 2168000
B127: 名城大学 | C127: 232 | D127: 2341000
B128: 兵庫県立大学 | C128: 232 | D128: 1142000
B129: 佐賀大学 | C129: 224 | D129: 4180000
B130: 福井大学 | C130: 221 | D130: 3913000
B131: 札幌医科大学 | C131: 218 | D131: 105462000
B132: 東海大学 | C132: 211 | D132: 5395000
B133: 京都工芸繊維大学 | C133: 201 | D133: 4782000
B134: 岩手大学 | C134: 198 | D134: 2552000
B135: 長崎大学 | C135: 194 | D135: 25364000
B136: 東京女子医科大学 | C136: 186 | D136: 2706000
B137: 横浜市立大学 | C137: 184 | D137: 50242000
B138: 北陸先端科学技術大学院大学 | C138: 175 | D138: 8323000
B139: 東京海洋大学 | C139: 175 | D139: 3222000
B140: 愛媛大学 | C140: 174 | D140: 35291000
B141: 宇都宮大学 | C141: 171 | D141: 2463000
B142: 高知工科大学 | C142: 165 | D142: 326000
B143: 千葉工業大学 | C143: 160 | D143: 0
B144: 茨城大学 | C144: 157 | D144: 2754000
B145: 福岡大学 | C145: 154 | D145: 874000
B146: 沖縄科学技術大学院大学 | C146: 152 | D146: 1100000
B147: 大分大学 | C147: 151 | D147: 1915000
B148: 金沢工業大学 | C148: 150 | D148: 2760000
B149: 中央大学 | C149: 144 | D149: 989000
B150: 浜松医科大学 | C150: 143 | D150: 3875000
B151: 島根大学 | C151: 137 | D151: 1166000
B152: 滋賀医科大学 | C152: 132 | D152: 2306000
B153: 関西学院大学 | C153: 128 | D153: 23880000
B154: 自治医科大学 | C154: 127 | D154: 6757000
B155: 久留米大学 | C155: 127 | D155: 1462000
B156: 上智大学 | C156: 126 | D156: 0
B157: 順天堂大学 | C157: 122 | D157: 3072000
B158: 中部大学 | C158: 118 | D158: 220000
B159: 東京電機大学 | C159: 102 | D159: 1180000
B160: 芝浦工業大学 | C160: 98 | D160: 1615000
B161: 埼玉医科大学 | C161: 96 | D161: 27468000
B162: 豊田工業大学 | C162: 96 | D162: 0
B163: 名古屋市立大学 | C163: 94 | D163: 17822000
B164: 京都府立医科大学 | C164: 94 | D164: 2128000
B165: 北見工業大学 | C165: 92 | D165: 995000
B166: 和歌山大学 | C166: 89 | D166: 4131000
B167: 富山県立大学 | C167: 87 | D167: 1375000
B168: 関東学院大学 | C168: 84 | D168: 14540000
B169: 明治大学 | C169: 81 | D169: 4886000
B170: 琉球大学 | C170: 77 | D170: 1146000
B171: 静岡県立大学 | C171: 72 | D171: 915000
B172: 福島大学 | C172: 67 | D172: 897000
B173: 藤田医科大学 | C173: 62 | D173: 0
B174: 帝京大学 | C174: 60 | D174: 2351000
B175: 兵庫医科大学 | C175: 60 | D175: 332000
B176: 旭川医科大学 | C176: 59 | D176: 1987000
B177: 日本医科大学 | C177: 55 | D177: 58243000
B178: 帯広畜産大学 | C178: 54 | D178: 2966000
B179: 東洋大学 | C179: 54 | D179: 633000
B180: 秋田県立大学 | C180: 52 | D180: 892000
B181: 奈良県立医科大学 | C181: 52 | D181: 743000
B182: 福岡工業大学 | C182: 52 | D182: 0
B183: 立教大学 | C183: 51 | D183: 231000
B184: 室蘭工業大学 | C184: 50 | D184: 0
B185: 昭和大学 | C185: 48 | D185: 4513000
B186: 聖マリアンナ医科大学 | C186: 46 | D186: 3204000
B187: 関西医科大学 | C187: 46 | D187: 781000
B188: 神奈川工科大学 | C188: 46 | D188: 289000
B189: 岡山理科大学 | C189: 45 | D189: 916000
B190: お茶の水女子大学 | C190: 45 | D190: 5000
B191: 広島市立大学 | C191: 44 | D191: 0
B192: 会津大学 | C192: 43 | D192: 33000
B193: 龍谷大学 | C193: 42 | D193: 1289000
B194: 玉川大学 | C194: 41 | D194: 119000
B195: 産業医科大学 | C195: 41 | D195: 7000
B196: 大阪工業大学 | C196: 39 | D196: 0
B197: 東京農業大学 | C197: 36 | D197: 748000
B198: 法政大学 | C198: 36 | D198: 550000
B199: 工学院大学 | C199: 35 | D199: 3516000
B200: 青山学院大学 | C200: 34 | D200: 0
B201: 北九州市立大学 | C201: 32 | D201: 2647000
B202: 東邦大学 | C202: 32 | D202: 23000
B203: 甲南大学 | C203: 31 | D203: 613000
B204: 石川県立大学 | C204: 31 | D204: 531000
B205: 東京都市大学 | C205: 30 | D205: 2371000
B206: 麻布大学 | C206: 28 | D206: 1505000
B207: 長崎県立大学 | C207: 28 | D207: 1001000
B208: 金沢医科大学 | C208: 27 | D208: 933000
B209: 滋賀県立大学 | C209: 27 | D209: 0
... 636 more rows

Sheet 岐阜大学 (hidden)
A1: 国立 | C1: 岐阜大学 | X1: 大学全体の経営理念における産学官連携活動の取組方針 | CY1: 103 | CZ1: 104 | DA1: 105 | DB1: 106 | DC1: 107 | DD1: 108 | DE1: 109 | DF1: 110 | DG1: 111 | DH1: 112 | DI1: 113 | DJ1: 114 | DK1: 115 | DL1: 116 | DM1: 117 | DN1: 118 | DO1: 119 | DP1: 120 | DQ1: 121 | DR1: 122 | DS1: 123 | DT1: 124 | DU1: 125 | DV1: 126 | DW1: 127 | DX1: 128 | DY1: 129
X2: 産学連携に関する広報活動等の拡充を通じて共同研究を推進し、第３期中期目標期間中の共同研究契約総額を第２期中期目標期間の総額比で15％以上増加を目指す。また、自治体等と連携し、地域の特徴を活かしたプロジェクトを創出するなど、地域産業の振興を支援する。
BB3: ＵＲＡ | BO3: URA当たり研究者数 | CA3: 戦略的産学連携経費
BC4: 実務担当者数 | BI4: 5 | BN4: 名 | BO4: =IF(OR(I25="",BI4=""),"",(IFERROR(I25/BI4,""))) -> 215 | CB4: 戦略的産学連携経費の設定 | CP4: 有 | CT4: 無 | CZ4: ある | DA4: インキュベーション施設
CB5: 戦略的産学連携経費の費目 | CZ5: ある | DA5: 相談窓口
A6: 基 礎 情 報 | BB6: 各種規程類の整備状況 | CB6: 戦略的産学連携経費の直接経費に対する割合 | CZ6: ある | DA6: 設立ポリシー | DI6: × | DJ6: 産学連携ポリシー
BB7: 産学連携ポリシー | BM7: 職務発明規程（教職員のみ対象） | CZ7: ない | DA7: 支援ファンド | DI7: ◎ | DJ7: 知的財産ポリシー
B8: 大学の得意分野とその具体例 | BB8: 知的財産ポリシー | BM8: 職務発明規程（教職員、学生対象） | CA8: 人件費の企業負担 | DI8: ◎ | DJ8: 共同研究取扱規程
B9: 岐阜大学の強み分野である生命科学、環境科学、ものづくり分野について、それぞれ研究センターを組織し、知識・人材の有効活用により大きな研究プロジェクトに共同で取り組む環境を整備。 | AA9: 科研費 （千円） | AL9: その他政府系研究費 (千円) | AS9: その他補助・助成金等 (千円) | BB9: 共同研究取扱規程 | BM9: 発明補償関係規程（教職員のみ対象） | CB9: 教員人件費の企業負担に関する規程や制度 | CP9: 有 | CT9: 無 | DI9: ◎ | DJ9: 受託研究取扱規程
BB10: 受託研究取扱規程 | BM10: 発明補償関係規程（教職員、学生対象） | CB10: 教員人件費の企業負担の費目 | DI10: ◎ | DJ10: 研究成果有体物取扱規程
AA11: 912595 | AL11: 20123 | AS11: 4133 | BB11: 研究成果有体物取扱規程 | BM11: 守秘義務に係る規程（教職員のみ対象） | CB11: 学生人件費の企業負担に関する規程や制度 | CP11: 有 | CT11: 無 | DI11: × | DJ11: 営業秘密管理に関する規程
BB12: 営業秘密管理に関する規程 | BM12: 守秘義務に係る規程（教職員、学生対象） | CB12: 学生人件費の企業負担の費目 | DI12: ◎ | DJ12: 株式の取扱等規程、ポリシー
AA13: 間接経費割合 | AN13: 株式の保有 | AT13: 新株予約権の保有 | BB13: 株式の取扱等規程、ポリシー | DA13: ○ | DB13: 株式 | DI13: ◎ | DJ13: 職務発明規程（教職員のみ対象）
AA14: 30％以上 | AN14: 有 | AQ14: 無 | AT14: 有 | AW14: 無 | BD14: ※各種規定類を整備している場合は、赤色で表示されます。 | CA14: 特別試験研究費税額控除制度 | DA14: × | DB14: 新株予約権 | DI14: × | DJ14: 職務発明規程（教職員、学生対象）
CB15: 特別試験研究費税額控除制度の活用 | CP15: 有 | CT15: 無 | DI15: ◎ | DJ15: 発明補償関係規程（教職員のみ対象）
B16: 産学官連携活動において今後重点化したい事項 | AA16: ■共同研究 | AG16: 2019年度 | AO16: 2020年度 | AW16: 順位※ | BB16: クロスアポイントメントの実績（人） | BK16: 大学等 | BN16: 公的機関 | BQ16: 民間企業 | BU16: その他機関 | DI16: × | DJ16: 発明補償関係規程（教職員、学生対象）
B17: 岐阜大学の強み分野である生命科学、環境科学、ものづくり分野の研究センターにおける、組織対組織の産学連携活動を意識した、革新的な研究課題に対する長期的な大型共同研究の創出と実施。 | AG17: 受入額（千円） | AL17: 件数 | AO17: 受入額（千円） | AT17: 件数 | BH17: 受入 | BK17: 0 | BN17: 0 | BQ17: 0 | BU17: 0 | DB17: 順位 | DI17: ◎ | DJ17: 守秘義務に係る規程（教職員のみ対象）
AA18: 全体 | AG18: 678636 | AL18: 423 | AO18: 721245 | AT18: 384 | AW18: =IF(DB18<50,DB18,"") -> 24 | AY18: 位 | BH18: 派遣 | BK18: 2 | BN18: 1 | BQ18: 0 | BU18: 0 | DB18: 24 | DI18: × | DJ18: 守秘義務に係る規程（教職員、学生対象）
AB19: 民間企業 のみ | AG19: 617496 | AL19: 391 | AO19: 632873 | AT19: 347 | AW19: =IF(DB19<50,DB19,"") -> 24 | AY19: 位 | DB19: 24
AC20: 大企業 | AG20: 381680 | AL20: 198 | AO20: 233296 | AT20: 162 | AW20: =IF(DB20<50,DB20,"") -> 40 | AY20: 位 | BB20: ■組織的産学連携活動の取組事例 | DB20: 40 | DI20: ない | DJ20: 戦略的産学連携経費の設定
AC21: 中小企業 | AG21: 235816 | AL21: 193 | AO21: 157385 | AT21: 162 | AW21: =IF(DB21<50,DB21,"") -> 26 | AY21: 位 | DB21: 26 | DI21: ない | DJ21: 教員人件費の企業負担に関する規程や制度
AL22: ※順位は2020年度の受入額を比較したもの | DI22: ない | DJ22: 学生人件費の企業負担に関する規程や制度
DB23: 0 | DC23: 150 | DI23: ある | DJ23: 特別試験研究費税額控除制度の活用
DB24: ～100万 | DC24: 75
B25: 研究者数 | I25: 1075 | P25: 名 | DB25: ～300万 | DC25: 82
DB26: ～500万 | DC26: 25
DB27: ～1000万 | DC27: 7
DB28: ～5000万 | DC28: 6
DB29: ～1億 | DC29: 1 | DJ29: 共同研究等の企画・提案
B30: 産学連携担当部署 | O30: 実務者当たり研究者数 | DB30: 1億以上 | DC30: 1 | DJ30: 契約書での成果目標、達成時の明記
C31: 実務担当者数 | I31: 24 | N31: 名 | O31: =IF(OR(I25="",I31=""),"",IFERROR($I$25/I31,"")) -> 44.79166667 | DJ31: 共同研究契約の締結/判断（契約権限の集中）
C32: 専門家の配置 | I32: 弁護士 | L32: 弁理士 | O32: 税理士 | R32: 公認会計士 | V32: その他 | DJ32: 共同研究の進捗管理とフィードバック
I33: ※専門家を配置している場合は、赤色で表示されます。 | DJ33: 企業ニーズに適応した技術移転・事業化提案
AA34: ■受託研究 | AG34: 2019年度 | AO34: 2020年度 | AW34: 順位※ | DJ34: 共同研究等の企画・提案
AG35: 受入額（千円） | AL35: 件数 | AO35: 受入額（千円） | AT35: 件数 | DB35: 順位 | DJ35: 契約書での成果目標、達成時の明記
AA36: 全体 | AG36: 559898 | AL36: 196 | AO36: 653358 | AT36: 198 | AW36: =IF(DB36<50,DB36,"") ->  | AY36: 位 | DB36: 57 | DJ36: 共同研究契約の締結/判断（契約権限の集中）
AB37: 民間企業 のみ | AG37: 19278 | AL37: 43 | AO37: 37503 | AT37: 39 | AW37: =IF(DB37<50,DB37,"") ->  | AY37: 位 | DB37: 77 | DJ37: 共同研究の進捗管理とフィードバック
C38: 産学連携本部が関与した共同研究 | P38: 0 | T38: 件 | AC38: 大企業 | AG38: 6916 | AL38: 23 | AO38: 20752 | AT38: 17 | AW38: =IF(DB38<50,DB38,"") ->  | AY38: 位 | DB38: 78 | DJ38: 企業ニーズに適応した技術移転・事業化提案
D39: 内、マッチングを行い、契約締結した件数 | P39: 0 | T39: 件 | AC39: 中小企業 | AG39: 12362 | AL39: 20 | AO39: 16551 | AT39: 18 | AW39: =IF(DB39<50,DB39,"") -> 35 | AY39: 位 | BB39: ■産学連携活動の主な実用化事例 | DB39: 35 | DJ39: 共同研究等の企画・提案
I40: ※1,000万円以上の共同研究 | AL40: ※順位は2020年度の受入額を比較したもの | DB40: 弁護士 | DG40: 0 | DH40: 16 | DJ40: 契約書での成果目標、達成時の明記
DA41: ○ | DB41: 弁理士 | DG41: ～100万 | DH41: 13 | DJ41: 共同研究契約の締結/判断（契約権限の集中）
C42: 組織対組織による包括連携契約の締結数 | P42: 0 | T42: 件 | DB42: 税理士 | DG42: ～300万 | DH42: 6 | DJ42: 共同研究の進捗管理とフィードバック
D43: 内、1,000万円以上の実績がある相手方数 | P43: 0 | T43: 件 | DB43: 公認会計士 | DG43: ～500万 | DH43: 2 | DJ43: 企業ニーズに適応した技術移転・事業化提案
DB44: その他 | DG44: ～1000万 | DH44: 1
C45: 寄附講座・寄附研究部門の受入件数 | P45: 12 | V45: 件 | DG45: ～5000万 | DH45: 1
C46: 寄附講座・寄附研究部門の受入金額（千円） | P46: 291500 | DG46: ～1億 | DH46: 0
C47: 共同研究講座・共同研究部門の受入件数 | P47: 19 | V47: 件 | DG47: 1億以上 | DH47: 0
C48: 共同研究講座・共同研究部門の受入金額（千円） | P48: 222306
C52: 職務発明の帰属 | I52: 大学 | M52: 発明者 | Q52: 未設定 | CZ52: 大学 | DA52: 職務発明
AD53: 特許権実施等件数 | AL53: 42 | AS53: 実施等件数 あたり | DA53: 不実施
M54: 研究者あたり | AD54: 特許権実施等収入（千円） | AL54: 7958 | AS54: =IF(OR(AL53="",AL54=""),"",IFERROR(AL54/AL53,"")) -> 189.4761905 | CZ54: 7958000 | DA54: 特許等収入
C55: 特許出願件数 | I55: 49 | M55: =IF(OR(I25="",I55=""),"",IFERROR(I55/I25,"")) -> 0.04558139535
C56: 特許保有件数 | I56: 246 | M56: =IF(OR(I25="",I56=""),"",IFERROR(I56/I25,"")) -> 0.2288372093
C61: 大学発ベンチャー数 | J61: 21 | O61: 社
C62: Exit件数（IPO） | J62: 0 | O62: 社 | P62: Exit件数（M&A） | W62: 0 | Z62: 社
C63: 相談窓口 | K63: 支援ファンド | S63: インキュベーション施設
C64: 有 | G64: 無 | K64: 有 | O64: 無 | S64: 有 | W64: 無
C65: 知的財産戦略方針 | K65: 支援総額（千円） | S65: 部屋数 | W65: 33 | Z65: 件
C66: 有 | G66: 無 | S66: 利用件数 | W66: 2 | Z66: 件
A69: 1 | B69: 2 | C69: 3 | D69: 4 | E69: 5 | F69: 6 | G69: 7 | H69: 8 | I69: 9 | J69: 10 | K69: 11 | L69: 12 | M69: 13 | N69: 14 | O69: 15 | P69: 16 | Q69: 17 | R69: 18 | S69: 19 | T69: 20 | U69: 21 | V69: 22 | W69: 23 | X69: 24 | Y69: 25 | Z69: 26 | AA69: 27 | AB69: 28 | AC69: 29 | AD69: 30 | AE69: 31 | AF69: 32 | AG69: 33 | AH69: 34 | AI69: 35 | AJ69: 36 | AK69: 37 | AL69: 38 | AM69: 39 | AN69: 40 | AO69: 41 | AP69: 42 | AQ69: 43 | AR69: 44 | AS69: 45 | AT69: 46 | AU69: 47 | AV69: 48 | AW69: 49 | AX69: 50 | AY69: 51 | AZ69: 52 | BA69: 53 | BB69: 54 | BC69: 55 | BD69: 56 | BE69: 57 | BF69: 58 | BG69: 59 | BH69: 60 | BI69: 61 | BJ69: 62 | BK69: 63 | BL69: 64 | BM69: 65 | BN69: 66 | BO69: 67 | BP69: 68 | BQ69: 69 | BR69: 70 | BS69: 71 | BT69: 72 | BU69: 73 | BV69: 74 | BW69: 75 | BX69: 76 | BY69: 77 | BZ69: 78 | CA69: 79 | CB69: 80 | CC69: 81 | CD69: 82 | CE69: 83 | CF69: 84 | CG69: 85 | CH69: 86 | CI69: 87 | CJ69: 88 | CK69: 89 | CL69: 90 | CM69: 91 | CN69: 92 | CO69: 93 | CP69: 94 | CQ69: 95 | CR69: 96 | CS69: 97 | CT69: 98 | CU69: 99 | CV69: 100 | CW69: 101 | CX69: 102 | CY69: 103 | CZ69: 104 | DA69: 105 | DB69: 106 | DC69: 107 | DD69: 108 | DE69: 109 | DF69: 110 | DG69: 111 | DH69: 112 | DI69: 113 | DJ69: 114 | DK69: 115 | DL69: 116 | DM69: 117 | DN69: 118 | DO69: 119 | DP69: 120 | DQ69: 121 | DR69: 122 | DS69: 123 | DT69: 124 | DU69: 125
D70: 特許権収入
B71: 東京大学 | C71: 4495 | D71: 261744000
B72: 東北大学 | C72: 3533 | D72: 157139000
B73: 京都大学 | C73: 3044 | D73: 698373000
B74: 大阪大学 | C74: 2854 | D74: 509758000
B75: 東京工業大学 | C75: 1979 | D75: 57301000
B76: 九州大学 | C76: 1530 | D76: 601936000
B77: 名古屋大学 | C77: 1346 | D77: 72156000
B78: 北海道大学 | C78: 1167 | D78: 86700000
B79: 信州大学 | C79: 952 | D79: 29305000
B80: 広島大学 | C80: 921 | D80: 41265000
B81: 筑波大学 | C81: 850 | D81: 42694000
B82: 慶應義塾大学 | C82: 798 | D82: 67998000
B83: 千葉大学 | C83: 769 | D83: 17609000
B84: 岡山大学 | C84: 749 | D84: 8886000
B85: 山口大学 | C85: 700 | D85: 29167000
B86: 早稲田大学 | C86: 698 | D86: 21143000
B87: 名古屋工業大学 | C87: 638 | D87: 12139000
B88: 東京農工大学 | C88: 632 | D88: 44098000
B89: 九州工業大学 | C89: 611 | D89: 10288000
B90: 大阪府立大学 | C90: 573 | D90: 9177000
B91: 東京理科大学 | C91: 528 | D91: 15523000
B92: 神戸大学 | C92: 525 | D92: 78768000
B93: 静岡大学 | C93: 509 | D93: 8145000
B94: 群馬大学 | C94: 483 | D94: 5316000
B95: 熊本大学 | C95: 475 | D95: 29359000
B96: 近畿大学 | C96: 453 | D96: 82359000
B97: 長岡技術科学大学 | C97: 441 | D97: 3921000
B98: 横浜国立大学 | C98: 439 | D98: 5839000
B99: 奈良先端科学技術大学院大学 | C99: 427 | D99: 3542000
B100: 三重大学 | C100: 417 | D100: 10844000
B101: 鹿児島大学 | C101: 416 | D101: 14284000
B102: 大阪市立大学 | C102: 403 | D102: 2791000
B103: 東京都立大学 | C103: 398 | D103: 574000
B104: 山梨大学 | C104: 395 | D104: 5041000
B105: 香川大学 | C105: 389 | D105: 17113000
B106: 東京医科歯科大学 | C106: 377 | D106: 24076000
B107: 豊橋技術科学大学 | C107: 374 | D107: 5526000
B108: 徳島大学 | C108: 362 | D108: 131417000
B109: 電気通信大学 | C109: 355 | D109: 7847000
B110: 関西大学 | C110: 350 | D110: 5154000
B111: 鳥取大学 | C111: 340 | D111: 4814000
B112: 同志社大学 | C112: 337 | D112: 17850000
B113: 金沢大学 | C113: 337 | D113: 13893000
B114: 日本大学 | C114: 333 | D114: 38328000
B115: 山形大学 | C115: 323 | D115: 752000
B116: 北里大学 | C116: 315 | D116: 45190000
B117: 埼玉大学 | C117: 309 | D117: 2765000
B118: 富山大学 | C118: 305 | D118: 35859000
B119: 新潟大学 | C119: 301 | D119: 8943000
B120: 高知大学 | C120: 281 | D120: 26209000
B121: 立命館大学 | C121: 268 | D121: 2098000
B122: 秋田大学 | C122: 264 | D122: 1773000
B123: 神奈川大学 | C123: 263 | D123: 4940000
B124: 岐阜大学 | C124: 246 | D124: 7958000
B125: 弘前大学 | C125: 239 | D125: 10190000
B126: 宮崎大学 | C126: 236 | D126: 2168000
B127: 名城大学 | C127: 232 | D127: 2341000
B128: 兵庫県立大学 | C128: 232 | D128: 1142000
B129: 佐賀大学 | C129: 224 | D129: 4180000
B130: 福井大学 | C130: 221 | D130: 3913000
B131: 札幌医科大学 | C131: 218 | D131: 105462000
B132: 東海大学 | C132: 211 | D132: 5395000
B133: 京都工芸繊維大学 | C133: 201 | D133: 4782000
B134: 岩手大学 | C134: 198 | D134: 2552000
B135: 長崎大学 | C135: 194 | D135: 25364000
B136: 東京女子医科大学 | C136: 186 | D136: 2706000
B137: 横浜市立大学 | C137: 184 | D137: 50242000
B138: 北陸先端科学技術大学院大学 | C138: 175 | D138: 8323000
B139: 東京海洋大学 | C139: 175 | D139: 3222000
B140: 愛媛大学 | C140: 174 | D140: 35291000
B141: 宇都宮大学 | C141: 171 | D141: 2463000
B142: 高知工科大学 | C142: 165 | D142: 326000
B143: 千葉工業大学 | C143: 160 | D143: 0
B144: 茨城大学 | C144: 157 | D144: 2754000
B145: 福岡大学 | C145: 154 | D145: 874000
B146: 沖縄科学技術大学院大学 | C146: 152 | D146: 1100000
B147: 大分大学 | C147: 151 | D147: 1915000
B148: 金沢工業大学 | C148: 150 | D148: 2760000
B149: 中央大学 | C149: 144 | D149: 989000
B150: 浜松医科大学 | C150: 143 | D150: 3875000
B151: 島根大学 | C151: 137 | D151: 1166000
B152: 滋賀医科大学 | C152: 132 | D152: 2306000
B153: 関西学院大学 | C153: 128 | D153: 23880000
B154: 自治医科大学 | C154: 127 | D154: 6757000
B155: 久留米大学 | C155: 127 | D155: 1462000
B156: 上智大学 | C156: 126 | D156: 0
B157: 順天堂大学 | C157: 122 | D157: 3072000
B158: 中部大学 | C158: 118 | D158: 220000
B159: 東京電機大学 | C159: 102 | D159: 1180000
B160: 芝浦工業大学 | C160: 98 | D160: 1615000
B161: 埼玉医科大学 | C161: 96 | D161: 27468000
B162: 豊田工業大学 | C162: 96 | D162: 0
B163: 名古屋市立大学 | C163: 94 | D163: 17822000
B164: 京都府立医科大学 | C164: 94 | D164: 2128000
B165: 北見工業大学 | C165: 92 | D165: 995000
B166: 和歌山大学 | C166: 89 | D166: 4131000
B167: 富山県立大学 | C167: 87 | D167: 1375000
B168: 関東学院大学 | C168: 84 | D168: 14540000
B169: 明治大学 | C169: 81 | D169: 4886000
B170: 琉球大学 | C170: 77 | D170: 1146000
B171: 静岡県立大学 | C171: 72 | D171: 915000
B172: 福島大学 | C172: 67 | D172: 897000
B173: 藤田医科大学 | C173: 62 | D173: 0
B174: 帝京大学 | C174: 60 | D174: 2351000
B175: 兵庫医科大学 | C175: 60 | D175: 332000
B176: 旭川医科大学 | C176: 59 | D176: 1987000
B177: 日本医科大学 | C177: 55 | D177: 58243000
B178: 帯広畜産大学 | C178: 54 | D178: 2966000
B179: 東洋大学 | C179: 54 | D179: 633000
B180: 秋田県立大学 | C180: 52 | D180: 892000
B181: 奈良県立医科大学 | C181: 52 | D181: 743000
B182: 福岡工業大学 | C182: 52 | D182: 0
B183: 立教大学 | C183: 51 | D183: 231000
B184: 室蘭工業大学 | C184: 50 | D184: 0
B185: 昭和大学 | C185: 48 | D185: 4513000
B186: 聖マリアンナ医科大学 | C186: 46 | D186: 3204000
B187: 関西医科大学 | C187: 46 | D187: 781000
B188: 神奈川工科大学 | C188: 46 | D188: 289000
B189: 岡山理科大学 | C189: 45 | D189: 916000
B190: お茶の水女子大学 | C190: 45 | D190: 5000
B191: 広島市立大学 | C191: 44 | D191: 0
B192: 会津大学 | C192: 43 | D192: 33000
B193: 龍谷大学 | C193: 42 | D193: 1289000
B194: 玉川大学 | C194: 41 | D194: 119000
B195: 産業医科大学 | C195: 41 | D195: 7000
B196: 大阪工業大学 | C196: 39 | D196: 0
B197: 東京農業大学 | C197: 36 | D197: 748000
B198: 法政大学 | C198: 36 | D198: 550000
B199: 工学院大学 | C199: 35 | D199: 3516000
B200: 青山学院大学 | C200: 34 | D200: 0
B201: 北九州市立大学 | C201: 32 | D201: 2647000
B202: 東邦大学 | C202: 32 | D202: 23000
B203: 甲南大学 | C203: 31 | D203: 613000
B204: 石川県立大学 | C204: 31 | D204: 531000
B205: 東京都市大学 | C205: 30 | D205: 2371000
B206: 麻布大学 | C206: 28 | D206: 1505000
B207: 長崎県立大学 | C207: 28 | D207: 1001000
B208: 金沢医科大学 | C208: 27 | D208: 933000
B209: 滋賀県立大学 | C209: 27 | D209: 0
... 636 more rows

Sheet 静岡大学 (hidden)
A1: 国立 | C1: 静岡大学 | X1: 大学全体の経営理念における産学官連携活動の取組方針 | CY1: 103 | CZ1: 104 | DA1: 105 | DB1: 106 | DC1: 107 | DD1: 108 | DE1: 109 | DF1: 110 | DG1: 111 | DH1: 112 | DI1: 113 | DJ1: 114 | DK1: 115 | DL1: 116 | DM1: 117 | DN1: 118 | DO1: 119 | DP1: 120 | DQ1: 121 | DR1: 122 | DS1: 123 | DT1: 124 | DU1: 125 | DV1: 126 | DW1: 127 | DX1: 128 | DY1: 129
X2: ・地域社会の科学技術の発展と産業の振興に寄与するとともに、大学における教育研究活動にも活力を与え、相互に発展するために、民間企業と大学との共同研究及び学術交流を推進する。
BB3: ＵＲＡ | BO3: URA当たり研究者数 | CA3: 戦略的産学連携経費
BC4: 実務担当者数 | BI4: 16 | BN4: 名 | BO4: =IF(OR(I25="",BI4=""),"",(IFERROR(I25/BI4,""))) -> 47.1875 | CB4: 戦略的産学連携経費の設定 | CP4: 有 | CT4: 無 | CZ4: ある | DA4: インキュベーション施設
CB5: 戦略的産学連携経費の費目 | CP5: 間接経費 | CZ5: ある | DA5: 相談窓口
A6: 基 礎 情 報 | BB6: 各種規程類の整備状況 | CB6: 戦略的産学連携経費の直接経費に対する割合 | CP6: 20％以上25％未満 | CZ6: ある | DA6: 設立ポリシー | DI6: ◎ | DJ6: 産学連携ポリシー
BB7: 産学連携ポリシー | BM7: 職務発明規程（教職員のみ対象） | CZ7: ある | DA7: 支援ファンド | DI7: ◎ | DJ7: 知的財産ポリシー
B8: 大学の得意分野とその具体例 | BB8: 知的財産ポリシー | BM8: 職務発明規程（教職員、学生対象） | CA8: 人件費の企業負担 | DI8: ◎ | DJ8: 共同研究取扱規程
B9: ・光医工分野での世界最先端の研究を行っている。世界初スーパーハイビジョンのフルスペック規格に対応したCMOSイメージセンサを開発し、東京オリンピック・パラリンピックでの競技撮影に活用された。今後は、医療・セキュリティ・工業製品検査など幅広い応用が期待される。 | AA9: 科研費 （千円） | AL9: その他政府系研究費 (千円) | AS9: その他補助・助成金等 (千円) | BB9: 共同研究取扱規程 | BM9: 発明補償関係規程（教職員のみ対象） | CB9: 教員人件費の企業負担に関する規程や制度 | CP9: 有 | CT9: 無 | DI9: ◎ | DJ9: 受託研究取扱規程
BB10: 受託研究取扱規程 | BM10: 発明補償関係規程（教職員、学生対象） | CB10: 教員人件費の企業負担の費目 | DI10: ◎ | DJ10: 研究成果有体物取扱規程
AA11: 971344 | AL11: 20621 | AS11: 0 | BB11: 研究成果有体物取扱規程 | BM11: 守秘義務に係る規程（教職員のみ対象） | CB11: 学生人件費の企業負担に関する規程や制度 | CP11: 有 | CT11: 無 | DI11: ◎ | DJ11: 営業秘密管理に関する規程
BB12: 営業秘密管理に関する規程 | BM12: 守秘義務に係る規程（教職員、学生対象） | CB12: 学生人件費の企業負担の費目 | DI12: ◎ | DJ12: 株式の取扱等規程、ポリシー
AA13: 間接経費割合 | AN13: 株式の保有 | AT13: 新株予約権の保有 | BB13: 株式の取扱等規程、ポリシー | DA13: × | DB13: 株式 | DI13: × | DJ13: 職務発明規程（教職員のみ対象）
AA14: 30％以上 | AN14: 有 | AQ14: 無 | AT14: 有 | AW14: 無 | BD14: ※各種規定類を整備している場合は、赤色で表示されます。 | CA14: 特別試験研究費税額控除制度 | DA14: × | DB14: 新株予約権 | DI14: ◎ | DJ14: 職務発明規程（教職員、学生対象）
CB15: 特別試験研究費税額控除制度の活用 | CP15: 有 | CT15: 無 | DI15: × | DJ15: 発明補償関係規程（教職員のみ対象）
B16: 産学官連携活動において今後重点化したい事項 | AA16: ■共同研究 | AG16: 2019年度 | AO16: 2020年度 | AW16: 順位※ | BB16: クロスアポイントメントの実績（人） | BK16: 大学等 | BN16: 公的機関 | BQ16: 民間企業 | BU16: その他機関 | DI16: ◎ | DJ16: 発明補償関係規程（教職員、学生対象）
B17: ・地域社会との産学連携によるイノベーションの創出 ・組織対組織による大型共同研究の実施 ・ベンチャー支援と適正対価の確保 | AG17: 受入額（千円） | AL17: 件数 | AO17: 受入額（千円） | AT17: 件数 | BH17: 受入 | BK17: 0 | BN17: 0 | BQ17: 0 | BU17: 1 | DB17: 順位 | DI17: × | DJ17: 守秘義務に係る規程（教職員のみ対象）
AA18: 全体 | AG18: 464477 | AL18: 269 | AO18: 430168 | AT18: 242 | AW18: =IF(DB18<50,DB18,"") -> 39 | AY18: 位 | BH18: 派遣 | BK18: 1 | BN18: 0 | BQ18: 0 | BU18: 0 | DB18: 39 | DI18: ◎ | DJ18: 守秘義務に係る規程（教職員、学生対象）
AB19: 民間企業 のみ | AG19: 427327 | AL19: 253 | AO19: 397312 | AT19: 225 | AW19: =IF(DB19<50,DB19,"") -> 36 | AY19: 位 | DB19: 36
AC20: 大企業 | AG20: 262264 | AL20: 158 | AO20: 183621 | AT20: 102 | AW20: =IF(DB20<50,DB20,"") -> 44 | AY20: 位 | BB20: ■組織的産学連携活動の取組事例 | DB20: 44 | DI20: ある | DJ20: 戦略的産学連携経費の設定
AC21: 中小企業 | AG21: 152543 | AL21: 83 | AO21: 94535 | AT21: 77 | AW21: =IF(DB21<50,DB21,"") -> 35 | AY21: 位 | DB21: 35 | DI21: ない | DJ21: 教員人件費の企業負担に関する規程や制度
AL22: ※順位は2020年度の受入額を比較したもの | DI22: ない | DJ22: 学生人件費の企業負担に関する規程や制度
DB23: 0 | DC23: 44 | DI23: ある | DJ23: 特別試験研究費税額控除制度の活用
DB24: ～100万 | DC24: 62
B25: 研究者数 | I25: 755 | P25: 名 | DB25: ～300万 | DC25: 88
DB26: ～500万 | DC26: 11
DB27: ～1000万 | DC27: 14
DB28: ～5000万 | DC28: 6
DB29: ～1億 | DC29: 0 | DJ29: 共同研究等の企画・提案
B30: 産学連携担当部署 | O30: 実務者当たり研究者数 | DB30: 1億以上 | DC30: 0 | DJ30: 契約書での成果目標、達成時の明記
C31: 実務担当者数 | I31: 23 | N31: 名 | O31: =IF(OR(I25="",I31=""),"",IFERROR($I$25/I31,"")) -> 32.82608696 | DJ31: 共同研究契約の締結/判断（契約権限の集中）
C32: 専門家の配置 | I32: 弁護士 | L32: 弁理士 | O32: 税理士 | R32: 公認会計士 | V32: その他 | DJ32: 共同研究の進捗管理とフィードバック
I33: ※専門家を配置している場合は、赤色で表示されます。 | DJ33: 企業ニーズに適応した技術移転・事業化提案
AA34: ■受託研究 | AG34: 2019年度 | AO34: 2020年度 | AW34: 順位※ | DJ34: 共同研究等の企画・提案
AG35: 受入額（千円） | AL35: 件数 | AO35: 受入額（千円） | AT35: 件数 | DB35: 順位 | DJ35: 契約書での成果目標、達成時の明記
AA36: 全体 | AG36: 710254 | AL36: 79 | AO36: 662062 | AT36: 86 | AW36: =IF(DB36<50,DB36,"") ->  | AY36: 位 | DB36: 55 | DJ36: 共同研究契約の締結/判断（契約権限の集中）
AB37: 民間企業 のみ | AG37: 9646 | AL37: 6 | AO37: 6636 | AT37: 6 | AW37: =IF(DB37<50,DB37,"") ->  | AY37: 位 | DB37: 185 | DJ37: 共同研究の進捗管理とフィードバック
C38: 産学連携本部が関与した共同研究 | P38: 4 | T38: 件 | AC38: 大企業 | AG38: 2200 | AL38: 2 | AO38: 5630 | AT38: 3 | AW38: =IF(DB38<50,DB38,"") ->  | AY38: 位 | DB38: 162 | DJ38: 企業ニーズに適応した技術移転・事業化提案
D39: 内、マッチングを行い、契約締結した件数 | P39: 2 | T39: 件 | AC39: 中小企業 | AG39: 7446 | AL39: 4 | AO39: 1006 | AT39: 3 | AW39: =IF(DB39<50,DB39,"") ->  | AY39: 位 | BB39: ■産学連携活動の主な実用化事例 | DB39: 210 | DJ39: 共同研究等の企画・提案
I40: ※1,000万円以上の共同研究 | AL40: ※順位は2020年度の受入額を比較したもの | DB40: 弁護士 | DG40: 0 | DH40: 0 | DJ40: 契約書での成果目標、達成時の明記
DA41: ○ | DB41: 弁理士 | DG41: ～100万 | DH41: 3 | DJ41: 共同研究契約の締結/判断（契約権限の集中）
C42: 組織対組織による包括連携契約の締結数 | P42: 1 | T42: 件 | DB42: 税理士 | DG42: ～300万 | DH42: 3 | DJ42: 共同研究の進捗管理とフィードバック
D43: 内、1,000万円以上の実績がある相手方数 | P43: 0 | T43: 件 | DB43: 公認会計士 | DG43: ～500万 | DH43: 0 | DJ43: 企業ニーズに適応した技術移転・事業化提案
DA44: ○ | DB44: その他 | DG44: ～1000万 | DH44: 0
C45: 寄附講座・寄附研究部門の受入件数 | P45: 2 | V45: 件 | DG45: ～5000万 | DH45: 0
C46: 寄附講座・寄附研究部門の受入金額（千円） | P46: 23000 | DG46: ～1億 | DH46: 0
C47: 共同研究講座・共同研究部門の受入件数 | P47: 5 | V47: 件 | DG47: 1億以上 | DH47: 0
C48: 共同研究講座・共同研究部門の受入金額（千円） | P48: 32940
C52: 職務発明の帰属 | I52: 大学 | M52: 発明者 | Q52: 未設定 | CZ52: 大学 | DA52: 職務発明
AD53: 特許権実施等件数 | AL53: 145 | AS53: 実施等件数 あたり | DA53: 不実施
M54: 研究者あたり | AD54: 特許権実施等収入（千円） | AL54: 8145 | AS54: =IF(OR(AL53="",AL54=""),"",IFERROR(AL54/AL53,"")) -> 56.17241379 | CZ54: 8145000 | DA54: 特許等収入
C55: 特許出願件数 | I55: 64 | M55: =IF(OR(I25="",I55=""),"",IFERROR(I55/I25,"")) -> 0.08476821192
C56: 特許保有件数 | I56: 509 | M56: =IF(OR(I25="",I56=""),"",IFERROR(I56/I25,"")) -> 0.6741721854
C61: 大学発ベンチャー数 | J61: 36 | O61: 社
C62: Exit件数（IPO） | O62: 社 | P62: Exit件数（M&A） | W62: 1 | Z62: 社
C63: 相談窓口 | K63: 支援ファンド | S63: インキュベーション施設
C64: 有 | G64: 無 | K64: 有 | O64: 無 | S64: 有 | W64: 無
C65: 知的財産戦略方針 | K65: 支援総額（千円） | S65: 部屋数 | W65: 14 | Z65: 件
C66: 有 | G66: 無 | K66: 500000 | S66: 利用件数 | W66: 4 | Z66: 件
A69: 1 | B69: 2 | C69: 3 | D69: 4 | E69: 5 | F69: 6 | G69: 7 | H69: 8 | I69: 9 | J69: 10 | K69: 11 | L69: 12 | M69: 13 | N69: 14 | O69: 15 | P69: 16 | Q69: 17 | R69: 18 | S69: 19 | T69: 20 | U69: 21 | V69: 22 | W69: 23 | X69: 24 | Y69: 25 | Z69: 26 | AA69: 27 | AB69: 28 | AC69: 29 | AD69: 30 | AE69: 31 | AF69: 32 | AG69: 33 | AH69: 34 | AI69: 35 | AJ69: 36 | AK69: 37 | AL69: 38 | AM69: 39 | AN69: 40 | AO69: 41 | AP69: 42 | AQ69: 43 | AR69: 44 | AS69: 45 | AT69: 46 | AU69: 47 | AV69: 48 | AW69: 49 | AX69: 50 | AY69: 51 | AZ69: 52 | BA69: 53 | BB69: 54 | BC69: 55 | BD69: 56 | BE69: 57 | BF69: 58 | BG69: 59 | BH69: 60 | BI69: 61 | BJ69: 62 | BK69: 63 | BL69: 64 | BM69: 65 | BN69: 66 | BO69: 67 | BP69: 68 | BQ69: 69 | BR69: 70 | BS69: 71 | BT69: 72 | BU69: 73 | BV69: 74 | BW69: 75 | BX69: 76 | BY69: 77 | BZ69: 78 | CA69: 79 | CB69: 80 | CC69: 81 | CD69: 82 | CE69: 83 | CF69: 84 | CG69: 85 | CH69: 86 | CI69: 87 | CJ69: 88 | CK69: 89 | CL69: 90 | CM69: 91 | CN69: 92 | CO69: 93 | CP69: 94 | CQ69: 95 | CR69: 96 | CS69: 97 | CT69: 98 | CU69: 99 | CV69: 100 | CW69: 101 | CX69: 102 | CY69: 103 | CZ69: 104 | DA69: 105 | DB69: 106 | DC69: 107 | DD69: 108 | DE69: 109 | DF69: 110 | DG69: 111 | DH69: 112 | DI69: 113 | DJ69: 114 | DK69: 115 | DL69: 116 | DM69: 117 | DN69: 118 | DO69: 119 | DP69: 120 | DQ69: 121 | DR69: 122 | DS69: 123 | DT69: 124 | DU69: 125
D70: 特許権収入
B71: 東京大学 | C71: 4495 | D71: 261744000
B72: 東北大学 | C72: 3533 | D72: 157139000
B73: 京都大学 | C73: 3044 | D73: 698373000
B74: 大阪大学 | C74: 2854 | D74: 509758000
B75: 東京工業大学 | C75: 1979 | D75: 57301000
B76: 九州大学 | C76: 1530 | D76: 601936000
B77: 名古屋大学 | C77: 1346 | D77: 72156000
B78: 北海道大学 | C78: 1167 | D78: 86700000
B79: 信州大学 | C79: 952 | D79: 29305000
B80: 広島大学 | C80: 921 | D80: 41265000
B81: 筑波大学 | C81: 850 | D81: 42694000
B82: 慶應義塾大学 | C82: 798 | D82: 67998000
B83: 千葉大学 | C83: 769 | D83: 17609000
B84: 岡山大学 | C84: 749 | D84: 8886000
B85: 山口大学 | C85: 700 | D85: 29167000
B86: 早稲田大学 | C86: 698 | D86: 21143000
B87: 名古屋工業大学 | C87: 638 | D87: 12139000
B88: 東京農工大学 | C88: 632 | D88: 44098000
B89: 九州工業大学 | C89: 611 | D89: 10288000
B90: 大阪府立大学 | C90: 573 | D90: 9177000
B91: 東京理科大学 | C91: 528 | D91: 15523000
B92: 神戸大学 | C92: 525 | D92: 78768000
B93: 静岡大学 | C93: 509 | D93: 8145000
B94: 群馬大学 | C94: 483 | D94: 5316000
B95: 熊本大学 | C95: 475 | D95: 29359000
B96: 近畿大学 | C96: 453 | D96: 82359000
B97: 長岡技術科学大学 | C97: 441 | D97: 3921000
B98: 横浜国立大学 | C98: 439 | D98: 5839000
B99: 奈良先端科学技術大学院大学 | C99: 427 | D99: 3542000
B100: 三重大学 | C100: 417 | D100: 10844000
B101: 鹿児島大学 | C101: 416 | D101: 14284000
B102: 大阪市立大学 | C102: 403 | D102: 2791000
B103: 東京都立大学 | C103: 398 | D103: 574000
B104: 山梨大学 | C104: 395 | D104: 5041000
B105: 香川大学 | C105: 389 | D105: 17113000
B106: 東京医科歯科大学 | C106: 377 | D106: 24076000
B107: 豊橋技術科学大学 | C107: 374 | D107: 5526000
B108: 徳島大学 | C108: 362 | D108: 131417000
B109: 電気通信大学 | C109: 355 | D109: 7847000
B110: 関西大学 | C110: 350 | D110: 5154000
B111: 鳥取大学 | C111: 340 | D111: 4814000
B112: 同志社大学 | C112: 337 | D112: 17850000
B113: 金沢大学 | C113: 337 | D113: 13893000
B114: 日本大学 | C114: 333 | D114: 38328000
B115: 山形大学 | C115: 323 | D115: 752000
B116: 北里大学 | C116: 315 | D116: 45190000
B117: 埼玉大学 | C117: 309 | D117: 2765000
B118: 富山大学 | C118: 305 | D118: 35859000
B119: 新潟大学 | C119: 301 | D119: 8943000
B120: 高知大学 | C120: 281 | D120: 26209000
B121: 立命館大学 | C121: 268 | D121: 2098000
B122: 秋田大学 | C122: 264 | D122: 1773000
B123: 神奈川大学 | C123: 263 | D123: 4940000
B124: 岐阜大学 | C124: 246 | D124: 7958000
B125: 弘前大学 | C125: 239 | D125: 10190000
B126: 宮崎大学 | C126: 236 | D126: 2168000
B127: 名城大学 | C127: 232 | D127: 2341000
B128: 兵庫県立大学 | C128: 232 | D128: 1142000
B129: 佐賀大学 | C129: 224 | D129: 4180000
B130: 福井大学 | C130: 221 | D130: 3913000
B131: 札幌医科大学 | C131: 218 | D131: 105462000
B132: 東海大学 | C132: 211 | D132: 5395000
B133: 京都工芸繊維大学 | C133: 201 | D133: 4782000
B134: 岩手大学 | C134: 198 | D134: 2552000
B135: 長崎大学 | C135: 194 | D135: 25364000
B136: 東京女子医科大学 | C136: 186 | D136: 2706000
B137: 横浜市立大学 | C137: 184 | D137: 50242000
B138: 北陸先端科学技術大学院大学 | C138: 175 | D138: 8323000
B139: 東京海洋大学 | C139: 175 | D139: 3222000
B140: 愛媛大学 | C140: 174 | D140: 35291000
B141: 宇都宮大学 | C141: 171 | D141: 2463000
B142: 高知工科大学 | C142: 165 | D142: 326000
B143: 千葉工業大学 | C143: 160 | D143: 0
B144: 茨城大学 | C144: 157 | D144: 2754000
B145: 福岡大学 | C145: 154 | D145: 874000
B146: 沖縄科学技術大学院大学 | C146: 152 | D146: 1100000
B147: 大分大学 | C147: 151 | D147: 1915000
B148: 金沢工業大学 | C148: 150 | D148: 2760000
B149: 中央大学 | C149: 144 | D149: 989000
B150: 浜松医科大学 | C150: 143 | D150: 3875000
B151: 島根大学 | C151: 137 | D151: 1166000
B152: 滋賀医科大学 | C152: 132 | D152: 2306000
B153: 関西学院大学 | C153: 128 | D153: 23880000
B154: 自治医科大学 | C154: 127 | D154: 6757000
B155: 久留米大学 | C155: 127 | D155: 1462000
B156: 上智大学 | C156: 126 | D156: 0
B157: 順天堂大学 | C157: 122 | D157: 3072000
B158: 中部大学 | C158: 118 | D158: 220000
B159: 東京電機大学 | C159: 102 | D159: 1180000
B160: 芝浦工業大学 | C160: 98 | D160: 1615000
B161: 埼玉医科大学 | C161: 96 | D161: 27468000
B162: 豊田工業大学 | C162: 96 | D162: 0
B163: 名古屋市立大学 | C163: 94 | D163: 17822000
B164: 京都府立医科大学 | C164: 94 | D164: 2128000
B165: 北見工業大学 | C165: 92 | D165: 995000
B166: 和歌山大学 | C166: 89 | D166: 4131000
B167: 富山県立大学 | C167: 87 | D167: 1375000
B168: 関東学院大学 | C168: 84 | D168: 14540000
B169: 明治大学 | C169: 81 | D169: 4886000
B170: 琉球大学 | C170: 77 | D170: 1146000
B171: 静岡県立大学 | C171: 72 | D171: 915000
B172: 福島大学 | C172: 67 | D172: 897000
B173: 藤田医科大学 | C173: 62 | D173: 0
B174: 帝京大学 | C174: 60 | D174: 2351000
B175: 兵庫医科大学 | C175: 60 | D175: 332000
B176: 旭川医科大学 | C176: 59 | D176: 1987000
B177: 日本医科大学 | C177: 55 | D177: 58243000
B178: 帯広畜産大学 | C178: 54 | D178: 2966000
B179: 東洋大学 | C179: 54 | D179: 633000
B180: 秋田県立大学 | C180: 52 | D180: 892000
B181: 奈良県立医科大学 | C181: 52 | D181: 743000
B182: 福岡工業大学 | C182: 52 | D182: 0
B183: 立教大学 | C183: 51 | D183: 231000
B184: 室蘭工業大学 | C184: 50 | D184: 0
B185: 昭和大学 | C185: 48 | D185: 4513000
B186: 聖マリアンナ医科大学 | C186: 46 | D186: 3204000
B187: 関西医科大学 | C187: 46 | D187: 781000
B188: 神奈川工科大学 | C188: 46 | D188: 289000
B189: 岡山理科大学 | C189: 45 | D189: 916000
B190: お茶の水女子大学 | C190: 45 | D190: 5000
B191: 広島市立大学 | C191: 44 | D191: 0
B192: 会津大学 | C192: 43 | D192: 33000
B193: 龍谷大学 | C193: 42 | D193: 1289000
B194: 玉川大学 | C194: 41 | D194: 119000
B195: 産業医科大学 | C195: 41 | D195: 7000
B196: 大阪工業大学 | C196: 39 | D196: 0
B197: 東京農業大学 | C197: 36 | D197: 748000
B198: 法政大学 | C198: 36 | D198: 550000
B199: 工学院大学 | C199: 35 | D199: 3516000
B200: 青山学院大学 | C200: 34 | D200: 0
B201: 北九州市立大学 | C201: 32 | D201: 2647000
B202: 東邦大学 | C202: 32 | D202: 23000
B203: 甲南大学 | C203: 31 | D203: 613000
B204: 石川県立大学 | C204: 31 | D204: 531000
B205: 東京都市大学 | C205: 30 | D205: 2371000
B206: 麻布大学 | C206: 28 | D206: 1505000
B207: 長崎県立大学 | C207: 28 | D207: 1001000
B208: 金沢医科大学 | C208: 27 | D208: 933000
B209: 滋賀県立大学 | C209: 27 | D209: 0
... 636 more rows

Sheet 愛知教育大学 (hidden)
A1: 国立 | C1: 愛知教育大学 | X1: 大学全体の経営理念における産学官連携活動の取組方針 | CY1: 103 | CZ1: 104 | DA1: 105 | DB1: 106 | DC1: 107 | DD1: 108 | DE1: 109 | DF1: 110 | DG1: 111 | DH1: 112 | DI1: 113 | DJ1: 114 | DK1: 115 | DL1: 116 | DM1: 117 | DN1: 118 | DO1: 119 | DP1: 120 | DQ1: 121 | DR1: 122 | DS1: 123 | DT1: 124 | DU1: 125 | DV1: 126 | DW1: 127 | DX1: 128 | DY1: 129
BB3: ＵＲＡ | BO3: URA当たり研究者数 | CA3: 戦略的産学連携経費
BC4: 実務担当者数 | BN4: 名 | BO4: =IF(OR(I25="",BI4=""),"",(IFERROR(I25/BI4,""))) ->  | CB4: 戦略的産学連携経費の設定 | CP4: 有 | CT4: 無 | CZ4: ない | DA4: インキュベーション施設
CB5: 戦略的産学連携経費の費目 | CZ5: ない | DA5: 相談窓口
A6: 基 礎 情 報 | BB6: 各種規程類の整備状況 | CB6: 戦略的産学連携経費の直接経費に対する割合 | CZ6: ない | DA6: 設立ポリシー | DI6: × | DJ6: 産学連携ポリシー
BB7: 産学連携ポリシー | BM7: 職務発明規程（教職員のみ対象） | CZ7: ない | DA7: 支援ファンド | DI7: × | DJ7: 知的財産ポリシー
B8: 大学の得意分野とその具体例 | BB8: 知的財産ポリシー | BM8: 職務発明規程（教職員、学生対象） | CA8: 人件費の企業負担 | DI8: △ | DJ8: 共同研究取扱規程
AA9: 科研費 （千円） | AL9: その他政府系研究費 (千円) | AS9: その他補助・助成金等 (千円) | BB9: 共同研究取扱規程 | BM9: 発明補償関係規程（教職員のみ対象） | CB9: 教員人件費の企業負担に関する規程や制度 | CP9: 有 | CT9: 無 | DI9: ◎ | DJ9: 受託研究取扱規程
BB10: 受託研究取扱規程 | BM10: 発明補償関係規程（教職員、学生対象） | CB10: 教員人件費の企業負担の費目 | DI10: × | DJ10: 研究成果有体物取扱規程
AA11: 61200 | BB11: 研究成果有体物取扱規程 | BM11: 守秘義務に係る規程（教職員のみ対象） | CB11: 学生人件費の企業負担に関する規程や制度 | CP11: 有 | CT11: 無 | DI11: × | DJ11: 営業秘密管理に関する規程
BB12: 営業秘密管理に関する規程 | BM12: 守秘義務に係る規程（教職員、学生対象） | CB12: 学生人件費の企業負担の費目 | DI12: × | DJ12: 株式の取扱等規程、ポリシー
AA13: 間接経費割合 | AN13: 株式の保有 | AT13: 新株予約権の保有 | BB13: 株式の取扱等規程、ポリシー | DA13: × | DB13: 株式 | DI13: ◎ | DJ13: 職務発明規程（教職員のみ対象）
AA14: 30％以上 | AN14: 有 | AQ14: 無 | AT14: 有 | AW14: 無 | BD14: ※各種規定類を整備している場合は、赤色で表示されます。 | CA14: 特別試験研究費税額控除制度 | DA14: × | DB14: 新株予約権 | DI14: × | DJ14: 職務発明規程（教職員、学生対象）
CB15: 特別試験研究費税額控除制度の活用 | CP15: 有 | CT15: 無 | DI15: ◎ | DJ15: 発明補償関係規程（教職員のみ対象）
B16: 産学官連携活動において今後重点化したい事項 | AA16: ■共同研究 | AG16: 2019年度 | AO16: 2020年度 | AW16: 順位※ | BB16: クロスアポイントメントの実績（人） | BK16: 大学等 | BN16: 公的機関 | BQ16: 民間企業 | BU16: その他機関 | DI16: × | DJ16: 発明補償関係規程（教職員、学生対象）
AG17: 受入額（千円） | AL17: 件数 | AO17: 受入額（千円） | AT17: 件数 | BH17: 受入 | BK17: 0 | BN17: 0 | BQ17: 1 | BU17: 0 | DB17: 順位 | DI17: ◎ | DJ17: 守秘義務に係る規程（教職員のみ対象）
AA18: 全体 | AG18: 1650 | AL18: 3 | AO18: 0 | AT18: 0 | AW18: =IF(DB18<50,DB18,"") ->  | AY18: 位 | BH18: 派遣 | BK18: 0 | BN18: 0 | BQ18: 0 | BU18: 0 | DB18: 483 | DI18: × | DJ18: 守秘義務に係る規程（教職員、学生対象）
AB19: 民間企業 のみ | AG19: 1650 | AL19: 2 | AO19: 0 | AT19: 0 | AW19: =IF(DB19<50,DB19,"") ->  | AY19: 位 | DB19: 444
AC20: 大企業 | AG20: 1650 | AL20: 2 | AO20: 0 | AW20: =IF(DB20<50,DB20,"") ->  | AY20: 位 | BB20: ■組織的産学連携活動の取組事例 | DB20: 380 | DI20: ない | DJ20: 戦略的産学連携経費の設定
AC21: 中小企業 | AG21: 0 | AO21: 0 | AW21: =IF(DB21<50,DB21,"") ->  | AY21: 位 | DB21: 358 | DI21: ない | DJ21: 教員人件費の企業負担に関する規程や制度
AL22: ※順位は2020年度の受入額を比較したもの | DI22: ない | DJ22: 学生人件費の企業負担に関する規程や制度
DB23: 0 | DI23: ない | DJ23: 特別試験研究費税額控除制度の活用
DB24: ～100万
B25: 研究者数 | I25: 202 | P25: 名 | DB25: ～300万
DB26: ～500万
DB27: ～1000万
DB28: ～5000万
DB29: ～1億 | DJ29: 共同研究等の企画・提案
B30: 産学連携担当部署 | O30: 実務者当たり研究者数 | DB30: 1億以上 | DJ30: 契約書での成果目標、達成時の明記
C31: 実務担当者数 | I31: 3 | N31: 名 | O31: =IF(OR(I25="",I31=""),"",IFERROR($I$25/I31,"")) -> 67.33333333 | DJ31: 共同研究契約の締結/判断（契約権限の集中）
C32: 専門家の配置 | I32: 弁護士 | L32: 弁理士 | O32: 税理士 | R32: 公認会計士 | V32: その他 | DJ32: 共同研究の進捗管理とフィードバック
I33: ※専門家を配置している場合は、赤色で表示されます。 | DJ33: 企業ニーズに適応した技術移転・事業化提案
AA34: ■受託研究 | AG34: 2019年度 | AO34: 2020年度 | AW34: 順位※ | DJ34: 共同研究等の企画・提案
AG35: 受入額（千円） | AL35: 件数 | AO35: 受入額（千円） | AT35: 件数 | DB35: 順位 | DJ35: 契約書での成果目標、達成時の明記
AA36: 全体 | AG36: 785 | AL36: 3 | AO36: 345 | AT36: 2 | AW36: =IF(DB36<50,DB36,"") ->  | AY36: 位 | DB36: 522 | DJ36: 共同研究契約の締結/判断（契約権限の集中）
AB37: 民間企業 のみ | AG37: 0 | AL37: 0 | AO37: 0 | AT37: 0 | AW37: =IF(DB37<50,DB37,"") ->  | AY37: 位 | DB37: 401 | DJ37: 共同研究の進捗管理とフィードバック
C38: 産学連携本部が関与した共同研究 | P38: 0 | T38: 件 | AC38: 大企業 | AG38: 0 | AO38: 0 | AW38: =IF(DB38<50,DB38,"") ->  | AY38: 位 | DB38: 308 | DJ38: 企業ニーズに適応した技術移転・事業化提案
D39: 内、マッチングを行い、契約締結した件数 | P39: 0 | T39: 件 | AC39: 中小企業 | AG39: 0 | AO39: 0 | AW39: =IF(DB39<50,DB39,"") ->  | AY39: 位 | BB39: ■産学連携活動の主な実用化事例 | DB39: 316 | DJ39: 共同研究等の企画・提案
I40: ※1,000万円以上の共同研究 | AL40: ※順位は2020年度の受入額を比較したもの | DB40: 弁護士 | DG40: 0 | DJ40: 契約書での成果目標、達成時の明記
DB41: 弁理士 | DG41: ～100万 | DJ41: 共同研究契約の締結/判断（契約権限の集中）
C42: 組織対組織による包括連携契約の締結数 | P42: 0 | T42: 件 | DB42: 税理士 | DG42: ～300万 | DJ42: 共同研究の進捗管理とフィードバック
D43: 内、1,000万円以上の実績がある相手方数 | P43: 0 | T43: 件 | DB43: 公認会計士 | DG43: ～500万 | DJ43: 企業ニーズに適応した技術移転・事業化提案
DB44: その他 | DG44: ～1000万
C45: 寄附講座・寄附研究部門の受入件数 | V45: 件 | DG45: ～5000万
C46: 寄附講座・寄附研究部門の受入金額（千円） | P46: 0 | DG46: ～1億
C47: 共同研究講座・共同研究部門の受入件数 | V47: 件 | DG47: 1億以上
C48: 共同研究講座・共同研究部門の受入金額（千円）
C52: 職務発明の帰属 | I52: 大学 | M52: 発明者 | Q52: 未設定 | CZ52: 大学 | DA52: 職務発明
AD53: 特許権実施等件数 | AL53: 0 | AS53: 実施等件数 あたり | DA53: 不実施
M54: 研究者あたり | AD54: 特許権実施等収入（千円） | AL54: 0 | AS54: =IF(OR(AL53="",AL54=""),"",IFERROR(AL54/AL53,"")) ->  | CZ54: 0 | DA54: 特許等収入
C55: 特許出願件数 | M55: =IF(OR(I25="",I55=""),"",IFERROR(I55/I25,"")) -> 
C56: 特許保有件数 | I56: 1 | M56: =IF(OR(I25="",I56=""),"",IFERROR(I56/I25,"")) -> 0.00495049505
C61: 大学発ベンチャー数 | O61: 社
C62: Exit件数（IPO） | O62: 社 | P62: Exit件数（M&A） | Z62: 社
C63: 相談窓口 | K63: 支援ファンド | S63: インキュベーション施設
C64: 有 | G64: 無 | K64: 有 | O64: 無 | S64: 有 | W64: 無
C65: 知的財産戦略方針 | K65: 支援総額（千円） | S65: 部屋数 | Z65: 件
C66: 有 | G66: 無 | S66: 利用件数 | Z66: 件
A69: 1 | B69: 2 | C69: 3 | D69: 4 | E69: 5 | F69: 6 | G69: 7 | H69: 8 | I69: 9 | J69: 10 | K69: 11 | L69: 12 | M69: 13 | N69: 14 | O69: 15 | P69: 16 | Q69: 17 | R69: 18 | S69: 19 | T69: 20 | U69: 21 | V69: 22 | W69: 23 | X69: 24 | Y69: 25 | Z69: 26 | AA69: 27 | AB69: 28 | AC69: 29 | AD69: 30 | AE69: 31 | AF69: 32 | AG69: 33 | AH69: 34 | AI69: 35 | AJ69: 36 | AK69: 37 | AL69: 38 | AM69: 39 | AN69: 40 | AO69: 41 | AP69: 42 | AQ69: 43 | AR69: 44 | AS69: 45 | AT69: 46 | AU69: 47 | AV69: 48 | AW69: 49 | AX69: 50 | AY69: 51 | AZ69: 52 | BA69: 53 | BB69: 54 | BC69: 55 | BD69: 56 | BE69: 57 | BF69: 58 | BG69: 59 | BH69: 60 | BI69: 61 | BJ69: 62 | BK69: 63 | BL69: 64 | BM69: 65 | BN69: 66 | BO69: 67 | BP69: 68 | BQ69: 69 | BR69: 70 | BS69: 71 | BT69: 72 | BU69: 73 | BV69: 74 | BW69: 75 | BX69: 76 | BY69: 77 | BZ69: 78 | CA69: 79 | CB69: 80 | CC69: 81 | CD69: 82 | CE69: 83 | CF69: 84 | CG69: 85 | CH69: 86 | CI69: 87 | CJ69: 88 | CK69: 89 | CL69: 90 | CM69: 91 | CN69: 92 | CO69: 93 | CP69: 94 | CQ69: 95 | CR69: 96 | CS69: 97 | CT69: 98 | CU69: 99 | CV69: 100 | CW69: 101 | CX69: 102 | CY69: 103 | CZ69: 104 | DA69: 105 | DB69: 106 | DC69: 107 | DD69: 108 | DE69: 109 | DF69: 110 | DG69: 111 | DH69: 112 | DI69: 113 | DJ69: 114 | DK69: 115 | DL69: 116 | DM69: 117 | DN69: 118 | DO69: 119 | DP69: 120 | DQ69: 121 | DR69: 122 | DS69: 123 | DT69: 124 | DU69: 125
D70: 特許権収入
B71: 東京大学 | C71: 4495 | D71: 261744000
B72: 東北大学 | C72: 3533 | D72: 157139000
B73: 京都大学 | C73: 3044 | D73: 698373000
B74: 大阪大学 | C74: 2854 | D74: 509758000
B75: 東京工業大学 | C75: 1979 | D75: 57301000
B76: 九州大学 | C76: 1530 | D76: 601936000
B77: 名古屋大学 | C77: 1346 | D77: 72156000
B78: 北海道大学 | C78: 1167 | D78: 86700000
B79: 信州大学 | C79: 952 | D79: 29305000
B80: 広島大学 | C80: 921 | D80: 41265000
B81: 筑波大学 | C81: 850 | D81: 42694000
B82: 慶應義塾大学 | C82: 798 | D82: 67998000
B83: 千葉大学 | C83: 769 | D83: 17609000
B84: 岡山大学 | C84: 749 | D84: 8886000
B85: 山口大学 | C85: 700 | D85: 29167000
B86: 早稲田大学 | C86: 698 | D86: 21143000
B87: 名古屋工業大学 | C87: 638 | D87: 12139000
B88: 東京農工大学 | C88: 632 | D88: 44098000
B89: 九州工業大学 | C89: 611 | D89: 10288000
B90: 大阪府立大学 | C90: 573 | D90: 9177000
B91: 東京理科大学 | C91: 528 | D91: 15523000
B92: 神戸大学 | C92: 525 | D92: 78768000
B93: 静岡大学 | C93: 509 | D93: 8145000
B94: 群馬大学 | C94: 483 | D94: 5316000
B95: 熊本大学 | C95: 475 | D95: 29359000
B96: 近畿大学 | C96: 453 | D96: 82359000
B97: 長岡技術科学大学 | C97: 441 | D97: 3921000
B98: 横浜国立大学 | C98: 439 | D98: 5839000
B99: 奈良先端科学技術大学院大学 | C99: 427 | D99: 3542000
B100: 三重大学 | C100: 417 | D100: 10844000
B101: 鹿児島大学 | C101: 416 | D101: 14284000
B102: 大阪市立大学 | C102: 403 | D102: 2791000
B103: 東京都立大学 | C103: 398 | D103: 574000
B104: 山梨大学 | C104: 395 | D104: 5041000
B105: 香川大学 | C105: 389 | D105: 17113000
B106: 東京医科歯科大学 | C106: 377 | D106: 24076000
B107: 豊橋技術科学大学 | C107: 374 | D107: 5526000
B108: 徳島大学 | C108: 362 | D108: 131417000
B109: 電気通信大学 | C109: 355 | D109: 7847000
B110: 関西大学 | C110: 350 | D110: 5154000
B111: 鳥取大学 | C111: 340 | D111: 4814000
B112: 同志社大学 | C112: 337 | D112: 17850000
B113: 金沢大学 | C113: 337 | D113: 13893000
B114: 日本大学 | C114: 333 | D114: 38328000
B115: 山形大学 | C115: 323 | D115: 752000
B116: 北里大学 | C116: 315 | D116: 45190000
B117: 埼玉大学 | C117: 309 | D117: 2765000
B118: 富山大学 | C118: 305 | D118: 35859000
B119: 新潟大学 | C119: 301 | D119: 8943000
B120: 高知大学 | C120: 281 | D120: 26209000
B121: 立命館大学 | C121: 268 | D121: 2098000
B122: 秋田大学 | C122: 264 | D122: 1773000
B123: 神奈川大学 | C123: 263 | D123: 4940000
B124: 岐阜大学 | C124: 246 | D124: 7958000
B125: 弘前大学 | C125: 239 | D125: 10190000
B126: 宮崎大学 | C126: 236 | D126: 2168000
B127: 名城大学 | C127: 232 | D127: 2341000
B128: 兵庫県立大学 | C128: 232 | D128: 1142000
B129: 佐賀大学 | C129: 224 | D129: 4180000
B130: 福井大学 | C130: 221 | D130: 3913000
B131: 札幌医科大学 | C131: 218 | D131: 105462000
B132: 東海大学 | C132: 211 | D132: 5395000
B133: 京都工芸繊維大学 | C133: 201 | D133: 4782000
B134: 岩手大学 | C134: 198 | D134: 2552000
B135: 長崎大学 | C135: 194 | D135: 25364000
B136: 東京女子医科大学 | C136: 186 | D136: 2706000
B137: 横浜市立大学 | C137: 184 | D137: 50242000
B138: 北陸先端科学技術大学院大学 | C138: 175 | D138: 8323000
B139: 東京海洋大学 | C139: 175 | D139: 3222000
B140: 愛媛大学 | C140: 174 | D140: 35291000
B141: 宇都宮大学 | C141: 171 | D141: 2463000
B142: 高知工科大学 | C142: 165 | D142: 326000
B143: 千葉工業大学 | C143: 160 | D143: 0
B144: 茨城大学 | C144: 157 | D144: 2754000
B145: 福岡大学 | C145: 154 | D145: 874000
B146: 沖縄科学技術大学院大学 | C146: 152 | D146: 1100000
B147: 大分大学 | C147: 151 | D147: 1915000
B148: 金沢工業大学 | C148: 150 | D148: 2760000
B149: 中央大学 | C149: 144 | D149: 989000
B150: 浜松医科大学 | C150: 143 | D150: 3875000
B151: 島根大学 | C151: 137 | D151: 1166000
B152: 滋賀医科大学 | C152: 132 | D152: 2306000
B153: 関西学院大学 | C153: 128 | D153: 23880000
B154: 自治医科大学 | C154: 127 | D154: 6757000
B155: 久留米大学 | C155: 127 | D155: 1462000
B156: 上智大学 | C156: 126 | D156: 0
B157: 順天堂大学 | C157: 122 | D157: 3072000
B158: 中部大学 | C158: 118 | D158: 220000
B159: 東京電機大学 | C159: 102 | D159: 1180000
B160: 芝浦工業大学 | C160: 98 | D160: 1615000
B161: 埼玉医科大学 | C161: 96 | D161: 27468000
B162: 豊田工業大学 | C162: 96 | D162: 0
B163: 名古屋市立大学 | C163: 94 | D163: 17822000
B164: 京都府立医科大学 | C164: 94 | D164: 2128000
B165: 北見工業大学 | C165: 92 | D165: 995000
B166: 和歌山大学 | C166: 89 | D166: 4131000
B167: 富山県立大学 | C167: 87 | D167: 1375000
B168: 関東学院大学 | C168: 84 | D168: 14540000
B169: 明治大学 | C169: 81 | D169: 4886000
B170: 琉球大学 | C170: 77 | D170: 1146000
B171: 静岡県立大学 | C171: 72 | D171: 915000
B172: 福島大学 | C172: 67 | D172: 897000
B173: 藤田医科大学 | C173: 62 | D173: 0
B174: 帝京大学 | C174: 60 | D174: 2351000
B175: 兵庫医科大学 | C175: 60 | D175: 332000
B176: 旭川医科大学 | C176: 59 | D176: 1987000
B177: 日本医科大学 | C177: 55 | D177: 58243000
B178: 帯広畜産大学 | C178: 54 | D178: 2966000
B179: 東洋大学 | C179: 54 | D179: 633000
B180: 秋田県立大学 | C180: 52 | D180: 892000
B181: 奈良県立医科大学 | C181: 52 | D181: 743000
B182: 福岡工業大学 | C182: 52 | D182: 0
B183: 立教大学 | C183: 51 | D183: 231000
B184: 室蘭工業大学 | C184: 50 | D184: 0
B185: 昭和大学 | C185: 48 | D185: 4513000
B186: 聖マリアンナ医科大学 | C186: 46 | D186: 3204000
B187: 関西医科大学 | C187: 46 | D187: 781000
B188: 神奈川工科大学 | C188: 46 | D188: 289000
B189: 岡山理科大学 | C189: 45 | D189: 916000
B190: お茶の水女子大学 | C190: 45 | D190: 5000
B191: 広島市立大学 | C191: 44 | D191: 0
B192: 会津大学 | C192: 43 | D192: 33000
B193: 龍谷大学 | C193: 42 | D193: 1289000
B194: 玉川大学 | C194: 41 | D194: 119000
